Workbook

Sheet Invoer
A1: Info berekening | S1: Alle tumoren
A2: Locatie: | S2: Acute leukemie (ALL+AML)
A3: Ref. nummer: | S3: Long & Luchtpijp
A4: Berekende periode: | C4: =Invoer!B11-(Invoer!A11-1)&" jaar" -> 16 jaar | S4: Mesothelioom
K5: Instructies
K6: Stap 1: Vul in het linkerdeel alle grijze velden in. Het gaat om - De periode waarmee je het aantal kankerpatiënten wil vergelijken (default 10 jaar) - Het type kanker waar het over gaat (alle typen samen, leukemie, longkanker) - Het aantal mensen in de betreffende buurt per leeftijd, apart voor mannen en vrouwen - Kies het spreidingspercentage van de berekening onder Betrouwbaarheidsinterval (standaard 98), bijvoorbeeld: - 95%-spreiding (boven- en ondergrens = 0,025), bij grote groepen - 99%-spreiding (boven- en ondergrens = 0,005), bij zeldzame vormen van kanker. Stap 2: Voer de berekening uit door te klikken op ‘bereken verwachte aantal’ Stap 3: Lees in het rechterdeel af in welk interval het verwachte aantal valt in een buurt met deze leeftijdsopbouw en verdeling over man/vrouw. De spreiding bij ‘mannen+vrouwen’ is geen optelsom van de spreiding bij mannen en vrouwen apart. Bij ‘mannen+vrouwen’ gaat het namelijk om een grotere groep mensen. De spreiding (toevalsvariatie) is dan relatief minder groot. NB: De achtergronden en interpretatie van deze cijfers zijn beschreven in de richtlijn ‘kankerclusters’ (RIVM rapport 609400002). Raadpleeg deze richtlijn bij het gebruik van deze cijfers.
F7: Verwachte aantal op basis van landelijke incidentie
A8: Periode | C8: Kankersoort | F8: ="in "&Invoer!B11-(Invoer!A11-1)&" jaar tijd" -> in 16 jaar tijd
A9: (1989 tot 2016) | H9: ondergrens | I9: bovengrens
A10: vanaf | B10: t/m | F10: Mannen | H10: =IF(ISNA(VLOOKUP(Berekening!B56,TabelOndergrens!A4:B5004,2,TRUE)+1),0,IF((VLOOKUP(Berekening!B56,TabelOndergrens!A4:B5004,2,TRUE)+1)=5001,"> 5000",VLOOKUP(Berekening!B56,TabelOndergrens!A4:B5004,2,TRUE)+1)) -> 0 | I10: =IF(ISNA(VLOOKUP((1-Berekening!B56),TabelOndergrens!A4:B5004,2,TRUE)+1),0,IF((VLOOKUP((1-Berekening!B56),TabelOndergrens!A4:B5004,2,TRUE)+1)=5001,"> 5000",VLOOKUP((1-Berekening!B56),TabelOndergrens!A4:B5004,2,TRUE)+1)) -> 0
A11: 2001 | B11: 2016 | C11: *leuk* | F11: Vrouwen | H11: =IF(ISNA(VLOOKUP(Berekening!$B$56,TabelOndergrens!$C$4:$D$5004,2,TRUE)+1),0,IF((VLOOKUP(Berekening!$B$56,TabelOndergrens!$C$4:$D$5004,2,TRUE)+1)=5001,"> 5000",VLOOKUP(Berekening!$B$56,TabelOndergrens!$C$4:$D$5004,2,TRUE)+1)) -> 0 | I11: =IF(ISNA(VLOOKUP((1-Berekening!B56),TabelOndergrens!C4:D5004,2,TRUE)+1),0,IF((VLOOKUP((1-Berekening!B56),TabelOndergrens!C4:D5004,2,TRUE)+1)=5001,"> 5000",VLOOKUP((1-Berekening!B56),TabelOndergrens!C4:D5004,2,TRUE)+1)) -> 0
F12: Mannen+vrouwen | H12: =IF(ISNA(VLOOKUP(Berekening!B56,TabelOndergrens!E4:F5004,2,TRUE)+1),0,IF((VLOOKUP(Berekening!B56,TabelOndergrens!E4:F5004,2,TRUE)+1)=5001,"> 5000",VLOOKUP(Berekening!B56,TabelOndergrens!E4:F5004,2,TRUE)+1)) -> 0 | I12: =IF(ISNA(VLOOKUP((1-Berekening!B56),TabelOndergrens!E4:F5004,2,TRUE)+1),0,IF((VLOOKUP((1-Berekening!B56),TabelOndergrens!E4:F5004,2,TRUE)+1)=5001,"> 5000",VLOOKUP((1-Berekening!B56),TabelOndergrens!E4:F5004,2,TRUE)+1)) -> 0
A13: Aantal inwoners in gebied
A14: Leeftijd | B14: Mannen | C14: Vrouwen | D14: Totaal
A15: 0-4 | D15: =SUM(B15,C15) -> 0 | F15: Betrouwbaarheidsinterval | H15: 98
A16: 5-9 jr | D16: 0
A17: 10-14jr | D17: 0
A18: 15-19 | D18: 0
A19: 20-24 | D19: 0
A20: 25-29 | D20: 0
A21: 30-34 | D21: 0 | F21: Aantekeningen
A22: 35-39 | D22: 0
A23: 40-44 | D23: 0
A24: 45-49 | D24: 0
A25: 50-54 | D25: 0
A26: 55-59 | D26: 0
A27: 60-64 | D27: 0
A28: 65-69 | D28: 0
A29: 70-74 | D29: 0
A30: 75-79 | D30: 0
A31: 80-84 | D31: 0
A32: 85-89 | D32: 0
A33: 90-94 | D33: 0
A34: 95+ | D34: 0
A35: totaal | B35: =SUM(B15:B34) -> 0 | C35: =SUM(C15:C34) -> 0 | D35: =SUM(D15:D34) -> 0

Sheet DataIKNL
A1: Tumor | C1: Vanaf | D1: Tot | N1: Bron: www.cijfersoverkanker.nl
A2: 2 | C2: =">="&Invoer!A11 -> >=2001 | D2: ="<="&Invoer!B11 -> <=2016 | N2: Incidentie per 100.000 CR
C3: =Invoer!A10 -> vanaf
D4: Man | X4: Vrouw | AR4: Man & Vrouw
A5: Gemiddelde | D5: =SUBTOTAL(1,D7:D118) -> 7.408125 | E5: =SUBTOTAL(1,E7:E118) -> 4.564464286 | F5: 4.321964286 | G5: 6.691696429 | H5: 9.316339286 | I5: 13.03875 | J5: 16.67767857 | K5: 22.39223214 | L5: 35.19696429 | M5: 63.45482143 | N5: 119.2269643 | O5: 221.7041964 | P5: 382.9802679 | Q5: 594.3983929 | R5: 819.8339286 | S5: 1012.782589 | T5: 1077.146696 | U5: 1021.089375 | V5: 841.9963393 | W5: 627.7478571 | X5: 6.457678571 | Y5: 3.360982143 | Z5: 3.555089286 | AA5: 5.350535714 | AB5: 8.009464286 | AC5: 14.2875 | AD5: 26.35910714 | AE5: 43.26982143 | AF5: 71.44910714 | AG5: 115.3830357 | AH5: 165.8605357 | AI5: 210.9241964 | AJ5: 276.4016071 | AK5: 346.115 | AL5: 406.77875 | AM5: 447.6498214 | AN5: 486.9125893 | AO5: 477.8252679 | AP5: 415.6270536 | AQ5: 312.3388393 | AR5: 6.933035714 | AS5: 3.962678571 | AT5: 3.938660714 | AU5: 6.021607143 | AV5: 8.663214286 | AW5: 13.66392857 | AX5: 21.51866071 | AY5: 32.83142857 | AZ5: 53.32285714 | BA5: 89.41910714 | BB5: 142.5441964 | BC5: 216.3141071 | BD5: 329.6905357 | BE5: 470.2566964 | BF5: 613.3064286 | BG5: 730.2158929 | BH5: 782.0304464 | BI5: 749.4570536 | BJ5: 628.811875 | BK5: 470.0433036
A6: Tumor | C6: periode | D6: 0-4 | E6: 5-9 | F6: 10-14 | G6: 15-19 | H6: 20-24 | I6: 25-29 | J6: 30-34 | K6: 35-39 | L6: 40-44 | M6: 45-49 | N6: 50-54 | O6: 55-59 | P6: 60-64 | Q6: 65-69 | R6: 70-74 | S6: 75-79 | T6: 80-84 | U6: 85-89 | V6: 90-94 | W6: 95-99 | X6: 0-4 | Y6: 5-9 | Z6: 10-14 | AA6: 15-19 | AB6: 20-24 | AC6: 25-29 | AD6: 30-34 | AE6: 35-39 | AF6: 40-44 | AG6: 45-49 | AH6: 50-54 | AI6: 55-59 | AJ6: 60-64 | AK6: 65-69 | AL6: 70-74 | AM6: 75-79 | AN6: 80-84 | AO6: 85-89 | AP6: 90-94 | AQ6: 95-99 | AR6: 0-4 | AS6: 5-9 | AT6: 10-14 | AU6: 15-19 | AV6: 20-24 | AW6: 25-29 | AX6: 30-34 | AY6: 35-39 | AZ6: 40-44 | BA6: 45-49 | BB6: 50-54 | BC6: 55-59 | BD6: 60-64 | BE6: 65-69 | BF6: 70-74 | BG6: 75-79 | BH6: 80-84 | BI6: 85-89 | BJ6: 90-94 | BK6: 95-99
A7: Alle tumoren | B7: 1 | C7: 1989 | D7: 17.46 | E7: 13.03 | F7: 13.58 | G7: 19.49 | H7: 23.74 | I7: 41.12 | J7: 50.47 | K7: 66.92 | L7: 131.97 | M7: 218.75 | N7: 409.14 | O7: 691.85 | P7: 1151.96 | Q7: 1763.64 | R7: 2509.7 | S7: 3067.93 | T7: 3494.97 | U7: 3476.89 | V7: 2986.81 | W7: 1971.43 | X7: 20.65 | Y7: 9.69 | Z7: 11.53 | AA7: 13.3 | AB7: 27.47 | AC7: 46.64 | AD7: 88.88 | AE7: 153.99 | AF7: 242.06 | AG7: 354.4 | AH7: 468.47 | AI7: 623.29 | AJ7: 770.81 | AK7: 996.6 | AL7: 1190.16 | AM7: 1380.67 | AN7: 1539.91 | AO7: 1538.18 | AP7: 1410.27 | AQ7: 1233.93 | AR7: 19.06 | AS7: 11.36 | AT7: 12.56 | AU7: 16.39 | AV7: 25.61 | AW7: 43.88 | AX7: 69.68 | AY7: 110.46 | AZ7: 187.02 | BA7: 286.57 | BB7: 438.81 | BC7: 657.57 | BD7: 961.39 | BE7: 1380.12 | BF7: 1849.93 | BG7: 2224.3 | BH7: 2517.44 | BI7: 2507.54 | BJ7: 2198.54 | BK7: 1602.68
A8: Alle tumoren | B8: 1 | C8: 1990 | D8: 19.85 | E8: 11.69 | F8: 12.99 | G8: 21.64 | H8: 29.89 | I8: 38.82 | J8: 51.86 | K8: 71.73 | L8: 119.39 | M8: 223.11 | N8: 383.67 | O8: 696.26 | P8: 1144.75 | Q8: 1781.52 | R8: 2540.83 | S8: 3177.71 | T8: 3450.63 | U8: 3348 | V8: 3056.38 | W8: 2258.47 | X8: 15.26 | Y8: 9.22 | Z8: 11.13 | AA8: 18.19 | AB8: 28.73 | AC8: 45.59 | AD8: 84.85 | AE8: 145.45 | AF8: 249.08 | AG8: 357.23 | AH8: 482 | AI8: 619.81 | AJ8: 801.4 | AK8: 1015.75 | AL8: 1206.31 | AM8: 1422.1 | AN8: 1589.44 | AO8: 1574.27 | AP8: 1563.12 | AQ8: 1130.18 | AR8: 17.56 | AS8: 10.45 | AT8: 12.06 | AU8: 19.92 | AV8: 29.31 | AW8: 42.2 | AX8: 68.35 | AY8: 108.59 | AZ8: 184.24 | BA8: 290.17 | BB8: 432.83 | BC8: 658.04 | BD8: 973.08 | BE8: 1398.64 | BF8: 1873.57 | BG8: 2299.91 | BH8: 2520.04 | BI8: 2461.13 | BJ8: 2309.75 | BK8: 1694.33
A9: Alle tumoren | B9: 1 | C9: 1991 | D9: 20.08 | E9: 11.86 | F9: 11.66 | G9: 18.01 | H9: 29.28 | I9: 34.91 | J9: 50.55 | K9: 77.96 | L9: 112.51 | M9: 224.47 | N9: 382.27 | O9: 704.71 | P9: 1164.07 | Q9: 1802.58 | R9: 2547.61 | S9: 3174.94 | T9: 3557.98 | U9: 3573.5 | V9: 3074.18 | W9: 2127.66 | X9: 15 | Y9: 7.33 | Z9: 9.73 | AA9: 15.18 | AB9: 26.47 | AC9: 44.91 | AD9: 88.84 | AE9: 145.63 | AF9: 247.65 | AG9: 381.35 | AH9: 492.57 | AI9: 621.22 | AJ9: 823.16 | AK9: 1048.76 | AL9: 1224.77 | AM9: 1406.23 | AN9: 1566.26 | AO9: 1686.3 | AP9: 1422.59 | AQ9: 1049.87 | AR9: 17.54 | AS9: 9.6 | AT9: 10.69 | AU9: 16.6 | AV9: 27.88 | AW9: 39.91 | AX9: 69.7 | AY9: 111.8 | AZ9: 180.08 | BA9: 302.91 | BB9: 437.42 | BC9: 662.96 | BD9: 993.62 | BE9: 1425.67 | BF9: 1886.19 | BG9: 2290.58 | BH9: 2562.12 | BI9: 2629.9 | BJ9: 2248.38 | BK9: 1588.76
A10: Alle tumoren | B10: 1 | C10: 1992 | D10: 20.62 | E10: 14.5 | F10: 13.6 | G10: 21.27 | H10: 26.74 | I10: 35.58 | J10: 51.5 | K10: 78.76 | L10: 124.55 | M10: 225.94 | N10: 390.56 | O10: 732.42 | P10: 1179.55 | Q10: 1842.9 | R10: 2563.26 | S10: 3243.05 | T10: 3685.65 | U10: 3734.49 | V10: 3336.71 | W10: 1937.25 | X10: 13.76 | Y10: 13.33 | Z10: 9.25 | AA10: 20.09 | AB10: 23.07 | AC10: 46.97 | AD10: 90.86 | AE10: 153.13 | AF10: 245.79 | AG10: 365.41 | AH10: 532.1 | AI10: 684.04 | AJ10: 884.17 | AK10: 1103.59 | AL10: 1228.65 | AM10: 1479.91 | AN10: 1669.53 | AO10: 1670.18 | AP10: 1550.05 | AQ10: 1270.78 | AR10: 17.19 | AS10: 13.92 | AT10: 11.43 | AU10: 20.68 | AV10: 24.9 | AW10: 41.28 | AX10: 71.18 | AY10: 115.94 | AZ10: 185.17 | BA10: 295.68 | BB10: 461.33 | BC10: 708.23 | BD10: 1031.86 | BE10: 1473.24 | BF10: 1895.96 | BG10: 2361.48 | BH10: 2677.59 | BI10: 2702.33 | BJ10: 2443.38 | BK10: 1604.01
A11: Alle tumoren | B11: 1 | C11: 1993 | D11: 18.21 | E11: 15.5 | F11: 11.68 | G11: 21.95 | H11: 29.46 | I11: 48.34 | J11: 53.67 | K11: 74.88 | L11: 118.06 | M11: 211.81 | N11: 371.68 | O11: 697.8 | P11: 1205.42 | Q11: 1803.63 | R11: 2556.59 | S11: 3354.85 | T11: 3621.5 | U11: 3623.72 | V11: 2980.25 | W11: 1829.4 | X11: 17.18 | Y11: 9.76 | Z11: 10.85 | AA11: 19.89 | AB11: 26.19 | AC11: 47.35 | AD11: 89.9 | AE11: 148.05 | AF11: 233.5 | AG11: 394.99 | AH11: 546.48 | AI11: 694.85 | AJ11: 897.16 | AK11: 1121.76 | AL11: 1199.4 | AM11: 1448.83 | AN11: 1641.33 | AO11: 1682.36 | AP11: 1407.57 | AQ11: 1068.06 | AR11: 17.7 | AS11: 12.63 | AT11: 11.26 | AU11: 20.92 | AV11: 27.82 | AW11: 47.85 | AX11: 71.79 | AY11: 111.47 | AZ11: 175.78 | BA11: 303.4 | BB11: 459.08 | BC11: 696.33 | BD11: 1051.29 | BE11: 1462.7 | BF11: 1877.99 | BG11: 2401.84 | BH11: 2631.41 | BI11: 2653.04 | BJ11: 2193.91 | BK11: 1448.73
A12: Alle tumoren | B12: 1 | C12: 1994 | D12: 17.26 | E12: 13.15 | F12: 11.26 | G12: 20.23 | H12: 28.43 | I12: 37.29 | J12: 52.27 | K12: 74.58 | L12: 118.88 | M12: 214.47 | N12: 389.49 | O12: 717.83 | P12: 1221.38 | Q12: 1891.26 | R12: 2694.7 | S12: 3339.11 | T12: 3809.47 | U12: 3708.25 | V12: 3353.31 | W12: 2639.1 | X12: 19.74 | Y12: 9.37 | Z12: 10.41 | AA12: 18.94 | AB12: 26.24 | AC12: 45.99 | AD12: 88.86 | AE12: 165.87 | AF12: 245.59 | AG12: 392.8 | AH12: 554.1 | AI12: 712.08 | AJ12: 891.16 | AK12: 1134.34 | AL12: 1246.31 | AM12: 1515.68 | AN12: 1699.39 | AO12: 1790.45 | AP12: 1581.07 | AQ12: 1039.27 | AR12: 18.5 | AS12: 11.26 | AT12: 10.83 | AU12: 19.59 | AV12: 27.34 | AW12: 41.64 | AX12: 70.56 | AY12: 120.23 | AZ12: 182.24 | BA12: 303.64 | BB12: 471.79 | BC12: 714.95 | BD12: 1056.27 | BE12: 1512.8 | BF12: 1970.51 | BG12: 2427.39 | BH12: 2754.43 | BI12: 2749.35 | BJ12: 2467.19 | BK12: 1839.19
A13: Alle tumoren | B13: 1 | C13: 1995 | D13: 20.44 | E13: 13.12 | F13: 13.42 | G13: 22.24 | H13: 28.01 | I13: 41.49 | J13: 58.7 | K13: 69.43 | L13: 121.8 | M13: 215.6 | N13: 396.61 | O13: 678.14 | P13: 1218.13 | Q13: 1892.47 | R13: 2650.1 | S13: 3454.76 | T13: 3782.6 | U13: 3620.16 | V13: 2923.75 | W13: 2735.98 | X13: 17.47 | Y13: 10.07 | Z13: 11.09 | AA13: 18.64 | AB13: 25.71 | AC13: 45.7 | AD13: 96.97 | AE13: 150.96 | AF13: 239.2 | AG13: 389.27 | AH13: 568.35 | AI13: 686.99 | AJ13: 897.7 | AK13: 1071.24 | AL13: 1224.12 | AM13: 1503.41 | AN13: 1625.28 | AO13: 1615.71 | AP13: 1478.72 | AQ13: 1240.85 | AR13: 18.95 | AS13: 11.6 | AT13: 12.26 | AU13: 20.44 | AV13: 26.86 | AW13: 43.6 | AX13: 77.84 | AY13: 110.2 | AZ13: 180.5 | BA13: 302.44 | BB13: 482.48 | BC13: 682.57 | BD13: 1057.92 | BE13: 1481.86 | BF13: 1937.11 | BG13: 2479.08 | BH13: 2703.94 | BI13: 2617.93 | BJ13: 2201.24 | BK13: 1988.42
A14: Alle tumoren | B14: 1 | C14: 1996 | D14: 25.2 | E14: 11.28 | F14: 14.67 | G14: 23.25 | H14: 30.55 | I14: 44.06 | J14: 54.7 | K14: 79 | L14: 128.8 | M14: 221.86 | N14: 392.04 | O14: 702.84 | P14: 1208.37 | Q14: 1950.51 | R14: 2736.31 | S14: 3376.77 | T14: 3586.14 | U14: 3732.84 | V14: 3218.6 | W14: 2053.86 | X14: 20.76 | Y14: 8.43 | Z14: 10.59 | AA14: 20.81 | AB14: 30.58 | AC14: 48.66 | AD14: 94.31 | AE14: 158.34 | AF14: 251.41 | AG14: 399.76 | AH14: 566.22 | AI14: 696.2 | AJ14: 869.79 | AK14: 1103.52 | AL14: 1230.09 | AM14: 1510.73 | AN14: 1685.04 | AO14: 1628.08 | AP14: 1524.35 | AQ14: 1436.75 | AR14: 22.98 | AS14: 9.86 | AT14: 12.63 | AU14: 22.03 | AV14: 30.56 | AW14: 46.36 | AX14: 74.5 | AY14: 118.67 | AZ14: 190.1 | BA14: 310.81 | BB14: 479.13 | BC14: 699.52 | BD14: 1039.08 | BE14: 1527.02 | BF14: 1983.2 | BG14: 2443.75 | BH14: 2635.59 | BI14: 2680.46 | BJ14: 2371.48 | BK14: 1745.3
A15: Alle tumoren | B15: 1 | C15: 1997 | D15: 23.14 | E15: 10.16 | F15: 10.85 | G15: 20.06 | H15: 30.04 | I15: 39.11 | J15: 52.74 | K15: 71.5 | L15: 122.26 | M15: 221.73 | N15: 387.44 | O15: 708.4 | P15: 1200.31 | Q15: 1950.69 | R15: 2628.37 | S15: 3239.77 | T15: 3562.77 | U15: 3499.51 | V15: 2797.79 | W15: 2191.9 | X15: 17.72 | Y15: 8.13 | Z15: 13.12 | AA15: 18.78 | AB15: 26.96 | AC15: 48.38 | AD15: 91.75 | AE15: 151.58 | AF15: 248.71 | AG15: 416.48 | AH15: 600.16 | AI15: 713.97 | AJ15: 875.25 | AK15: 1101.44 | AL15: 1210.42 | AM15: 1495.11 | AN15: 1651.49 | AO15: 1733.18 | AP15: 1382.49 | AQ15: 1113.01 | AR15: 20.43 | AS15: 9.14 | AT15: 11.99 | AU15: 19.42 | AV15: 28.5 | AW15: 43.75 | AX15: 72.24 | AY15: 111.54 | AZ15: 185.48 | BA15: 319.11 | BB15: 493.8 | BC15: 711.18 | BD15: 1037.78 | BE15: 1526.06 | BF15: 1919.39 | BG15: 2367.44 | BH15: 2607.13 | BI15: 2616.34 | BJ15: 2090.14 | BK15: 1652.46
A16: Alle tumoren | B16: 1 | C16: 1998 | D16: 25.11 | E16: 12.44 | F16: 13.79 | G16: 23.25 | H16: 34.21 | I16: 42.9 | J16: 52.79 | K16: 68.68 | L16: 111.95 | M16: 207.83 | N16: 390.73 | O16: 697.94 | P16: 1205.64 | Q16: 1881.92 | R16: 2627.83 | S16: 3270.35 | T16: 3381.14 | U16: 3504.82 | V16: 2997.42 | W16: 2230.97 | X16: 17.89 | Y16: 10.54 | Z16: 11.14 | AA16: 19.03 | AB16: 29.43 | AC16: 49.96 | AD16: 101.17 | AE16: 157.27 | AF16: 253.99 | AG16: 412.77 | AH16: 587.61 | AI16: 688.01 | AJ16: 893.06 | AK16: 1087.27 | AL16: 1292.84 | AM16: 1559.7 | AN16: 1643.18 | AO16: 1637.52 | AP16: 1553.95 | AQ16: 1088.2 | AR16: 21.5 | AS16: 11.49 | AT16: 12.47 | AU16: 21.14 | AV16: 31.82 | AW16: 46.43 | AX16: 76.98 | AY16: 112.98 | AZ16: 182.97 | BA16: 310.3 | BB16: 489.17 | BC16: 692.97 | BD16: 1049.35 | BE16: 1484.6 | BF16: 1960.33 | BG16: 2415.02 | BH16: 2512.16 | BI16: 2571.17 | BJ16: 2275.68 | BK16: 1659.58
A17: Alle tumoren | B17: 1 | C17: 1999 | D17: 22.33 | E17: 14.89 | F17: 11.51 | G17: 23.64 | H17: 34.34 | I17: 45.7 | J17: 56.01 | K17: 75.84 | L17: 112.73 | M17: 200.73 | N17: 393.51 | O17: 696.22 | P17: 1207.18 | Q17: 1896.44 | R17: 2644.5 | S17: 3282.27 | T17: 3375.22 | U17: 3227.08 | V17: 2779.7 | W17: 2223.17 | X17: 16.1 | Y17: 5.95 | Z17: 11.16 | AA17: 17.04 | AB17: 28.82 | AC17: 55.82 | AD17: 97.37 | AE17: 157.87 | AF17: 276.98 | AG17: 412.19 | AH17: 594.09 | AI17: 702.31 | AJ17: 904.32 | AK17: 1101.86 | AL17: 1423 | AM17: 1599.63 | AN17: 1724.45 | AO17: 1567.04 | AP17: 1498.33 | AQ17: 1139.86 | AR17: 19.21 | AS17: 10.42 | AT17: 11.33 | AU17: 20.34 | AV17: 31.58 | AW17: 50.76 | AX17: 76.69 | AY17: 116.86 | AZ17: 194.85 | BA17: 306.46 | BB17: 493.8 | BC17: 699.26 | BD17: 1055.75 | BE17: 1499.15 | BF17: 2033.75 | BG17: 2440.95 | BH17: 2549.83 | BI17: 2397.06 | BJ17: 2139.02 | BK17: 1681.52
A18: Alle tumoren | B18: 1 | C18: 2000 | D18: 20.08 | E18: 15.07 | F18: 14.72 | G18: 23.12 | H18: 32.78 | I18: 47.45 | J18: 57.33 | K18: 72.61 | L18: 124.34 | M18: 203.18 | N18: 389.24 | O18: 713.16 | P18: 1211.97 | Q18: 1883.79 | R18: 2587.34 | S18: 3178.34 | T18: 3439.56 | U18: 3304.06 | V18: 2463.75 | W18: 2298.85 | X18: 20.24 | Y18: 10.04 | Z18: 10.11 | AA18: 16.11 | AB18: 27.62 | AC18: 53.34 | AD18: 88.92 | AE18: 155.39 | AF18: 250.35 | AG18: 436.16 | AH18: 585.97 | AI18: 752.19 | AJ18: 901.45 | AK18: 1136.85 | AL18: 1431.19 | AM18: 1542.73 | AN18: 1616.77 | AO18: 1681.74 | AP18: 1437.59 | AQ18: 1054.07 | AR18: 20.16 | AS18: 12.56 | AT18: 12.42 | AU18: 19.61 | AV18: 30.2 | AW18: 50.4 | AX18: 73.12 | AY18: 114 | AZ18: 187.34 | BA18: 319.67 | BB18: 487.61 | BC18: 732.67 | BD18: 1056.71 | BE18: 1510.32 | BF18: 2009.27 | BG18: 2360.53 | BH18: 2528.17 | BI18: 2492.9 | BJ18: 1950.67 | BK18: 1676.46
A19: Alle tumoren | B19: 1 | C19: 2001 | D19: 21.14 | E19: 14.57 | F19: 14.06 | G19: 22.72 | H19: 38.28 | I19: 49.07 | J19: 55.83 | K19: 78.18 | L19: 114.7 | M19: 202.12 | N19: 392.4 | O19: 714.42 | P19: 1196.07 | Q19: 1879.62 | R19: 2639.06 | S19: 3224.68 | T19: 3373.1 | U19: 3375.05 | V19: 2675 | W19: 2208.07 | X19: 20.92 | Y19: 9.28 | Z19: 10.57 | AA19: 19.71 | AB19: 33.05 | AC19: 52.1 | AD19: 99.43 | AE19: 163.15 | AF19: 278.85 | AG19: 419.97 | AH19: 613.85 | AI19: 758.82 | AJ19: 950.59 | AK19: 1117.17 | AL19: 1399.2 | AM19: 1538.91 | AN19: 1721.82 | AO19: 1744.26 | AP19: 1406.16 | AQ19: 1015.71 | AR19: 21.03 | AS19: 11.93 | AT19: 12.31 | AU19: 21.21 | AV19: 35.67 | AW19: 50.59 | AX19: 77.63 | AY19: 120.67 | AZ19: 196.77 | BA19: 311.04 | BB19: 503.13 | BC19: 736.62 | BD19: 1073.33 | BE19: 1498.4 | BF19: 2019.13 | BG19: 2381.79 | BH19: 2547.46 | BI19: 2559.66 | BJ19: 2040.58 | BK19: 1611.89
A20: Alle tumoren | B20: 1 | C20: 2002 | D20: 23.61 | E20: 16.04 | F20: 13.12 | G20: 23.8 | H20: 37.48 | I20: 44.94 | J20: 61.45 | K20: 83.58 | L20: 119.91 | M20: 207.25 | N20: 399.25 | O20: 703.93 | P20: 1202.18 | Q20: 1876.24 | R20: 2657.32 | S20: 3285.48 | T20: 3445.75 | U20: 3357.01 | V20: 3065.69 | W20: 1740.98 | X20: 18.49 | Y20: 9.75 | Z20: 11.89 | AA20: 20.08 | AB20: 30.38 | AC20: 56.32 | AD20: 96.08 | AE20: 164.44 | AF20: 262.98 | AG20: 428.12 | AH20: 597.44 | AI20: 762.49 | AJ20: 963.24 | AK20: 1185.27 | AL20: 1396.55 | AM20: 1543.24 | AN20: 1760.17 | AO20: 1702.06 | AP20: 1467.2 | AQ20: 820.57 | AR20: 21.05 | AS20: 12.9 | AT20: 12.5 | AU20: 21.94 | AV20: 33.93 | AW20: 50.63 | AX20: 78.77 | AY20: 124.01 | AZ20: 191.45 | BA20: 317.68 | BB20: 498.35 | BC20: 733.21 | BD20: 1082.71 | BE20: 1530.75 | BF20: 2026.93 | BG20: 2414.36 | BH20: 2602.96 | BI20: 2529.53 | BJ20: 2266.45 | BK20: 1280.77
A21: Alle tumoren | B21: 1 | C21: 2003 | D21: 23.71 | E21: 12.3 | F21: 16.53 | G21: 24.26 | H21: 40.35 | I21: 49.11 | J21: 56.63 | K21: 82.62 | L21: 123.27 | M21: 216.36 | N21: 404.99 | O21: 725.66 | P21: 1238.43 | Q21: 1943.04 | R21: 2672.45 | S21: 3277.16 | T21: 3546.14 | U21: 3534.54 | V21: 2879.51 | W21: 2162.39 | X21: 16.84 | Y21: 11.01 | Z21: 13.23 | AA21: 16.57 | AB21: 32.07 | AC21: 51.47 | AD21: 101.91 | AE21: 156.66 | AF21: 278.09 | AG21: 443.72 | AH21: 604.48 | AI21: 812.97 | AJ21: 958.86 | AK21: 1182.98 | AL21: 1449.32 | AM21: 1559.7 | AN21: 1812.41 | AO21: 1816.67 | AP21: 1515.23 | AQ21: 1291.64 | AR21: 20.27 | AS21: 11.65 | AT21: 14.88 | AU21: 20.41 | AV21: 36.21 | AW21: 50.29 | AX21: 79.27 | AY21: 119.64 | AZ21: 200.68 | BA21: 330.04 | BB21: 504.74 | BC21: 769.32 | BD21: 1098.64 | BE21: 1563.01 | BF21: 2060.88 | BG21: 2418.43 | BH21: 2679.28 | BI21: 2675.6 | BJ21: 2197.37 | BK21: 1727.02
A22: Alle tumoren | B22: 1 | C22: 2004 | D22: 19.62 | E22: 15.24 | F22: 16.85 | G22: 27.45 | H22: 38.99 | I22: 51.13 | J22: 66.43 | K22: 84.18 | L22: 135.2 | M22: 221.05 | N22: 416 | O22: 785.63 | P22: 1304.53 | Q22: 2068.42 | R22: 2827.67 | S22: 3347.73 | T22: 3741.08 | U22: 3431.62 | V22: 3093.77 | W22: 2211.1 | X22: 19.35 | Y22: 10.79 | Z22: 12.58 | AA22: 14.06 | AB22: 27.75 | AC22: 54.37 | AD22: 104.47 | AE22: 160.68 | AF22: 283.83 | AG22: 454.1 | AH22: 629.88 | AI22: 785.56 | AJ22: 997.16 | AK22: 1239.58 | AL22: 1441.99 | AM22: 1601.23 | AN22: 1860.71 | AO22: 1882.45 | AP22: 1741.39 | AQ22: 1152.19 | AR22: 19.49 | AS22: 13.01 | AT22: 14.72 | AU22: 20.76 | AV22: 33.37 | AW22: 52.75 | AX22: 85.45 | AY22: 122.43 | AZ22: 209.51 | BA22: 337.58 | BB22: 522.94 | BC22: 785.6 | BD22: 1150.85 | BE22: 1654 | BF22: 2134.83 | BG22: 2474.48 | BH22: 2800.9 | BI22: 2657.04 | BJ22: 2417.58 | BK22: 1681.64
A23: Alle tumoren | B23: 1 | C23: 2005 | D23: 27.58 | E23: 13.18 | F23: 11.68 | G23: 24.83 | H23: 39.9 | I23: 51.85 | J23: 67.98 | K23: 86.48 | L23: 118.28 | M23: 219.56 | N23: 414 | O23: 752.14 | P23: 1318.58 | Q23: 1985 | R23: 2790.16 | S23: 3364.36 | T23: 3582.83 | U23: 3518.71 | V23: 3191.71 | W23: 2234.86 | X23: 20.69 | Y23: 11.55 | Z23: 10.2 | AA23: 22.62 | AB23: 31.78 | AC23: 48.3 | AD23: 102.4 | AE23: 158.6 | AF23: 283.89 | AG23: 432.13 | AH23: 616.75 | AI23: 806.59 | AJ23: 1007.11 | AK23: 1236.36 | AL23: 1523.94 | AM23: 1654.18 | AN23: 1890.55 | AO23: 1984.8 | AP23: 1735.27 | AQ23: 1153.83 | AR23: 24.14 | AS23: 12.36 | AT23: 10.94 | AU23: 23.73 | AV23: 35.84 | AW23: 50.08 | AX23: 85.19 | AY23: 122.54 | AZ23: 201.09 | BA23: 325.84 | BB23: 515.37 | BC23: 779.37 | BD23: 1162.85 | BE23: 1610.68 | BF23: 2157.05 | BG23: 2509.27 | BH23: 2736.69 | BI23: 2751.75 | BJ23: 2463.49 | BK23: 1694.35
A24: Alle tumoren | B24: 1 | C24: 2006 | D24: 22.59 | E24: 15.61 | F24: 13.79 | G24: 21.44 | H24: 36.89 | I24: 56.43 | J24: 67.44 | K24: 88.43 | L24: 121.21 | M24: 208.96 | N24: 409.71 | O24: 788.92 | P24: 1355.75 | Q24: 2033.89 | R24: 2696.11 | S24: 3411.47 | T24: 3671.85 | U24: 3670.06 | V24: 2999.43 | W24: 3072.68 | X24: 19.9 | Y24: 10.82 | Z24: 11.98 | AA24: 21.79 | AB24: 29.74 | AC24: 54.6 | AD24: 106.23 | AE24: 167.62 | AF24: 274.21 | AG24: 465.44 | AH24: 650.21 | AI24: 791.34 | AJ24: 1043.22 | AK24: 1246.07 | AL24: 1552.72 | AM24: 1651.27 | AN24: 1932.88 | AO24: 1992.37 | AP24: 1705.43 | AQ24: 1169.17 | AR24: 21.25 | AS24: 13.22 | AT24: 12.88 | AU24: 21.62 | AV24: 33.32 | AW24: 55.52 | AX24: 86.83 | AY24: 128.02 | AZ24: 197.71 | BA24: 337.2 | BB24: 529.96 | BC24: 790.13 | BD24: 1199.48 | BE24: 1639.98 | BF24: 2124.41 | BG24: 2531.37 | BH24: 2802.37 | BI24: 2831.21 | BJ24: 2352.43 | BK24: 2120.92
A25: Alle tumoren | B25: 1 | C25: 2007 | D25: 22.07 | E25: 12.22 | F25: 13.53 | G25: 24.61 | H25: 40.29 | I25: 56.92 | J25: 67.08 | K25: 88.8 | L25: 125.24 | M25: 212.53 | N25: 407.61 | O25: 785.4 | P25: 1367.77 | Q25: 2039.81 | R25: 2833.78 | S25: 3463.48 | T25: 3685.48 | U25: 3735.36 | V25: 3123.47 | W25: 2709.82 | X25: 22.48 | Y25: 9.53 | Z25: 11.47 | AA25: 20.01 | AB25: 35.18 | AC25: 60.3 | AD25: 112.55 | AE25: 176.62 | AF25: 291.88 | AG25: 461.74 | AH25: 647.41 | AI25: 817.76 | AJ25: 1059.4 | AK25: 1288.33 | AL25: 1588.48 | AM25: 1703.36 | AN25: 1906.76 | AO25: 1983.82 | AP25: 1741.37 | AQ25: 1499.54 | AR25: 22.28 | AS25: 10.88 | AT25: 12.5 | AU25: 22.31 | AV25: 37.73 | AW25: 58.61 | AX25: 89.82 | AY25: 132.71 | AZ25: 208.56 | BA25: 337.14 | BB25: 527.51 | BC25: 801.58 | BD25: 1213.58 | BE25: 1664.07 | BF25: 2211.13 | BG25: 2583.42 | BH25: 2796.12 | BI25: 2859.59 | BJ25: 2432.42 | BK25: 2104.68
A26: Alle tumoren | B26: 1 | C26: 2008 | D26: 20.41 | E26: 16.24 | F26: 13.16 | G26: 25.83 | H26: 36.64 | I26: 52.91 | J26: 74.92 | K26: 90.51 | L26: 131.16 | M26: 224.21 | N26: 432.23 | O26: 777.45 | P26: 1368.32 | Q26: 2060.08 | R26: 2830.24 | S26: 3510.74 | T26: 3840.59 | U26: 3678.91 | V26: 3201.07 | W26: 2780.25 | X26: 18.98 | Y26: 16 | Z26: 15.47 | AA26: 22.32 | AB26: 31.98 | AC26: 68.65 | AD26: 106.26 | AE26: 173.68 | AF26: 286.15 | AG26: 455.24 | AH26: 681.21 | AI26: 811.47 | AJ26: 1102.79 | AK26: 1347.98 | AL26: 1616.8 | AM26: 1733.02 | AN26: 2044.93 | AO26: 2072.6 | AP26: 1791.49 | AQ26: 1214.56 | AR26: 19.69 | AS26: 16.12 | AT26: 14.31 | AU26: 24.08 | AV26: 34.31 | AW26: 60.78 | AX26: 90.59 | AY26: 132.09 | AZ26: 208.66 | BA26: 339.72 | BB26: 556.72 | BC26: 794.46 | BD26: 1235.56 | BE26: 1704.03 | BF26: 2223.52 | BG26: 2621.88 | BH26: 2942.76 | BI26: 2875.75 | BJ26: 2496.28 | BK26: 1997.41
A27: Alle tumoren | B27: 1 | C27: 2009 | D27: 19.37 | E27: 13.98 | F27: 13.52 | G27: 24.91 | H27: 34.83 | I27: 68.5 | J27: 73.61 | K27: 90.59 | L27: 129.63 | M27: 226.93 | N27: 421.48 | O27: 789.88 | P27: 1338.67 | Q27: 2095.52 | R27: 2820.29 | S27: 3530.86 | T27: 3924.09 | U27: 3826.14 | V27: 3499.38 | W27: 2547.14 | X27: 15.45 | Y27: 10.57 | Z27: 12.71 | AA27: 21 | AB27: 33.42 | AC27: 61.62 | AD27: 114.89 | AE27: 188.14 | AF27: 297.45 | AG27: 468.88 | AH27: 663.74 | AI27: 816.58 | AJ27: 1079.04 | AK27: 1399.12 | AL27: 1582.37 | AM27: 1789.15 | AN27: 2001.64 | AO27: 2047.89 | AP27: 1840.44 | AQ27: 1501.98 | AR27: 17.41 | AS27: 12.28 | AT27: 13.12 | AU27: 22.96 | AV27: 34.13 | AW27: 65.06 | AX27: 94.25 | AY27: 139.36 | AZ27: 213.54 | BA27: 347.91 | BB27: 542.61 | BC27: 803.23 | BD27: 1208.85 | BE27: 1747.32 | BF27: 2201.33 | BG27: 2660 | BH27: 2962.87 | BI27: 2937.01 | BJ27: 2669.91 | BK27: 2024.56
A28: Alle tumoren | B28: 1 | C28: 2010 | D28: 25.59 | E28: 12.79 | F28: 16.35 | G28: 23.21 | H28: 37.12 | I28: 60.17 | J28: 79.88 | K28: 90.48 | L28: 129.83 | M28: 238.7 | N28: 425.14 | O28: 782.57 | P28: 1356.8 | Q28: 2133.43 | R28: 2803.42 | S28: 3661.05 | T28: 3993.49 | U28: 3841.2 | V28: 3738.9 | W28: 2855.35 | X28: 26.38 | Y28: 10.7 | Z28: 11.15 | AA28: 20.85 | AB28: 32.77 | AC28: 60.98 | AD28: 109.57 | AE28: 178.65 | AF28: 268.22 | AG28: 454.81 | AH28: 669.77 | AI28: 824.35 | AJ28: 1120.65 | AK28: 1422.93 | AL28: 1697.85 | AM28: 1825.28 | AN28: 2066.51 | AO28: 2166.17 | AP28: 1889.23 | AQ28: 1550.03 | AR28: 25.98 | AS28: 11.74 | AT28: 13.75 | AU28: 22.03 | AV28: 34.94 | AW28: 60.58 | AX28: 94.72 | AY28: 134.57 | AZ28: 199.02 | BA28: 346.75 | BB28: 547.45 | BC28: 803.46 | BD28: 1238.73 | BE28: 1778.18 | BF28: 2250.64 | BG28: 2743.16 | BH28: 3030 | BI28: 3003.68 | BJ28: 2814.06 | BK28: 2202.69
A29: Alle tumoren | B29: 1 | C29: 2011 | D29: 22.07 | E29: 12.2 | F29: 14.81 | G29: 26.51 | H29: 45.19 | I29: 55.06 | J29: 82.9 | K29: 102.08 | L29: 141.77 | M29: 231.1 | N29: 425.82 | O29: 832.06 | P29: 1395.88 | Q29: 2176.48 | R29: 2902.77 | S29: 3647.76 | T29: 4025.1 | U29: 3924.53 | V29: 3514.25 | W29: 2340.43 | X29: 22.46 | Y29: 12.16 | Z29: 14.47 | AA29: 23.09 | AB29: 37.05 | AC29: 63.44 | AD29: 108 | AE29: 183.96 | AF29: 297.12 | AG29: 495.59 | AH29: 686.44 | AI29: 859.49 | AJ29: 1141.68 | AK29: 1480.32 | AL29: 1711.2 | AM29: 1876.39 | AN29: 2137.6 | AO29: 2155.3 | AP29: 1926.57 | AQ29: 1483.38 | AR29: 22.26 | AS29: 12.18 | AT29: 14.64 | AU29: 24.8 | AV29: 41.12 | AW29: 59.25 | AX29: 95.45 | AY29: 143.02 | AZ29: 219.44 | BA29: 363.35 | BB29: 556.13 | BC29: 845.77 | BD29: 1268.78 | BE29: 1828.4 | BF29: 2306.98 | BG29: 2762.07 | BH29: 3081.35 | BI29: 3039.91 | BJ29: 2720.41 | BK29: 1911.9
A30: Alle tumoren | B30: 1 | C30: 2012 | D30: 20.7 | E30: 13.24 | F30: 13.53 | G30: 24.34 | H30: 38.13 | I30: 61.46 | J30: 78.37 | K30: 99.13 | L30: 133.97 | M30: 231.33 | N30: 410.69 | O30: 789.41 | P30: 1359.47 | Q30: 2120.1 | R30: 2852.19 | S30: 3546.94 | T30: 3791.7 | U30: 3991.94 | V30: 3273.61 | W30: 2703.1 | X30: 21.94 | Y30: 10.46 | Z30: 13.13 | AA30: 22.22 | AB30: 33.8 | AC30: 64.38 | AD30: 118.83 | AE30: 172.01 | AF30: 282.7 | AG30: 465.48 | AH30: 661.9 | AI30: 850.19 | AJ30: 1141.18 | AK30: 1489.48 | AL30: 1795.9 | AM30: 1885.89 | AN30: 2056.03 | AO30: 2126.42 | AP30: 1808.66 | AQ30: 1414.64 | AR30: 21.32 | AS30: 11.85 | AT30: 13.33 | AU30: 23.28 | AV30: 35.96 | AW30: 62.92 | AX30: 98.6 | AY30: 135.57 | AZ30: 208.34 | BA30: 348.41 | BB30: 536.29 | BC30: 819.8 | BD30: 1250.33 | BE30: 1804.79 | BF30: 2324.04 | BG30: 2716.42 | BH30: 2923.86 | BI30: 3059.18 | BJ30: 2541.14 | BK30: 2058.87
A31: Alle tumoren | B31: 1 | C31: 2013 | D31: 26.75 | E31: 13.47 | F31: 14.82 | G31: 25.17 | H31: 43.47 | I31: 62.23 | J31: 81.77 | K31: 97.56 | L31: 134.55 | M31: 238.25 | N31: 420.47 | O31: 794.01 | P31: 1313.35 | Q31: 2064.53 | R31: 2799.56 | S31: 3358.83 | T31: 3775.82 | U31: 3696.07 | V31: 3013.82 | W31: 2476.78 | X31: 19.48 | Y31: 11.51 | Z31: 14.1 | AA31: 19.76 | AB31: 32.09 | AC31: 63.6 | AD31: 111.91 | AE31: 178.78 | AF31: 307.49 | AG31: 461.01 | AH31: 655.31 | AI31: 822.58 | AJ31: 1148.67 | AK31: 1467.25 | AL31: 1745.08 | AM31: 1877.53 | AN31: 2061.85 | AO31: 1988.2 | AP31: 1736.98 | AQ31: 1444.69 | AR31: 23.12 | AS31: 12.49 | AT31: 14.46 | AU31: 22.46 | AV31: 37.78 | AW31: 62.91 | AX31: 96.84 | AY31: 138.17 | AZ31: 221.02 | BA31: 349.63 | BB31: 537.89 | BC31: 808.3 | BD31: 1231.01 | BE31: 1765.89 | BF31: 2272.32 | BG31: 2618.18 | BH31: 2918.84 | BI31: 2842.14 | BJ31: 2375.4 | BK31: 1960.73
A32: Alle tumoren | B32: 1 | C32: 2014 | D32: 20.99 | E32: 14.87 | F32: 17.77 | G32: 27.01 | H32: 46.11 | I32: 62.36 | J32: 75.4 | K32: 94.34 | L32: 141.98 | M32: 229.74 | N32: 410.96 | O32: 719.39 | P32: 1302.37 | Q32: 2037.11 | R32: 2669.82 | S32: 3523.53 | T32: 3627.55 | U32: 3555.01 | V32: 3117.1 | W32: 2184.92 | X32: 19.28 | Y32: 12.96 | Z32: 11.52 | AA32: 24.2 | AB32: 34.62 | AC32: 68.37 | AD32: 129.98 | AE32: 185.76 | AF32: 300.62 | AG32: 466.61 | AH32: 658.19 | AI32: 810.4 | AJ32: 1132.59 | AK32: 1534.27 | AL32: 1835.97 | AM32: 1969.25 | AN32: 2077.78 | AO32: 1952.2 | AP32: 1772.5 | AQ32: 1241.08 | AR32: 20.14 | AS32: 13.91 | AT32: 14.64 | AU32: 25.61 | AV32: 40.37 | AW32: 65.37 | AX32: 102.69 | AY32: 140.05 | AZ32: 221.3 | BA32: 348.17 | BB32: 534.57 | BC32: 764.89 | BD32: 1217.48 | BE32: 1785.69 | BF32: 2252.89 | BG32: 2746.39 | BH32: 2852.67 | BI32: 2753.6 | BJ32: 2444.8 | BK32: 1713
A33: Alle tumoren | B33: 1 | C33: 2015 | D33: 23.89 | E33: 15.34 | F33: 16.81 | G33: 27.47 | H33: 34.52 | I33: 59.43 | J33: 72.95 | K33: 96.57 | L33: 152.56 | M33: 221.54 | N33: 401.74 | O33: 712.26 | P33: 1381.48 | Q33: 2156.22 | R33: 2708.88 | S33: 3282.69 | T33: 3622.96 | U33: 3407.9 | V33: 2789.41 | W33: 2439.61 | X33: 19.74 | Y33: 10.14 | Z33: 12.88 | AA33: 22.52 | AB33: 30.05 | AC33: 66.76 | AD33: 114.03 | AE33: 198.82 | AF33: 284.97 | AG33: 448.95 | AH33: 678.92 | AI33: 810.76 | AJ33: 1194.3 | AK33: 1565.42 | AL33: 1765.38 | AM33: 1862.88 | AN33: 2020.36 | AO33: 1898.54 | AP33: 1713.45 | AQ33: 1184.31 | AR33: 21.82 | AS33: 12.74 | AT33: 14.84 | AU33: 24.99 | AV33: 32.29 | AW33: 63.1 | AX33: 93.49 | AY33: 147.7 | AZ33: 218.77 | BA33: 335.24 | BB33: 540.33 | BC33: 761.51 | BD33: 1287.89 | BE33: 1860.82 | BF33: 2237.13 | BG33: 2572.78 | BH33: 2821.66 | BI33: 2653.22 | BJ33: 2251.43 | BK33: 1811.96
A34: Alle tumoren | B34: 1 | C34: 2016 | D34: 23.65 | E34: 12.61 | F34: 14.86 | G34: 28.14 | H34: 38.58 | I34: 60.21 | J34: 79.92 | K34: 100.29 | L34: 132.78 | M34: 233.25 | N34: 407.22 | O34: 774.58 | P34: 1383.39 | Q34: 2010.98 | R34: 2908.73 | S34: 3327.29 | T34: 3701.03 | U34: 3510.12 | V34: 2997.8 | W34: 2558.04 | X34: 19.7 | Y34: 9.92 | Z34: 14.53 | AA34: 23.35 | AB34: 34.9 | AC34: 68.71 | AD34: 126.07 | AE34: 192 | AF34: 297.86 | AG34: 460.26 | AH34: 689.66 | AI34: 841.57 | AJ34: 1185.96 | AK34: 1460.13 | AL34: 1907.8 | AM34: 1911.31 | AN34: 2107.92 | AO34: 1942.25 | AP34: 1683.62 | AQ34: 1396 | AR34: 21.68 | AS34: 11.26 | AT34: 14.69 | AU34: 25.74 | AV34: 36.74 | AW34: 64.46 | AX34: 103 | AY34: 146.15 | AZ34: 215.32 | BA34: 346.75 | BB34: 548.44 | BC34: 808.07 | BD34: 1284.68 | BE34: 1735.55 | BF34: 2408.26 | BG34: 2619.3 | BH34: 2904.47 | BI34: 2726.19 | BJ34: 2340.71 | BK34: 1977.02
A35: Mesothelioom | B35: 4 | C35: 1989 | D35: 0 | E35: 0 | F35: 0 | G35: 0 | H35: 0 | I35: 0 | J35: 0.16 | K35: 0 | L35: 1.34 | M35: 2.2 | N35: 7.41 | O35: 9.18 | P35: 12.28 | Q35: 16.03 | R35: 19.15 | S35: 15.99 | T35: 13.46 | U35: 19.33 | V35: 35.88 | W35: 40.23 | X35: 0 | Y35: 0 | Z35: 0 | AA35: 0 | AB35: 0 | AC35: 0 | AD35: 0 | AE35: 0.18 | AF35: 0.18 | AG35: 1.4 | AH35: 0.26 | AI35: 1.63 | AJ35: 1.14 | AK35: 1.47 | AL35: 1.48 | AM35: 2.13 | AN35: 4.21 | AO35: 2.27 | AP35: 3.27 | AQ35: 0 | AR35: 0 | AS35: 0 | AT35: 0 | AU35: 0 | AV35: 0 | AW35: 0 | AX35: 0.08 | AY35: 0.09 | AZ35: 0.76 | BA35: 1.8 | BB35: 3.84 | BC35: 5.41 | BD35: 6.71 | BE35: 8.75 | BF35: 10.31 | BG35: 9.06 | BH35: 8.84 | BI35: 10.8 | BJ35: 19.57 | BK35: 20.12
A36: Mesothelioom | B36: 4 | C36: 1990 | D36: 0 | E36: 0 | F36: 0 | G36: 0 | H36: 0.15 | I36: 0 | J36: 0 | K36: 0.51 | L36: 0.82 | M36: 3 | N36: 5.75 | O36: 8.88 | P36: 12.45 | Q36: 18.69 | R36: 18.76 | S36: 13.7 | T36: 16.91 | U36: 16.34 | V36: 8.96 | W36: 0 | X36: 0 | Y36: 0 | Z36: 0 | AA36: 0 | AB36: 0 | AC36: 0 | AD36: 0 | AE36: 0.18 | AF36: 0.17 | AG36: 0.45 | AH36: 0.26 | AI36: 1.09 | AJ36: 1.99 | AK36: 2.04 | AL36: 2.18 | AM36: 2.96 | AN36: 0.59 | AO36: 1.1 | AP36: 0 | AQ36: 0 | AR36: 0 | AS36: 0 | AT36: 0 | AU36: 0 | AV36: 0.08 | AW36: 0 | AX36: 0 | AY36: 0.34 | AZ36: 0.49 | BA36: 1.73 | BB36: 3 | BC36: 4.99 | BD36: 7.22 | BE36: 10.36 | BF36: 10.47 | BG36: 8.33 | BH36: 8.75 | BI36: 8.72 | BJ36: 4.48 | BK36: 0
A37: Mesothelioom | B37: 4 | C37: 1991 | D37: 0 | E37: 0 | F37: 0 | G37: 0 | H37: 0 | I37: 0 | J37: 0.16 | K37: 0.34 | L37: 0.65 | M37: 1.82 | N37: 4.89 | O37: 9.12 | P37: 10.42 | Q37: 15.9 | R37: 20.86 | S37: 25.06 | T37: 22.71 | U37: 8.08 | V37: 8.91 | W37: 0 | X37: 0 | Y37: 0 | Z37: 0 | AA37: 0 | AB37: 0 | AC37: 0.16 | AD37: 0 | AE37: 0 | AF37: 0 | AG37: 0.85 | AH37: 0.51 | AI37: 1.09 | AJ37: 0.85 | AK37: 3.23 | AL37: 1.75 | AM37: 1.26 | AN37: 0.58 | AO37: 0 | AP37: 0 | AQ37: 0 | AR37: 0 | AS37: 0 | AT37: 0 | AU37: 0 | AV37: 0 | AW37: 0.08 | AX37: 0.08 | AY37: 0.17 | AZ37: 0.33 | BA37: 1.34 | BB37: 2.7 | BC37: 5.11 | BD37: 5.63 | BE37: 9.56 | BF37: 11.31 | BG37: 13.16 | BH37: 11.65 | BI37: 4.04 | BJ37: 4.46 | BK37: 0
A38: Mesothelioom | B38: 4 | C38: 1992 | D38: 0 | E38: 0 | F38: 0 | G38: 0 | H38: 0 | I38: 0 | J38: 0.31 | K38: 0.17 | L38: 1.34 | M38: 3.35 | N38: 5.75 | O38: 14.01 | P38: 11.49 | Q38: 26.12 | R38: 23.34 | S38: 36.31 | T38: 21.09 | U38: 13.3 | V38: 35.22 | W38: 0 | X38: 0 | Y38: 0 | Z38: 0 | AA38: 0 | AB38: 0 | AC38: 0 | AD38: 0 | AE38: 0.35 | AF38: 0.18 | AG38: 0.2 | AH38: 0.75 | AI38: 1.64 | AJ38: 1.4 | AK38: 2.36 | AL38: 2.72 | AM38: 2.09 | AN38: 2.29 | AO38: 2.07 | AP38: 2.88 | AQ38: 0 | AR38: 0 | AS38: 0 | AT38: 0 | AU38: 0 | AV38: 0 | AW38: 0 | AX38: 0.15 | AY38: 0.26 | AZ38: 0.76 | BA38: 1.77 | BB38: 3.25 | BC38: 7.83 | BD38: 6.44 | BE38: 14.24 | BF38: 13.03 | BG38: 19.2 | BH38: 11.69 | BI38: 7.68 | BJ38: 19.05 | BK38: 0
A39: Mesothelioom | B39: 4 | C39: 1993 | D39: 0 | E39: 0 | F39: 0 | G39: 0 | H39: 0 | I39: 0 | J39: 0.15 | K39: 0 | L39: 0.17 | M39: 1.58 | N39: 4.89 | O39: 7.33 | P39: 16.15 | Q39: 17.63 | R39: 21.6 | S39: 24.32 | T39: 27.44 | U39: 13.12 | V39: 8.74 | W39: 42.54 | X39: 0 | Y39: 0 | Z39: 0 | AA39: 0 | AB39: 0 | AC39: 0 | AD39: 0 | AE39: 0.34 | AF39: 0.36 | AG39: 0 | AH39: 0 | AI39: 0.27 | AJ39: 1.68 | AK39: 1.78 | AL39: 2.96 | AM39: 1.26 | AN39: 2.82 | AO39: 5.02 | AP39: 0 | AQ39: 0 | AR39: 0 | AS39: 0 | AT39: 0 | AU39: 0 | AV39: 0 | AW39: 0 | AX39: 0.08 | AY39: 0.17 | AZ39: 0.26 | BA39: 0.79 | BB39: 2.45 | BC39: 3.8 | BD39: 8.91 | BE39: 9.71 | BF39: 12.28 | BG39: 12.79 | BH39: 15.13 | BI39: 9.07 | BJ39: 4.37 | BK39: 21.27
A40: Mesothelioom | B40: 4 | C40: 1994 | D40: 0 | E40: 0 | F40: 0 | G40: 0 | H40: 0 | I40: 0 | J40: 0 | K40: 0 | L40: 0 | M40: 1.19 | N40: 4.06 | O40: 9.83 | P40: 13.67 | Q40: 17.55 | R40: 26.84 | S40: 27.16 | T40: 25.7 | U40: 36.15 | V40: 8.69 | W40: 0 | X40: 0 | Y40: 0 | Z40: 0 | AA40: 0 | AB40: 0 | AC40: 0 | AD40: 0.16 | AE40: 0.17 | AF40: 0.18 | AG40: 0.18 | AH40: 0.71 | AI40: 1.34 | AJ40: 0.84 | AK40: 1.19 | AL40: 3.51 | AM40: 3.83 | AN40: 4.99 | AO40: 3.91 | AP40: 2.69 | AQ40: 0 | AR40: 0 | AS40: 0 | AT40: 0 | AU40: 0 | AV40: 0 | AW40: 0 | AX40: 0.08 | AY40: 0.08 | AZ40: 0.09 | BA40: 0.68 | BB40: 2.38 | BC40: 5.59 | BD40: 7.25 | BE40: 9.37 | BF40: 15.17 | BG40: 15.5 | BH40: 15.35 | BI40: 20.03 | BJ40: 5.69 | BK40: 0
A41: Mesothelioom | B41: 4 | C41: 1995 | D41: 0 | E41: 0 | F41: 0 | G41: 0 | H41: 0.18 | I41: 0 | J41: 0.44 | K41: 0.48 | L41: 0.51 | M41: 2.64 | N41: 3.95 | O41: 9.09 | P41: 15.09 | Q41: 19.4 | R41: 24.83 | S41: 21.18 | T41: 21.97 | U41: 45.7 | V41: 8.52 | W41: 0 | X41: 0 | Y41: 0 | Z41: 0 | AA41: 0 | AB41: 0 | AC41: 0 | AD41: 0 | AE41: 0.17 | AF41: 0.35 | AG41: 0 | AH41: 0.23 | AI41: 0.52 | AJ41: 1.97 | AK41: 2.38 | AL41: 3.16 | AM41: 3.76 | AN41: 1.65 | AO41: 2.86 | AP41: 0 | AQ41: 11.71 | AR41: 0 | AS41: 0 | AT41: 0 | AU41: 0 | AV41: 0.09 | AW41: 0 | AX41: 0.22 | AY41: 0.32 | AZ41: 0.43 | BA41: 1.32 | BB41: 2.09 | BC41: 4.81 | BD41: 8.53 | BE41: 10.89 | BF41: 13.99 | BG41: 12.47 | BH41: 11.81 | BI41: 24.28 | BJ41: 4.26 | BK41: 5.85
A42: Mesothelioom | B42: 4 | C42: 1996 | D42: 0 | E42: 0 | F42: 0 | G42: 0.21 | H42: 0 | I42: 0 | J42: 0 | K42: 0.32 | L42: 0.68 | M42: 2.32 | N42: 4.56 | O42: 13.22 | P42: 17.97 | Q42: 23.88 | R42: 18.94 | S42: 27.86 | T42: 27.18 | U42: 27.65 | V42: 8.43 | W42: 45.64 | X42: 0 | Y42: 0 | Z42: 0 | AA42: 0 | AB42: 0 | AC42: 0 | AD42: 0 | AE42: 0 | AF42: 0.35 | AG42: 0.17 | AH42: 0.43 | AI42: 0.26 | AJ42: 1.98 | AK42: 2.37 | AL42: 3.18 | AM42: 2.02 | AN42: 2.18 | AO42: 1.88 | AP42: 2.5 | AQ42: 11.22 | AR42: 0 | AS42: 0 | AT42: 0 | AU42: 0.11 | AV42: 0 | AW42: 0 | AX42: 0 | AY42: 0.16 | AZ42: 0.51 | BA42: 1.25 | BB42: 2.5 | BC42: 6.74 | BD42: 9.98 | BE42: 13.13 | BF42: 11.06 | BG42: 14.94 | BH42: 14.68 | BI42: 14.77 | BJ42: 5.46 | BK42: 28.43
A43: Mesothelioom | B43: 4 | C43: 1997 | D43: 0 | E43: 0 | F43: 0 | G43: 0 | H43: 0 | I43: 0 | J43: 0 | K43: 0 | L43: 0.67 | M43: 2.55 | N43: 3.62 | O43: 8.71 | P43: 15.81 | Q43: 22.19 | R43: 19.73 | S43: 28.63 | T43: 22.62 | U43: 22.21 | V43: 16.65 | W43: 0 | X43: 0 | Y43: 0 | Z43: 0 | AA43: 0 | AB43: 0 | AC43: 0 | AD43: 0 | AE43: 0 | AF43: 0.52 | AG43: 0.18 | AH43: 0.79 | AI43: 0.76 | AJ43: 1.7 | AK43: 2.06 | AL43: 2.24 | AM43: 1.56 | AN43: 3.8 | AO43: 4.64 | AP43: 0 | AQ43: 0 | AR43: 0 | AS43: 0 | AT43: 0 | AU43: 0 | AV43: 0 | AW43: 0 | AX43: 0 | AY43: 0 | AZ43: 0.6 | BA43: 1.37 | BB43: 2.21 | BC43: 4.74 | BD43: 8.75 | BE43: 12.13 | BF43: 10.99 | BG43: 15.1 | BH43: 13.21 | BI43: 13.43 | BJ43: 8.33 | BK43: 0
A44: Mesothelioom | B44: 4 | C44: 1998 | D44: 0 | E44: 0 | F44: 0 | G44: 0 | H44: 0 | I44: 0 | J44: 0 | K44: 0.15 | L44: 0.33 | M44: 2.77 | N44: 3.78 | O44: 10.16 | P44: 12.99 | Q44: 19.27 | R44: 23.01 | S44: 30.94 | T44: 24.77 | U44: 11.99 | V44: 8.19 | W44: 0 | X44: 0 | Y44: 0 | Z44: 0 | AA44: 0 | AB44: 0 | AC44: 0 | AD44: 0 | AE44: 0 | AF44: 0 | AG44: 0.36 | AH44: 0.37 | AI44: 0.5 | AJ44: 0.56 | AK44: 0.88 | AL44: 3.22 | AM44: 3.03 | AN44: 1.64 | AO44: 0.91 | AP44: 0 | AQ44: 0 | AR44: 0 | AS44: 0 | AT44: 0 | AU44: 0 | AV44: 0 | AW44: 0 | AX44: 0 | AY44: 0.08 | AZ44: 0.17 | BA44: 1.56 | BB44: 2.08 | BC44: 5.33 | BD44: 6.77 | BE44: 10.08 | BF44: 13.12 | BG44: 16.98 | BH44: 13.2 | BI44: 6.45 | BJ44: 4.09 | BK44: 0
A45: Mesothelioom | B45: 4 | C45: 1999 | D45: 0 | E45: 0 | F45: 0 | G45: 0 | H45: 0 | I45: 0 | J45: 0.3 | K45: 0.15 | L45: 0.82 | M45: 2.43 | N45: 3.48 | O45: 8.18 | P45: 12.42 | Q45: 27.67 | R45: 26.14 | S45: 44.95 | T45: 22.62 | U45: 16.29 | V45: 0 | W45: 0 | X45: 0 | Y45: 0 | Z45: 0 | AA45: 0 | AB45: 0 | AC45: 0 | AD45: 0 | AE45: 0.16 | AF45: 0.34 | AG45: 0.9 | AH45: 0.54 | AI45: 0.96 | AJ45: 2.21 | AK45: 1.77 | AL45: 3.56 | AM45: 3.3 | AN45: 2.75 | AO45: 2.67 | AP45: 0 | AQ45: 0 | AR45: 0 | AS45: 0 | AT45: 0 | AU45: 0 | AV45: 0 | AW45: 0 | AX45: 0.15 | AY45: 0.15 | AZ45: 0.58 | BA45: 1.66 | BB45: 2.01 | BC45: 4.57 | BD45: 7.32 | BE45: 14.72 | BF45: 14.85 | BG45: 24.13 | BH45: 12.68 | BI45: 9.48 | BJ45: 0 | BK45: 0
A46: Mesothelioom | B46: 4 | C46: 2000 | D46: 0 | E46: 0 | F46: 0 | G46: 0 | H46: 0 | I46: 0.17 | J46: 0 | K46: 0.15 | L46: 0.32 | M46: 2.43 | N46: 3.38 | O46: 9.78 | P46: 16.51 | Q46: 22.24 | R46: 26.5 | S46: 35.42 | T46: 16.67 | U46: 22.72 | V46: 8.08 | W46: 0 | X46: 0 | Y46: 0 | Z46: 0 | AA46: 0 | AB46: 0 | AC46: 0.18 | AD46: 0 | AE46: 0 | AF46: 0.33 | AG46: 0.18 | AH46: 0.35 | AI46: 0.7 | AJ46: 1.89 | AK46: 3.25 | AL46: 3.23 | AM46: 5.8 | AN46: 1.08 | AO46: 1.76 | AP46: 0 | AQ46: 0 | AR46: 0 | AS46: 0 | AT46: 0 | AU46: 0 | AV46: 0 | AW46: 0.17 | AX46: 0 | AY46: 0.07 | AZ46: 0.33 | BA46: 1.3 | BB46: 1.87 | BC46: 5.24 | BD46: 9.2 | BE46: 12.74 | BF46: 14.87 | BG46: 20.61 | BH46: 8.87 | BI46: 12.24 | BJ46: 4.04 | BK46: 0
A47: Mesothelioom | B47: 4 | C47: 2001 | D47: 0 | E47: 0 | F47: 0 | G47: 0 | H47: 0 | I47: 0 | J47: 0 | K47: 0.15 | L47: 0.32 | M47: 0.69 | N47: 4.06 | O47: 7.29 | P47: 16.12 | Q47: 21.41 | R47: 26.39 | S47: 28.62 | T47: 28.57 | U47: 26.89 | V47: 15.83 | W47: 0 | X47: 0 | Y47: 0 | Z47: 0 | AA47: 0 | AB47: 0 | AC47: 0 | AD47: 0 | AE47: 0 | AF47: 0.33 | AG47: 0.35 | AH47: 0.52 | AI47: 0.66 | AJ47: 2.13 | AK47: 2.96 | AL47: 4.18 | AM47: 5.84 | AN47: 3.63 | AO47: 2.63 | AP47: 0 | AQ47: 0 | AR47: 0 | AS47: 0 | AT47: 0 | AU47: 0 | AV47: 0 | AW47: 0 | AX47: 0 | AY47: 0.07 | AZ47: 0.32 | BA47: 0.52 | BB47: 2.29 | BC47: 3.97 | BD47: 9.12 | BE47: 12.19 | BF47: 15.29 | BG47: 17.23 | BH47: 16.1 | BI47: 14.76 | BJ47: 7.91 | BK47: 0
A48: Mesothelioom | B48: 4 | C48: 2002 | D48: 0 | E48: 0 | F48: 0 | G48: 0 | H48: 0 | I48: 0 | J48: 0 | K48: 0.3 | L48: 0.16 | M48: 1.02 | N48: 3.82 | O48: 4.73 | P48: 11.81 | Q48: 23.14 | R48: 21.99 | S48: 29.48 | T48: 19.72 | U48: 31.02 | V48: 23.05 | W48: 0 | X48: 0 | Y48: 0 | Z48: 0 | AA48: 0 | AB48: 0 | AC48: 0 | AD48: 0 | AE48: 0 | AF48: 0.32 | AG48: 0.52 | AH48: 0.54 | AI48: 1.82 | AJ48: 1.57 | AK48: 2.67 | AL48: 4.47 | AM48: 1.1 | AN48: 3.51 | AO48: 2.62 | AP48: 0 | AQ48: 0 | AR48: 0 | AS48: 0 | AT48: 0 | AU48: 0 | AV48: 0 | AW48: 0 | AX48: 0 | AY48: 0.15 | AZ48: 0.24 | BA48: 0.77 | BB48: 2.18 | BC48: 3.27 | BD48: 6.69 | BE48: 12.9 | BF48: 13.23 | BG48: 15.29 | BH48: 11.62 | BI48: 16.82 | BJ48: 11.53 | BK48: 0
A49: Mesothelioom | B49: 4 | C49: 2003 | D49: 0 | E49: 0 | F49: 0 | G49: 0 | H49: 0 | I49: 0.19 | J49: 0.16 | K49: 0 | L49: 0 | M49: 0.51 | N49: 2.12 | O49: 8.75 | P49: 13.26 | Q49: 23.07 | R49: 26.68 | S49: 31.91 | T49: 34.89 | U49: 17.69 | V49: 29.69 | W49: 0 | X49: 0 | Y49: 0 | Z49: 0 | AA49: 0 | AB49: 0 | AC49: 0 | AD49: 0 | AE49: 0.15 | AF49: 0.79 | AG49: 0.69 | AH49: 0.54 | AI49: 0.95 | AJ49: 0.77 | AK49: 3.82 | AL49: 0.95 | AM49: 4.81 | AN49: 1.45 | AO49: 1.75 | AP49: 2.14 | AQ49: 0 | AR49: 0 | AS49: 0 | AT49: 0 | AU49: 0 | AV49: 0 | AW49: 0.1 | AX49: 0.08 | AY49: 0.08 | AZ49: 0.39 | BA49: 0.6 | BB49: 1.33 | BC49: 4.85 | BD49: 7.01 | BE49: 13.45 | BF49: 13.82 | BG49: 18.36 | BH49: 18.17 | BI49: 9.72 | BJ49: 15.91 | BK49: 0
A50: Mesothelioom | B50: 4 | C50: 2004 | D50: 0 | E50: 0 | F50: 0 | G50: 0 | H50: 0 | I50: 0 | J50: 0 | K50: 0.15 | L50: 0.46 | M50: 1.33 | N50: 3.55 | O50: 7.19 | P50: 13.8 | Q50: 24.03 | R50: 30.18 | S50: 40.44 | T50: 30.79 | U50: 13.14 | V50: 14.22 | W50: 0 | X50: 0 | Y50: 0 | Z50: 0 | AA50: 0 | AB50: 0 | AC50: 0 | AD50: 0 | AE50: 0.31 | AF50: 0.31 | AG50: 0.34 | AH50: 0.54 | AI50: 1.66 | AJ50: 2.48 | AK50: 1.45 | AL50: 0.64 | AM50: 3.34 | AN50: 3.75 | AO50: 3.52 | AP50: 0 | AQ50: 0 | AR50: 0 | AS50: 0 | AT50: 0 | AU50: 0 | AV50: 0 | AW50: 0 | AX50: 0 | AY50: 0.23 | AZ50: 0.38 | BA50: 0.83 | BB50: 2.05 | BC50: 4.42 | BD50: 8.14 | BE50: 12.74 | BF50: 15.41 | BG50: 21.89 | BH50: 17.27 | BI50: 8.33 | BJ50: 7.11 | BK50: 0
A51: Mesothelioom | B51: 4 | C51: 2005 | D51: 0 | E51: 0 | F51: 0 | G51: 0 | H51: 0 | I51: 0 | J51: 0 | K51: 0 | L51: 0.3 | M51: 0.66 | N51: 2.13 | O51: 7.52 | P51: 12.23 | Q51: 26.37 | R51: 43.78 | S51: 41.5 | T51: 34.25 | U51: 33.08 | V51: 13.73 | W51: 40.63 | X51: 0 | Y51: 0 | Z51: 0 | AA51: 0 | AB51: 0 | AC51: 0 | AD51: 0 | AE51: 0 | AF51: 0 | AG51: 0.17 | AH51: 0.18 | AI51: 1.79 | AJ51: 1.69 | AK51: 3.68 | AL51: 2.23 | AM51: 5.16 | AN51: 3.24 | AO51: 2.55 | AP51: 0 | AQ51: 0 | AR51: 0 | AS51: 0 | AT51: 0 | AU51: 0 | AV51: 0 | AW51: 0 | AX51: 0 | AY51: 0 | AZ51: 0.15 | BA51: 0.41 | BB51: 1.16 | BC51: 4.65 | BD51: 6.96 | BE51: 15.02 | BF51: 23.01 | BG51: 23.33 | BH51: 18.74 | BI51: 17.82 | BJ51: 6.86 | BK51: 20.32
A52: Mesothelioom | B52: 4 | C52: 2006 | D52: 0 | E52: 0 | F52: 0 | G52: 0 | H52: 0 | I52: 0 | J52: 0 | K52: 0 | L52: 0.15 | M52: 1.29 | N52: 1.06 | O52: 6.66 | P52: 14.24 | Q52: 26.87 | R52: 32.77 | S52: 42.91 | T52: 32.87 | U52: 26.75 | V52: 13.45 | W52: 0 | X52: 0 | Y52: 0 | Z52: 0 | AA52: 0 | AB52: 0 | AC52: 0 | AD52: 0 | AE52: 0.16 | AF52: 0.62 | AG52: 0.16 | AH52: 0.89 | AI52: 1.61 | AJ52: 2.28 | AK52: 1.39 | AL52: 2.55 | AM52: 4.75 | AN52: 4.63 | AO52: 4.85 | AP52: 3.99 | AQ52: 0 | AR52: 0 | AS52: 0 | AT52: 0 | AU52: 0 | AV52: 0 | AW52: 0 | AX52: 0 | AY52: 0.08 | AZ52: 0.38 | BA52: 0.73 | BB52: 0.98 | BC52: 4.14 | BD52: 8.26 | BE52: 14.13 | BF52: 17.66 | BG52: 23.83 | BH52: 18.75 | BI52: 15.8 | BJ52: 8.72 | BK52: 0
A53: Mesothelioom | B53: 4 | C53: 2007 | D53: 0 | E53: 0 | F53: 0 | G53: 0 | H53: 0 | I53: 0 | J53: 0 | K53: 0 | L53: 0.3 | M53: 0.64 | N53: 2.97 | O53: 5.58 | P53: 10.79 | Q53: 22.51 | R53: 36.67 | S53: 36.85 | T53: 21.71 | U53: 37.51 | V53: 13.07 | W53: 0 | X53: 0 | Y53: 0 | Z53: 0 | AA53: 0 | AB53: 0 | AC53: 0 | AD53: 0 | AE53: 0 | AF53: 0 | AG53: 0.16 | AH53: 0.88 | AI53: 0.73 | AJ53: 1.88 | AK53: 2.74 | AL53: 3.5 | AM53: 4.7 | AN53: 3.24 | AO53: 2.32 | AP53: 1.95 | AQ53: 7.69 | AR53: 0 | AS53: 0 | AT53: 0 | AU53: 0 | AV53: 0 | AW53: 0 | AX53: 0 | AY53: 0 | AZ53: 0.15 | BA53: 0.4 | BB53: 1.93 | BC53: 3.16 | BD53: 6.34 | BE53: 12.62 | BF53: 20.09 | BG53: 20.77 | BH53: 12.47 | BI53: 19.92 | BJ53: 7.51 | BK53: 3.84
A54: Mesothelioom | B54: 4 | C54: 2008 | D54: 0 | E54: 0 | F54: 0 | G54: 0 | H54: 0 | I54: 0 | J54: 0 | K54: 0 | L54: 0.15 | M54: 1.1 | N54: 2.94 | O54: 6.77 | P54: 13.12 | Q54: 25.68 | R54: 35.49 | S54: 34.99 | T54: 26.68 | U54: 25.07 | V54: 25.46 | W54: 0 | X54: 0 | Y54: 0 | Z54: 0 | AA54: 0 | AB54: 0 | AC54: 0 | AD54: 0.2 | AE54: 0 | AF54: 0 | AG54: 0.16 | AH54: 0.87 | AI54: 1.49 | AJ54: 1.77 | AK54: 1.87 | AL54: 4.1 | AM54: 4.31 | AN54: 5.08 | AO54: 2.95 | AP54: 0 | AQ54: 0 | AR54: 0 | AS54: 0 | AT54: 0 | AU54: 0 | AV54: 0 | AW54: 0 | AX54: 0.1 | AY54: 0 | AZ54: 0.08 | BA54: 0.63 | BB54: 1.91 | BC54: 4.13 | BD54: 7.45 | BE54: 13.78 | BF54: 19.8 | BG54: 19.65 | BH54: 15.88 | BI54: 14.01 | BJ54: 12.73 | BK54: 0
A55: Mesothelioom | B55: 4 | C55: 2009 | D55: 0 | E55: 0 | F55: 0 | G55: 0 | H55: 0 | I55: 0 | J55: 0 | K55: 0.17 | L55: 0.46 | M55: 0.62 | N55: 2.22 | O55: 5.88 | P55: 11.71 | Q55: 18.64 | R55: 37.21 | S55: 36.61 | T55: 38.07 | U55: 25.23 | V55: 12.3 | W55: 0 | X55: 0 | Y55: 0 | Z55: 0 | AA55: 0 | AB55: 0 | AC55: 0 | AD55: 0 | AE55: 0 | AF55: 0.16 | AG55: 0.16 | AH55: 0.52 | AI55: 0.74 | AJ55: 1.52 | AK55: 1.55 | AL55: 3.4 | AM55: 4.29 | AN55: 1.84 | AO55: 3.54 | AP55: 5.7 | AQ55: 0 | AR55: 0 | AS55: 0 | AT55: 0 | AU55: 0 | AV55: 0 | AW55: 0 | AX55: 0 | AY55: 0.08 | AZ55: 0.31 | BA55: 0.39 | BB55: 1.37 | BC55: 3.31 | BD55: 6.61 | BE55: 10.09 | BF55: 20.3 | BG55: 20.45 | BH55: 19.95 | BI55: 14.39 | BJ55: 9 | BK55: 0
A56: Mesothelioom | B56: 4 | C56: 2010 | D56: 0 | E56: 0 | F56: 0 | G56: 0 | H56: 0 | I56: 0 | J56: 0 | K56: 0 | L56: 0.31 | M56: 0.77 | N56: 1.68 | O56: 4.95 | P56: 9.91 | Q56: 20.16 | R56: 35.33 | S56: 52 | T56: 45.45 | U56: 39.43 | V56: 33.84 | W56: 0 | X56: 0 | Y56: 0 | Z56: 0 | AA56: 0.2 | AB56: 0 | AC56: 0 | AD56: 0 | AE56: 0.17 | AF56: 0 | AG56: 0.16 | AH56: 0.34 | AI56: 0.74 | AJ56: 2.03 | AK56: 3.28 | AL56: 3.32 | AM56: 2.85 | AN56: 3.19 | AO56: 2.77 | AP56: 1.81 | AQ56: 0 | AR56: 0 | AS56: 0 | AT56: 0 | AU56: 0.1 | AV56: 0 | AW56: 0 | AX56: 0 | AY56: 0.09 | AZ56: 0.15 | BA56: 0.46 | BB56: 1.01 | BC56: 2.84 | BD56: 5.97 | BE56: 11.72 | BF56: 19.33 | BG56: 27.43 | BH56: 24.32 | BI56: 21.1 | BJ56: 17.82 | BK56: 0
A57: Mesothelioom | B57: 4 | C57: 2011 | D57: 0 | E57: 0 | F57: 0 | G57: 0 | H57: 0 | I57: 0 | J57: 0 | K57: 0.18 | L57: 0.15 | M57: 0.31 | N57: 2.31 | O57: 5.63 | P57: 10.28 | Q57: 20.4 | R57: 33.3 | S57: 33.36 | T57: 52.86 | U57: 42.5 | V57: 45.31 | W57: 0 | X57: 0 | Y57: 0 | Z57: 0 | AA57: 0 | AB57: 0 | AC57: 0 | AD57: 0 | AE57: 0 | AF57: 0 | AG57: 0.31 | AH57: 0.5 | AI57: 1.28 | AJ57: 1.29 | AK57: 1.66 | AL57: 4.45 | AM57: 3.56 | AN57: 5.39 | AO57: 4.12 | AP57: 0 | AQ57: 6.42 | AR57: 0 | AS57: 0 | AT57: 0 | AU57: 0 | AV57: 0 | AW57: 0 | AX57: 0 | AY57: 0.09 | AZ57: 0.08 | BA57: 0.31 | BB57: 1.41 | BC57: 3.46 | BD57: 5.78 | BE57: 11.03 | BF57: 18.87 | BG57: 18.46 | BH57: 29.12 | BI57: 23.31 | BJ57: 22.66 | BK57: 3.21
A58: Mesothelioom | B58: 4 | C58: 2012 | D58: 0 | E58: 0 | F58: 0 | G58: 0 | H58: 0 | I58: 0 | J58: 0.2 | K58: 0.19 | L58: 0.16 | M58: 0 | N58: 2.76 | O58: 5.94 | P58: 11.66 | Q58: 19.56 | R58: 26.34 | S58: 49.37 | T58: 37.4 | U58: 26.86 | V58: 13.87 | W58: 0 | X58: 0 | Y58: 0 | Z58: 0 | AA58: 0 | AB58: 0 | AC58: 0.4 | AD58: 0.2 | AE58: 0.19 | AF58: 0.16 | AG58: 0 | AH58: 0.49 | AI58: 1.08 | AJ58: 1.32 | AK58: 1.09 | AL58: 4.37 | AM58: 4.96 | AN58: 6.19 | AO58: 4.78 | AP58: 1.59 | AQ58: 0 | AR58: 0 | AS58: 0 | AT58: 0 | AU58: 0 | AV58: 0 | AW58: 0.2 | AX58: 0.2 | AY58: 0.19 | AZ58: 0.16 | BA58: 0 | BB58: 1.63 | BC58: 3.51 | BD58: 6.49 | BE58: 10.33 | BF58: 15.35 | BG58: 27.16 | BH58: 21.8 | BI58: 15.82 | BJ58: 7.73 | BK58: 0
A59: Mesothelioom | B59: 4 | C59: 2013 | D59: 0 | E59: 0 | F59: 0 | G59: 0 | H59: 0 | I59: 0 | J59: 0 | K59: 0 | L59: 0 | M59: 0.46 | N59: 1.28 | O59: 4.09 | P59: 12.01 | Q59: 15.07 | R59: 29.75 | S59: 45.34 | T59: 50.75 | U59: 40.96 | V59: 17.2 | W59: 0 | X59: 0 | Y59: 0 | Z59: 0 | AA59: 0.21 | AB59: 0 | AC59: 0 | AD59: 0 | AE59: 0 | AF59: 0 | AG59: 0 | AH59: 0.81 | AI59: 0.89 | AJ59: 1.53 | AK59: 2.06 | AL59: 3.41 | AM59: 4.2 | AN59: 4.37 | AO59: 2.72 | AP59: 4.56 | AQ59: 0 | AR59: 0 | AS59: 0 | AT59: 0 | AU59: 0.1 | AV59: 0 | AW59: 0 | AX59: 0 | AY59: 0 | AZ59: 0 | BA59: 0.23 | BB59: 1.04 | BC59: 2.49 | BD59: 6.77 | BE59: 8.57 | BF59: 16.58 | BG59: 24.77 | BH59: 27.56 | BI59: 21.84 | BJ59: 10.88 | BK59: 0
A60: Mesothelioom | B60: 4 | C60: 2014 | D60: 0 | E60: 0 | F60: 0 | G60: 0 | H60: 0 | I60: 0 | J60: 0.2 | K60: 0.2 | L60: 0.33 | M60: 1.24 | N60: 1.42 | O60: 1.75 | P60: 8.8 | Q60: 16.94 | R60: 27.13 | S60: 50.26 | T60: 49.25 | U60: 24.92 | V60: 12.04 | W60: 26.65 | X60: 0 | Y60: 0 | Z60: 0 | AA60: 0 | AB60: 0 | AC60: 0 | AD60: 0.2 | AE60: 0.2 | AF60: 0.17 | AG60: 0.31 | AH60: 0.48 | AI60: 1.05 | AJ60: 0.77 | AK60: 2.58 | AL60: 2.2 | AM60: 8.22 | AN60: 3.04 | AO60: 1.34 | AP60: 2.9 | AQ60: 6.02 | AR60: 0 | AS60: 0 | AT60: 0 | AU60: 0 | AV60: 0 | AW60: 0 | AX60: 0.2 | AY60: 0.2 | AZ60: 0.25 | BA60: 0.77 | BB60: 0.95 | BC60: 1.4 | BD60: 4.78 | BE60: 9.76 | BF60: 14.67 | BG60: 29.24 | BH60: 26.15 | BI60: 13.13 | BJ60: 7.47 | BK60: 16.33
A61: Mesothelioom | B61: 4 | C61: 2015 | D61: 0 | E61: 0 | F61: 0 | G61: 0 | H61: 0 | I61: 0.19 | J61: 0 | K61: 0 | L61: 0.52 | M61: 0.31 | N61: 0.62 | O61: 2.76 | P61: 6.68 | Q61: 18.58 | R61: 27.72 | S61: 42.83 | T61: 46.59 | U61: 38.83 | V61: 19.21 | W61: 0 | X61: 0 | Y61: 0 | Z61: 0 | AA61: 0.2 | AB61: 0 | AC61: 0 | AD61: 0 | AE61: 0.2 | AF61: 0 | AG61: 0.16 | AH61: 1.26 | AI61: 0.86 | AJ61: 1.14 | AK61: 2.7 | AL61: 3.76 | AM61: 3.68 | AN61: 5.18 | AO61: 1.99 | AP61: 4.26 | AQ61: 5.72 | AR61: 0 | AS61: 0 | AT61: 0 | AU61: 0.1 | AV61: 0 | AW61: 0.09 | AX61: 0 | AY61: 0.1 | AZ61: 0.26 | BA61: 0.23 | BB61: 0.94 | BC61: 1.81 | BD61: 3.91 | BE61: 10.64 | BF61: 15.74 | BG61: 23.25 | BH61: 25.88 | BI61: 20.41 | BJ61: 11.73 | BK61: 2.86
A62: Mesothelioom | B62: 4 | C62: 2016 | D62: 0 | E62: 0 | F62: 0 | G62: 0 | H62: 0 | I62: 0.18 | J62: 0 | K62: 0.2 | L62: 0.37 | M62: 0.16 | N62: 1.4 | O62: 2.2 | P62: 10.02 | Q62: 18.18 | R62: 29.2 | S62: 41.04 | T62: 47.12 | U62: 43.16 | V62: 7.41 | W62: 64.49 | X62: 0 | Y62: 0 | Z62: 0 | AA62: 0 | AB62: 0 | AC62: 0 | AD62: 0 | AE62: 0 | AF62: 0 | AG62: 0.16 | AH62: 0.79 | AI62: 0.85 | AJ62: 0.94 | AK62: 2.5 | AL62: 3.29 | AM62: 5.57 | AN62: 9.01 | AO62: 3.91 | AP62: 4.24 | AQ62: 0 | AR62: 0 | AS62: 0 | AT62: 0 | AU62: 0 | AV62: 0 | AW62: 0.09 | AX62: 0 | AY62: 0.1 | AZ62: 0.18 | BA62: 0.16 | BB62: 1.09 | BC62: 1.52 | BD62: 5.48 | BE62: 10.34 | BF62: 16.25 | BG62: 23.3 | BH62: 28.06 | BI62: 23.53 | BJ62: 5.83 | BK62: 32.24
A63: Long & Luchtpijp | B63: 3 | C63: 1989 | D63: 0 | E63: 0 | F63: 0 | G63: 0 | H63: 0 | I63: 0.46 | J63: 0.49 | K63: 3.07 | L63: 16.12 | M63: 45.82 | N63: 100.94 | O63: 207.24 | P63: 330.35 | Q63: 504.86 | R63: 699.63 | S63: 755.51 | T63: 708.29 | U63: 497.09 | V63: 197.33 | W63: 40.23 | X63: 0 | Y63: 0 | Z63: 0 | AA63: 0.18 | AB63: 0.16 | AC63: 0.48 | AD63: 2.04 | AE63: 5.89 | AF63: 9.74 | AG63: 19.78 | AH63: 30.18 | AI63: 53.82 | AJ63: 57.11 | AK63: 59.1 | AL63: 57.18 | AM63: 55.93 | AN63: 36.72 | AO63: 37.52 | AP63: 22.9 | AQ63: 0 | AR63: 0 | AS63: 0 | AT63: 0 | AU63: 0.09 | AV63: 0.08 | AW63: 0.47 | AX63: 1.26 | AY63: 4.49 | AZ63: 12.93 | BA63: 32.8 | BB63: 65.56 | BC63: 130.53 | BD63: 193.72 | BE63: 281.98 | BF63: 378.4 | BG63: 405.72 | BH63: 372.51 | BI63: 267.31 | BJ63: 110.12 | BK63: 20.12
A64: Long & Luchtpijp | B64: 3 | C64: 1990 | D64: 0 | E64: 0 | F64: 0.43 | G64: 0 | H64: 0 | I64: 0.75 | J64: 2.09 | K64: 6.3 | L64: 17.64 | M64: 36.04 | N64: 84.98 | O64: 183.43 | P64: 342.9 | Q64: 501.71 | R64: 723.34 | S64: 850.27 | T64: 679.01 | U64: 454.94 | V64: 224.07 | W64: 0 | X64: 0 | Y64: 0 | Z64: 0 | AA64: 0 | AB64: 0 | AC64: 0.79 | AD64: 2.84 | AE64: 3.02 | AF64: 10.48 | AG64: 16.09 | AH64: 32.17 | AI64: 43.63 | AJ64: 70.63 | AK64: 62.92 | AL64: 63.89 | AM64: 52.9 | AN64: 51.35 | AO64: 35.08 | AP64: 18.91 | AQ64: 0 | AR64: 0 | AS64: 0 | AT64: 0.22 | AU64: 0 | AV64: 0 | AW64: 0.77 | AX64: 2.46 | AY64: 4.66 | AZ64: 14.06 | BA64: 26.06 | BB64: 58.58 | BC64: 113.53 | BD64: 206.76 | BE64: 282.31 | BF64: 393.61 | BG64: 451.59 | BH64: 365.18 | BI64: 245.01 | BJ64: 121.49 | BK64: 0
A65: Long & Luchtpijp | B65: 3 | C65: 1991 | D65: 0 | E65: 0 | F65: 0.22 | G65: 0 | H65: 0.15 | I65: 0.45 | J65: 0.79 | K65: 5.23 | L65: 15.05 | M65: 40.89 | N65: 83.94 | O65: 199.33 | P65: 352.87 | Q65: 508.67 | R65: 723.9 | S65: 789.84 | T65: 709.93 | U65: 463.18 | V65: 329.69 | W65: 83.44 | X65: 0 | Y65: 0 | Z65: 0 | AA65: 0 | AB65: 0.48 | AC65: 0.31 | AD65: 1.81 | AE65: 5.96 | AF65: 8.92 | AG65: 20.7 | AH65: 33.11 | AI65: 49.76 | AJ65: 80.68 | AK65: 68.37 | AL65: 68.31 | AM65: 52.52 | AN65: 43.1 | AO65: 35.09 | AP65: 24.11 | AQ65: 40.38 | AR65: 0 | AS65: 0 | AT65: 0.11 | AU65: 0 | AV65: 0.32 | AW65: 0.38 | AX65: 1.3 | AY65: 5.59 | AZ65: 11.98 | BA65: 30.8 | BB65: 58.52 | BC65: 124.55 | BD65: 216.78 | BE65: 288.52 | BF65: 396.1 | BG65: 421.18 | BH65: 376.51 | BI65: 249.13 | BJ65: 176.9 | BK65: 61.91
A66: Long & Luchtpijp | B66: 3 | C66: 1992 | D66: 0 | E66: 0 | F66: 0 | G66: 0 | H66: 0 | I66: 0.15 | J66: 1.55 | K66: 3.84 | L66: 14.94 | M66: 41.88 | N66: 80.03 | O66: 193.4 | P66: 337.96 | Q66: 501.84 | R66: 675.49 | S66: 786.05 | T66: 725.41 | U66: 513.36 | V66: 264.12 | W66: 84.23 | X66: 0 | Y66: 0 | Z66: 0 | AA66: 0 | AB66: 0.16 | AC66: 0 | AD66: 2.26 | AE66: 6.23 | AF66: 10.01 | AG66: 17.81 | AH66: 31.55 | AI66: 52.51 | AJ66: 72.05 | AK66: 80.62 | AL66: 69.71 | AM66: 64.43 | AN66: 49.91 | AO66: 36.15 | AP66: 20.13 | AQ66: 25.67 | AR66: 0 | AS66: 0 | AT66: 0 | AU66: 0 | AV66: 0.08 | AW66: 0.07 | AX66: 1.9 | AY66: 5.03 | AZ66: 12.47 | BA66: 29.85 | BB66: 55.79 | BC66: 122.96 | BD66: 205 | BE66: 291.23 | BF66: 372.6 | BG66: 425.24 | BH66: 387.67 | BI66: 274.76 | BJ66: 142.12 | BK66: 54.95
A67: Long & Luchtpijp | B67: 3 | C67: 1993 | D67: 0 | E67: 0 | F67: 0.22 | G67: 0 | H67: 0 | I67: 0.15 | J67: 1.37 | K67: 5.44 | L67: 15.84 | M67: 36.21 | N67: 80.63 | O67: 181.23 | P67: 341.8 | Q67: 472.15 | R67: 633.86 | S67: 761.36 | T67: 659.8 | U67: 480.18 | V67: 235.97 | W67: 127.63 | X67: 0 | Y67: 0 | Z67: 0 | AA67: 0 | AB67: 0 | AC67: 1.1 | AD67: 1.59 | AE67: 5.29 | AF67: 11.01 | AG67: 23.41 | AH67: 34.67 | AI67: 53.78 | AJ67: 88.12 | AK67: 87.64 | AL67: 74.06 | AM67: 69.47 | AN67: 53 | AO67: 42.18 | AP67: 27.76 | AQ67: 0 | AR67: 0 | AS67: 0 | AT67: 0.11 | AU67: 0 | AV67: 0 | AW67: 0.63 | AX67: 1.48 | AY67: 5.37 | AZ67: 13.43 | BA67: 29.81 | BB67: 57.65 | BC67: 117.51 | BD67: 214.96 | BE67: 279.89 | BF67: 353.96 | BG67: 415.42 | BH67: 356.4 | BI67: 261.18 | BJ67: 131.87 | BK67: 63.82
A68: Long & Luchtpijp | B68: 3 | C68: 1994 | D68: 0 | E68: 0.21 | F68: 0 | G68: 0 | H68: 0 | I68: 0.45 | J68: 0.75 | K68: 3.57 | L68: 13.7 | M68: 33.45 | N68: 79.11 | O68: 189.49 | P68: 311.36 | Q68: 471.06 | R68: 635.13 | S68: 700.15 | T68: 707.36 | U68: 539.71 | V68: 304.06 | W68: 175.94 | X68: 0 | Y68: 0 | Z68: 0 | AA68: 0 | AB68: 0.35 | AC68: 0.31 | AD68: 1.25 | AE68: 7.9 | AF68: 11.92 | AG68: 24.35 | AH68: 33.62 | AI68: 56.96 | AJ68: 81.32 | AK68: 97.29 | AL68: 72.39 | AM68: 72.28 | AN68: 49.92 | AO68: 46.94 | AP68: 13.44 | AQ68: 24.17 | AR68: 0 | AS68: 0.1 | AT68: 0 | AU68: 0 | AV68: 0.17 | AW68: 0.38 | AX68: 1 | AY68: 5.73 | AZ68: 12.81 | BA68: 28.9 | BB68: 56.37 | BC68: 123.23 | BD68: 196.34 | BE68: 284.18 | BF68: 353.76 | BG68: 386.21 | BH68: 378.64 | BI68: 293.32 | BJ68: 158.75 | BK68: 100.05
A69: Long & Luchtpijp | B69: 3 | C69: 1995 | D69: 0 | E69: 0.21 | F69: 0 | G69: 0.21 | H69: 0.35 | I69: 0.15 | J69: 1.63 | K69: 4.8 | L69: 13.69 | M69: 37.67 | N69: 81.65 | O69: 153.7 | P69: 305.05 | Q69: 461.34 | R69: 605.18 | S69: 760.44 | T69: 667.78 | U69: 462.04 | V69: 221.63 | W69: 228 | X69: 0 | Y69: 0 | Z69: 0 | AA69: 0.22 | AB69: 0.36 | AC69: 0.47 | AD69: 1.4 | AE69: 6.62 | AF69: 16.27 | AG69: 21.57 | AH69: 37.58 | AI69: 55.08 | AJ69: 81.89 | AK69: 99.55 | AL69: 84.03 | AM69: 79.46 | AN69: 64.18 | AO69: 36.29 | AP69: 20.68 | AQ69: 11.71 | AR69: 0 | AS69: 0.1 | AT69: 0 | AU69: 0.22 | AV69: 0.36 | AW69: 0.31 | AX69: 1.51 | AY69: 5.71 | AZ69: 14.98 | BA69: 29.62 | BB69: 59.62 | BC69: 104.39 | BD69: 193.48 | BE69: 280.45 | BF69: 344.61 | BG69: 419.95 | BH69: 365.98 | BI69: 249.16 | BJ69: 121.15 | BK69: 119.85
A70: Long & Luchtpijp | B70: 3 | C70: 1996 | D70: 0 | E70: 0 | F70: 0.22 | G70: 0.21 | H70: 0.37 | I70: 0 | J70: 0.74 | K70: 5.36 | L70: 14.78 | M70: 36.95 | N70: 78.32 | O70: 139.29 | P70: 291.11 | Q70: 450.95 | R70: 615.36 | S70: 743.35 | T70: 618.53 | U70: 497.71 | V70: 286.47 | W70: 182.57 | X70: 0 | Y70: 0 | Z70: 0 | AA70: 0.44 | AB70: 0.19 | AC70: 0.47 | AD70: 1.55 | AE70: 6.03 | AF70: 11.73 | AG70: 26.9 | AH70: 39.35 | AI70: 58.02 | AJ70: 80.18 | AK70: 104.45 | AL70: 89.12 | AM70: 82.25 | AN70: 59.9 | AO70: 39.57 | AP70: 30.04 | AQ70: 11.22 | AR70: 0 | AS70: 0 | AT70: 0.11 | AU70: 0.33 | AV70: 0.28 | AW70: 0.24 | AX70: 1.15 | AY70: 5.7 | AZ70: 13.26 | BA70: 31.92 | BB70: 58.84 | BC70: 98.66 | BD70: 185.65 | BE70: 277.7 | BF70: 352.24 | BG70: 412.81 | BH70: 339.21 | BI70: 268.64 | BJ70: 158.25 | BK70: 96.89
A71: Long & Luchtpijp | B71: 3 | C71: 1997 | D71: 0 | E71: 0 | F71: 0 | G71: 0 | H71: 0.39 | I71: 0.31 | J71: 1.19 | K71: 3.42 | L71: 14.82 | M71: 37.3 | N71: 71.12 | O71: 143.38 | P71: 282.15 | Q71: 465.91 | R71: 601.25 | S71: 642.72 | T71: 617.32 | U71: 436.82 | V71: 233.15 | W71: 134.2 | X71: 0 | Y71: 0 | Z71: 0 | AA71: 0.22 | AB71: 0 | AC71: 0.48 | AD71: 1.24 | AE71: 7.71 | AF71: 15.92 | AG71: 27.22 | AH71: 43.27 | AI71: 63.4 | AJ71: 83.06 | AK71: 112.39 | AL71: 95.2 | AM71: 84.08 | AN71: 63.43 | AO71: 38.97 | AP71: 21.87 | AQ71: 0 | AR71: 0 | AS71: 0 | AT71: 0 | AU71: 0.11 | AV71: 0.2 | AW71: 0.39 | AX71: 1.21 | AY71: 5.56 | AZ71: 15.37 | BA71: 32.25 | BB71: 57.19 | BC71: 103.39 | BD71: 182.6 | BE71: 289.15 | BF71: 348.23 | BG71: 363.39 | BH71: 340.38 | BI71: 237.89 | BJ71: 127.51 | BK71: 67.1
A72: Long & Luchtpijp | B72: 3 | C72: 1998 | D72: 0 | E72: 0 | F72: 0 | G72: 0 | H72: 0 | I72: 0.63 | J72: 0.6 | K72: 3.21 | L72: 14.5 | M72: 29.39 | N72: 74.01 | O72: 143.7 | P72: 272.19 | Q72: 426.22 | R72: 555.1 | S72: 669.6 | T72: 582.74 | U72: 455.79 | V72: 237.5 | W72: 87.49 | X72: 0 | Y72: 0 | Z72: 0 | AA72: 0.22 | AB72: 0 | AC72: 0.49 | AD72: 0.78 | AE72: 7.44 | AF72: 17.09 | AG72: 33.44 | AH72: 40.94 | AI72: 64.12 | AJ72: 83.61 | AK72: 119.46 | AL72: 107.71 | AM72: 91.93 | AN72: 56.68 | AO72: 37.26 | AP72: 11.77 | AQ72: 20.73 | AR72: 0 | AS72: 0 | AT72: 0 | AU72: 0.11 | AV72: 0 | AW72: 0.56 | AX72: 0.68 | AY72: 5.32 | AZ72: 15.79 | BA72: 31.42 | BB72: 57.47 | BC72: 103.91 | BD72: 177.89 | BE72: 272.84 | BF72: 331.4 | BG72: 380.76 | BH72: 319.71 | BI72: 246.53 | BJ72: 124.64 | BK72: 54.11
A73: Long & Luchtpijp | B73: 3 | C73: 1999 | D73: 0 | E73: 0 | F73: 0 | G73: 0 | H73: 0 | I73: 0.66 | J73: 2.23 | K73: 3.46 | L73: 12.8 | M73: 26.94 | N73: 70.43 | O73: 137.24 | P73: 248.72 | Q73: 409.46 | R73: 549.73 | S73: 654.66 | T73: 582.83 | U73: 430.43 | V73: 228.25 | W73: 42.75 | X73: 0 | Y73: 0 | Z73: 0 | AA73: 0 | AB73: 0 | AC73: 0.34 | AD73: 1.25 | AE73: 6.86 | AF73: 15.98 | AG73: 27.77 | AH73: 45.78 | AI73: 65.77 | AJ73: 84.2 | AK73: 116.44 | AL73: 113.72 | AM73: 91.58 | AN73: 62.06 | AO73: 32.09 | AP73: 13.75 | AQ73: 20.17 | AR73: 0 | AS73: 0 | AT73: 0 | AU73: 0 | AV73: 0 | AW73: 0.5 | AX73: 1.74 | AY73: 5.16 | AZ73: 14.39 | BA73: 27.35 | BB73: 58.1 | BC73: 101.5 | BD73: 166.45 | BE73: 262.94 | BF73: 331.72 | BG73: 373.12 | BH73: 322.44 | BI73: 231.26 | BJ73: 121 | BK73: 31.47
A74: Long & Luchtpijp | B74: 3 | C74: 2000 | D74: 0 | E74: 0 | F74: 0 | G74: 0.21 | H74: 0.21 | I74: 0 | J74: 0.89 | K74: 4.9 | L74: 14.19 | M74: 27.39 | N74: 64.06 | O74: 128.49 | P74: 230.62 | Q74: 396.71 | R74: 544.71 | S74: 617.08 | T74: 566.83 | U74: 452.21 | V74: 201.95 | W74: 170.29 | X74: 0 | Y74: 0 | Z74: 0 | AA74: 0.22 | AB74: 0.21 | AC74: 0.35 | AD74: 1.71 | AE74: 4.78 | AF74: 14.72 | AG74: 35.07 | AH74: 49.66 | AI74: 64.79 | AJ74: 89.82 | AK74: 117.62 | AL74: 126.79 | AM74: 98.66 | AN74: 66.85 | AO74: 40.55 | AP74: 15.7 | AQ74: 9.76 | AR74: 0 | AS74: 0 | AT74: 0 | AU74: 0.22 | AV74: 0.21 | AW74: 0.18 | AX74: 1.3 | AY74: 4.84 | AZ74: 14.45 | BA74: 31.23 | BB74: 56.86 | BC74: 96.63 | BD74: 160.22 | BE74: 257.16 | BF74: 335.75 | BG74: 357.87 | BH74: 316.84 | BI74: 246.38 | BJ74: 108.82 | BK74: 90.02
A75: Long & Luchtpijp | B75: 3 | C75: 2001 | D75: 0.19 | E75: 0 | F75: 0 | G75: 0.21 | H75: 0.2 | I75: 0.36 | J75: 0.45 | K75: 4.57 | L75: 10.46 | M75: 31.28 | N75: 65.82 | O75: 130.93 | P75: 217.08 | Q75: 381.25 | R75: 521.01 | S75: 594.41 | T75: 542.81 | U75: 347.37 | V75: 237.43 | W75: 127.39 | X75: 0 | Y75: 0 | Z75: 0 | AA75: 0 | AB75: 0 | AC75: 0.18 | AD75: 2.32 | AE75: 4.76 | AF75: 17.24 | AG75: 33.43 | AH75: 47.15 | AI75: 79.61 | AJ75: 91.66 | AK75: 119.06 | AL75: 130.21 | AM75: 100.79 | AN75: 65.83 | AO75: 39.4 | AP75: 22.11 | AQ75: 0 | AR75: 0.1 | AS75: 0 | AT75: 0 | AU75: 0.1 | AV75: 0.1 | AW75: 0.27 | AX75: 1.39 | AY75: 4.67 | AZ75: 13.85 | BA75: 32.36 | BB75: 56.49 | BC75: 105.27 | BD75: 154.36 | BE75: 250.15 | BF75: 325.61 | BG75: 347.6 | BH75: 304.32 | BI75: 193.38 | BJ75: 129.77 | BK75: 63.69
A76: Long & Luchtpijp | B76: 3 | C76: 2002 | D76: 0 | E76: 0 | F76: 0 | G76: 0.21 | H76: 0.2 | I76: 0.19 | J76: 0.75 | K76: 3.25 | L76: 10.92 | M76: 28.59 | N76: 65.15 | O76: 119.75 | P76: 225.47 | Q76: 376.6 | R76: 519.13 | S76: 637.55 | T76: 540.95 | U76: 350.11 | V76: 253.55 | W76: 42.46 | X76: 0 | Y76: 0 | Z76: 0.21 | AA76: 0 | AB76: 0.21 | AC76: 0.19 | AD76: 1.09 | AE76: 5.53 | AF76: 16 | AG76: 36.67 | AH76: 51.87 | AI76: 73.07 | AJ76: 90.91 | AK76: 130.61 | AL76: 143.07 | AM76: 117.3 | AN76: 69.72 | AO76: 44.47 | AP76: 26.2 | AQ76: 9.12 | AR76: 0 | AS76: 0 | AT76: 0.1 | AU76: 0.1 | AV76: 0.21 | AW76: 0.19 | AX76: 0.93 | AY76: 4.4 | AZ76: 13.46 | BA76: 32.63 | BB76: 58.51 | BC76: 96.41 | BD76: 158.19 | BE76: 253.6 | BF76: 331.11 | BG76: 377.43 | BH76: 305.34 | BI76: 197.29 | BJ76: 139.88 | BK76: 25.79
A77: Long & Luchtpijp | B77: 3 | C77: 2003 | D77: 0 | E77: 0 | F77: 0.19 | G77: 0 | H77: 0 | I77: 0.58 | J77: 1.71 | K77: 4.61 | L77: 10.91 | M77: 30.33 | N77: 66.36 | O77: 115.36 | P77: 197.31 | Q77: 351.38 | R77: 519.72 | S77: 593.34 | T77: 577.9 | U77: 429.1 | V77: 215.22 | W77: 169.6 | X77: 0 | Y77: 0.21 | Z77: 0 | AA77: 0 | AB77: 0.42 | AC77: 0.99 | AD77: 1.75 | AE77: 3.86 | AF77: 14.67 | AG77: 40.01 | AH77: 61.41 | AI77: 81.09 | AJ77: 96.96 | AK77: 128.21 | AL77: 155.02 | AM77: 128.28 | AN77: 97.89 | AO77: 49.12 | AP77: 25.68 | AQ77: 26.72 | AR77: 0 | AS77: 0.1 | AT77: 0.1 | AU77: 0 | AV77: 0.21 | AW77: 0.79 | AX77: 1.73 | AY77: 4.23 | AZ77: 12.79 | BA77: 35.18 | BB77: 63.88 | BC77: 98.22 | BD77: 147.13 | BE77: 239.79 | BF77: 337.37 | BG77: 360.81 | BH77: 337.9 | BI77: 239.11 | BJ77: 120.45 | BK77: 98.16
A78: Long & Luchtpijp | B78: 3 | C78: 2004 | D78: 0 | E78: 0 | F78: 0 | G78: 0.4 | H78: 0.2 | I78: 0 | J78: 1.3 | K78: 3.59 | L78: 11.99 | M78: 29.27 | N78: 68.39 | O78: 124.05 | P78: 213.11 | Q78: 342.28 | R78: 514.5 | S78: 581.01 | T78: 597.86 | U78: 407.33 | V78: 284.48 | W78: 125.16 | X78: 0.2 | Y78: 0 | Z78: 0 | AA78: 0 | AB78: 0 | AC78: 0.8 | AD78: 1.81 | AE78: 4.02 | AF78: 17.3 | AG78: 41.1 | AH78: 60.12 | AI78: 88 | AJ78: 110.91 | AK78: 131.31 | AL78: 150.31 | AM78: 141.93 | AN78: 94.63 | AO78: 60.67 | AP78: 29.13 | AQ78: 0 | AR78: 0.1 | AS78: 0 | AT78: 0 | AU78: 0.2 | AV78: 0.1 | AW78: 0.4 | AX78: 1.56 | AY78: 3.8 | AZ78: 14.64 | BA78: 35.19 | BB78: 64.25 | BC78: 106.02 | BD78: 162 | BE78: 236.79 | BF78: 332.41 | BG78: 361.47 | BH78: 346.24 | BI78: 234 | BJ78: 156.81 | BK78: 62.58
A79: Long & Luchtpijp | B79: 3 | C79: 2005 | D79: 0 | E79: 0 | F79: 0 | G79: 0.2 | H79: 0.2 | I79: 0.4 | J79: 0.69 | K79: 3.31 | L79: 9.18 | M79: 25.58 | N79: 64.44 | O79: 109.32 | P79: 219.16 | Q79: 325.39 | R79: 494.78 | S79: 572.14 | T79: 544.65 | U79: 386.6 | V79: 288.28 | W79: 121.9 | X79: 0.2 | Y79: 0 | Z79: 0 | AA79: 0 | AB79: 0.21 | AC79: 1.01 | AD79: 1.56 | AE79: 4.02 | AF79: 16.54 | AG79: 37.66 | AH79: 66.16 | AI79: 86.2 | AJ79: 113.73 | AK79: 147.32 | AL79: 168.65 | AM79: 156.75 | AN79: 102.64 | AO79: 60.43 | AP79: 32.47 | AQ79: 8.24 | AR79: 0.1 | AS79: 0 | AT79: 0 | AU79: 0.1 | AV79: 0.21 | AW79: 0.71 | AX79: 1.13 | AY79: 3.66 | AZ79: 12.86 | BA79: 31.62 | BB79: 65.3 | BC79: 97.76 | BD79: 166.44 | BE79: 236.35 | BF79: 331.72 | BG79: 364.45 | BH79: 323.65 | BI79: 223.52 | BJ79: 160.38 | BK79: 65.07
A80: Long & Luchtpijp | B80: 3 | C80: 2006 | D80: 0 | E80: 0 | F80: 0.2 | G80: 0 | H80: 0.2 | I80: 0.6 | J80: 1.82 | K80: 3.34 | L80: 10.98 | M80: 26.69 | N80: 61.73 | O80: 120.12 | P80: 205.21 | Q80: 318.39 | R80: 498.63 | S80: 609.29 | T80: 584.31 | U80: 458.52 | V80: 235.38 | W80: 118.18 | X80: 0 | Y80: 0 | Z80: 0 | AA80: 0 | AB80: 0.63 | AC80: 0.61 | AD80: 1.83 | AE80: 3.88 | AF80: 15.6 | AG80: 37.79 | AH80: 71.75 | AI80: 94.09 | AJ80: 124.39 | AK80: 147.2 | AL80: 186.88 | AM80: 164.87 | AN80: 124.48 | AO80: 77.56 | AP80: 43.88 | AQ80: 0 | AR80: 0 | AS80: 0 | AT80: 0.1 | AU80: 0 | AV80: 0.42 | AW80: 0.61 | AX80: 1.82 | AY80: 3.61 | AZ80: 13.29 | BA80: 32.24 | BB80: 66.74 | BC80: 107.1 | BD80: 164.8 | BE80: 232.8 | BF80: 342.76 | BG80: 387.08 | BH80: 354.39 | BI80: 268.04 | BJ80: 139.63 | BK80: 59.09
A81: Long & Luchtpijp | B81: 3 | C81: 2007 | D81: 0 | E81: 0 | F81: 0 | G81: 0 | H81: 0 | I81: 1.21 | J81: 1.72 | K81: 3.86 | L81: 8.76 | M81: 24.41 | N81: 61.55 | O81: 117.99 | P81: 195.73 | Q81: 333.08 | R81: 487.39 | S81: 607.21 | T81: 573.24 | U81: 455.54 | V81: 254.84 | W81: 37.64 | X81: 0 | Y81: 0 | Z81: 0 | AA81: 0.41 | AB81: 0 | AC81: 0.4 | AD81: 1.72 | AE81: 3.45 | AF81: 16.14 | AG81: 38.21 | AH81: 75.2 | AI81: 93.32 | AJ81: 133.45 | AK81: 146.37 | AL81: 178.16 | AM81: 191.03 | AN81: 119.34 | AO81: 71.82 | AP81: 39.09 | AQ81: 23.07 | AR81: 0 | AS81: 0 | AT81: 0 | AU81: 0.2 | AV81: 0 | AW81: 0.81 | AX81: 1.72 | AY81: 3.66 | AZ81: 12.45 | BA81: 31.31 | BB81: 68.37 | BC81: 105.66 | BD81: 164.58 | BE81: 239.73 | BF81: 332.78 | BG81: 399.12 | BH81: 346.29 | BI81: 263.67 | BJ81: 146.97 | BK81: 30.35
A82: Long & Luchtpijp | B82: 3 | C82: 2008 | D82: 0 | E82: 0 | F82: 0 | G82: 0.39 | H82: 0 | I82: 0.6 | J82: 1.18 | K82: 5.07 | L82: 6.99 | M82: 22.64 | N82: 59.89 | O82: 113.92 | P82: 194.02 | Q82: 316.74 | R82: 475.41 | S82: 603.98 | T82: 604.13 | U82: 429.57 | V82: 267.29 | W82: 249.51 | X82: 0 | Y82: 0 | Z82: 0 | AA82: 0.2 | AB82: 0.41 | AC82: 1.01 | AD82: 0.98 | AE82: 4.48 | AF82: 14.03 | AG82: 39.92 | AH82: 75.16 | AI82: 100.25 | AJ82: 137.23 | AK82: 162.63 | AL82: 196.31 | AM82: 182.42 | AN82: 138.61 | AO82: 87.8 | AP82: 52.01 | AQ82: 0 | AR82: 0 | AS82: 0 | AT82: 0 | AU82: 0.3 | AV82: 0.2 | AW82: 0.81 | AX82: 1.08 | AY82: 4.78 | AZ82: 10.51 | BA82: 31.28 | BB82: 67.53 | BC82: 107.08 | BD82: 165.63 | BE82: 239.68 | BF82: 335.86 | BG82: 393.2 | BH82: 371.37 | BI82: 258.69 | BJ82: 159.65 | BK82: 124.75
A83: Long & Luchtpijp | B83: 3 | C83: 2009 | D83: 0.21 | E83: 0 | F83: 0.4 | G83: 0 | H83: 0.2 | I83: 1.2 | J83: 0.99 | K83: 2.97 | L83: 9.76 | M83: 22.15 | N83: 61.23 | O83: 113.37 | P83: 190.16 | Q83: 323.2 | R83: 466.63 | S83: 604.51 | T83: 596.91 | U83: 473.14 | V83: 356.7 | W83: 396.96 | X83: 0 | Y83: 0 | Z83: 0 | AA83: 0.2 | AB83: 0.81 | AC83: 0.61 | AD83: 1.2 | AE83: 5.47 | AF83: 15.93 | AG83: 31.84 | AH83: 71.23 | AI83: 105.45 | AJ83: 129.72 | AK83: 165.96 | AL83: 192.62 | AM83: 199.99 | AN83: 148.24 | AO83: 83.5 | AP83: 43.68 | AQ83: 27.81 | AR83: 0.11 | AS83: 0 | AT83: 0.2 | AU83: 0.1 | AV83: 0.5 | AW83: 0.9 | AX83: 1.1 | AY83: 4.22 | AZ83: 12.84 | BA83: 27 | BB83: 66.23 | BC83: 109.4 | BD83: 159.94 | BE83: 244.59 | BF83: 329.63 | BG83: 402.24 | BH83: 372.57 | BI83: 278.32 | BJ83: 200.19 | BK83: 212.39
A84: Long & Luchtpijp | B84: 3 | C84: 2010 | D84: 0 | E84: 0 | F84: 0.39 | G84: 0.19 | H84: 0.19 | I84: 0 | J84: 1.2 | K84: 4.86 | L84: 8.4 | M84: 25.43 | N84: 54.7 | O84: 113.26 | P84: 193.15 | Q84: 312.24 | R84: 433.7 | S84: 635.56 | T84: 593.74 | U84: 413.99 | V84: 332.72 | W84: 219.64 | X84: 0 | Y84: 0 | Z84: 0 | AA84: 0.2 | AB84: 0.39 | AC84: 0.2 | AD84: 0.8 | AE84: 6.26 | AF84: 11.69 | AG84: 32 | AH84: 63.3 | AI84: 109.26 | AJ84: 149.72 | AK84: 180.64 | AL84: 206.75 | AM84: 206.22 | AN84: 163.44 | AO84: 101.73 | AP84: 52.43 | AQ84: 33.26 | AR84: 0 | AS84: 0 | AT84: 0.2 | AU84: 0.2 | AV84: 0.29 | AW84: 0.1 | AX84: 1 | AY84: 5.56 | AZ84: 10.04 | BA84: 28.72 | BB84: 59 | BC84: 111.26 | BD84: 171.44 | BE84: 246.44 | BF84: 320.23 | BG84: 420.89 | BH84: 378.6 | BI84: 257.86 | BJ84: 192.58 | BK84: 126.45
A85: Long & Luchtpijp | B85: 3 | C85: 2011 | D85: 0 | E85: 0 | F85: 0 | G85: 0.39 | H85: 0.19 | I85: 0.2 | J85: 1.39 | K85: 3.47 | L85: 11.21 | M85: 22.59 | N85: 56.62 | O85: 108.48 | P85: 200.04 | Q85: 303.99 | R85: 425.04 | S85: 581.58 | T85: 644.89 | U85: 457.23 | V85: 276.91 | W85: 60.79 | X85: 0 | Y85: 0 | Z85: 0.41 | AA85: 0 | AB85: 0.78 | AC85: 1.2 | AD85: 1.39 | AE85: 3.28 | AF85: 11.7 | AG85: 36.72 | AH85: 69.11 | AI85: 113.51 | AJ85: 142.38 | AK85: 180.52 | AL85: 197.74 | AM85: 227.3 | AN85: 164.71 | AO85: 119.4 | AP85: 62.31 | AQ85: 19.26 | AR85: 0 | AS85: 0 | AT85: 0.2 | AU85: 0.19 | AV85: 0.48 | AW85: 0.7 | AX85: 1.39 | AY85: 3.37 | AZ85: 11.46 | BA85: 29.66 | BB85: 62.86 | BC85: 111 | BD85: 171.21 | BE85: 242.26 | BF85: 311.39 | BG85: 404.44 | BH85: 404.8 | BI85: 288.31 | BJ85: 169.61 | BK85: 40.03
A86: Long & Luchtpijp | B86: 3 | C86: 2012 | D86: 0 | E86: 0 | F86: 0 | G86: 0.59 | H86: 0 | I86: 0.2 | J86: 1.58 | K86: 3.24 | L86: 9.34 | M86: 20.65 | N86: 46.97 | O86: 107.92 | P86: 183.03 | Q86: 275.23 | R86: 396.31 | S86: 576.1 | T86: 531.08 | U86: 520.2 | V86: 221.94 | W86: 232.52 | X86: 0.22 | Y86: 0 | Z86: 0 | AA86: 0 | AB86: 0.38 | AC86: 0.4 | AD86: 1.59 | AE86: 3.04 | AF86: 12.41 | AG86: 32.76 | AH86: 68.32 | AI86: 116.63 | AJ86: 160.9 | AK86: 190.11 | AL86: 212.22 | AM86: 215.6 | AN86: 179.07 | AO86: 98.92 | AP86: 50.99 | AQ86: 24.93 | AR86: 0.11 | AS86: 0 | AT86: 0 | AU86: 0.29 | AV86: 0.19 | AW86: 0.3 | AX86: 1.59 | AY86: 3.14 | AZ86: 10.87 | BA86: 26.71 | BB86: 57.64 | BC86: 112.27 | BD86: 171.96 | BE86: 232.67 | BF86: 304.27 | BG86: 395.85 | BH86: 355.08 | BI86: 309.56 | BJ86: 136.47 | BK86: 128.73
A87: Long & Luchtpijp | B87: 3 | C87: 2013 | D87: 0 | E87: 0 | F87: 0.19 | G87: 0 | H87: 0.56 | I87: 0.96 | J87: 1.58 | K87: 3.34 | L87: 9.58 | M87: 24.15 | N87: 52.04 | O87: 113.87 | P87: 177.66 | Q87: 270.29 | R87: 400.59 | S87: 512.9 | T87: 574.05 | U87: 483.34 | V87: 240.76 | W87: 253.31 | X87: 0 | Y87: 0 | Z87: 0 | AA87: 0 | AB87: 0.19 | AC87: 0.78 | AD87: 1.79 | AE87: 3.71 | AF87: 11.04 | AG87: 30.38 | AH87: 59.56 | AI87: 115.65 | AJ87: 164.5 | AK87: 196.65 | AL87: 211.21 | AM87: 215.8 | AN87: 205.49 | AO87: 115.4 | AP87: 54.66 | AQ87: 24.59 | AR87: 0 | AS87: 0 | AT87: 0.1 | AU87: 0 | AV87: 0.38 | AW87: 0.87 | AX87: 1.69 | AY87: 3.52 | AZ87: 10.31 | BA87: 27.27 | BB87: 55.8 | BC87: 114.76 | BD87: 171.08 | BE87: 233.46 | BF87: 305.9 | BG87: 364.35 | BH87: 389.77 | BI87: 299.37 | BJ87: 147.71 | BK87: 138.95
A88: Long & Luchtpijp | B88: 3 | C88: 2014 | D88: 0 | E88: 0 | F88: 0 | G88: 0.2 | H88: 0.19 | I88: 0.38 | J88: 1.78 | K88: 3.78 | L88: 10.47 | M88: 19.76 | N88: 43.87 | O88: 96.37 | P88: 181.79 | Q88: 266.36 | R88: 391.09 | S88: 494.36 | T88: 554.59 | U88: 411.91 | V88: 224.66 | W88: 159.87 | X88: 0.23 | Y88: 0 | Z88: 0 | AA88: 0.21 | AB88: 0 | AC88: 0.38 | AD88: 1.59 | AE88: 3.96 | AF88: 10.61 | AG88: 29.15 | AH88: 64.32 | AI88: 115.68 | AJ88: 163.98 | AK88: 206.69 | AL88: 225.16 | AM88: 204.7 | AN88: 170.11 | AO88: 98.82 | AP88: 56.52 | AQ88: 30.12 | AR88: 0.11 | AS88: 0 | AT88: 0 | AU88: 0.2 | AV88: 0.09 | AW88: 0.39 | AX88: 1.68 | AY88: 3.87 | AZ88: 10.54 | BA88: 24.46 | BB88: 54.1 | BC88: 106.02 | BD88: 172.89 | BE88: 236.52 | BF88: 308.13 | BG88: 349.53 | BH88: 362.35 | BI88: 255.37 | BJ88: 140.59 | BK88: 95
A89: Long & Luchtpijp | B89: 3 | C89: 2015 | D89: 0 | E89: 0 | F89: 0 | G89: 0.19 | H89: 0.37 | I89: 0.19 | J89: 1.57 | K89: 2.99 | L89: 11.01 | M89: 21.33 | N89: 47.58 | O89: 95.92 | P89: 177.02 | Q89: 273.86 | R89: 389.19 | S89: 478.64 | T89: 555.37 | U89: 397.02 | V89: 219 | W89: 71.75 | X89: 0 | Y89: 0 | Z89: 0.2 | AA89: 0.2 | AB89: 0.38 | AC89: 0.19 | AD89: 0.59 | AE89: 4.57 | AF89: 7.46 | AG89: 25.65 | AH89: 63.84 | AI89: 112.18 | AJ89: 177.08 | AK89: 216.81 | AL89: 237.21 | AM89: 229.89 | AN89: 211.44 | AO89: 108.52 | AP89: 56.74 | AQ89: 22.89 | AR89: 0 | AS89: 0 | AT89: 0.1 | AU89: 0.2 | AV89: 0.37 | AW89: 0.19 | AX89: 1.08 | AY89: 3.78 | AZ89: 9.24 | BA89: 23.49 | BB89: 55.71 | BC89: 104.05 | BD89: 177.05 | BE89: 245.33 | BF89: 313.2 | BG89: 354.27 | BH89: 383.41 | BI89: 252.77 | BJ89: 137.87 | BK89: 47.32
A90: Long & Luchtpijp | B90: 3 | C90: 2016 | D90: 0.22 | E90: 0 | F90: 0.2 | G90: 0 | H90: 0.18 | I90: 0.18 | J90: 1.36 | K90: 3.55 | L90: 10.81 | M90: 22.96 | N90: 46.09 | O90: 94.09 | P90: 173.73 | Q90: 257.48 | R90: 380.7 | S90: 473.3 | T90: 508.01 | U90: 444.76 | V90: 203.81 | W90: 85.98 | X90: 0 | Y90: 0 | Z90: 0.21 | AA90: 0 | AB90: 0.38 | AC90: 0.94 | AD90: 1.37 | AE90: 5.13 | AF90: 11.25 | AG90: 25.32 | AH90: 60 | AI90: 114.2 | AJ90: 172.35 | AK90: 213.21 | AL90: 244.8 | AM90: 223.65 | AN90: 196.16 | AO90: 115.21 | AP90: 59.37 | AQ90: 16.17 | AR90: 0.11 | AS90: 0 | AT90: 0.2 | AU90: 0 | AV90: 0.28 | AW90: 0.56 | AX90: 1.37 | AY90: 4.34 | AZ90: 11.03 | BA90: 24.14 | BB90: 53.04 | BC90: 104.15 | BD90: 173.03 | BE90: 235.35 | BF90: 312.75 | BG90: 348.48 | BH90: 352.08 | BI90: 279.98 | BJ90: 131.59 | BK90: 51.08
A91: Acute leukemie (ALL+AML) | B91: 2 | C91: 1989 | D91: 5.54 | E91: 5.08 | F91: 2.58 | G91: 2.24 | H91: 1.4 | I91: 1.07 | J91: 1.3 | K91: 2.05 | L91: 2.86 | M91: 2.42 | N91: 4.6 | O91: 6.12 | P91: 10.39 | Q91: 15.32 | R91: 10.59 | S91: 17.38 | T91: 18.35 | U91: 19.33 | V91: 26.91 | W91: 40.23 | X91: 6.88 | Y91: 2.31 | Z91: 3.17 | AA91: 1.08 | AB91: 1.13 | AC91: 1.59 | AD91: 1.53 | AE91: 1.79 | AF91: 2.48 | AG91: 2.8 | AH91: 3.93 | AI91: 3.8 | AJ91: 4.83 | AK91: 5.88 | AL91: 10.7 | AM91: 13.23 | AN91: 7.82 | AO91: 14.78 | AP91: 16.36 | AQ91: 0 | AR91: 6.21 | AS91: 3.7 | AT91: 2.88 | AU91: 1.66 | AV91: 1.26 | AW91: 1.33 | AX91: 1.42 | AY91: 1.92 | AZ91: 2.66 | BA91: 2.6 | BB91: 4.27 | BC91: 4.96 | BD91: 7.61 | BE91: 10.61 | BF91: 10.64 | BG91: 15.3 | BH91: 13.09 | BI91: 17.06 | BJ91: 21.64 | BK91: 20.12
A92: Acute leukemie (ALL+AML) | B92: 2 | C92: 1990 | D92: 6.27 | E92: 4.41 | F92: 3.47 | G92: 1.82 | H92: 2.01 | I92: 0.9 | J92: 2.09 | K92: 2.89 | L92: 1.8 | M92: 1.93 | N92: 3.75 | O92: 6.94 | P92: 5.6 | Q92: 10.23 | R92: 19.26 | S92: 24.66 | T92: 26.58 | U92: 19.06 | V92: 35.85 | W92: 0 | X92: 6.54 | Y92: 2.76 | Z92: 2.95 | AA92: 1.52 | AB92: 0.97 | AC92: 1.89 | AD92: 0.84 | AE92: 1.77 | AF92: 2.07 | AG92: 2.95 | AH92: 2.06 | AI92: 4.64 | AJ92: 6.24 | AK92: 8.74 | AL92: 6.53 | AM92: 9.73 | AN92: 10.03 | AO92: 12.06 | AP92: 3.15 | AQ92: 0 | AR92: 6.4 | AS92: 3.59 | AT92: 3.21 | AU92: 1.67 | AV92: 1.49 | AW92: 1.4 | AX92: 1.46 | AY92: 2.34 | AZ92: 1.93 | BA92: 2.44 | BB92: 2.91 | BC92: 5.79 | BD92: 5.92 | BE92: 9.49 | BF92: 12.9 | BG92: 17.2 | BH92: 18.31 | BI92: 15.56 | BJ92: 19.5 | BK92: 0
A93: Acute leukemie (ALL+AML) | B93: 2 | C93: 1991 | D93: 7.58 | E93: 3.73 | F93: 1.29 | G93: 3.06 | H93: 2.48 | I93: 1.79 | J93: 1.57 | K93: 1.85 | L93: 1.47 | M93: 3.24 | N93: 5.63 | O93: 4.98 | P93: 6.74 | Q93: 11.66 | R93: 12.8 | S93: 19.64 | T93: 25.1 | U93: 37.7 | V93: 8.91 | W93: 83.44 | X93: 6 | Y93: 2.06 | Z93: 2.49 | AA93: 0.8 | AB93: 2.26 | AC93: 0.95 | AD93: 0.98 | AE93: 2.1 | AF93: 1.2 | AG93: 2.35 | AH93: 3.28 | AI93: 3.55 | AJ93: 5.93 | AK93: 7.05 | AL93: 7.71 | AM93: 14.7 | AN93: 13.98 | AO93: 14.88 | AP93: 3.01 | AQ93: 0 | AR93: 6.79 | AS93: 2.89 | AT93: 1.89 | AU93: 1.94 | AV93: 2.37 | AW93: 1.37 | AX93: 1.28 | AY93: 1.98 | AZ93: 1.34 | BA93: 2.79 | BB93: 4.45 | BC93: 4.26 | BD93: 6.33 | BE93: 9.35 | BF93: 10.25 | BG93: 17.18 | BH93: 19.54 | BI93: 26.3 | BJ93: 5.96 | BK93: 41.72
A94: Acute leukemie (ALL+AML) | B94: 2 | C94: 1992 | D94: 6.27 | E94: 5.2 | F94: 2.81 | G94: 4.81 | H94: 1.56 | I94: 0.89 | J94: 1.86 | K94: 3.51 | L94: 2.02 | M94: 4.1 | N94: 5.03 | O94: 7.69 | P94: 10.28 | Q94: 13.77 | R94: 13.28 | S94: 15.47 | T94: 26.95 | U94: 29.26 | V94: 35.22 | W94: 42.11 | X94: 6.35 | Y94: 4.97 | Z94: 1.81 | AA94: 1.26 | AB94: 0.81 | AC94: 1.72 | AD94: 1.61 | AE94: 1.73 | AF94: 1.23 | AG94: 2.15 | AH94: 2.98 | AI94: 6.83 | AJ94: 4.48 | AK94: 6.5 | AL94: 14.62 | AM94: 12.14 | AN94: 13.2 | AO94: 9.3 | AP94: 5.75 | AQ94: 12.84 | AR94: 6.31 | AS94: 5.08 | AT94: 2.31 | AU94: 3.04 | AV94: 1.18 | AW94: 1.31 | AX94: 1.74 | AY94: 2.62 | AZ94: 1.63 | BA94: 3.12 | BB94: 4.01 | BC94: 7.26 | BD94: 7.39 | BE94: 10.13 | BF94: 13.95 | BG94: 13.8 | BH94: 20.07 | BI94: 19.27 | BJ94: 20.48 | BK94: 27.48
A95: Acute leukemie (ALL+AML) | B95: 2 | C95: 1993 | D95: 5.8 | E95: 3.82 | F95: 2.59 | G95: 3.32 | H95: 2.08 | I95: 2.09 | J95: 2.13 | K95: 1.31 | L95: 2.04 | M95: 2.63 | N95: 4.9 | O95: 5.15 | P95: 10.17 | Q95: 13.05 | R95: 16.31 | S95: 22.97 | T95: 17.15 | U95: 31.49 | V95: 26.22 | W95: 0 | X95: 4.4 | Y95: 3.1 | Z95: 2.26 | AA95: 1.94 | AB95: 1.49 | AC95: 0.94 | AD95: 1.43 | AE95: 1.36 | AF95: 2.13 | AG95: 2.39 | AH95: 2.91 | AI95: 2.44 | AJ95: 4.2 | AK95: 8.61 | AL95: 11.52 | AM95: 9.68 | AN95: 15.79 | AO95: 15.06 | AP95: 2.78 | AQ95: 12.42 | AR95: 5.11 | AS95: 3.46 | AT95: 2.43 | AU95: 2.63 | AV95: 1.78 | AW95: 1.52 | AX95: 1.78 | AY95: 1.34 | AZ95: 2.08 | BA95: 2.51 | BB95: 3.9 | BC95: 3.8 | BD95: 7.18 | BE95: 10.83 | BF95: 13.91 | BG95: 16.32 | BH95: 16.47 | BI95: 23.27 | BJ95: 14.5 | BK95: 6.21
A96: Acute leukemie (ALL+AML) | B96: 2 | C96: 1994 | D96: 7.34 | E96: 4.8 | F96: 2.38 | G96: 2.31 | H96: 2.17 | I96: 1.5 | J96: 1.05 | K96: 0.98 | L96: 3.09 | M96: 4.08 | N96: 5.64 | O96: 3.99 | P96: 9.51 | Q96: 10.53 | R96: 16.19 | S96: 24.45 | T96: 17.87 | U96: 18.08 | V96: 17.37 | W96: 0 | X96: 7.69 | Y96: 1.96 | Z96: 2.26 | AA96: 1.1 | AB96: 2.07 | AC96: 0.63 | AD96: 2.03 | AE96: 2.35 | AF96: 1.96 | AG96: 1.78 | AH96: 3.53 | AI96: 5.08 | AJ96: 4.49 | AK96: 8.95 | AL96: 5.74 | AM96: 17.43 | AN96: 12.2 | AO96: 8.8 | AP96: 13.44 | AQ96: 12.08 | AR96: 7.51 | AS96: 3.38 | AT96: 2.32 | AU96: 1.71 | AV96: 2.13 | AW96: 1.06 | AX96: 1.55 | AY96: 1.67 | AZ96: 2.52 | BA96: 2.93 | BB96: 4.58 | BC96: 4.53 | BD96: 7 | BE96: 9.74 | BF96: 10.97 | BG96: 20.94 | BH96: 15.04 | BI96: 13.44 | BJ96: 15.41 | BK96: 6.04
A97: Acute leukemie (ALL+AML) | B97: 2 | C97: 1995 | D97: 7.94 | E97: 4.51 | F97: 4.33 | G97: 2.54 | H97: 1.41 | I97: 1.65 | J97: 2.08 | K97: 1.92 | L97: 2.74 | M97: 3.8 | N97: 3.73 | O97: 6.75 | P97: 12.13 | Q97: 13.51 | R97: 14.31 | S97: 23.16 | T97: 17.57 | U97: 33 | V97: 17.05 | W97: 0 | X97: 5.62 | Y97: 2.57 | Z97: 1.81 | AA97: 1.78 | AB97: 0.72 | AC97: 1.42 | AD97: 2.02 | AE97: 1.49 | AF97: 1.95 | AG97: 1.56 | AH97: 4.36 | AI97: 4.98 | AJ97: 6.19 | AK97: 7.45 | AL97: 11.37 | AM97: 12.12 | AN97: 10.42 | AO97: 16.23 | AP97: 5.17 | AQ97: 0 | AR97: 6.77 | AS97: 3.54 | AT97: 3.07 | AU97: 2.16 | AV97: 1.07 | AW97: 1.54 | AX97: 2.04 | AY97: 1.7 | AZ97: 2.34 | BA97: 2.67 | BB97: 4.04 | BC97: 5.87 | BD97: 9.16 | BE97: 10.48 | BF97: 12.85 | BG97: 17.65 | BH97: 14 | BI97: 24.62 | BJ97: 11.11 | BK97: 0
A98: Acute leukemie (ALL+AML) | B98: 2 | C98: 1996 | D98: 9.2 | E98: 3.02 | F98: 3.02 | G98: 5.07 | H98: 2.81 | I98: 2.42 | J98: 0.89 | K98: 1.89 | L98: 2.04 | M98: 1.99 | N98: 3.11 | O98: 6.1 | P98: 9.72 | Q98: 13.99 | R98: 18.1 | S98: 24.7 | T98: 26.09 | U98: 20.11 | V98: 25.28 | W98: 0 | X98: 7.76 | Y98: 2.95 | Z98: 2.03 | AA98: 1.55 | AB98: 2.31 | AC98: 0.94 | AD98: 2.02 | AE98: 2.29 | AF98: 3.15 | AG98: 3.45 | AH98: 2.16 | AI98: 4.9 | AJ98: 4.8 | AK98: 8.3 | AL98: 8.28 | AM98: 15.73 | AN98: 15.79 | AO98: 6.6 | AP98: 0 | AQ98: 11.22 | AR98: 8.48 | AS98: 2.99 | AT98: 2.52 | AU98: 3.31 | AV98: 2.56 | AW98: 1.68 | AX98: 1.45 | AY98: 2.09 | AZ98: 2.6 | BA98: 2.72 | BB98: 2.64 | BC98: 5.5 | BD98: 7.27 | BE98: 11.15 | BF98: 13.19 | BG98: 20.21 | BH98: 20.95 | BI98: 13.35 | BJ98: 12.64 | BK98: 5.61
A99: Acute leukemie (ALL+AML) | B99: 2 | C99: 1997 | D99: 10.06 | E99: 4.19 | F99: 2.77 | G99: 2.53 | H99: 2.16 | I99: 1.84 | J99: 1.92 | K99: 2.33 | L99: 2.02 | M99: 3.58 | N99: 4.19 | O99: 6.47 | P99: 9.95 | Q99: 10.42 | R99: 14.28 | S99: 20.71 | T99: 30.16 | U99: 22.22 | V99: 16.65 | W99: 44.73 | X99: 5.06 | Y99: 3.34 | Z99: 2 | AA99: 1.54 | AB99: 2.01 | AC99: 1.91 | AD99: 2.33 | AE99: 2.73 | AF99: 2.77 | AG99: 3.71 | AH99: 2.98 | AI99: 4.56 | AJ99: 4.24 | AK99: 6.78 | AL99: 7.05 | AM99: 15.64 | AN99: 13.55 | AO99: 12.99 | AP99: 12.15 | AQ99: 0 | AR99: 7.57 | AS99: 3.76 | AT99: 2.39 | AU99: 2.04 | AV99: 2.08 | AW99: 1.88 | AX99: 2.13 | AY99: 2.53 | AZ99: 2.39 | BA99: 3.64 | BB99: 3.59 | BC99: 5.52 | BD99: 7.1 | BE99: 8.6 | BF99: 10.66 | BG99: 18.18 | BH99: 21.86 | BI99: 17.6 | BJ99: 14.4 | BK99: 22.37
A100: Acute leukemie (ALL+AML) | B100: 2 | C100: 1998 | D100: 7.43 | E100: 4.34 | F100: 3.13 | G100: 2.54 | H100: 2.43 | I100: 1.89 | J100: 0.59 | K100: 1.68 | L100: 2 | M100: 3.63 | N100: 4.14 | O100: 2.18 | P100: 10.4 | Q100: 11.62 | R100: 14.22 | S100: 25.69 | T100: 21.54 | U100: 9.6 | V100: 8.19 | W100: 0 | X100: 6.73 | Y100: 3.1 | Z100: 3.06 | AA100: 1.55 | AB100: 1.45 | AC100: 1.29 | AD100: 2.34 | AE100: 3.16 | AF100: 2.73 | AG100: 1.97 | AH100: 4.11 | AI100: 6.19 | AJ100: 6.45 | AK100: 9.12 | AL100: 8.71 | AM100: 15.89 | AN100: 16.9 | AO100: 10.91 | AP100: 16.48 | AQ100: 10.36 | AR100: 7.08 | AS100: 3.73 | AT100: 3.1 | AU100: 2.04 | AV100: 1.94 | AW100: 1.59 | AX100: 1.46 | AY100: 2.42 | AZ100: 2.37 | BA100: 2.8 | BB100: 4.13 | BC100: 4.18 | BD100: 8.42 | BE100: 10.38 | BF100: 11.46 | BG100: 20.79 | BH100: 19.22 | BI100: 10.25 | BJ100: 12.34 | BK100: 5.18
A101: Acute leukemie (ALL+AML) | B101: 2 | C101: 1999 | D101: 9.17 | E101: 7.25 | F101: 3.29 | G101: 2.53 | H101: 1.23 | I101: 2.13 | J101: 2.23 | K101: 2.1 | L101: 1.97 | M101: 3.12 | N101: 3.48 | O101: 5.62 | P101: 9.88 | Q101: 12.85 | R101: 21.15 | S101: 18.54 | T101: 25.85 | U101: 23.27 | V101: 24.45 | W101: 0 | X101: 4.6 | Y101: 2.26 | Z101: 1.5 | AA101: 1.54 | AB101: 1.47 | AC101: 1.68 | AD101: 2.8 | AE101: 0.47 | AF101: 2.52 | AG101: 1.97 | AH101: 3.24 | AI101: 4.56 | AJ101: 7.73 | AK101: 5.89 | AL101: 11.01 | AM101: 16.12 | AN101: 10.98 | AO101: 15.15 | AP101: 9.16 | AQ101: 0 | AR101: 6.88 | AS101: 4.75 | AT101: 2.39 | AU101: 2.04 | AV101: 1.36 | AW101: 1.9 | AX101: 2.52 | AY101: 1.29 | AZ101: 2.25 | BA101: 2.55 | BB101: 3.36 | BC101: 5.09 | BD101: 8.81 | BE101: 9.37 | BF101: 16.08 | BG101: 17.33 | BH101: 18.42 | BI101: 19.21 | BJ101: 16.81 | BK101: 0
A102: Acute leukemie (ALL+AML) | B102: 2 | C102: 2000 | D102: 7.48 | E102: 5.48 | F102: 4.64 | G102: 2.31 | H102: 2.68 | I102: 1.21 | J102: 1.19 | K102: 1.64 | L102: 1.29 | M102: 2.77 | N102: 2.87 | O102: 5.91 | P102: 7.99 | Q102: 12.76 | R102: 14.68 | S102: 26.01 | T102: 20.84 | U102: 18.18 | V102: 0 | W102: 0 | X102: 7.43 | Y102: 3.07 | Z102: 2.32 | AA102: 1.32 | AB102: 1.26 | AC102: 1.06 | AD102: 1.4 | AE102: 1.55 | AF102: 2.48 | AG102: 3.2 | AH102: 4.2 | AI102: 5.38 | AJ102: 5.68 | AK102: 8.28 | AL102: 10.99 | AM102: 10.15 | AN102: 14.56 | AO102: 13.22 | AP102: 8.97 | AQ102: 0 | AR102: 7.46 | AS102: 4.28 | AT102: 3.48 | AU102: 1.82 | AV102: 1.97 | AW102: 1.14 | AX102: 1.3 | AY102: 1.59 | AZ102: 1.89 | BA102: 2.99 | BB102: 3.54 | BC102: 5.65 | BD102: 6.83 | BE102: 10.52 | BF102: 12.84 | BG102: 18.08 | BH102: 17.7 | BI102: 15.7 | BJ102: 4.49 | BK102: 0
A103: Acute leukemie (ALL+AML) | B103: 2 | C103: 2001 | D103: 8.53 | E103: 4.93 | F103: 3.96 | G103: 2.71 | H103: 2.66 | I103: 2.18 | J103: 1.79 | K103: 2.21 | L103: 2.22 | M103: 2.75 | N103: 5.24 | O103: 6.43 | P103: 7.8 | Q103: 16.22 | R103: 17.59 | S103: 32.47 | T103: 32.51 | U103: 29.13 | V103: 15.83 | W103: 42.46 | X103: 7.72 | Y103: 2.89 | Z103: 1.03 | AA103: 0.66 | AB103: 2.31 | AC103: 1.29 | AD103: 1.55 | AE103: 1.69 | AF103: 2.27 | AG103: 2.46 | AH103: 3.66 | AI103: 3.97 | AJ103: 4.79 | AK103: 5.04 | AL103: 10.93 | AM103: 10.23 | AN103: 14 | AO103: 11.39 | AP103: 8.84 | AQ103: 9.4 | AR103: 8.12 | AS103: 3.9 | AT103: 2.5 | AU103: 1.69 | AV103: 2.48 | AW103: 1.73 | AX103: 1.67 | AY103: 1.96 | AZ103: 2.25 | BA103: 2.61 | BB103: 4.46 | BC103: 5.2 | BD103: 6.29 | BE103: 10.63 | BF103: 14.26 | BG103: 21.35 | BH103: 23.25 | BI103: 20.26 | BJ103: 12.34 | BK103: 25.93
A104: Acute leukemie (ALL+AML) | B104: 2 | C104: 2002 | D104: 8.83 | E104: 6.13 | F104: 4.9 | G104: 2.26 | H104: 1.63 | I104: 2.26 | J104: 1.81 | K104: 1.63 | L104: 1.87 | M104: 4.42 | N104: 4.69 | O104: 6.3 | P104: 7.61 | Q104: 14.46 | R104: 23.17 | S104: 23.48 | T104: 21.6 | U104: 26.59 | V104: 23.05 | W104: 42.46 | X104: 4.83 | Y104: 2.28 | Z104: 2.46 | AA104: 1.51 | AB104: 1.66 | AC104: 1.15 | AD104: 1.4 | AE104: 1.38 | AF104: 2.08 | AG104: 3.65 | AH104: 3.04 | AI104: 6.08 | AJ104: 6.79 | AK104: 8 | AL104: 13.09 | AM104: 13.24 | AN104: 18.05 | AO104: 13.96 | AP104: 8.73 | AQ104: 0 | AR104: 6.83 | AS104: 4.21 | AT104: 3.67 | AU104: 1.88 | AV104: 1.64 | AW104: 1.7 | AX104: 1.61 | AY104: 1.51 | AZ104: 1.98 | BA104: 4.04 | BB104: 3.87 | BC104: 6.19 | BD104: 7.2 | BE104: 11.23 | BF104: 18.13 | BG104: 18.36 | BH104: 19.83 | BI104: 20.27 | BJ104: 15.89 | BK104: 21.23
A105: Acute leukemie (ALL+AML) | B105: 2 | C105: 2003 | D105: 8.99 | E105: 4.17 | F105: 4.28 | G105: 3.84 | H105: 3.06 | I105: 2.14 | J105: 1.87 | K105: 1.64 | L105: 2.46 | M105: 2.7 | N105: 4.41 | O105: 6.89 | P105: 10.2 | Q105: 13.28 | R105: 18.18 | S105: 16.23 | T105: 32.2 | U105: 24.33 | V105: 29.69 | W105: 0 | X105: 8.42 | Y105: 3.53 | Z105: 3.66 | AA105: 1.27 | AB105: 1.04 | AC105: 2.56 | AD105: 1.9 | AE105: 2.16 | AF105: 2.05 | AG105: 2.24 | AH105: 3.26 | AI105: 5.53 | AJ105: 8.16 | AK105: 10 | AL105: 12.1 | AM105: 17.38 | AN105: 17.45 | AO105: 14.04 | AP105: 4.28 | AQ105: 8.91 | AR105: 8.7 | AS105: 3.85 | AT105: 3.98 | AU105: 2.56 | AV105: 2.05 | AW105: 2.36 | AX105: 1.88 | AY105: 1.9 | AZ105: 2.26 | BA105: 2.46 | BB105: 3.83 | BC105: 6.21 | BD105: 9.19 | BE105: 11.64 | BF105: 15.14 | BG105: 16.8 | BH105: 24.82 | BI105: 19.19 | BJ105: 16.98 | BK105: 4.45
A106: Acute leukemie (ALL+AML) | B106: 2 | C106: 2004 | D106: 6.92 | E106: 3.96 | F106: 3.68 | G106: 1.8 | H106: 1.84 | I106: 1.2 | J106: 1.14 | K106: 2.1 | L106: 2.43 | M106: 3.32 | N106: 4.62 | O106: 5.57 | P106: 7.88 | Q106: 13.87 | R106: 19.1 | S106: 16.5 | T106: 32.51 | U106: 35.04 | V106: 35.56 | W106: 0 | X106: 6.85 | Y106: 2.49 | Z106: 2.03 | AA106: 1.26 | AB106: 1.25 | AC106: 0.8 | AD106: 1.31 | AE106: 2.32 | AF106: 3.28 | AG106: 4.4 | AH106: 2.9 | AI106: 5.52 | AJ106: 5.45 | AK106: 10.41 | AL106: 12.1 | AM106: 12.97 | AN106: 19.21 | AO106: 13.19 | AP106: 18.72 | AQ106: 0 | AR106: 6.89 | AS106: 3.22 | AT106: 2.85 | AU106: 1.53 | AV106: 1.54 | AW106: 1 | AX106: 1.23 | AY106: 2.21 | AZ106: 2.85 | BA106: 3.86 | BB106: 3.76 | BC106: 5.55 | BD106: 6.66 | BE106: 12.13 | BF106: 15.6 | BG106: 14.73 | BH106: 25.86 | BI106: 24.11 | BJ106: 27.14 | BK106: 0
A107: Acute leukemie (ALL+AML) | B107: 2 | C107: 2005 | D107: 9.19 | E107: 4.72 | F107: 3.7 | G107: 3.18 | H107: 1.43 | I107: 1.81 | J107: 1.37 | K107: 1.95 | L107: 1.65 | M107: 1.97 | N107: 3.19 | O107: 5.95 | P107: 8.63 | Q107: 10.19 | R107: 17.74 | S107: 28.01 | T107: 28.4 | U107: 14.47 | V107: 13.73 | W107: 81.27 | X107: 7.99 | Y107: 4.13 | Z107: 1.23 | AA107: 3.53 | AB107: 0.84 | AC107: 2.23 | AD107: 0.52 | AE107: 2.01 | AF107: 3.71 | AG107: 2.66 | AH107: 2.17 | AI107: 4.82 | AJ107: 7 | AK107: 7.08 | AL107: 9.57 | AM107: 13.65 | AN107: 13.4 | AO107: 15.32 | AP107: 12.18 | AQ107: 8.24 | AR107: 8.59 | AS107: 4.42 | AT107: 2.46 | AU107: 3.36 | AV107: 1.13 | AW107: 2.01 | AX107: 0.95 | AY107: 1.99 | AZ107: 2.68 | BA107: 2.31 | BB107: 2.68 | BC107: 5.39 | BD107: 7.82 | BE107: 8.64 | BF107: 13.65 | BG107: 20.82 | BH107: 20.91 | BI107: 14.9 | BJ107: 12.95 | BK107: 44.75
A108: Acute leukemie (ALL+AML) | B108: 2 | C108: 2006 | D108: 7.4 | E108: 4.68 | F108: 3.75 | G108: 2.56 | H108: 1.84 | I108: 2.02 | J108: 1.27 | K108: 1.82 | L108: 1.65 | M108: 3.56 | N108: 2.64 | O108: 5.97 | P108: 8.14 | Q108: 14.02 | R108: 14.89 | S108: 22.72 | T108: 18.9 | U108: 30.57 | V108: 26.91 | W108: 39.39 | X108: 7.13 | Y108: 3.47 | Z108: 2.68 | AA108: 2.67 | AB108: 1.47 | AC108: 1.42 | AD108: 2.2 | AE108: 2.79 | AF108: 2.31 | AG108: 3.28 | AH108: 4.65 | AI108: 5.19 | AJ108: 5.46 | AK108: 8.62 | AL108: 9.57 | AM108: 14.62 | AN108: 20.36 | AO108: 11.32 | AP108: 17.95 | AQ108: 0 | AR108: 7.26 | AS108: 4.08 | AT108: 3.21 | AU108: 2.61 | AV108: 1.66 | AW108: 1.72 | AX108: 1.73 | AY108: 2.31 | AZ108: 1.99 | BA108: 3.43 | BB108: 3.65 | BC108: 5.57 | BD108: 6.8 | BE108: 11.32 | BF108: 12.23 | BG108: 18.67 | BH108: 19.63 | BI108: 20.94 | BJ108: 22.43 | BK108: 19.7
A109: Acute leukemie (ALL+AML) | B109: 2 | C109: 2007 | D109: 6.54 | E109: 5.23 | F109: 2.98 | G109: 2.74 | H109: 2.65 | I109: 1.01 | J109: 1.52 | K109: 1.08 | L109: 1.36 | M109: 3.35 | N109: 3.15 | O109: 6.66 | P109: 6.22 | Q109: 14.25 | R109: 16.5 | S109: 24.57 | T109: 28.94 | U109: 17.86 | V109: 19.6 | W109: 0 | X109: 7.07 | Y109: 3.66 | Z109: 2.71 | AA109: 2.05 | AB109: 2.92 | AC109: 1.42 | AD109: 1.34 | AE109: 2.67 | AF109: 2.33 | AG109: 3.07 | AH109: 3.18 | AI109: 4.95 | AJ109: 5.44 | AK109: 7.39 | AL109: 7.95 | AM109: 14.84 | AN109: 15.73 | AO109: 15.44 | AP109: 7.82 | AQ109: 7.69 | AR109: 6.8 | AS109: 4.44 | AT109: 2.85 | AU109: 2.39 | AV109: 2.78 | AW109: 1.22 | AX109: 1.43 | AY109: 1.88 | AZ109: 1.84 | BA109: 3.21 | BB109: 3.17 | BC109: 5.8 | BD109: 5.84 | BE109: 10.82 | BF109: 12.22 | BG109: 19.7 | BH109: 22.34 | BI109: 16.66 | BJ109: 13.71 | BK109: 3.84
A110: Acute leukemie (ALL+AML) | B110: 2 | C110: 2008 | D110: 6.67 | E110: 6.19 | F110: 2.79 | G110: 3.3 | H110: 1 | I110: 1.61 | J110: 1.96 | K110: 1.9 | L110: 1.52 | M110: 4.25 | N110: 4.15 | O110: 5.48 | P110: 8.03 | Q110: 11.6 | R110: 19 | S110: 29.24 | T110: 32.95 | U110: 16.71 | V110: 6.36 | W110: 0 | X110: 7.63 | Y110: 4.45 | Z110: 2.51 | AA110: 1.22 | AB110: 1.22 | AC110: 2.23 | AD110: 1.38 | AE110: 2.56 | AF110: 2.49 | AG110: 2.72 | AH110: 3.5 | AI110: 4.64 | AJ110: 6.7 | AK110: 8.82 | AL110: 10.4 | AM110: 13.65 | AN110: 14.78 | AO110: 22.14 | AP110: 11.56 | AQ110: 0 | AR110: 7.15 | AS110: 5.32 | AT110: 2.65 | AU110: 2.26 | AV110: 1.12 | AW110: 1.92 | AX110: 1.68 | AY110: 2.23 | AZ110: 2.01 | BA110: 3.48 | BB110: 3.82 | BC110: 5.06 | BD110: 7.37 | BE110: 10.21 | BF110: 14.7 | BG110: 21.44 | BH110: 23.87 | BI110: 19.43 | BJ110: 8.96 | BK110: 0
A111: Acute leukemie (ALL+AML) | B111: 2 | C111: 2009 | D111: 7.58 | E111: 4.08 | F111: 2.79 | G111: 2.32 | H111: 1.18 | I111: 1.8 | J111: 2.19 | K111: 2.31 | L111: 3.05 | M111: 2.78 | N111: 3.07 | O111: 7.53 | P111: 9.82 | Q111: 12.77 | R111: 16.69 | S111: 23 | T111: 32.74 | U111: 20.5 | V111: 43.05 | W111: 33.08 | X111: 5.07 | Y111: 2.65 | Z111: 1.46 | AA111: 1.81 | AB111: 0.8 | AC111: 2.63 | AD111: 2.39 | AE111: 1 | AF111: 2.5 | AG111: 2.36 | AH111: 3.61 | AI111: 4.46 | AJ111: 7.04 | AK111: 9.06 | AL111: 10.21 | AM111: 17.88 | AN111: 13.35 | AO111: 23.35 | AP111: 9.5 | AQ111: 0 | AR111: 6.33 | AS111: 3.36 | AT111: 2.12 | AU111: 2.07 | AV111: 1 | AW111: 2.21 | AX111: 2.29 | AY111: 1.65 | AZ111: 2.77 | BA111: 2.58 | BB111: 3.34 | BC111: 6 | BD111: 8.43 | BE111: 10.92 | BF111: 13.44 | BG111: 20.44 | BH111: 23.04 | BI111: 21.93 | BJ111: 26.27 | BK111: 16.54
A112: Acute leukemie (ALL+AML) | B112: 2 | C112: 2010 | D112: 7.19 | E112: 3.15 | F112: 3.74 | G112: 2.9 | H112: 2.9 | I112: 2.98 | J112: 2 | K112: 2.78 | L112: 1.53 | M112: 3.22 | N112: 3.86 | O112: 6.96 | P112: 9.17 | Q112: 12.15 | R112: 18.17 | S112: 18.87 | T112: 34.45 | U112: 18.2 | V112: 28.2 | W112: 0 | X112: 8.64 | Y112: 3.09 | Z112: 1.24 | AA112: 1.82 | AB112: 2.17 | AC112: 0.6 | AD112: 1.4 | AE112: 2.09 | AF112: 2.02 | AG112: 2.96 | AH112: 3.56 | AI112: 5.18 | AJ112: 5.54 | AK112: 9.58 | AL112: 16.32 | AM112: 16.05 | AN112: 20.49 | AO112: 13.84 | AP112: 7.23 | AQ112: 0 | AR112: 7.92 | AS112: 3.12 | AT112: 2.5 | AU112: 2.36 | AV112: 2.53 | AW112: 1.8 | AX112: 1.7 | AY112: 2.43 | AZ112: 1.78 | BA112: 3.1 | BB112: 3.71 | BC112: 6.07 | BD112: 7.35 | BE112: 10.86 | BF112: 17.24 | BG112: 17.47 | BH112: 27.47 | BI112: 16.02 | BJ112: 17.71 | BK112: 0
A113: Acute leukemie (ALL+AML) | B113: 2 | C113: 2011 | D113: 6.79 | E113: 3.4 | F113: 3.11 | G113: 4.09 | H113: 1.9 | I113: 1.98 | J113: 1.19 | K113: 2.01 | L113: 2.15 | M113: 3.51 | N113: 3.47 | O113: 5.27 | P113: 10.65 | Q113: 14.09 | R113: 20.89 | S113: 29.3 | T113: 31.01 | U113: 29.31 | V113: 15.1 | W113: 0 | X113: 8 | Y113: 3.56 | Z113: 2.86 | AA113: 2.65 | AB113: 1.75 | AC113: 1.2 | AD113: 1.39 | AE113: 2.18 | AF113: 2.03 | AG113: 3.43 | AH113: 3.33 | AI113: 3.84 | AJ113: 5.35 | AK113: 10.94 | AL113: 12.45 | AM113: 13.88 | AN113: 21.1 | AO113: 18.53 | AP113: 10.1 | AQ113: 0 | AR113: 7.4 | AS113: 3.48 | AT113: 2.99 | AU113: 3.38 | AV113: 1.82 | AW113: 1.58 | AX113: 1.29 | AY113: 2.09 | AZ113: 2.09 | BA113: 3.46 | BB113: 3.4 | BC113: 4.56 | BD113: 7.99 | BE113: 12.51 | BF113: 16.67 | BG113: 21.59 | BH113: 26.05 | BI113: 23.92 | BJ113: 12.6 | BK113: 0
A114: Acute leukemie (ALL+AML) | B114: 2 | C114: 2012 | D114: 6.83 | E114: 4.07 | F114: 4.25 | G114: 3.15 | H114: 2.63 | I114: 2.34 | J114: 1.98 | K114: 2.1 | L114: 1.87 | M114: 4.13 | N114: 4.07 | O114: 5.4 | P114: 5.83 | Q114: 15.34 | R114: 20.3 | S114: 23.36 | T114: 29.92 | U114: 21.2 | V114: 13.87 | W114: 0 | X114: 6.71 | Y114: 4.48 | Z114: 3.43 | AA114: 1.23 | AB114: 1.15 | AC114: 0.99 | AD114: 1 | AE114: 1.71 | AF114: 1.57 | AG114: 3.12 | AH114: 4.26 | AI114: 5.23 | AJ114: 6.8 | AK114: 8.07 | AL114: 9.6 | AM114: 11.32 | AN114: 19.01 | AO114: 16.37 | AP114: 14.34 | AQ114: 0 | AR114: 6.77 | AS114: 4.28 | AT114: 3.84 | AU114: 2.19 | AV114: 1.89 | AW114: 1.67 | AX114: 1.48 | AY114: 1.9 | AZ114: 1.71 | BA114: 3.63 | BB114: 4.16 | BC114: 5.31 | BD114: 6.32 | BE114: 11.7 | BF114: 14.96 | BG114: 17.35 | BH114: 24.46 | BI114: 18.79 | BJ114: 14.1 | BK114: 0
A115: Acute leukemie (ALL+AML) | B115: 2 | C115: 2013 | D115: 9.06 | E115: 4.77 | F115: 3.66 | G115: 2.75 | H115: 1.49 | I115: 1.54 | J115: 2.18 | K115: 1.97 | L115: 1.6 | M115: 1.84 | N115: 3.68 | O115: 6.23 | P115: 10.86 | Q115: 11.52 | R115: 15.95 | S115: 23.53 | T115: 18.45 | U115: 24.58 | V115: 30.1 | W115: 0 | X115: 5.89 | Y115: 2.39 | Z115: 2.62 | AA115: 2.68 | AB115: 0.95 | AC115: 1.77 | AD115: 0.8 | AE115: 2.35 | AF115: 1.12 | AG115: 3.13 | AH115: 3.87 | AI115: 5.88 | AJ115: 5.35 | AK115: 7.62 | AL115: 12.21 | AM115: 14.34 | AN115: 15.3 | AO115: 15.61 | AP115: 6.07 | AQ115: 6.15 | AR115: 7.47 | AS115: 3.58 | AT115: 3.14 | AU115: 2.71 | AV115: 1.23 | AW115: 1.65 | AX115: 1.48 | AY115: 2.15 | AZ115: 1.36 | BA115: 2.49 | BB115: 3.78 | BC115: 6.05 | BD115: 8.1 | BE115: 9.57 | BF115: 14.08 | BG115: 18.94 | BH115: 16.88 | BI115: 20.1 | BJ115: 18.08 | BK115: 3.07
A116: Acute leukemie (ALL+AML) | B116: 2 | C116: 2014 | D116: 7.21 | E116: 3.77 | F116: 3.09 | G116: 5.28 | H116: 1.67 | I116: 1.52 | J116: 1.58 | K116: 1.8 | L116: 2.83 | M116: 2.16 | N116: 4.26 | O116: 5.79 | P116: 8.61 | Q116: 14.72 | R116: 19.76 | S116: 22.66 | T116: 27.51 | U116: 17.05 | V116: 48.14 | W116: 0 | X116: 8.26 | Y116: 3.08 | Z116: 2.42 | AA116: 1.03 | AB116: 1.52 | AC116: 1.74 | AD116: 1.78 | AE116: 3.17 | AF116: 2.15 | AG116: 2.51 | AH116: 4.14 | AI116: 4.56 | AJ116: 6.89 | AK116: 10.31 | AL116: 15.14 | AM116: 13.01 | AN116: 13.01 | AO116: 9.41 | AP116: 15.94 | AQ116: 0 | AR116: 7.73 | AS116: 3.42 | AT116: 2.76 | AU116: 3.15 | AV116: 1.6 | AW116: 1.63 | AX116: 1.69 | AY116: 2.48 | AZ116: 2.49 | BA116: 2.34 | BB116: 4.2 | BC116: 5.17 | BD116: 7.75 | BE116: 12.52 | BF116: 17.45 | BG116: 17.83 | BH116: 20.27 | BI116: 13.23 | BJ116: 32.04 | BK116: 0
A117: Acute leukemie (ALL+AML) | B117: 2 | C117: 2015 | D117: 10.4 | E117: 5.04 | F117: 3.52 | G117: 3.48 | H117: 0.55 | I117: 1.87 | J117: 1.37 | K117: 2.79 | L117: 2.97 | M117: 3.09 | N117: 4.83 | O117: 5.68 | P117: 6.87 | Q117: 12.13 | R117: 15.43 | S117: 24.19 | T117: 32.3 | U117: 23.8 | V117: 19.21 | W117: 23.92 | X117: 8.13 | Y117: 2.86 | Z117: 2.45 | AA117: 1.21 | AB117: 1.71 | AC117: 1.9 | AD117: 0.99 | AE117: 3.18 | AF117: 2.25 | AG117: 1.72 | AH117: 4.25 | AI117: 4.66 | AJ117: 6.47 | AK117: 6.93 | AL117: 10.2 | AM117: 12.03 | AN117: 13.8 | AO117: 11.25 | AP117: 9.93 | AQ117: 5.72 | AR117: 9.26 | AS117: 3.96 | AT117: 2.99 | AU117: 2.35 | AV117: 1.13 | AW117: 1.89 | AX117: 1.18 | AY117: 2.99 | AZ117: 2.61 | BA117: 2.41 | BB117: 4.54 | BC117: 5.17 | BD117: 6.67 | BE117: 9.53 | BF117: 12.81 | BG117: 18.11 | BH117: 23.06 | BI117: 17.52 | BJ117: 14.57 | BK117: 14.82
A118: Acute leukemie (ALL+AML) | B118: 2 | C118: 2016 | D118: 7.36 | E118: 6.09 | F118: 1.98 | G118: 4.37 | H118: 1.66 | I118: 2.01 | J118: 1.16 | K118: 1.77 | L118: 1.65 | M118: 3.11 | N118: 3.42 | O118: 5.76 | P118: 8.5 | Q118: 14.66 | R118: 17.15 | S118: 30.3 | T118: 25.37 | U118: 28.77 | V118: 7.41 | W118: 21.5 | X118: 5.16 | Y118: 3.75 | Z118: 2.7 | AA118: 2 | AB118: 1.33 | AC118: 0.75 | AD118: 0.39 | AE118: 0.99 | AF118: 1.63 | AG118: 2.65 | AH118: 4.25 | AI118: 5.42 | AJ118: 6.76 | AK118: 7.89 | AL118: 12.9 | AM118: 11.46 | AN118: 13.74 | AO118: 12.37 | AP118: 12.72 | AQ118: 0 | AR118: 6.26 | AS118: 4.92 | AT118: 2.34 | AU118: 3.19 | AV118: 1.5 | AW118: 1.38 | AX118: 0.78 | AY118: 1.39 | AZ118: 1.65 | BA118: 2.88 | BB118: 3.83 | BC118: 5.59 | BD118: 7.64 | BE118: 11.28 | BF118: 15.02 | BG118: 20.88 | BH118: 19.56 | BI118: 20.57 | BJ118: 10.07 | BK118: 10.75

Sheet Berekening
A1: Locatie: | B1: =Invoer!C2 -> 0 | G1: verwacht aantal
A2: INCIDENTIE | G2: personen met
C4: aantal inwoners | D4: incidentie per | F4: ="P ("&Invoer!B11 - (Invoer!A11-1)& " jr)" -> P (16 jr) | G4: xxx
D5: 100.000 pers.jaren | F5: ="(ref NL "&Invoer!A11&" - "&Invoer!B11&")" -> (ref NL 2001 - 2016) | G5: ="in "&Invoer!B11-(Invoer!A11-1)&" jaar tijd" -> in 16 jaar tijd
A6: mannen
A7: 0-4 | C7: =Invoer!B15 -> 0 | D7: =DataIKNL!D5 -> 7.408125 | F7: =PRODUCT(D7,(Invoer!$B$11 - (Invoer!$A$11-1))/100000) -> 0.0011853 | G7: =PRODUCT(C7,F7) -> 0
A8: 5-9 jr | C8: =Invoer!B16 -> 0 | D8: =DataIKNL!E5 -> 4.564464286 | F8: =PRODUCT(D8,(Invoer!$B$11 - (Invoer!$A$11-1))/100000) -> 0.0007303142857 | G8: =PRODUCT(C8,F8) -> 0
A9: 10-14jr | C9: =Invoer!B17 -> 0 | D9: =DataIKNL!F5 -> 4.321964286 | F9: =PRODUCT(D9,(Invoer!$B$11 - (Invoer!$A$11-1))/100000) -> 0.0006915142857 | G9: 0
A10: 15-19 | C10: =Invoer!B18 -> 0 | D10: =DataIKNL!G5 -> 6.691696429 | F10: =PRODUCT(D10,(Invoer!$B$11 - (Invoer!$A$11-1))/100000) -> 0.001070671429 | G10: 0
A11: 20-24 | C11: =Invoer!B19 -> 0 | D11: =DataIKNL!H5 -> 9.316339286 | F11: =PRODUCT(D11,(Invoer!$B$11 - (Invoer!$A$11-1))/100000) -> 0.001490614286 | G11: 0
A12: 25-29 | C12: =Invoer!B20 -> 0 | D12: =DataIKNL!I5 -> 13.03875 | F12: =PRODUCT(D12,(Invoer!$B$11 - (Invoer!$A$11-1))/100000) -> 0.0020862 | G12: 0
A13: 30-34 | C13: =Invoer!B21 -> 0 | D13: =DataIKNL!J5 -> 16.67767857 | F13: =PRODUCT(D13,(Invoer!$B$11 - (Invoer!$A$11-1))/100000) -> 0.002668428571 | G13: 0
A14: 35-39 | C14: =Invoer!B22 -> 0 | D14: =DataIKNL!K5 -> 22.39223214 | F14: =PRODUCT(D14,(Invoer!$B$11 - (Invoer!$A$11-1))/100000) -> 0.003582757143 | G14: 0
A15: 40-44 | C15: =Invoer!B23 -> 0 | D15: =DataIKNL!L5 -> 35.19696429 | F15: =PRODUCT(D15,(Invoer!$B$11 - (Invoer!$A$11-1))/100000) -> 0.005631514286 | G15: 0
A16: 45-49 | C16: =Invoer!B24 -> 0 | D16: =DataIKNL!M5 -> 63.45482143 | F16: =PRODUCT(D16,(Invoer!$B$11 - (Invoer!$A$11-1))/100000) -> 0.01015277143 | G16: 0
A17: 50-54 | C17: =Invoer!B25 -> 0 | D17: =DataIKNL!N5 -> 119.2269643 | F17: =PRODUCT(D17,(Invoer!$B$11 - (Invoer!$A$11-1))/100000) -> 0.01907631429 | G17: 0
A18: 55-59 | C18: =Invoer!B26 -> 0 | D18: =DataIKNL!O5 -> 221.7041964 | F18: =PRODUCT(D18,(Invoer!$B$11 - (Invoer!$A$11-1))/100000) -> 0.03547267143 | G18: 0
A19: 60-64 | C19: =Invoer!B27 -> 0 | D19: =DataIKNL!P5 -> 382.9802679 | F19: =PRODUCT(D19,(Invoer!$B$11 - (Invoer!$A$11-1))/100000) -> 0.06127684286 | G19: 0
A20: 65-69 | C20: =Invoer!B28 -> 0 | D20: =DataIKNL!Q5 -> 594.3983929 | F20: =PRODUCT(D20,(Invoer!$B$11 - (Invoer!$A$11-1))/100000) -> 0.09510374286 | G20: 0
A21: 70-74 | C21: =Invoer!B29 -> 0 | D21: =DataIKNL!R5 -> 819.8339286 | F21: =PRODUCT(D21,(Invoer!$B$11 - (Invoer!$A$11-1))/100000) -> 0.1311734286 | G21: 0
A22: 75-79 | C22: =Invoer!B30 -> 0 | D22: =DataIKNL!S5 -> 1012.782589 | F22: =PRODUCT(D22,(Invoer!$B$11 - (Invoer!$A$11-1))/100000) -> 0.1620452143 | G22: 0
A23: 80-84 | C23: =Invoer!B31 -> 0 | D23: =DataIKNL!T5 -> 1077.146696 | F23: =PRODUCT(D23,(Invoer!$B$11 - (Invoer!$A$11-1))/100000) -> 0.1723434714 | G23: 0
A24: 85-89 | C24: =Invoer!B32 -> 0 | D24: =DataIKNL!U5 -> 1021.089375 | F24: =PRODUCT(D24,(Invoer!$B$11 - (Invoer!$A$11-1))/100000) -> 0.1633743 | G24: 0
A25: 90-94 | C25: =Invoer!B33 -> 0 | D25: =DataIKNL!V5 -> 841.9963393 | F25: =PRODUCT(D25,(Invoer!$B$11 - (Invoer!$A$11-1))/100000) -> 0.1347194143 | G25: 0
A26: 95+ | C26: =Invoer!B34 -> 0 | D26: =DataIKNL!W5 -> 627.7478571 | F26: =PRODUCT(D26,(Invoer!$B$11 - (Invoer!$A$11-1))/100000) -> 0.1004396571 | G26: 0
A27: totaal | C27: =SUM(C7:C26) -> 0 | G27: =SUM(G7:G26) -> 0
A29: vrouwen
A30: 0-4 | C30: =Invoer!C15 -> 0 | D30: =DataIKNL!X5 -> 6.457678571 | F30: =PRODUCT(D30,(Invoer!$B$11 - (Invoer!$A$11-1))/100000) -> 0.001033228571 | G30: =PRODUCT(C30,F30) -> 0
A31: 5-9 jr | C31: =Invoer!C16 -> 0 | D31: =DataIKNL!Y5 -> 3.360982143 | F31: =PRODUCT(D31,(Invoer!$B$11 - (Invoer!$A$11-1))/100000) -> 0.0005377571429 | G31: =PRODUCT(C31,F31) -> 0
A32: 10-14jr | C32: =Invoer!C17 -> 0 | D32: =DataIKNL!Z5 -> 3.555089286 | F32: =PRODUCT(D32,(Invoer!$B$11 - (Invoer!$A$11-1))/100000) -> 0.0005688142857 | G32: 0
A33: 15-19 | C33: =Invoer!C18 -> 0 | D33: =DataIKNL!AA5 -> 5.350535714 | F33: =PRODUCT(D33,(Invoer!$B$11 - (Invoer!$A$11-1))/100000) -> 0.0008560857143 | G33: 0
A34: 20-24 | C34: =Invoer!C19 -> 0 | D34: =DataIKNL!AB5 -> 8.009464286 | F34: =PRODUCT(D34,(Invoer!$B$11 - (Invoer!$A$11-1))/100000) -> 0.001281514286 | G34: 0
A35: 25-29 | C35: =Invoer!C20 -> 0 | D35: =DataIKNL!AC5 -> 14.2875 | F35: =PRODUCT(D35,(Invoer!$B$11 - (Invoer!$A$11-1))/100000) -> 0.002286 | G35: 0
A36: 30-34 | C36: =Invoer!C21 -> 0 | D36: =DataIKNL!AD5 -> 26.35910714 | F36: =PRODUCT(D36,(Invoer!$B$11 - (Invoer!$A$11-1))/100000) -> 0.004217457143 | G36: 0
A37: 35-39 | C37: =Invoer!C22 -> 0 | D37: =DataIKNL!AE5 -> 43.26982143 | F37: =PRODUCT(D37,(Invoer!$B$11 - (Invoer!$A$11-1))/100000) -> 0.006923171429 | G37: 0
A38: 40-44 | C38: =Invoer!C23 -> 0 | D38: =DataIKNL!AF5 -> 71.44910714 | F38: =PRODUCT(D38,(Invoer!$B$11 - (Invoer!$A$11-1))/100000) -> 0.01143185714 | G38: 0
A39: 45-49 | C39: =Invoer!C24 -> 0 | D39: =DataIKNL!AG5 -> 115.3830357 | F39: =PRODUCT(D39,(Invoer!$B$11 - (Invoer!$A$11-1))/100000) -> 0.01846128571 | G39: 0
A40: 50-54 | C40: =Invoer!C25 -> 0 | D40: =DataIKNL!AH5 -> 165.8605357 | F40: =PRODUCT(D40,(Invoer!$B$11 - (Invoer!$A$11-1))/100000) -> 0.02653768571 | G40: 0
A41: 55-59 | C41: =Invoer!C26 -> 0 | D41: =DataIKNL!AI5 -> 210.9241964 | F41: =PRODUCT(D41,(Invoer!$B$11 - (Invoer!$A$11-1))/100000) -> 0.03374787143 | G41: 0
A42: 60-64 | C42: =Invoer!C27 -> 0 | D42: =DataIKNL!AJ5 -> 276.4016071 | F42: =PRODUCT(D42,(Invoer!$B$11 - (Invoer!$A$11-1))/100000) -> 0.04422425714 | G42: 0
A43: 65-69 | C43: =Invoer!C28 -> 0 | D43: =DataIKNL!AK5 -> 346.115 | F43: =PRODUCT(D43,(Invoer!$B$11 - (Invoer!$A$11-1))/100000) -> 0.0553784 | G43: 0
A44: 70-74 | C44: =Invoer!C29 -> 0 | D44: =DataIKNL!AL5 -> 406.77875 | F44: =PRODUCT(D44,(Invoer!$B$11 - (Invoer!$A$11-1))/100000) -> 0.0650846 | G44: 0
A45: 75-79 | C45: =Invoer!C30 -> 0 | D45: =DataIKNL!AM5 -> 447.6498214 | F45: =PRODUCT(D45,(Invoer!$B$11 - (Invoer!$A$11-1))/100000) -> 0.07162397143 | G45: 0
A46: 80-84 | C46: =Invoer!C31 -> 0 | D46: =DataIKNL!AN5 -> 486.9125893 | F46: =PRODUCT(D46,(Invoer!$B$11 - (Invoer!$A$11-1))/100000) -> 0.07790601429 | G46: 0
A47: 85-89 | C47: =Invoer!C32 -> 0 | D47: =DataIKNL!AO5 -> 477.8252679 | F47: =PRODUCT(D47,(Invoer!$B$11 - (Invoer!$A$11-1))/100000) -> 0.07645204286 | G47: 0
A48: 90-94 | C48: =Invoer!C33 -> 0 | D48: =DataIKNL!AP5 -> 415.6270536 | F48: =PRODUCT(D48,(Invoer!$B$11 - (Invoer!$A$11-1))/100000) -> 0.06650032857 | G48: 0
A49: 95+ | C49: =Invoer!C34 -> 0 | D49: =DataIKNL!AQ5 -> 312.3388393 | F49: =PRODUCT(D49,(Invoer!$B$11 - (Invoer!$A$11-1))/100000) -> 0.04997421429 | G49: 0
A50: totaal | C50: =SUM(C30:C49) -> 0 | G50: =SUM(G30:G49) -> 0
A52: totaal M+V | C52: =SUM(C50+C27) -> 0 | G52: =SUM(G27+G50) -> 0
A55: cumulatieve Poisson-verdeling:
A56: =Invoer!H15 -> 98 | B56: =(100-A56)/200 -> 0.01

Sheet TabelOndergrens
A1: mannen | C1: vrouwen | E1: mannen en vrouwen
A3: ondergrens | B3: aantal gevallen | C3: ondergrens | D3: aantal gevallen | E3: ondergrens | F3: aantal gevallen
A4: =POISSON(B4,Berekening!$G$27,TRUE) -> 1 | B4: 0 | C4: =POISSON(D4,Berekening!$G$50,TRUE) -> 1 | D4: 0 | E4: =POISSON(F4,Berekening!$G$52,TRUE) -> 1 | F4: 0
A5: =POISSON(B5,Berekening!$G$27,TRUE) -> 1 | B5: 1 | C5: =POISSON(D5,Berekening!$G$50,TRUE) -> 1 | D5: 1 | E5: =POISSON(F5,Berekening!$G$52,TRUE) -> 1 | F5: 1
A6: =POISSON(B6,Berekening!$G$27,TRUE) -> 1 | B6: 2 | C6: =POISSON(D6,Berekening!$G$50,TRUE) -> 1 | D6: 2 | E6: =POISSON(F6,Berekening!$G$52,TRUE) -> 1 | F6: 2
A7: =POISSON(B7,Berekening!$G$27,TRUE) -> 1 | B7: 3 | C7: =POISSON(D7,Berekening!$G$50,TRUE) -> 1 | D7: 3 | E7: =POISSON(F7,Berekening!$G$52,TRUE) -> 1 | F7: 3
A8: =POISSON(B8,Berekening!$G$27,TRUE) -> 1 | B8: 4 | C8: =POISSON(D8,Berekening!$G$50,TRUE) -> 1 | D8: 4 | E8: =POISSON(F8,Berekening!$G$52,TRUE) -> 1 | F8: 4
A9: =POISSON(B9,Berekening!$G$27,TRUE) -> 1 | B9: 5 | C9: =POISSON(D9,Berekening!$G$50,TRUE) -> 1 | D9: 5 | E9: =POISSON(F9,Berekening!$G$52,TRUE) -> 1 | F9: 5
A10: =POISSON(B10,Berekening!$G$27,TRUE) -> 1 | B10: 6 | C10: =POISSON(D10,Berekening!$G$50,TRUE) -> 1 | D10: 6 | E10: =POISSON(F10,Berekening!$G$52,TRUE) -> 1 | F10: 6
A11: =POISSON(B11,Berekening!$G$27,TRUE) -> 1 | B11: 7 | C11: =POISSON(D11,Berekening!$G$50,TRUE) -> 1 | D11: 7 | E11: =POISSON(F11,Berekening!$G$52,TRUE) -> 1 | F11: 7
A12: =POISSON(B12,Berekening!$G$27,TRUE) -> 1 | B12: 8 | C12: =POISSON(D12,Berekening!$G$50,TRUE) -> 1 | D12: 8 | E12: =POISSON(F12,Berekening!$G$52,TRUE) -> 1 | F12: 8
A13: =POISSON(B13,Berekening!$G$27,TRUE) -> 1 | B13: 9 | C13: =POISSON(D13,Berekening!$G$50,TRUE) -> 1 | D13: 9 | E13: =POISSON(F13,Berekening!$G$52,TRUE) -> 1 | F13: 9
A14: =POISSON(B14,Berekening!$G$27,TRUE) -> 1 | B14: 10 | C14: =POISSON(D14,Berekening!$G$50,TRUE) -> 1 | D14: 10 | E14: =POISSON(F14,Berekening!$G$52,TRUE) -> 1 | F14: 10
A15: =POISSON(B15,Berekening!$G$27,TRUE) -> 1 | B15: 11 | C15: =POISSON(D15,Berekening!$G$50,TRUE) -> 1 | D15: 11 | E15: =POISSON(F15,Berekening!$G$52,TRUE) -> 1 | F15: 11
A16: =POISSON(B16,Berekening!$G$27,TRUE) -> 1 | B16: 12 | C16: =POISSON(D16,Berekening!$G$50,TRUE) -> 1 | D16: 12 | E16: =POISSON(F16,Berekening!$G$52,TRUE) -> 1 | F16: 12
A17: =POISSON(B17,Berekening!$G$27,TRUE) -> 1 | B17: 13 | C17: =POISSON(D17,Berekening!$G$50,TRUE) -> 1 | D17: 13 | E17: =POISSON(F17,Berekening!$G$52,TRUE) -> 1 | F17: 13
A18: =POISSON(B18,Berekening!$G$27,TRUE) -> 1 | B18: 14 | C18: =POISSON(D18,Berekening!$G$50,TRUE) -> 1 | D18: 14 | E18: =POISSON(F18,Berekening!$G$52,TRUE) -> 1 | F18: 14
A19: =POISSON(B19,Berekening!$G$27,TRUE) -> 1 | B19: 15 | C19: =POISSON(D19,Berekening!$G$50,TRUE) -> 1 | D19: 15 | E19: =POISSON(F19,Berekening!$G$52,TRUE) -> 1 | F19: 15
A20: =POISSON(B20,Berekening!$G$27,TRUE) -> 1 | B20: 16 | C20: =POISSON(D20,Berekening!$G$50,TRUE) -> 1 | D20: 16 | E20: =POISSON(F20,Berekening!$G$52,TRUE) -> 1 | F20: 16
A21: =POISSON(B21,Berekening!$G$27,TRUE) -> 1 | B21: 17 | C21: =POISSON(D21,Berekening!$G$50,TRUE) -> 1 | D21: 17 | E21: =POISSON(F21,Berekening!$G$52,TRUE) -> 1 | F21: 17
A22: =POISSON(B22,Berekening!$G$27,TRUE) -> 1 | B22: 18 | C22: =POISSON(D22,Berekening!$G$50,TRUE) -> 1 | D22: 18 | E22: =POISSON(F22,Berekening!$G$52,TRUE) -> 1 | F22: 18
A23: =POISSON(B23,Berekening!$G$27,TRUE) -> 1 | B23: 19 | C23: =POISSON(D23,Berekening!$G$50,TRUE) -> 1 | D23: 19 | E23: =POISSON(F23,Berekening!$G$52,TRUE) -> 1 | F23: 19
A24: =POISSON(B24,Berekening!$G$27,TRUE) -> 1 | B24: 20 | C24: =POISSON(D24,Berekening!$G$50,TRUE) -> 1 | D24: 20 | E24: =POISSON(F24,Berekening!$G$52,TRUE) -> 1 | F24: 20
A25: =POISSON(B25,Berekening!$G$27,TRUE) -> 1 | B25: 21 | C25: =POISSON(D25,Berekening!$G$50,TRUE) -> 1 | D25: 21 | E25: =POISSON(F25,Berekening!$G$52,TRUE) -> 1 | F25: 21
A26: =POISSON(B26,Berekening!$G$27,TRUE) -> 1 | B26: 22 | C26: =POISSON(D26,Berekening!$G$50,TRUE) -> 1 | D26: 22 | E26: =POISSON(F26,Berekening!$G$52,TRUE) -> 1 | F26: 22
A27: =POISSON(B27,Berekening!$G$27,TRUE) -> 1 | B27: 23 | C27: =POISSON(D27,Berekening!$G$50,TRUE) -> 1 | D27: 23 | E27: =POISSON(F27,Berekening!$G$52,TRUE) -> 1 | F27: 23
A28: =POISSON(B28,Berekening!$G$27,TRUE) -> 1 | B28: 24 | C28: =POISSON(D28,Berekening!$G$50,TRUE) -> 1 | D28: 24 | E28: =POISSON(F28,Berekening!$G$52,TRUE) -> 1 | F28: 24
A29: =POISSON(B29,Berekening!$G$27,TRUE) -> 1 | B29: 25 | C29: =POISSON(D29,Berekening!$G$50,TRUE) -> 1 | D29: 25 | E29: =POISSON(F29,Berekening!$G$52,TRUE) -> 1 | F29: 25
A30: =POISSON(B30,Berekening!$G$27,TRUE) -> 1 | B30: 26 | C30: =POISSON(D30,Berekening!$G$50,TRUE) -> 1 | D30: 26 | E30: =POISSON(F30,Berekening!$G$52,TRUE) -> 1 | F30: 26
A31: =POISSON(B31,Berekening!$G$27,TRUE) -> 1 | B31: 27 | C31: =POISSON(D31,Berekening!$G$50,TRUE) -> 1 | D31: 27 | E31: =POISSON(F31,Berekening!$G$52,TRUE) -> 1 | F31: 27
A32: =POISSON(B32,Berekening!$G$27,TRUE) -> 1 | B32: 28 | C32: =POISSON(D32,Berekening!$G$50,TRUE) -> 1 | D32: 28 | E32: =POISSON(F32,Berekening!$G$52,TRUE) -> 1 | F32: 28
A33: =POISSON(B33,Berekening!$G$27,TRUE) -> 1 | B33: 29 | C33: =POISSON(D33,Berekening!$G$50,TRUE) -> 1 | D33: 29 | E33: =POISSON(F33,Berekening!$G$52,TRUE) -> 1 | F33: 29
A34: =POISSON(B34,Berekening!$G$27,TRUE) -> 1 | B34: 30 | C34: =POISSON(D34,Berekening!$G$50,TRUE) -> 1 | D34: 30 | E34: =POISSON(F34,Berekening!$G$52,TRUE) -> 1 | F34: 30
A35: =POISSON(B35,Berekening!$G$27,TRUE) -> 1 | B35: 31 | C35: =POISSON(D35,Berekening!$G$50,TRUE) -> 1 | D35: 31 | E35: =POISSON(F35,Berekening!$G$52,TRUE) -> 1 | F35: 31
A36: =POISSON(B36,Berekening!$G$27,TRUE) -> 1 | B36: 32 | C36: =POISSON(D36,Berekening!$G$50,TRUE) -> 1 | D36: 32 | E36: =POISSON(F36,Berekening!$G$52,TRUE) -> 1 | F36: 32
A37: =POISSON(B37,Berekening!$G$27,TRUE) -> 1 | B37: 33 | C37: =POISSON(D37,Berekening!$G$50,TRUE) -> 1 | D37: 33 | E37: =POISSON(F37,Berekening!$G$52,TRUE) -> 1 | F37: 33
A38: =POISSON(B38,Berekening!$G$27,TRUE) -> 1 | B38: 34 | C38: =POISSON(D38,Berekening!$G$50,TRUE) -> 1 | D38: 34 | E38: =POISSON(F38,Berekening!$G$52,TRUE) -> 1 | F38: 34
A39: =POISSON(B39,Berekening!$G$27,TRUE) -> 1 | B39: 35 | C39: =POISSON(D39,Berekening!$G$50,TRUE) -> 1 | D39: 35 | E39: =POISSON(F39,Berekening!$G$52,TRUE) -> 1 | F39: 35
A40: =POISSON(B40,Berekening!$G$27,TRUE) -> 1 | B40: 36 | C40: =POISSON(D40,Berekening!$G$50,TRUE) -> 1 | D40: 36 | E40: =POISSON(F40,Berekening!$G$52,TRUE) -> 1 | F40: 36
A41: =POISSON(B41,Berekening!$G$27,TRUE) -> 1 | B41: 37 | C41: =POISSON(D41,Berekening!$G$50,TRUE) -> 1 | D41: 37 | E41: =POISSON(F41,Berekening!$G$52,TRUE) -> 1 | F41: 37
A42: =POISSON(B42,Berekening!$G$27,TRUE) -> 1 | B42: 38 | C42: =POISSON(D42,Berekening!$G$50,TRUE) -> 1 | D42: 38 | E42: =POISSON(F42,Berekening!$G$52,TRUE) -> 1 | F42: 38
A43: =POISSON(B43,Berekening!$G$27,TRUE) -> 1 | B43: 39 | C43: =POISSON(D43,Berekening!$G$50,TRUE) -> 1 | D43: 39 | E43: =POISSON(F43,Berekening!$G$52,TRUE) -> 1 | F43: 39
A44: =POISSON(B44,Berekening!$G$27,TRUE) -> 1 | B44: 40 | C44: =POISSON(D44,Berekening!$G$50,TRUE) -> 1 | D44: 40 | E44: =POISSON(F44,Berekening!$G$52,TRUE) -> 1 | F44: 40
A45: =POISSON(B45,Berekening!$G$27,TRUE) -> 1 | B45: 41 | C45: =POISSON(D45,Berekening!$G$50,TRUE) -> 1 | D45: 41 | E45: =POISSON(F45,Berekening!$G$52,TRUE) -> 1 | F45: 41
A46: =POISSON(B46,Berekening!$G$27,TRUE) -> 1 | B46: 42 | C46: =POISSON(D46,Berekening!$G$50,TRUE) -> 1 | D46: 42 | E46: =POISSON(F46,Berekening!$G$52,TRUE) -> 1 | F46: 42
A47: =POISSON(B47,Berekening!$G$27,TRUE) -> 1 | B47: 43 | C47: =POISSON(D47,Berekening!$G$50,TRUE) -> 1 | D47: 43 | E47: =POISSON(F47,Berekening!$G$52,TRUE) -> 1 | F47: 43
A48: =POISSON(B48,Berekening!$G$27,TRUE) -> 1 | B48: 44 | C48: =POISSON(D48,Berekening!$G$50,TRUE) -> 1 | D48: 44 | E48: =POISSON(F48,Berekening!$G$52,TRUE) -> 1 | F48: 44
A49: =POISSON(B49,Berekening!$G$27,TRUE) -> 1 | B49: 45 | C49: =POISSON(D49,Berekening!$G$50,TRUE) -> 1 | D49: 45 | E49: =POISSON(F49,Berekening!$G$52,TRUE) -> 1 | F49: 45
A50: =POISSON(B50,Berekening!$G$27,TRUE) -> 1 | B50: 46 | C50: =POISSON(D50,Berekening!$G$50,TRUE) -> 1 | D50: 46 | E50: =POISSON(F50,Berekening!$G$52,TRUE) -> 1 | F50: 46
A51: =POISSON(B51,Berekening!$G$27,TRUE) -> 1 | B51: 47 | C51: =POISSON(D51,Berekening!$G$50,TRUE) -> 1 | D51: 47 | E51: =POISSON(F51,Berekening!$G$52,TRUE) -> 1 | F51: 47
A52: =POISSON(B52,Berekening!$G$27,TRUE) -> 1 | B52: 48 | C52: =POISSON(D52,Berekening!$G$50,TRUE) -> 1 | D52: 48 | E52: =POISSON(F52,Berekening!$G$52,TRUE) -> 1 | F52: 48
A53: =POISSON(B53,Berekening!$G$27,TRUE) -> 1 | B53: 49 | C53: =POISSON(D53,Berekening!$G$50,TRUE) -> 1 | D53: 49 | E53: =POISSON(F53,Berekening!$G$52,TRUE) -> 1 | F53: 49
A54: =POISSON(B54,Berekening!$G$27,TRUE) -> 1 | B54: 50 | C54: =POISSON(D54,Berekening!$G$50,TRUE) -> 1 | D54: 50 | E54: =POISSON(F54,Berekening!$G$52,TRUE) -> 1 | F54: 50
A55: =POISSON(B55,Berekening!$G$27,TRUE) -> 1 | B55: 51 | C55: =POISSON(D55,Berekening!$G$50,TRUE) -> 1 | D55: 51 | E55: =POISSON(F55,Berekening!$G$52,TRUE) -> 1 | F55: 51
A56: =POISSON(B56,Berekening!$G$27,TRUE) -> 1 | B56: 52 | C56: =POISSON(D56,Berekening!$G$50,TRUE) -> 1 | D56: 52 | E56: =POISSON(F56,Berekening!$G$52,TRUE) -> 1 | F56: 52
A57: =POISSON(B57,Berekening!$G$27,TRUE) -> 1 | B57: 53 | C57: =POISSON(D57,Berekening!$G$50,TRUE) -> 1 | D57: 53 | E57: =POISSON(F57,Berekening!$G$52,TRUE) -> 1 | F57: 53
A58: =POISSON(B58,Berekening!$G$27,TRUE) -> 1 | B58: 54 | C58: =POISSON(D58,Berekening!$G$50,TRUE) -> 1 | D58: 54 | E58: =POISSON(F58,Berekening!$G$52,TRUE) -> 1 | F58: 54
A59: =POISSON(B59,Berekening!$G$27,TRUE) -> 1 | B59: 55 | C59: =POISSON(D59,Berekening!$G$50,TRUE) -> 1 | D59: 55 | E59: =POISSON(F59,Berekening!$G$52,TRUE) -> 1 | F59: 55
A60: =POISSON(B60,Berekening!$G$27,TRUE) -> 1 | B60: 56 | C60: =POISSON(D60,Berekening!$G$50,TRUE) -> 1 | D60: 56 | E60: =POISSON(F60,Berekening!$G$52,TRUE) -> 1 | F60: 56
A61: =POISSON(B61,Berekening!$G$27,TRUE) -> 1 | B61: 57 | C61: =POISSON(D61,Berekening!$G$50,TRUE) -> 1 | D61: 57 | E61: =POISSON(F61,Berekening!$G$52,TRUE) -> 1 | F61: 57
A62: =POISSON(B62,Berekening!$G$27,TRUE) -> 1 | B62: 58 | C62: =POISSON(D62,Berekening!$G$50,TRUE) -> 1 | D62: 58 | E62: =POISSON(F62,Berekening!$G$52,TRUE) -> 1 | F62: 58
A63: =POISSON(B63,Berekening!$G$27,TRUE) -> 1 | B63: 59 | C63: =POISSON(D63,Berekening!$G$50,TRUE) -> 1 | D63: 59 | E63: =POISSON(F63,Berekening!$G$52,TRUE) -> 1 | F63: 59
A64: =POISSON(B64,Berekening!$G$27,TRUE) -> 1 | B64: 60 | C64: =POISSON(D64,Berekening!$G$50,TRUE) -> 1 | D64: 60 | E64: =POISSON(F64,Berekening!$G$52,TRUE) -> 1 | F64: 60
A65: =POISSON(B65,Berekening!$G$27,TRUE) -> 1 | B65: 61 | C65: =POISSON(D65,Berekening!$G$50,TRUE) -> 1 | D65: 61 | E65: =POISSON(F65,Berekening!$G$52,TRUE) -> 1 | F65: 61
A66: =POISSON(B66,Berekening!$G$27,TRUE) -> 1 | B66: 62 | C66: =POISSON(D66,Berekening!$G$50,TRUE) -> 1 | D66: 62 | E66: =POISSON(F66,Berekening!$G$52,TRUE) -> 1 | F66: 62
A67: =POISSON(B67,Berekening!$G$27,TRUE) -> 1 | B67: 63 | C67: =POISSON(D67,Berekening!$G$50,TRUE) -> 1 | D67: 63 | E67: =POISSON(F67,Berekening!$G$52,TRUE) -> 1 | F67: 63
A68: =POISSON(B68,Berekening!$G$27,TRUE) -> 1 | B68: 64 | C68: =POISSON(D68,Berekening!$G$50,TRUE) -> 1 | D68: 64 | E68: =POISSON(F68,Berekening!$G$52,TRUE) -> 1 | F68: 64
A69: =POISSON(B69,Berekening!$G$27,TRUE) -> 1 | B69: 65 | C69: =POISSON(D69,Berekening!$G$50,TRUE) -> 1 | D69: 65 | E69: =POISSON(F69,Berekening!$G$52,TRUE) -> 1 | F69: 65
A70: =POISSON(B70,Berekening!$G$27,TRUE) -> 1 | B70: 66 | C70: =POISSON(D70,Berekening!$G$50,TRUE) -> 1 | D70: 66 | E70: =POISSON(F70,Berekening!$G$52,TRUE) -> 1 | F70: 66
A71: =POISSON(B71,Berekening!$G$27,TRUE) -> 1 | B71: 67 | C71: =POISSON(D71,Berekening!$G$50,TRUE) -> 1 | D71: 67 | E71: =POISSON(F71,Berekening!$G$52,TRUE) -> 1 | F71: 67
A72: =POISSON(B72,Berekening!$G$27,TRUE) -> 1 | B72: 68 | C72: =POISSON(D72,Berekening!$G$50,TRUE) -> 1 | D72: 68 | E72: =POISSON(F72,Berekening!$G$52,TRUE) -> 1 | F72: 68
A73: =POISSON(B73,Berekening!$G$27,TRUE) -> 1 | B73: 69 | C73: =POISSON(D73,Berekening!$G$50,TRUE) -> 1 | D73: 69 | E73: =POISSON(F73,Berekening!$G$52,TRUE) -> 1 | F73: 69
A74: =POISSON(B74,Berekening!$G$27,TRUE) -> 1 | B74: 70 | C74: =POISSON(D74,Berekening!$G$50,TRUE) -> 1 | D74: 70 | E74: =POISSON(F74,Berekening!$G$52,TRUE) -> 1 | F74: 70
A75: =POISSON(B75,Berekening!$G$27,TRUE) -> 1 | B75: 71 | C75: =POISSON(D75,Berekening!$G$50,TRUE) -> 1 | D75: 71 | E75: =POISSON(F75,Berekening!$G$52,TRUE) -> 1 | F75: 71
A76: =POISSON(B76,Berekening!$G$27,TRUE) -> 1 | B76: 72 | C76: =POISSON(D76,Berekening!$G$50,TRUE) -> 1 | D76: 72 | E76: =POISSON(F76,Berekening!$G$52,TRUE) -> 1 | F76: 72
A77: =POISSON(B77,Berekening!$G$27,TRUE) -> 1 | B77: 73 | C77: =POISSON(D77,Berekening!$G$50,TRUE) -> 1 | D77: 73 | E77: =POISSON(F77,Berekening!$G$52,TRUE) -> 1 | F77: 73
A78: =POISSON(B78,Berekening!$G$27,TRUE) -> 1 | B78: 74 | C78: =POISSON(D78,Berekening!$G$50,TRUE) -> 1 | D78: 74 | E78: =POISSON(F78,Berekening!$G$52,TRUE) -> 1 | F78: 74
A79: =POISSON(B79,Berekening!$G$27,TRUE) -> 1 | B79: 75 | C79: =POISSON(D79,Berekening!$G$50,TRUE) -> 1 | D79: 75 | E79: =POISSON(F79,Berekening!$G$52,TRUE) -> 1 | F79: 75
A80: =POISSON(B80,Berekening!$G$27,TRUE) -> 1 | B80: 76 | C80: =POISSON(D80,Berekening!$G$50,TRUE) -> 1 | D80: 76 | E80: =POISSON(F80,Berekening!$G$52,TRUE) -> 1 | F80: 76
A81: =POISSON(B81,Berekening!$G$27,TRUE) -> 1 | B81: 77 | C81: =POISSON(D81,Berekening!$G$50,TRUE) -> 1 | D81: 77 | E81: =POISSON(F81,Berekening!$G$52,TRUE) -> 1 | F81: 77
A82: =POISSON(B82,Berekening!$G$27,TRUE) -> 1 | B82: 78 | C82: =POISSON(D82,Berekening!$G$50,TRUE) -> 1 | D82: 78 | E82: =POISSON(F82,Berekening!$G$52,TRUE) -> 1 | F82: 78
A83: =POISSON(B83,Berekening!$G$27,TRUE) -> 1 | B83: 79 | C83: =POISSON(D83,Berekening!$G$50,TRUE) -> 1 | D83: 79 | E83: =POISSON(F83,Berekening!$G$52,TRUE) -> 1 | F83: 79
A84: =POISSON(B84,Berekening!$G$27,TRUE) -> 1 | B84: 80 | C84: =POISSON(D84,Berekening!$G$50,TRUE) -> 1 | D84: 80 | E84: =POISSON(F84,Berekening!$G$52,TRUE) -> 1 | F84: 80
A85: =POISSON(B85,Berekening!$G$27,TRUE) -> 1 | B85: 81 | C85: =POISSON(D85,Berekening!$G$50,TRUE) -> 1 | D85: 81 | E85: =POISSON(F85,Berekening!$G$52,TRUE) -> 1 | F85: 81
A86: =POISSON(B86,Berekening!$G$27,TRUE) -> 1 | B86: 82 | C86: =POISSON(D86,Berekening!$G$50,TRUE) -> 1 | D86: 82 | E86: =POISSON(F86,Berekening!$G$52,TRUE) -> 1 | F86: 82
A87: =POISSON(B87,Berekening!$G$27,TRUE) -> 1 | B87: 83 | C87: =POISSON(D87,Berekening!$G$50,TRUE) -> 1 | D87: 83 | E87: =POISSON(F87,Berekening!$G$52,TRUE) -> 1 | F87: 83
A88: =POISSON(B88,Berekening!$G$27,TRUE) -> 1 | B88: 84 | C88: =POISSON(D88,Berekening!$G$50,TRUE) -> 1 | D88: 84 | E88: =POISSON(F88,Berekening!$G$52,TRUE) -> 1 | F88: 84
A89: =POISSON(B89,Berekening!$G$27,TRUE) -> 1 | B89: 85 | C89: =POISSON(D89,Berekening!$G$50,TRUE) -> 1 | D89: 85 | E89: =POISSON(F89,Berekening!$G$52,TRUE) -> 1 | F89: 85
A90: =POISSON(B90,Berekening!$G$27,TRUE) -> 1 | B90: 86 | C90: =POISSON(D90,Berekening!$G$50,TRUE) -> 1 | D90: 86 | E90: =POISSON(F90,Berekening!$G$52,TRUE) -> 1 | F90: 86
A91: =POISSON(B91,Berekening!$G$27,TRUE) -> 1 | B91: 87 | C91: =POISSON(D91,Berekening!$G$50,TRUE) -> 1 | D91: 87 | E91: =POISSON(F91,Berekening!$G$52,TRUE) -> 1 | F91: 87
A92: =POISSON(B92,Berekening!$G$27,TRUE) -> 1 | B92: 88 | C92: =POISSON(D92,Berekening!$G$50,TRUE) -> 1 | D92: 88 | E92: =POISSON(F92,Berekening!$G$52,TRUE) -> 1 | F92: 88
A93: =POISSON(B93,Berekening!$G$27,TRUE) -> 1 | B93: 89 | C93: =POISSON(D93,Berekening!$G$50,TRUE) -> 1 | D93: 89 | E93: =POISSON(F93,Berekening!$G$52,TRUE) -> 1 | F93: 89
A94: =POISSON(B94,Berekening!$G$27,TRUE) -> 1 | B94: 90 | C94: =POISSON(D94,Berekening!$G$50,TRUE) -> 1 | D94: 90 | E94: =POISSON(F94,Berekening!$G$52,TRUE) -> 1 | F94: 90
A95: =POISSON(B95,Berekening!$G$27,TRUE) -> 1 | B95: 91 | C95: =POISSON(D95,Berekening!$G$50,TRUE) -> 1 | D95: 91 | E95: =POISSON(F95,Berekening!$G$52,TRUE) -> 1 | F95: 91
A96: =POISSON(B96,Berekening!$G$27,TRUE) -> 1 | B96: 92 | C96: =POISSON(D96,Berekening!$G$50,TRUE) -> 1 | D96: 92 | E96: =POISSON(F96,Berekening!$G$52,TRUE) -> 1 | F96: 92
A97: =POISSON(B97,Berekening!$G$27,TRUE) -> 1 | B97: 93 | C97: =POISSON(D97,Berekening!$G$50,TRUE) -> 1 | D97: 93 | E97: =POISSON(F97,Berekening!$G$52,TRUE) -> 1 | F97: 93
A98: =POISSON(B98,Berekening!$G$27,TRUE) -> 1 | B98: 94 | C98: =POISSON(D98,Berekening!$G$50,TRUE) -> 1 | D98: 94 | E98: =POISSON(F98,Berekening!$G$52,TRUE) -> 1 | F98: 94
A99: =POISSON(B99,Berekening!$G$27,TRUE) -> 1 | B99: 95 | C99: =POISSON(D99,Berekening!$G$50,TRUE) -> 1 | D99: 95 | E99: =POISSON(F99,Berekening!$G$52,TRUE) -> 1 | F99: 95
A100: =POISSON(B100,Berekening!$G$27,TRUE) -> 1 | B100: 96 | C100: =POISSON(D100,Berekening!$G$50,TRUE) -> 1 | D100: 96 | E100: =POISSON(F100,Berekening!$G$52,TRUE) -> 1 | F100: 96
A101: =POISSON(B101,Berekening!$G$27,TRUE) -> 1 | B101: 97 | C101: =POISSON(D101,Berekening!$G$50,TRUE) -> 1 | D101: 97 | E101: =POISSON(F101,Berekening!$G$52,TRUE) -> 1 | F101: 97
A102: =POISSON(B102,Berekening!$G$27,TRUE) -> 1 | B102: 98 | C102: =POISSON(D102,Berekening!$G$50,TRUE) -> 1 | D102: 98 | E102: =POISSON(F102,Berekening!$G$52,TRUE) -> 1 | F102: 98
A103: =POISSON(B103,Berekening!$G$27,TRUE) -> 1 | B103: 99 | C103: =POISSON(D103,Berekening!$G$50,TRUE) -> 1 | D103: 99 | E103: =POISSON(F103,Berekening!$G$52,TRUE) -> 1 | F103: 99
A104: =POISSON(B104,Berekening!$G$27,TRUE) -> 1 | B104: 100 | C104: =POISSON(D104,Berekening!$G$50,TRUE) -> 1 | D104: 100 | E104: =POISSON(F104,Berekening!$G$52,TRUE) -> 1 | F104: 100
A105: =POISSON(B105,Berekening!$G$27,TRUE) -> 1 | B105: 101 | C105: =POISSON(D105,Berekening!$G$50,TRUE) -> 1 | D105: 101 | E105: =POISSON(F105,Berekening!$G$52,TRUE) -> 1 | F105: 101
A106: =POISSON(B106,Berekening!$G$27,TRUE) -> 1 | B106: 102 | C106: =POISSON(D106,Berekening!$G$50,TRUE) -> 1 | D106: 102 | E106: =POISSON(F106,Berekening!$G$52,TRUE) -> 1 | F106: 102
A107: =POISSON(B107,Berekening!$G$27,TRUE) -> 1 | B107: 103 | C107: =POISSON(D107,Berekening!$G$50,TRUE) -> 1 | D107: 103 | E107: =POISSON(F107,Berekening!$G$52,TRUE) -> 1 | F107: 103
A108: =POISSON(B108,Berekening!$G$27,TRUE) -> 1 | B108: 104 | C108: =POISSON(D108,Berekening!$G$50,TRUE) -> 1 | D108: 104 | E108: =POISSON(F108,Berekening!$G$52,TRUE) -> 1 | F108: 104
A109: =POISSON(B109,Berekening!$G$27,TRUE) -> 1 | B109: 105 | C109: =POISSON(D109,Berekening!$G$50,TRUE) -> 1 | D109: 105 | E109: =POISSON(F109,Berekening!$G$52,TRUE) -> 1 | F109: 105
A110: =POISSON(B110,Berekening!$G$27,TRUE) -> 1 | B110: 106 | C110: =POISSON(D110,Berekening!$G$50,TRUE) -> 1 | D110: 106 | E110: =POISSON(F110,Berekening!$G$52,TRUE) -> 1 | F110: 106
A111: =POISSON(B111,Berekening!$G$27,TRUE) -> 1 | B111: 107 | C111: =POISSON(D111,Berekening!$G$50,TRUE) -> 1 | D111: 107 | E111: =POISSON(F111,Berekening!$G$52,TRUE) -> 1 | F111: 107
A112: =POISSON(B112,Berekening!$G$27,TRUE) -> 1 | B112: 108 | C112: =POISSON(D112,Berekening!$G$50,TRUE) -> 1 | D112: 108 | E112: =POISSON(F112,Berekening!$G$52,TRUE) -> 1 | F112: 108
A113: =POISSON(B113,Berekening!$G$27,TRUE) -> 1 | B113: 109 | C113: =POISSON(D113,Berekening!$G$50,TRUE) -> 1 | D113: 109 | E113: =POISSON(F113,Berekening!$G$52,TRUE) -> 1 | F113: 109
A114: =POISSON(B114,Berekening!$G$27,TRUE) -> 1 | B114: 110 | C114: =POISSON(D114,Berekening!$G$50,TRUE) -> 1 | D114: 110 | E114: =POISSON(F114,Berekening!$G$52,TRUE) -> 1 | F114: 110
A115: =POISSON(B115,Berekening!$G$27,TRUE) -> 1 | B115: 111 | C115: =POISSON(D115,Berekening!$G$50,TRUE) -> 1 | D115: 111 | E115: =POISSON(F115,Berekening!$G$52,TRUE) -> 1 | F115: 111
A116: =POISSON(B116,Berekening!$G$27,TRUE) -> 1 | B116: 112 | C116: =POISSON(D116,Berekening!$G$50,TRUE) -> 1 | D116: 112 | E116: =POISSON(F116,Berekening!$G$52,TRUE) -> 1 | F116: 112
A117: =POISSON(B117,Berekening!$G$27,TRUE) -> 1 | B117: 113 | C117: =POISSON(D117,Berekening!$G$50,TRUE) -> 1 | D117: 113 | E117: =POISSON(F117,Berekening!$G$52,TRUE) -> 1 | F117: 113
A118: =POISSON(B118,Berekening!$G$27,TRUE) -> 1 | B118: 114 | C118: =POISSON(D118,Berekening!$G$50,TRUE) -> 1 | D118: 114 | E118: =POISSON(F118,Berekening!$G$52,TRUE) -> 1 | F118: 114
A119: =POISSON(B119,Berekening!$G$27,TRUE) -> 1 | B119: 115 | C119: =POISSON(D119,Berekening!$G$50,TRUE) -> 1 | D119: 115 | E119: =POISSON(F119,Berekening!$G$52,TRUE) -> 1 | F119: 115
A120: =POISSON(B120,Berekening!$G$27,TRUE) -> 1 | B120: 116 | C120: =POISSON(D120,Berekening!$G$50,TRUE) -> 1 | D120: 116 | E120: =POISSON(F120,Berekening!$G$52,TRUE) -> 1 | F120: 116
A121: =POISSON(B121,Berekening!$G$27,TRUE) -> 1 | B121: 117 | C121: =POISSON(D121,Berekening!$G$50,TRUE) -> 1 | D121: 117 | E121: =POISSON(F121,Berekening!$G$52,TRUE) -> 1 | F121: 117
A122: =POISSON(B122,Berekening!$G$27,TRUE) -> 1 | B122: 118 | C122: =POISSON(D122,Berekening!$G$50,TRUE) -> 1 | D122: 118 | E122: =POISSON(F122,Berekening!$G$52,TRUE) -> 1 | F122: 118
A123: =POISSON(B123,Berekening!$G$27,TRUE) -> 1 | B123: 119 | C123: =POISSON(D123,Berekening!$G$50,TRUE) -> 1 | D123: 119 | E123: =POISSON(F123,Berekening!$G$52,TRUE) -> 1 | F123: 119
A124: =POISSON(B124,Berekening!$G$27,TRUE) -> 1 | B124: 120 | C124: =POISSON(D124,Berekening!$G$50,TRUE) -> 1 | D124: 120 | E124: =POISSON(F124,Berekening!$G$52,TRUE) -> 1 | F124: 120
A125: =POISSON(B125,Berekening!$G$27,TRUE) -> 1 | B125: 121 | C125: =POISSON(D125,Berekening!$G$50,TRUE) -> 1 | D125: 121 | E125: =POISSON(F125,Berekening!$G$52,TRUE) -> 1 | F125: 121
A126: =POISSON(B126,Berekening!$G$27,TRUE) -> 1 | B126: 122 | C126: =POISSON(D126,Berekening!$G$50,TRUE) -> 1 | D126: 122 | E126: =POISSON(F126,Berekening!$G$52,TRUE) -> 1 | F126: 122
A127: =POISSON(B127,Berekening!$G$27,TRUE) -> 1 | B127: 123 | C127: =POISSON(D127,Berekening!$G$50,TRUE) -> 1 | D127: 123 | E127: =POISSON(F127,Berekening!$G$52,TRUE) -> 1 | F127: 123
A128: =POISSON(B128,Berekening!$G$27,TRUE) -> 1 | B128: 124 | C128: =POISSON(D128,Berekening!$G$50,TRUE) -> 1 | D128: 124 | E128: =POISSON(F128,Berekening!$G$52,TRUE) -> 1 | F128: 124
A129: =POISSON(B129,Berekening!$G$27,TRUE) -> 1 | B129: 125 | C129: =POISSON(D129,Berekening!$G$50,TRUE) -> 1 | D129: 125 | E129: =POISSON(F129,Berekening!$G$52,TRUE) -> 1 | F129: 125
A130: =POISSON(B130,Berekening!$G$27,TRUE) -> 1 | B130: 126 | C130: =POISSON(D130,Berekening!$G$50,TRUE) -> 1 | D130: 126 | E130: =POISSON(F130,Berekening!$G$52,TRUE) -> 1 | F130: 126
A131: =POISSON(B131,Berekening!$G$27,TRUE) -> 1 | B131: 127 | C131: =POISSON(D131,Berekening!$G$50,TRUE) -> 1 | D131: 127 | E131: =POISSON(F131,Berekening!$G$52,TRUE) -> 1 | F131: 127
A132: =POISSON(B132,Berekening!$G$27,TRUE) -> 1 | B132: 128 | C132: =POISSON(D132,Berekening!$G$50,TRUE) -> 1 | D132: 128 | E132: =POISSON(F132,Berekening!$G$52,TRUE) -> 1 | F132: 128
A133: =POISSON(B133,Berekening!$G$27,TRUE) -> 1 | B133: 129 | C133: =POISSON(D133,Berekening!$G$50,TRUE) -> 1 | D133: 129 | E133: =POISSON(F133,Berekening!$G$52,TRUE) -> 1 | F133: 129
A134: =POISSON(B134,Berekening!$G$27,TRUE) -> 1 | B134: 130 | C134: =POISSON(D134,Berekening!$G$50,TRUE) -> 1 | D134: 130 | E134: =POISSON(F134,Berekening!$G$52,TRUE) -> 1 | F134: 130
A135: =POISSON(B135,Berekening!$G$27,TRUE) -> 1 | B135: 131 | C135: =POISSON(D135,Berekening!$G$50,TRUE) -> 1 | D135: 131 | E135: =POISSON(F135,Berekening!$G$52,TRUE) -> 1 | F135: 131
A136: =POISSON(B136,Berekening!$G$27,TRUE) -> 1 | B136: 132 | C136: =POISSON(D136,Berekening!$G$50,TRUE) -> 1 | D136: 132 | E136: =POISSON(F136,Berekening!$G$52,TRUE) -> 1 | F136: 132
A137: =POISSON(B137,Berekening!$G$27,TRUE) -> 1 | B137: 133 | C137: =POISSON(D137,Berekening!$G$50,TRUE) -> 1 | D137: 133 | E137: =POISSON(F137,Berekening!$G$52,TRUE) -> 1 | F137: 133
A138: =POISSON(B138,Berekening!$G$27,TRUE) -> 1 | B138: 134 | C138: =POISSON(D138,Berekening!$G$50,TRUE) -> 1 | D138: 134 | E138: =POISSON(F138,Berekening!$G$52,TRUE) -> 1 | F138: 134
A139: =POISSON(B139,Berekening!$G$27,TRUE) -> 1 | B139: 135 | C139: =POISSON(D139,Berekening!$G$50,TRUE) -> 1 | D139: 135 | E139: =POISSON(F139,Berekening!$G$52,TRUE) -> 1 | F139: 135
A140: =POISSON(B140,Berekening!$G$27,TRUE) -> 1 | B140: 136 | C140: =POISSON(D140,Berekening!$G$50,TRUE) -> 1 | D140: 136 | E140: =POISSON(F140,Berekening!$G$52,TRUE) -> 1 | F140: 136
A141: =POISSON(B141,Berekening!$G$27,TRUE) -> 1 | B141: 137 | C141: =POISSON(D141,Berekening!$G$50,TRUE) -> 1 | D141: 137 | E141: =POISSON(F141,Berekening!$G$52,TRUE) -> 1 | F141: 137
A142: =POISSON(B142,Berekening!$G$27,TRUE) -> 1 | B142: 138 | C142: =POISSON(D142,Berekening!$G$50,TRUE) -> 1 | D142: 138 | E142: =POISSON(F142,Berekening!$G$52,TRUE) -> 1 | F142: 138
A143: =POISSON(B143,Berekening!$G$27,TRUE) -> 1 | B143: 139 | C143: =POISSON(D143,Berekening!$G$50,TRUE) -> 1 | D143: 139 | E143: =POISSON(F143,Berekening!$G$52,TRUE) -> 1 | F143: 139
A144: =POISSON(B144,Berekening!$G$27,TRUE) -> 1 | B144: 140 | C144: =POISSON(D144,Berekening!$G$50,TRUE) -> 1 | D144: 140 | E144: =POISSON(F144,Berekening!$G$52,TRUE) -> 1 | F144: 140
A145: =POISSON(B145,Berekening!$G$27,TRUE) -> 1 | B145: 141 | C145: =POISSON(D145,Berekening!$G$50,TRUE) -> 1 | D145: 141 | E145: =POISSON(F145,Berekening!$G$52,TRUE) -> 1 | F145: 141
A146: =POISSON(B146,Berekening!$G$27,TRUE) -> 1 | B146: 142 | C146: =POISSON(D146,Berekening!$G$50,TRUE) -> 1 | D146: 142 | E146: =POISSON(F146,Berekening!$G$52,TRUE) -> 1 | F146: 142
A147: =POISSON(B147,Berekening!$G$27,TRUE) -> 1 | B147: 143 | C147: =POISSON(D147,Berekening!$G$50,TRUE) -> 1 | D147: 143 | E147: =POISSON(F147,Berekening!$G$52,TRUE) -> 1 | F147: 143
A148: =POISSON(B148,Berekening!$G$27,TRUE) -> 1 | B148: 144 | C148: =POISSON(D148,Berekening!$G$50,TRUE) -> 1 | D148: 144 | E148: =POISSON(F148,Berekening!$G$52,TRUE) -> 1 | F148: 144
A149: =POISSON(B149,Berekening!$G$27,TRUE) -> 1 | B149: 145 | C149: =POISSON(D149,Berekening!$G$50,TRUE) -> 1 | D149: 145 | E149: =POISSON(F149,Berekening!$G$52,TRUE) -> 1 | F149: 145
A150: =POISSON(B150,Berekening!$G$27,TRUE) -> 1 | B150: 146 | C150: =POISSON(D150,Berekening!$G$50,TRUE) -> 1 | D150: 146 | E150: =POISSON(F150,Berekening!$G$52,TRUE) -> 1 | F150: 146
A151: =POISSON(B151,Berekening!$G$27,TRUE) -> 1 | B151: 147 | C151: =POISSON(D151,Berekening!$G$50,TRUE) -> 1 | D151: 147 | E151: =POISSON(F151,Berekening!$G$52,TRUE) -> 1 | F151: 147
A152: =POISSON(B152,Berekening!$G$27,TRUE) -> 1 | B152: 148 | C152: =POISSON(D152,Berekening!$G$50,TRUE) -> 1 | D152: 148 | E152: =POISSON(F152,Berekening!$G$52,TRUE) -> 1 | F152: 148
A153: =POISSON(B153,Berekening!$G$27,TRUE) -> 1 | B153: 149 | C153: =POISSON(D153,Berekening!$G$50,TRUE) -> 1 | D153: 149 | E153: =POISSON(F153,Berekening!$G$52,TRUE) -> 1 | F153: 149
A154: =POISSON(B154,Berekening!$G$27,TRUE) -> 1 | B154: 150 | C154: =POISSON(D154,Berekening!$G$50,TRUE) -> 1 | D154: 150 | E154: =POISSON(F154,Berekening!$G$52,TRUE) -> 1 | F154: 150
A155: =POISSON(B155,Berekening!$G$27,TRUE) -> 1 | B155: 151 | C155: =POISSON(D155,Berekening!$G$50,TRUE) -> 1 | D155: 151 | E155: =POISSON(F155,Berekening!$G$52,TRUE) -> 1 | F155: 151
A156: =POISSON(B156,Berekening!$G$27,TRUE) -> 1 | B156: 152 | C156: =POISSON(D156,Berekening!$G$50,TRUE) -> 1 | D156: 152 | E156: =POISSON(F156,Berekening!$G$52,TRUE) -> 1 | F156: 152
A157: =POISSON(B157,Berekening!$G$27,TRUE) -> 1 | B157: 153 | C157: =POISSON(D157,Berekening!$G$50,TRUE) -> 1 | D157: 153 | E157: =POISSON(F157,Berekening!$G$52,TRUE) -> 1 | F157: 153
A158: =POISSON(B158,Berekening!$G$27,TRUE) -> 1 | B158: 154 | C158: =POISSON(D158,Berekening!$G$50,TRUE) -> 1 | D158: 154 | E158: =POISSON(F158,Berekening!$G$52,TRUE) -> 1 | F158: 154
A159: =POISSON(B159,Berekening!$G$27,TRUE) -> 1 | B159: 155 | C159: =POISSON(D159,Berekening!$G$50,TRUE) -> 1 | D159: 155 | E159: =POISSON(F159,Berekening!$G$52,TRUE) -> 1 | F159: 155
A160: =POISSON(B160,Berekening!$G$27,TRUE) -> 1 | B160: 156 | C160: =POISSON(D160,Berekening!$G$50,TRUE) -> 1 | D160: 156 | E160: =POISSON(F160,Berekening!$G$52,TRUE) -> 1 | F160: 156
A161: =POISSON(B161,Berekening!$G$27,TRUE) -> 1 | B161: 157 | C161: =POISSON(D161,Berekening!$G$50,TRUE) -> 1 | D161: 157 | E161: =POISSON(F161,Berekening!$G$52,TRUE) -> 1 | F161: 157
A162: =POISSON(B162,Berekening!$G$27,TRUE) -> 1 | B162: 158 | C162: =POISSON(D162,Berekening!$G$50,TRUE) -> 1 | D162: 158 | E162: =POISSON(F162,Berekening!$G$52,TRUE) -> 1 | F162: 158
A163: =POISSON(B163,Berekening!$G$27,TRUE) -> 1 | B163: 159 | C163: =POISSON(D163,Berekening!$G$50,TRUE) -> 1 | D163: 159 | E163: =POISSON(F163,Berekening!$G$52,TRUE) -> 1 | F163: 159
A164: =POISSON(B164,Berekening!$G$27,TRUE) -> 1 | B164: 160 | C164: =POISSON(D164,Berekening!$G$50,TRUE) -> 1 | D164: 160 | E164: =POISSON(F164,Berekening!$G$52,TRUE) -> 1 | F164: 160
A165: =POISSON(B165,Berekening!$G$27,TRUE) -> 1 | B165: 161 | C165: =POISSON(D165,Berekening!$G$50,TRUE) -> 1 | D165: 161 | E165: =POISSON(F165,Berekening!$G$52,TRUE) -> 1 | F165: 161
A166: =POISSON(B166,Berekening!$G$27,TRUE) -> 1 | B166: 162 | C166: =POISSON(D166,Berekening!$G$50,TRUE) -> 1 | D166: 162 | E166: =POISSON(F166,Berekening!$G$52,TRUE) -> 1 | F166: 162
A167: =POISSON(B167,Berekening!$G$27,TRUE) -> 1 | B167: 163 | C167: =POISSON(D167,Berekening!$G$50,TRUE) -> 1 | D167: 163 | E167: =POISSON(F167,Berekening!$G$52,TRUE) -> 1 | F167: 163
A168: =POISSON(B168,Berekening!$G$27,TRUE) -> 1 | B168: 164 | C168: =POISSON(D168,Berekening!$G$50,TRUE) -> 1 | D168: 164 | E168: =POISSON(F168,Berekening!$G$52,TRUE) -> 1 | F168: 164
A169: =POISSON(B169,Berekening!$G$27,TRUE) -> 1 | B169: 165 | C169: =POISSON(D169,Berekening!$G$50,TRUE) -> 1 | D169: 165 | E169: =POISSON(F169,Berekening!$G$52,TRUE) -> 1 | F169: 165
A170: =POISSON(B170,Berekening!$G$27,TRUE) -> 1 | B170: 166 | C170: =POISSON(D170,Berekening!$G$50,TRUE) -> 1 | D170: 166 | E170: =POISSON(F170,Berekening!$G$52,TRUE) -> 1 | F170: 166
A171: =POISSON(B171,Berekening!$G$27,TRUE) -> 1 | B171: 167 | C171: =POISSON(D171,Berekening!$G$50,TRUE) -> 1 | D171: 167 | E171: =POISSON(F171,Berekening!$G$52,TRUE) -> 1 | F171: 167
A172: =POISSON(B172,Berekening!$G$27,TRUE) -> 1 | B172: 168 | C172: =POISSON(D172,Berekening!$G$50,TRUE) -> 1 | D172: 168 | E172: =POISSON(F172,Berekening!$G$52,TRUE) -> 1 | F172: 168
A173: =POISSON(B173,Berekening!$G$27,TRUE) -> 1 | B173: 169 | C173: =POISSON(D173,Berekening!$G$50,TRUE) -> 1 | D173: 169 | E173: =POISSON(F173,Berekening!$G$52,TRUE) -> 1 | F173: 169
A174: =POISSON(B174,Berekening!$G$27,TRUE) -> 1 | B174: 170 | C174: =POISSON(D174,Berekening!$G$50,TRUE) -> 1 | D174: 170 | E174: =POISSON(F174,Berekening!$G$52,TRUE) -> 1 | F174: 170
A175: =POISSON(B175,Berekening!$G$27,TRUE) -> 1 | B175: 171 | C175: =POISSON(D175,Berekening!$G$50,TRUE) -> 1 | D175: 171 | E175: =POISSON(F175,Berekening!$G$52,TRUE) -> 1 | F175: 171
A176: =POISSON(B176,Berekening!$G$27,TRUE) -> 1 | B176: 172 | C176: =POISSON(D176,Berekening!$G$50,TRUE) -> 1 | D176: 172 | E176: =POISSON(F176,Berekening!$G$52,TRUE) -> 1 | F176: 172
A177: =POISSON(B177,Berekening!$G$27,TRUE) -> 1 | B177: 173 | C177: =POISSON(D177,Berekening!$G$50,TRUE) -> 1 | D177: 173 | E177: =POISSON(F177,Berekening!$G$52,TRUE) -> 1 | F177: 173
A178: =POISSON(B178,Berekening!$G$27,TRUE) -> 1 | B178: 174 | C178: =POISSON(D178,Berekening!$G$50,TRUE) -> 1 | D178: 174 | E178: =POISSON(F178,Berekening!$G$52,TRUE) -> 1 | F178: 174
A179: =POISSON(B179,Berekening!$G$27,TRUE) -> 1 | B179: 175 | C179: =POISSON(D179,Berekening!$G$50,TRUE) -> 1 | D179: 175 | E179: =POISSON(F179,Berekening!$G$52,TRUE) -> 1 | F179: 175
A180: =POISSON(B180,Berekening!$G$27,TRUE) -> 1 | B180: 176 | C180: =POISSON(D180,Berekening!$G$50,TRUE) -> 1 | D180: 176 | E180: =POISSON(F180,Berekening!$G$52,TRUE) -> 1 | F180: 176
A181: =POISSON(B181,Berekening!$G$27,TRUE) -> 1 | B181: 177 | C181: =POISSON(D181,Berekening!$G$50,TRUE) -> 1 | D181: 177 | E181: =POISSON(F181,Berekening!$G$52,TRUE) -> 1 | F181: 177
A182: =POISSON(B182,Berekening!$G$27,TRUE) -> 1 | B182: 178 | C182: =POISSON(D182,Berekening!$G$50,TRUE) -> 1 | D182: 178 | E182: =POISSON(F182,Berekening!$G$52,TRUE) -> 1 | F182: 178
A183: =POISSON(B183,Berekening!$G$27,TRUE) -> 1 | B183: 179 | C183: =POISSON(D183,Berekening!$G$50,TRUE) -> 1 | D183: 179 | E183: =POISSON(F183,Berekening!$G$52,TRUE) -> 1 | F183: 179
A184: =POISSON(B184,Berekening!$G$27,TRUE) -> 1 | B184: 180 | C184: =POISSON(D184,Berekening!$G$50,TRUE) -> 1 | D184: 180 | E184: =POISSON(F184,Berekening!$G$52,TRUE) -> 1 | F184: 180
A185: =POISSON(B185,Berekening!$G$27,TRUE) -> 1 | B185: 181 | C185: =POISSON(D185,Berekening!$G$50,TRUE) -> 1 | D185: 181 | E185: =POISSON(F185,Berekening!$G$52,TRUE) -> 1 | F185: 181
A186: =POISSON(B186,Berekening!$G$27,TRUE) -> 1 | B186: 182 | C186: =POISSON(D186,Berekening!$G$50,TRUE) -> 1 | D186: 182 | E186: =POISSON(F186,Berekening!$G$52,TRUE) -> 1 | F186: 182
A187: =POISSON(B187,Berekening!$G$27,TRUE) -> 1 | B187: 183 | C187: =POISSON(D187,Berekening!$G$50,TRUE) -> 1 | D187: 183 | E187: =POISSON(F187,Berekening!$G$52,TRUE) -> 1 | F187: 183
A188: =POISSON(B188,Berekening!$G$27,TRUE) -> 1 | B188: 184 | C188: =POISSON(D188,Berekening!$G$50,TRUE) -> 1 | D188: 184 | E188: =POISSON(F188,Berekening!$G$52,TRUE) -> 1 | F188: 184
A189: =POISSON(B189,Berekening!$G$27,TRUE) -> 1 | B189: 185 | C189: =POISSON(D189,Berekening!$G$50,TRUE) -> 1 | D189: 185 | E189: =POISSON(F189,Berekening!$G$52,TRUE) -> 1 | F189: 185
A190: =POISSON(B190,Berekening!$G$27,TRUE) -> 1 | B190: 186 | C190: =POISSON(D190,Berekening!$G$50,TRUE) -> 1 | D190: 186 | E190: =POISSON(F190,Berekening!$G$52,TRUE) -> 1 | F190: 186
A191: =POISSON(B191,Berekening!$G$27,TRUE) -> 1 | B191: 187 | C191: =POISSON(D191,Berekening!$G$50,TRUE) -> 1 | D191: 187 | E191: =POISSON(F191,Berekening!$G$52,TRUE) -> 1 | F191: 187
A192: =POISSON(B192,Berekening!$G$27,TRUE) -> 1 | B192: 188 | C192: =POISSON(D192,Berekening!$G$50,TRUE) -> 1 | D192: 188 | E192: =POISSON(F192,Berekening!$G$52,TRUE) -> 1 | F192: 188
A193: =POISSON(B193,Berekening!$G$27,TRUE) -> 1 | B193: 189 | C193: =POISSON(D193,Berekening!$G$50,TRUE) -> 1 | D193: 189 | E193: =POISSON(F193,Berekening!$G$52,TRUE) -> 1 | F193: 189
A194: =POISSON(B194,Berekening!$G$27,TRUE) -> 1 | B194: 190 | C194: =POISSON(D194,Berekening!$G$50,TRUE) -> 1 | D194: 190 | E194: =POISSON(F194,Berekening!$G$52,TRUE) -> 1 | F194: 190
A195: =POISSON(B195,Berekening!$G$27,TRUE) -> 1 | B195: 191 | C195: =POISSON(D195,Berekening!$G$50,TRUE) -> 1 | D195: 191 | E195: =POISSON(F195,Berekening!$G$52,TRUE) -> 1 | F195: 191
A196: =POISSON(B196,Berekening!$G$27,TRUE) -> 1 | B196: 192 | C196: =POISSON(D196,Berekening!$G$50,TRUE) -> 1 | D196: 192 | E196: =POISSON(F196,Berekening!$G$52,TRUE) -> 1 | F196: 192
A197: =POISSON(B197,Berekening!$G$27,TRUE) -> 1 | B197: 193 | C197: =POISSON(D197,Berekening!$G$50,TRUE) -> 1 | D197: 193 | E197: =POISSON(F197,Berekening!$G$52,TRUE) -> 1 | F197: 193
A198: =POISSON(B198,Berekening!$G$27,TRUE) -> 1 | B198: 194 | C198: =POISSON(D198,Berekening!$G$50,TRUE) -> 1 | D198: 194 | E198: =POISSON(F198,Berekening!$G$52,TRUE) -> 1 | F198: 194
A199: =POISSON(B199,Berekening!$G$27,TRUE) -> 1 | B199: 195 | C199: =POISSON(D199,Berekening!$G$50,TRUE) -> 1 | D199: 195 | E199: =POISSON(F199,Berekening!$G$52,TRUE) -> 1 | F199: 195
A200: =POISSON(B200,Berekening!$G$27,TRUE) -> 1 | B200: 196 | C200: =POISSON(D200,Berekening!$G$50,TRUE) -> 1 | D200: 196 | E200: =POISSON(F200,Berekening!$G$52,TRUE) -> 1 | F200: 196
A201: =POISSON(B201,Berekening!$G$27,TRUE) -> 1 | B201: 197 | C201: =POISSON(D201,Berekening!$G$50,TRUE) -> 1 | D201: 197 | E201: =POISSON(F201,Berekening!$G$52,TRUE) -> 1 | F201: 197
... 4803 more rows

Sheet Sheet1 (hidden)
A1: Incidentie; Landelijk; Invasief
D3: Invasief
D4: Man | X4: Vrouw | AR4: Man & Vrouw
D5: Landelijk | X5: Landelijk | AR5: Landelijk
A6: tumor | C6: periode | D6: 0-4 | E6: 5-9 | F6: 10-14 | G6: 15-19 | H6: 20-24 | I6: 25-29 | J6: 30-34 | K6: 35-39 | L6: 40-44 | M6: 45-49 | N6: 50-54 | O6: 55-59 | P6: 60-64 | Q6: 65-69 | R6: 70-74 | S6: 75-79 | T6: 80-84 | U6: 85-89 | V6: 90-94 | W6: 95+ | X6: 0-4 | Y6: 5-9 | Z6: 10-14 | AA6: 15-19 | AB6: 20-24 | AC6: 25-29 | AD6: 30-34 | AE6: 35-39 | AF6: 40-44 | AG6: 45-49 | AH6: 50-54 | AI6: 55-59 | AJ6: 60-64 | AK6: 65-69 | AL6: 70-74 | AM6: 75-79 | AN6: 80-84 | AO6: 85-89 | AP6: 90-94 | AQ6: 95+ | AR6: 0-4 | AS6: 5-9 | AT6: 10-14 | AU6: 15-19 | AV6: 20-24 | AW6: 25-29 | AX6: 30-34 | AY6: 35-39 | AZ6: 40-44 | BA6: 45-49 | BB6: 50-54 | BC6: 55-59 | BD6: 60-64 | BE6: 65-69 | BF6: 70-74 | BG6: 75-79 | BH6: 80-84 | BI6: 85-89 | BJ6: 90-94 | BK6: 95+
A7: Alle tumoren | C7: 1989 | D7: 17.46 | E7: 13.03 | F7: 13.58 | G7: 19.49 | H7: 23.74 | I7: 41.12 | J7: 50.47 | K7: 66.92 | L7: 131.97 | M7: 218.75 | N7: 409.14 | O7: 691.85 | P7: 1151.96 | Q7: 1763.64 | R7: 2509.7 | S7: 3067.93 | T7: 3494.97 | U7: 3476.89 | V7: 2986.81 | W7: 1971.43 | X7: 20.65 | Y7: 9.69 | Z7: 11.53 | AA7: 13.3 | AB7: 27.47 | AC7: 46.64 | AD7: 88.88 | AE7: 153.99 | AF7: 242.06 | AG7: 354.4 | AH7: 468.47 | AI7: 623.29 | AJ7: 770.81 | AK7: 996.6 | AL7: 1190.16 | AM7: 1380.67 | AN7: 1539.91 | AO7: 1538.18 | AP7: 1410.27 | AQ7: 1233.93 | AR7: 19.06 | AS7: 11.36 | AT7: 12.56 | AU7: 16.39 | AV7: 25.61 | AW7: 43.88 | AX7: 69.68 | AY7: 110.46 | AZ7: 187.02 | BA7: 286.57 | BB7: 438.81 | BC7: 657.57 | BD7: 961.39 | BE7: 1380.12 | BF7: 1849.93 | BG7: 2224.3 | BH7: 2517.44 | BI7: 2507.54 | BJ7: 2198.54 | BK7: 1602.68
A8: Alle tumoren | C8: 1990 | D8: 19.85 | E8: 11.69 | F8: 12.99 | G8: 21.64 | H8: 29.89 | I8: 38.82 | J8: 51.86 | K8: 71.73 | L8: 119.39 | M8: 223.11 | N8: 383.67 | O8: 696.26 | P8: 1144.75 | Q8: 1781.52 | R8: 2540.83 | S8: 3177.71 | T8: 3450.63 | U8: 3348 | V8: 3056.38 | W8: 2258.47 | X8: 15.26 | Y8: 9.22 | Z8: 11.13 | AA8: 18.19 | AB8: 28.73 | AC8: 45.59 | AD8: 84.85 | AE8: 145.45 | AF8: 249.08 | AG8: 357.23 | AH8: 482 | AI8: 619.81 | AJ8: 801.4 | AK8: 1015.75 | AL8: 1206.31 | AM8: 1422.1 | AN8: 1589.44 | AO8: 1574.27 | AP8: 1563.12 | AQ8: 1130.18 | AR8: 17.56 | AS8: 10.45 | AT8: 12.06 | AU8: 19.92 | AV8: 29.31 | AW8: 42.2 | AX8: 68.35 | AY8: 108.59 | AZ8: 184.24 | BA8: 290.17 | BB8: 432.83 | BC8: 658.04 | BD8: 973.08 | BE8: 1398.64 | BF8: 1873.57 | BG8: 2299.91 | BH8: 2520.04 | BI8: 2461.13 | BJ8: 2309.75 | BK8: 1694.33
A9: Alle tumoren | C9: 1991 | D9: 20.08 | E9: 11.86 | F9: 11.66 | G9: 18.01 | H9: 29.28 | I9: 34.91 | J9: 50.55 | K9: 77.96 | L9: 112.51 | M9: 224.47 | N9: 382.27 | O9: 704.71 | P9: 1164.07 | Q9: 1802.58 | R9: 2547.61 | S9: 3174.94 | T9: 3557.98 | U9: 3573.5 | V9: 3074.18 | W9: 2127.66 | X9: 15 | Y9: 7.33 | Z9: 9.73 | AA9: 15.18 | AB9: 26.47 | AC9: 44.91 | AD9: 88.84 | AE9: 145.63 | AF9: 247.65 | AG9: 381.35 | AH9: 492.57 | AI9: 621.22 | AJ9: 823.16 | AK9: 1048.76 | AL9: 1224.77 | AM9: 1406.23 | AN9: 1566.26 | AO9: 1686.3 | AP9: 1422.59 | AQ9: 1049.87 | AR9: 17.54 | AS9: 9.6 | AT9: 10.69 | AU9: 16.6 | AV9: 27.88 | AW9: 39.91 | AX9: 69.7 | AY9: 111.8 | AZ9: 180.08 | BA9: 302.91 | BB9: 437.42 | BC9: 662.96 | BD9: 993.62 | BE9: 1425.67 | BF9: 1886.19 | BG9: 2290.58 | BH9: 2562.12 | BI9: 2629.9 | BJ9: 2248.38 | BK9: 1588.76
A10: Alle tumoren | C10: 1992 | D10: 20.62 | E10: 14.5 | F10: 13.6 | G10: 21.27 | H10: 26.74 | I10: 35.58 | J10: 51.5 | K10: 78.76 | L10: 124.55 | M10: 225.94 | N10: 390.56 | O10: 732.42 | P10: 1179.55 | Q10: 1842.9 | R10: 2563.26 | S10: 3243.05 | T10: 3685.65 | U10: 3734.49 | V10: 3336.71 | W10: 1937.25 | X10: 13.76 | Y10: 13.33 | Z10: 9.25 | AA10: 20.09 | AB10: 23.07 | AC10: 46.97 | AD10: 90.86 | AE10: 153.13 | AF10: 245.79 | AG10: 365.41 | AH10: 532.1 | AI10: 684.04 | AJ10: 884.17 | AK10: 1103.59 | AL10: 1228.65 | AM10: 1479.91 | AN10: 1669.53 | AO10: 1670.18 | AP10: 1550.05 | AQ10: 1270.78 | AR10: 17.19 | AS10: 13.92 | AT10: 11.43 | AU10: 20.68 | AV10: 24.9 | AW10: 41.28 | AX10: 71.18 | AY10: 115.94 | AZ10: 185.17 | BA10: 295.68 | BB10: 461.33 | BC10: 708.23 | BD10: 1031.86 | BE10: 1473.24 | BF10: 1895.96 | BG10: 2361.48 | BH10: 2677.59 | BI10: 2702.33 | BJ10: 2443.38 | BK10: 1604.01
A11: Alle tumoren | C11: 1993 | D11: 18.21 | E11: 15.5 | F11: 11.68 | G11: 21.95 | H11: 29.46 | I11: 48.34 | J11: 53.67 | K11: 74.88 | L11: 118.06 | M11: 211.81 | N11: 371.68 | O11: 697.8 | P11: 1205.42 | Q11: 1803.63 | R11: 2556.59 | S11: 3354.85 | T11: 3621.5 | U11: 3623.72 | V11: 2980.25 | W11: 1829.4 | X11: 17.18 | Y11: 9.76 | Z11: 10.85 | AA11: 19.89 | AB11: 26.19 | AC11: 47.35 | AD11: 89.9 | AE11: 148.05 | AF11: 233.5 | AG11: 394.99 | AH11: 546.48 | AI11: 694.85 | AJ11: 897.16 | AK11: 1121.76 | AL11: 1199.4 | AM11: 1448.83 | AN11: 1641.33 | AO11: 1682.36 | AP11: 1407.57 | AQ11: 1068.06 | AR11: 17.7 | AS11: 12.63 | AT11: 11.26 | AU11: 20.92 | AV11: 27.82 | AW11: 47.85 | AX11: 71.79 | AY11: 111.47 | AZ11: 175.78 | BA11: 303.4 | BB11: 459.08 | BC11: 696.33 | BD11: 1051.29 | BE11: 1462.7 | BF11: 1877.99 | BG11: 2401.84 | BH11: 2631.41 | BI11: 2653.04 | BJ11: 2193.91 | BK11: 1448.73
A12: Alle tumoren | C12: 1994 | D12: 17.26 | E12: 13.15 | F12: 11.26 | G12: 20.23 | H12: 28.43 | I12: 37.29 | J12: 52.27 | K12: 74.58 | L12: 118.88 | M12: 214.47 | N12: 389.49 | O12: 717.83 | P12: 1221.38 | Q12: 1891.26 | R12: 2694.7 | S12: 3339.11 | T12: 3809.47 | U12: 3708.25 | V12: 3353.31 | W12: 2639.1 | X12: 19.74 | Y12: 9.37 | Z12: 10.41 | AA12: 18.94 | AB12: 26.24 | AC12: 45.99 | AD12: 88.86 | AE12: 165.87 | AF12: 245.59 | AG12: 392.8 | AH12: 554.1 | AI12: 712.08 | AJ12: 891.16 | AK12: 1134.34 | AL12: 1246.31 | AM12: 1515.68 | AN12: 1699.39 | AO12: 1790.45 | AP12: 1581.07 | AQ12: 1039.27 | AR12: 18.5 | AS12: 11.26 | AT12: 10.83 | AU12: 19.59 | AV12: 27.34 | AW12: 41.64 | AX12: 70.56 | AY12: 120.23 | AZ12: 182.24 | BA12: 303.64 | BB12: 471.79 | BC12: 714.95 | BD12: 1056.27 | BE12: 1512.8 | BF12: 1970.51 | BG12: 2427.39 | BH12: 2754.43 | BI12: 2749.35 | BJ12: 2467.19 | BK12: 1839.19
A13: Alle tumoren | C13: 1995 | D13: 20.44 | E13: 13.12 | F13: 13.42 | G13: 22.24 | H13: 28.01 | I13: 41.49 | J13: 58.7 | K13: 69.43 | L13: 121.8 | M13: 215.6 | N13: 396.61 | O13: 678.14 | P13: 1218.13 | Q13: 1892.47 | R13: 2650.1 | S13: 3454.76 | T13: 3782.6 | U13: 3620.16 | V13: 2923.75 | W13: 2735.98 | X13: 17.47 | Y13: 10.07 | Z13: 11.09 | AA13: 18.64 | AB13: 25.71 | AC13: 45.7 | AD13: 96.97 | AE13: 150.96 | AF13: 239.2 | AG13: 389.27 | AH13: 568.35 | AI13: 686.99 | AJ13: 897.7 | AK13: 1071.24 | AL13: 1224.12 | AM13: 1503.41 | AN13: 1625.28 | AO13: 1615.71 | AP13: 1478.72 | AQ13: 1240.85 | AR13: 18.95 | AS13: 11.6 | AT13: 12.26 | AU13: 20.44 | AV13: 26.86 | AW13: 43.6 | AX13: 77.84 | AY13: 110.2 | AZ13: 180.5 | BA13: 302.44 | BB13: 482.48 | BC13: 682.57 | BD13: 1057.92 | BE13: 1481.86 | BF13: 1937.11 | BG13: 2479.08 | BH13: 2703.94 | BI13: 2617.93 | BJ13: 2201.24 | BK13: 1988.42
A14: Alle tumoren | C14: 1996 | D14: 25.2 | E14: 11.28 | F14: 14.67 | G14: 23.25 | H14: 30.55 | I14: 44.06 | J14: 54.7 | K14: 79 | L14: 128.8 | M14: 221.86 | N14: 392.04 | O14: 702.84 | P14: 1208.37 | Q14: 1950.51 | R14: 2736.31 | S14: 3376.77 | T14: 3586.14 | U14: 3732.84 | V14: 3218.6 | W14: 2053.86 | X14: 20.76 | Y14: 8.43 | Z14: 10.59 | AA14: 20.81 | AB14: 30.58 | AC14: 48.66 | AD14: 94.31 | AE14: 158.34 | AF14: 251.41 | AG14: 399.76 | AH14: 566.22 | AI14: 696.2 | AJ14: 869.79 | AK14: 1103.52 | AL14: 1230.09 | AM14: 1510.73 | AN14: 1685.04 | AO14: 1628.08 | AP14: 1524.35 | AQ14: 1436.75 | AR14: 22.98 | AS14: 9.86 | AT14: 12.63 | AU14: 22.03 | AV14: 30.56 | AW14: 46.36 | AX14: 74.5 | AY14: 118.67 | AZ14: 190.1 | BA14: 310.81 | BB14: 479.13 | BC14: 699.52 | BD14: 1039.08 | BE14: 1527.02 | BF14: 1983.2 | BG14: 2443.75 | BH14: 2635.59 | BI14: 2680.46 | BJ14: 2371.48 | BK14: 1745.3
A15: Alle tumoren | C15: 1997 | D15: 23.14 | E15: 10.16 | F15: 10.85 | G15: 20.06 | H15: 30.04 | I15: 39.11 | J15: 52.74 | K15: 71.5 | L15: 122.26 | M15: 221.73 | N15: 387.44 | O15: 708.4 | P15: 1200.31 | Q15: 1950.69 | R15: 2628.37 | S15: 3239.77 | T15: 3562.77 | U15: 3499.51 | V15: 2797.79 | W15: 2191.9 | X15: 17.72 | Y15: 8.13 | Z15: 13.12 | AA15: 18.78 | AB15: 26.96 | AC15: 48.38 | AD15: 91.75 | AE15: 151.58 | AF15: 248.71 | AG15: 416.48 | AH15: 600.16 | AI15: 713.97 | AJ15: 875.25 | AK15: 1101.44 | AL15: 1210.42 | AM15: 1495.11 | AN15: 1651.49 | AO15: 1733.18 | AP15: 1382.49 | AQ15: 1113.01 | AR15: 20.43 | AS15: 9.14 | AT15: 11.99 | AU15: 19.42 | AV15: 28.5 | AW15: 43.75 | AX15: 72.24 | AY15: 111.54 | AZ15: 185.48 | BA15: 319.11 | BB15: 493.8 | BC15: 711.18 | BD15: 1037.78 | BE15: 1526.06 | BF15: 1919.39 | BG15: 2367.44 | BH15: 2607.13 | BI15: 2616.34 | BJ15: 2090.14 | BK15: 1652.46
A16: Alle tumoren | C16: 1998 | D16: 25.11 | E16: 12.44 | F16: 13.79 | G16: 23.25 | H16: 34.21 | I16: 42.9 | J16: 52.79 | K16: 68.68 | L16: 111.95 | M16: 207.83 | N16: 390.73 | O16: 697.94 | P16: 1205.64 | Q16: 1881.92 | R16: 2627.83 | S16: 3270.35 | T16: 3381.14 | U16: 3504.82 | V16: 2997.42 | W16: 2230.97 | X16: 17.89 | Y16: 10.54 | Z16: 11.14 | AA16: 19.03 | AB16: 29.43 | AC16: 49.96 | AD16: 101.17 | AE16: 157.27 | AF16: 253.99 | AG16: 412.77 | AH16: 587.61 | AI16: 688.01 | AJ16: 893.06 | AK16: 1087.27 | AL16: 1292.84 | AM16: 1559.7 | AN16: 1643.18 | AO16: 1637.52 | AP16: 1553.95 | AQ16: 1088.2 | AR16: 21.5 | AS16: 11.49 | AT16: 12.47 | AU16: 21.14 | AV16: 31.82 | AW16: 46.43 | AX16: 76.98 | AY16: 112.98 | AZ16: 182.97 | BA16: 310.3 | BB16: 489.17 | BC16: 692.97 | BD16: 1049.35 | BE16: 1484.6 | BF16: 1960.33 | BG16: 2415.02 | BH16: 2512.16 | BI16: 2571.17 | BJ16: 2275.68 | BK16: 1659.58
A17: Alle tumoren | C17: 1999 | D17: 22.33 | E17: 14.89 | F17: 11.51 | G17: 23.64 | H17: 34.34 | I17: 45.7 | J17: 56.01 | K17: 75.84 | L17: 112.73 | M17: 200.73 | N17: 393.51 | O17: 696.22 | P17: 1207.18 | Q17: 1896.44 | R17: 2644.5 | S17: 3282.27 | T17: 3375.22 | U17: 3227.08 | V17: 2779.7 | W17: 2223.17 | X17: 16.1 | Y17: 5.95 | Z17: 11.16 | AA17: 17.04 | AB17: 28.82 | AC17: 55.82 | AD17: 97.37 | AE17: 157.87 | AF17: 276.98 | AG17: 412.19 | AH17: 594.09 | AI17: 702.31 | AJ17: 904.32 | AK17: 1101.86 | AL17: 1423 | AM17: 1599.63 | AN17: 1724.45 | AO17: 1567.04 | AP17: 1498.33 | AQ17: 1139.86 | AR17: 19.21 | AS17: 10.42 | AT17: 11.33 | AU17: 20.34 | AV17: 31.58 | AW17: 50.76 | AX17: 76.69 | AY17: 116.86 | AZ17: 194.85 | BA17: 306.46 | BB17: 493.8 | BC17: 699.26 | BD17: 1055.75 | BE17: 1499.15 | BF17: 2033.75 | BG17: 2440.95 | BH17: 2549.83 | BI17: 2397.06 | BJ17: 2139.02 | BK17: 1681.52
A18: Alle tumoren | C18: 2000 | D18: 20.08 | E18: 15.07 | F18: 14.72 | G18: 23.12 | H18: 32.78 | I18: 47.45 | J18: 57.33 | K18: 72.61 | L18: 124.34 | M18: 203.18 | N18: 389.24 | O18: 713.16 | P18: 1211.97 | Q18: 1883.79 | R18: 2587.34 | S18: 3178.34 | T18: 3439.56 | U18: 3304.06 | V18: 2463.75 | W18: 2298.85 | X18: 20.24 | Y18: 10.04 | Z18: 10.11 | AA18: 16.11 | AB18: 27.62 | AC18: 53.34 | AD18: 88.92 | AE18: 155.39 | AF18: 250.35 | AG18: 436.16 | AH18: 585.97 | AI18: 752.19 | AJ18: 901.45 | AK18: 1136.85 | AL18: 1431.19 | AM18: 1542.73 | AN18: 1616.77 | AO18: 1681.74 | AP18: 1437.59 | AQ18: 1054.07 | AR18: 20.16 | AS18: 12.56 | AT18: 12.42 | AU18: 19.61 | AV18: 30.2 | AW18: 50.4 | AX18: 73.12 | AY18: 114 | AZ18: 187.34 | BA18: 319.67 | BB18: 487.61 | BC18: 732.67 | BD18: 1056.71 | BE18: 1510.32 | BF18: 2009.27 | BG18: 2360.53 | BH18: 2528.17 | BI18: 2492.9 | BJ18: 1950.67 | BK18: 1676.46
A19: Alle tumoren | C19: 2001 | D19: 21.14 | E19: 14.57 | F19: 14.06 | G19: 22.72 | H19: 38.28 | I19: 49.07 | J19: 55.83 | K19: 78.18 | L19: 114.7 | M19: 202.12 | N19: 392.4 | O19: 714.42 | P19: 1196.07 | Q19: 1879.62 | R19: 2639.06 | S19: 3224.68 | T19: 3373.1 | U19: 3375.05 | V19: 2675 | W19: 2208.07 | X19: 20.92 | Y19: 9.28 | Z19: 10.57 | AA19: 19.71 | AB19: 33.05 | AC19: 52.1 | AD19: 99.43 | AE19: 163.15 | AF19: 278.85 | AG19: 419.97 | AH19: 613.85 | AI19: 758.82 | AJ19: 950.59 | AK19: 1117.17 | AL19: 1399.2 | AM19: 1538.91 | AN19: 1721.82 | AO19: 1744.26 | AP19: 1406.16 | AQ19: 1015.71 | AR19: 21.03 | AS19: 11.93 | AT19: 12.31 | AU19: 21.21 | AV19: 35.67 | AW19: 50.59 | AX19: 77.63 | AY19: 120.67 | AZ19: 196.77 | BA19: 311.04 | BB19: 503.13 | BC19: 736.62 | BD19: 1073.33 | BE19: 1498.4 | BF19: 2019.13 | BG19: 2381.79 | BH19: 2547.46 | BI19: 2559.66 | BJ19: 2040.58 | BK19: 1611.89
A20: Alle tumoren | C20: 2002 | D20: 23.61 | E20: 16.04 | F20: 13.12 | G20: 23.8 | H20: 37.48 | I20: 44.94 | J20: 61.45 | K20: 83.58 | L20: 119.91 | M20: 207.25 | N20: 399.25 | O20: 703.93 | P20: 1202.18 | Q20: 1876.24 | R20: 2657.32 | S20: 3285.48 | T20: 3445.75 | U20: 3357.01 | V20: 3065.69 | W20: 1740.98 | X20: 18.49 | Y20: 9.75 | Z20: 11.89 | AA20: 20.08 | AB20: 30.38 | AC20: 56.32 | AD20: 96.08 | AE20: 164.44 | AF20: 262.98 | AG20: 428.12 | AH20: 597.44 | AI20: 762.49 | AJ20: 963.24 | AK20: 1185.27 | AL20: 1396.55 | AM20: 1543.24 | AN20: 1760.17 | AO20: 1702.06 | AP20: 1467.2 | AQ20: 820.57 | AR20: 21.05 | AS20: 12.9 | AT20: 12.5 | AU20: 21.94 | AV20: 33.93 | AW20: 50.63 | AX20: 78.77 | AY20: 124.01 | AZ20: 191.45 | BA20: 317.68 | BB20: 498.35 | BC20: 733.21 | BD20: 1082.71 | BE20: 1530.75 | BF20: 2026.93 | BG20: 2414.36 | BH20: 2602.96 | BI20: 2529.53 | BJ20: 2266.45 | BK20: 1280.77
A21: Alle tumoren | C21: 2003 | D21: 23.71 | E21: 12.3 | F21: 16.53 | G21: 24.26 | H21: 40.35 | I21: 49.11 | J21: 56.63 | K21: 82.62 | L21: 123.27 | M21: 216.36 | N21: 404.99 | O21: 725.66 | P21: 1238.43 | Q21: 1943.04 | R21: 2672.45 | S21: 3277.16 | T21: 3546.14 | U21: 3534.54 | V21: 2879.51 | W21: 2162.39 | X21: 16.84 | Y21: 11.01 | Z21: 13.23 | AA21: 16.57 | AB21: 32.07 | AC21: 51.47 | AD21: 101.91 | AE21: 156.66 | AF21: 278.09 | AG21: 443.72 | AH21: 604.48 | AI21: 812.97 | AJ21: 958.86 | AK21: 1182.98 | AL21: 1449.32 | AM21: 1559.7 | AN21: 1812.41 | AO21: 1816.67 | AP21: 1515.23 | AQ21: 1291.64 | AR21: 20.27 | AS21: 11.65 | AT21: 14.88 | AU21: 20.41 | AV21: 36.21 | AW21: 50.29 | AX21: 79.27 | AY21: 119.64 | AZ21: 200.68 | BA21: 330.04 | BB21: 504.74 | BC21: 769.32 | BD21: 1098.64 | BE21: 1563.01 | BF21: 2060.88 | BG21: 2418.43 | BH21: 2679.28 | BI21: 2675.6 | BJ21: 2197.37 | BK21: 1727.02
A22: Alle tumoren | C22: 2004 | D22: 19.62 | E22: 15.24 | F22: 16.85 | G22: 27.45 | H22: 38.99 | I22: 51.13 | J22: 66.43 | K22: 84.18 | L22: 135.2 | M22: 221.05 | N22: 416 | O22: 785.63 | P22: 1304.53 | Q22: 2068.42 | R22: 2827.67 | S22: 3347.73 | T22: 3741.08 | U22: 3431.62 | V22: 3093.77 | W22: 2211.1 | X22: 19.35 | Y22: 10.79 | Z22: 12.58 | AA22: 14.06 | AB22: 27.75 | AC22: 54.37 | AD22: 104.47 | AE22: 160.68 | AF22: 283.83 | AG22: 454.1 | AH22: 629.88 | AI22: 785.56 | AJ22: 997.16 | AK22: 1239.58 | AL22: 1441.99 | AM22: 1601.23 | AN22: 1860.71 | AO22: 1882.45 | AP22: 1741.39 | AQ22: 1152.19 | AR22: 19.49 | AS22: 13.01 | AT22: 14.72 | AU22: 20.76 | AV22: 33.37 | AW22: 52.75 | AX22: 85.45 | AY22: 122.43 | AZ22: 209.51 | BA22: 337.58 | BB22: 522.94 | BC22: 785.6 | BD22: 1150.85 | BE22: 1654 | BF22: 2134.83 | BG22: 2474.48 | BH22: 2800.9 | BI22: 2657.04 | BJ22: 2417.58 | BK22: 1681.64
A23: Alle tumoren | C23: 2005 | D23: 27.58 | E23: 13.18 | F23: 11.68 | G23: 24.83 | H23: 39.9 | I23: 51.85 | J23: 67.98 | K23: 86.48 | L23: 118.28 | M23: 219.56 | N23: 414 | O23: 752.14 | P23: 1318.58 | Q23: 1985 | R23: 2790.16 | S23: 3364.36 | T23: 3582.83 | U23: 3518.71 | V23: 3191.71 | W23: 2234.86 | X23: 20.69 | Y23: 11.55 | Z23: 10.2 | AA23: 22.62 | AB23: 31.78 | AC23: 48.3 | AD23: 102.4 | AE23: 158.6 | AF23: 283.89 | AG23: 432.13 | AH23: 616.75 | AI23: 806.59 | AJ23: 1007.11 | AK23: 1236.36 | AL23: 1523.94 | AM23: 1654.18 | AN23: 1890.55 | AO23: 1984.8 | AP23: 1735.27 | AQ23: 1153.83 | AR23: 24.14 | AS23: 12.36 | AT23: 10.94 | AU23: 23.73 | AV23: 35.84 | AW23: 50.08 | AX23: 85.19 | AY23: 122.54 | AZ23: 201.09 | BA23: 325.84 | BB23: 515.37 | BC23: 779.37 | BD23: 1162.85 | BE23: 1610.68 | BF23: 2157.05 | BG23: 2509.27 | BH23: 2736.69 | BI23: 2751.75 | BJ23: 2463.49 | BK23: 1694.35
A24: Alle tumoren | C24: 2006 | D24: 22.59 | E24: 15.61 | F24: 13.79 | G24: 21.44 | H24: 36.89 | I24: 56.43 | J24: 67.44 | K24: 88.43 | L24: 121.21 | M24: 208.96 | N24: 409.71 | O24: 788.92 | P24: 1355.75 | Q24: 2033.89 | R24: 2696.11 | S24: 3411.47 | T24: 3671.85 | U24: 3670.06 | V24: 2999.43 | W24: 3072.68 | X24: 19.9 | Y24: 10.82 | Z24: 11.98 | AA24: 21.79 | AB24: 29.74 | AC24: 54.6 | AD24: 106.23 | AE24: 167.62 | AF24: 274.21 | AG24: 465.44 | AH24: 650.21 | AI24: 791.34 | AJ24: 1043.22 | AK24: 1246.07 | AL24: 1552.72 | AM24: 1651.27 | AN24: 1932.88 | AO24: 1992.37 | AP24: 1705.43 | AQ24: 1169.17 | AR24: 21.25 | AS24: 13.22 | AT24: 12.88 | AU24: 21.62 | AV24: 33.32 | AW24: 55.52 | AX24: 86.83 | AY24: 128.02 | AZ24: 197.71 | BA24: 337.2 | BB24: 529.96 | BC24: 790.13 | BD24: 1199.48 | BE24: 1639.98 | BF24: 2124.41 | BG24: 2531.37 | BH24: 2802.37 | BI24: 2831.21 | BJ24: 2352.43 | BK24: 2120.92
A25: Alle tumoren | C25: 2007 | D25: 22.07 | E25: 12.22 | F25: 13.53 | G25: 24.61 | H25: 40.29 | I25: 56.92 | J25: 67.08 | K25: 88.8 | L25: 125.24 | M25: 212.53 | N25: 407.61 | O25: 785.4 | P25: 1367.77 | Q25: 2039.81 | R25: 2833.78 | S25: 3463.48 | T25: 3685.48 | U25: 3735.36 | V25: 3123.47 | W25: 2709.82 | X25: 22.48 | Y25: 9.53 | Z25: 11.47 | AA25: 20.01 | AB25: 35.18 | AC25: 60.3 | AD25: 112.55 | AE25: 176.62 | AF25: 291.88 | AG25: 461.74 | AH25: 647.41 | AI25: 817.76 | AJ25: 1059.4 | AK25: 1288.33 | AL25: 1588.48 | AM25: 1703.36 | AN25: 1906.76 | AO25: 1983.82 | AP25: 1741.37 | AQ25: 1499.54 | AR25: 22.28 | AS25: 10.88 | AT25: 12.5 | AU25: 22.31 | AV25: 37.73 | AW25: 58.61 | AX25: 89.82 | AY25: 132.71 | AZ25: 208.56 | BA25: 337.14 | BB25: 527.51 | BC25: 801.58 | BD25: 1213.58 | BE25: 1664.07 | BF25: 2211.13 | BG25: 2583.42 | BH25: 2796.12 | BI25: 2859.59 | BJ25: 2432.42 | BK25: 2104.68
A26: Alle tumoren | C26: 2008 | D26: 20.41 | E26: 16.24 | F26: 13.16 | G26: 25.83 | H26: 36.64 | I26: 52.91 | J26: 74.92 | K26: 90.51 | L26: 131.16 | M26: 224.21 | N26: 432.23 | O26: 777.45 | P26: 1368.32 | Q26: 2060.08 | R26: 2830.24 | S26: 3510.74 | T26: 3840.59 | U26: 3678.91 | V26: 3201.07 | W26: 2780.25 | X26: 18.98 | Y26: 16 | Z26: 15.47 | AA26: 22.32 | AB26: 31.98 | AC26: 68.65 | AD26: 106.26 | AE26: 173.68 | AF26: 286.15 | AG26: 455.24 | AH26: 681.21 | AI26: 811.47 | AJ26: 1102.79 | AK26: 1347.98 | AL26: 1616.8 | AM26: 1733.02 | AN26: 2044.93 | AO26: 2072.6 | AP26: 1791.49 | AQ26: 1214.56 | AR26: 19.69 | AS26: 16.12 | AT26: 14.31 | AU26: 24.08 | AV26: 34.31 | AW26: 60.78 | AX26: 90.59 | AY26: 132.09 | AZ26: 208.66 | BA26: 339.72 | BB26: 556.72 | BC26: 794.46 | BD26: 1235.56 | BE26: 1704.03 | BF26: 2223.52 | BG26: 2621.88 | BH26: 2942.76 | BI26: 2875.75 | BJ26: 2496.28 | BK26: 1997.41
A27: Alle tumoren | C27: 2009 | D27: 19.37 | E27: 13.98 | F27: 13.52 | G27: 24.91 | H27: 34.83 | I27: 68.5 | J27: 73.61 | K27: 90.59 | L27: 129.63 | M27: 226.93 | N27: 421.48 | O27: 789.88 | P27: 1338.67 | Q27: 2095.52 | R27: 2820.29 | S27: 3530.86 | T27: 3924.09 | U27: 3826.14 | V27: 3499.38 | W27: 2547.14 | X27: 15.45 | Y27: 10.57 | Z27: 12.71 | AA27: 21 | AB27: 33.42 | AC27: 61.62 | AD27: 114.89 | AE27: 188.14 | AF27: 297.45 | AG27: 468.88 | AH27: 663.74 | AI27: 816.58 | AJ27: 1079.04 | AK27: 1399.12 | AL27: 1582.37 | AM27: 1789.15 | AN27: 2001.64 | AO27: 2047.89 | AP27: 1840.44 | AQ27: 1501.98 | AR27: 17.41 | AS27: 12.28 | AT27: 13.12 | AU27: 22.96 | AV27: 34.13 | AW27: 65.06 | AX27: 94.25 | AY27: 139.36 | AZ27: 213.54 | BA27: 347.91 | BB27: 542.61 | BC27: 803.23 | BD27: 1208.85 | BE27: 1747.32 | BF27: 2201.33 | BG27: 2660 | BH27: 2962.87 | BI27: 2937.01 | BJ27: 2669.91 | BK27: 2024.56
A28: Alle tumoren | C28: 2010 | D28: 25.59 | E28: 12.79 | F28: 16.35 | G28: 23.21 | H28: 37.12 | I28: 60.17 | J28: 79.88 | K28: 90.48 | L28: 129.83 | M28: 238.7 | N28: 425.14 | O28: 782.57 | P28: 1356.8 | Q28: 2133.43 | R28: 2803.42 | S28: 3661.05 | T28: 3993.49 | U28: 3841.2 | V28: 3738.9 | W28: 2855.35 | X28: 26.38 | Y28: 10.7 | Z28: 11.15 | AA28: 20.85 | AB28: 32.77 | AC28: 60.98 | AD28: 109.57 | AE28: 178.65 | AF28: 268.22 | AG28: 454.81 | AH28: 669.77 | AI28: 824.35 | AJ28: 1120.65 | AK28: 1422.93 | AL28: 1697.85 | AM28: 1825.28 | AN28: 2066.51 | AO28: 2166.17 | AP28: 1889.23 | AQ28: 1550.03 | AR28: 25.98 | AS28: 11.74 | AT28: 13.75 | AU28: 22.03 | AV28: 34.94 | AW28: 60.58 | AX28: 94.72 | AY28: 134.57 | AZ28: 199.02 | BA28: 346.75 | BB28: 547.45 | BC28: 803.46 | BD28: 1238.73 | BE28: 1778.18 | BF28: 2250.64 | BG28: 2743.16 | BH28: 3030 | BI28: 3003.68 | BJ28: 2814.06 | BK28: 2202.69
A29: Alle tumoren | C29: 2011 | D29: 22.07 | E29: 12.2 | F29: 14.81 | G29: 26.51 | H29: 45.19 | I29: 55.06 | J29: 82.9 | K29: 102.08 | L29: 141.77 | M29: 231.1 | N29: 425.82 | O29: 832.06 | P29: 1395.88 | Q29: 2176.48 | R29: 2902.77 | S29: 3647.76 | T29: 4025.1 | U29: 3924.53 | V29: 3514.25 | W29: 2340.43 | X29: 22.46 | Y29: 12.16 | Z29: 14.47 | AA29: 23.09 | AB29: 37.05 | AC29: 63.44 | AD29: 108 | AE29: 183.96 | AF29: 297.12 | AG29: 495.59 | AH29: 686.44 | AI29: 859.49 | AJ29: 1141.68 | AK29: 1480.32 | AL29: 1711.2 | AM29: 1876.39 | AN29: 2137.6 | AO29: 2155.3 | AP29: 1926.57 | AQ29: 1483.38 | AR29: 22.26 | AS29: 12.18 | AT29: 14.64 | AU29: 24.8 | AV29: 41.12 | AW29: 59.25 | AX29: 95.45 | AY29: 143.02 | AZ29: 219.44 | BA29: 363.35 | BB29: 556.13 | BC29: 845.77 | BD29: 1268.78 | BE29: 1828.4 | BF29: 2306.98 | BG29: 2762.07 | BH29: 3081.35 | BI29: 3039.91 | BJ29: 2720.41 | BK29: 1911.9
A30: Alle tumoren | C30: 2012 | D30: 20.7 | E30: 13.24 | F30: 13.53 | G30: 24.34 | H30: 38.13 | I30: 61.46 | J30: 78.37 | K30: 99.13 | L30: 133.97 | M30: 231.33 | N30: 410.69 | O30: 789.41 | P30: 1359.47 | Q30: 2120.1 | R30: 2852.19 | S30: 3546.94 | T30: 3791.7 | U30: 3991.94 | V30: 3273.61 | W30: 2703.1 | X30: 21.94 | Y30: 10.46 | Z30: 13.13 | AA30: 22.22 | AB30: 33.8 | AC30: 64.38 | AD30: 118.83 | AE30: 172.01 | AF30: 282.7 | AG30: 465.48 | AH30: 661.9 | AI30: 850.19 | AJ30: 1141.18 | AK30: 1489.48 | AL30: 1795.9 | AM30: 1885.89 | AN30: 2056.03 | AO30: 2126.42 | AP30: 1808.66 | AQ30: 1414.64 | AR30: 21.32 | AS30: 11.85 | AT30: 13.33 | AU30: 23.28 | AV30: 35.96 | AW30: 62.92 | AX30: 98.6 | AY30: 135.57 | AZ30: 208.34 | BA30: 348.41 | BB30: 536.29 | BC30: 819.8 | BD30: 1250.33 | BE30: 1804.79 | BF30: 2324.04 | BG30: 2716.42 | BH30: 2923.86 | BI30: 3059.18 | BJ30: 2541.14 | BK30: 2058.87
A31: Alle tumoren | C31: 2013 | D31: 26.75 | E31: 13.47 | F31: 14.82 | G31: 25.17 | H31: 43.47 | I31: 62.23 | J31: 81.77 | K31: 97.56 | L31: 134.55 | M31: 238.25 | N31: 420.47 | O31: 794.01 | P31: 1313.35 | Q31: 2064.53 | R31: 2799.56 | S31: 3358.83 | T31: 3775.82 | U31: 3696.07 | V31: 3013.82 | W31: 2476.78 | X31: 19.48 | Y31: 11.51 | Z31: 14.1 | AA31: 19.76 | AB31: 32.09 | AC31: 63.6 | AD31: 111.91 | AE31: 178.78 | AF31: 307.49 | AG31: 461.01 | AH31: 655.31 | AI31: 822.58 | AJ31: 1148.67 | AK31: 1467.25 | AL31: 1745.08 | AM31: 1877.53 | AN31: 2061.85 | AO31: 1988.2 | AP31: 1736.98 | AQ31: 1444.69 | AR31: 23.12 | AS31: 12.49 | AT31: 14.46 | AU31: 22.46 | AV31: 37.78 | AW31: 62.91 | AX31: 96.84 | AY31: 138.17 | AZ31: 221.02 | BA31: 349.63 | BB31: 537.89 | BC31: 808.3 | BD31: 1231.01 | BE31: 1765.89 | BF31: 2272.32 | BG31: 2618.18 | BH31: 2918.84 | BI31: 2842.14 | BJ31: 2375.4 | BK31: 1960.73
A32: Alle tumoren | C32: 2014 | D32: 20.99 | E32: 14.87 | F32: 17.77 | G32: 27.01 | H32: 46.11 | I32: 62.36 | J32: 75.4 | K32: 94.34 | L32: 141.98 | M32: 229.74 | N32: 410.96 | O32: 719.39 | P32: 1302.37 | Q32: 2037.11 | R32: 2669.82 | S32: 3523.53 | T32: 3627.55 | U32: 3555.01 | V32: 3117.1 | W32: 2184.92 | X32: 19.28 | Y32: 12.96 | Z32: 11.52 | AA32: 24.2 | AB32: 34.62 | AC32: 68.37 | AD32: 129.98 | AE32: 185.76 | AF32: 300.62 | AG32: 466.61 | AH32: 658.19 | AI32: 810.4 | AJ32: 1132.59 | AK32: 1534.27 | AL32: 1835.97 | AM32: 1969.25 | AN32: 2077.78 | AO32: 1952.2 | AP32: 1772.5 | AQ32: 1241.08 | AR32: 20.14 | AS32: 13.91 | AT32: 14.64 | AU32: 25.61 | AV32: 40.37 | AW32: 65.37 | AX32: 102.69 | AY32: 140.05 | AZ32: 221.3 | BA32: 348.17 | BB32: 534.57 | BC32: 764.89 | BD32: 1217.48 | BE32: 1785.69 | BF32: 2252.89 | BG32: 2746.39 | BH32: 2852.67 | BI32: 2753.6 | BJ32: 2444.8 | BK32: 1713
A33: Alle tumoren | C33: 2015 | D33: 23.89 | E33: 15.34 | F33: 16.81 | G33: 27.47 | H33: 34.52 | I33: 59.43 | J33: 72.95 | K33: 96.57 | L33: 152.56 | M33: 221.54 | N33: 401.74 | O33: 712.26 | P33: 1381.48 | Q33: 2156.22 | R33: 2708.88 | S33: 3282.69 | T33: 3622.96 | U33: 3407.9 | V33: 2789.41 | W33: 2439.61 | X33: 19.74 | Y33: 10.14 | Z33: 12.88 | AA33: 22.52 | AB33: 30.05 | AC33: 66.76 | AD33: 114.03 | AE33: 198.82 | AF33: 284.97 | AG33: 448.95 | AH33: 678.92 | AI33: 810.76 | AJ33: 1194.3 | AK33: 1565.42 | AL33: 1765.38 | AM33: 1862.88 | AN33: 2020.36 | AO33: 1898.54 | AP33: 1713.45 | AQ33: 1184.31 | AR33: 21.82 | AS33: 12.74 | AT33: 14.84 | AU33: 24.99 | AV33: 32.29 | AW33: 63.1 | AX33: 93.49 | AY33: 147.7 | AZ33: 218.77 | BA33: 335.24 | BB33: 540.33 | BC33: 761.51 | BD33: 1287.89 | BE33: 1860.82 | BF33: 2237.13 | BG33: 2572.78 | BH33: 2821.66 | BI33: 2653.22 | BJ33: 2251.43 | BK33: 1811.96
A34: Alle tumoren | C34: 2016 | D34: 23.65 | E34: 12.61 | F34: 14.86 | G34: 28.14 | H34: 38.58 | I34: 60.21 | J34: 79.92 | K34: 100.29 | L34: 132.78 | M34: 233.25 | N34: 407.22 | O34: 774.58 | P34: 1383.39 | Q34: 2010.98 | R34: 2908.73 | S34: 3327.29 | T34: 3701.03 | U34: 3510.12 | V34: 2997.8 | W34: 2558.04 | X34: 19.7 | Y34: 9.92 | Z34: 14.53 | AA34: 23.35 | AB34: 34.9 | AC34: 68.71 | AD34: 126.07 | AE34: 192 | AF34: 297.86 | AG34: 460.26 | AH34: 689.66 | AI34: 841.57 | AJ34: 1185.96 | AK34: 1460.13 | AL34: 1907.8 | AM34: 1911.31 | AN34: 2107.92 | AO34: 1942.25 | AP34: 1683.62 | AQ34: 1396 | AR34: 21.68 | AS34: 11.26 | AT34: 14.69 | AU34: 25.74 | AV34: 36.74 | AW34: 64.46 | AX34: 103 | AY34: 146.15 | AZ34: 215.32 | BA34: 346.75 | BB34: 548.44 | BC34: 808.07 | BD34: 1284.68 | BE34: 1735.55 | BF34: 2408.26 | BG34: 2619.3 | BH34: 2904.47 | BI34: 2726.19 | BJ34: 2340.71 | BK34: 1977.02
A35: Luchtpijp | C35: 1989 | D35: 0 | E35: 0 | F35: 0 | G35: 0 | H35: 0 | I35: 0 | J35: 0 | K35: 0.17 | L35: 0.17 | M35: 0.44 | N35: 0.51 | O35: 0.83 | P35: 0.63 | Q35: 0.71 | R35: 1.01 | S35: 0 | T35: 0 | U35: 0 | V35: 0 | W35: 0 | X35: 0 | Y35: 0 | Z35: 0 | AA35: 0 | AB35: 0 | AC35: 0 | AD35: 0 | AE35: 0 | AF35: 0 | AG35: 0 | AH35: 0.52 | AI35: 0.27 | AJ35: 0 | AK35: 0.29 | AL35: 0 | AM35: 0 | AN35: 0 | AO35: 1.14 | AP35: 0 | AQ35: 0 | AR35: 0 | AS35: 0 | AT35: 0 | AU35: 0 | AV35: 0 | AW35: 0 | AX35: 0 | AY35: 0.09 | AZ35: 0.08 | BA35: 0.22 | BB35: 0.52 | BC35: 0.55 | BD35: 0.31 | BE35: 0.5 | BF35: 0.5 | BG35: 0 | BH35: 0 | BI35: 0.57 | BJ35: 0 | BK35: 0
A36: Luchtpijp | C36: 1990 | D36: 0 | E36: 0 | F36: 0 | G36: 0 | H36: 0 | I36: 0 | J36: 0 | K36: 0 | L36: 0.16 | M36: 0 | N36: 0 | O36: 0.56 | P36: 0 | Q36: 0.71 | R36: 1.48 | S36: 0 | T36: 1.21 | U36: 0 | V36: 0 | W36: 0 | X36: 0 | Y36: 0 | Z36: 0 | AA36: 0 | AB36: 0 | AC36: 0 | AD36: 0 | AE36: 0 | AF36: 0 | AG36: 0.23 | AH36: 0.26 | AI36: 0 | AJ36: 0.28 | AK36: 0 | AL36: 0.36 | AM36: 0.42 | AN36: 0 | AO36: 0 | AP36: 0 | AQ36: 0 | AR36: 0 | AS36: 0 | AT36: 0 | AU36: 0 | AV36: 0 | AW36: 0 | AX36: 0 | AY36: 0 | AZ36: 0.08 | BA36: 0.11 | BB36: 0.13 | BC36: 0.28 | BD36: 0.14 | BE36: 0.35 | BF36: 0.92 | BG36: 0.21 | BH36: 0.6 | BI36: 0 | BJ36: 0 | BK36: 0
A37: Luchtpijp | C37: 1991 | D37: 0 | E37: 0 | F37: 0 | G37: 0 | H37: 0 | I37: 0 | J37: 0 | K37: 0 | L37: 0.33 | M37: 0 | N37: 0.24 | O37: 0.28 | P37: 0.61 | Q37: 1.06 | R37: 0.95 | S37: 0.68 | T37: 1.2 | U37: 0 | V37: 0 | W37: 0 | X37: 0 | Y37: 0 | Z37: 0 | AA37: 0 | AB37: 0 | AC37: 0 | AD37: 0 | AE37: 0 | AF37: 0 | AG37: 0.21 | AH37: 0 | AI37: 0 | AJ37: 0 | AK37: 0 | AL37: 0 | AM37: 0 | AN37: 1.16 | AO37: 0 | AP37: 0 | AQ37: 0 | AR37: 0 | AS37: 0 | AT37: 0 | AU37: 0 | AV37: 0 | AW37: 0 | AX37: 0 | AY37: 0 | AZ37: 0.16 | BA37: 0.11 | BB37: 0.12 | BC37: 0.14 | BD37: 0.31 | BE37: 0.53 | BF37: 0.47 | BG37: 0.34 | BH37: 1.18 | BI37: 0 | BJ37: 0 | BK37: 0
A38: Luchtpijp | C38: 1992 | D38: 0 | E38: 0 | F38: 0 | G38: 0 | H38: 0 | I38: 0 | J38: 0 | K38: 0 | L38: 0 | M38: 0 | N38: 0.24 | O38: 0.27 | P38: 0.6 | Q38: 0.71 | R38: 0.92 | S38: 1.34 | T38: 0 | U38: 0 | V38: 0 | W38: 0 | X38: 0 | Y38: 0 | Z38: 0 | AA38: 0 | AB38: 0 | AC38: 0 | AD38: 0 | AE38: 0 | AF38: 0 | AG38: 0.39 | AH38: 0 | AI38: 0 | AJ38: 0 | AK38: 0 | AL38: 0 | AM38: 0 | AN38: 0.57 | AO38: 0 | AP38: 0 | AQ38: 0 | AR38: 0 | AS38: 0 | AT38: 0 | AU38: 0 | AV38: 0 | AW38: 0 | AX38: 0 | AY38: 0 | AZ38: 0 | BA38: 0.2 | BB38: 0.12 | BC38: 0.14 | BD38: 0.3 | BE38: 0.35 | BF38: 0.46 | BG38: 0.67 | BH38: 0.29 | BI38: 0 | BJ38: 0 | BK38: 0
A39: Luchtpijp | C39: 1993 | D39: 0 | E39: 0 | F39: 0 | G39: 0 | H39: 0 | I39: 0 | J39: 0 | K39: 0 | L39: 0 | M39: 0.18 | N39: 0 | O39: 0.54 | P39: 0.3 | Q39: 0.35 | R39: 0.88 | S39: 3.38 | T39: 1.14 | U39: 2.62 | V39: 0 | W39: 0 | X39: 0 | Y39: 0 | Z39: 0 | AA39: 0 | AB39: 0 | AC39: 0 | AD39: 0 | AE39: 0 | AF39: 0 | AG39: 0 | AH39: 0 | AI39: 0.27 | AJ39: 0.56 | AK39: 0.89 | AL39: 0.33 | AM39: 0.42 | AN39: 0 | AO39: 0 | AP39: 0 | AQ39: 0 | AR39: 0 | AS39: 0 | AT39: 0 | AU39: 0 | AV39: 0 | AW39: 0 | AX39: 0 | AY39: 0 | AZ39: 0 | BA39: 0.09 | BB39: 0 | BC39: 0.41 | BD39: 0.43 | BE39: 0.62 | BF39: 0.61 | BG39: 1.9 | BH39: 0.57 | BI39: 1.31 | BJ39: 0 | BK39: 0
A40: Luchtpijp | C40: 1994 | D40: 0 | E40: 0 | F40: 0 | G40: 0 | H40: 0 | I40: 0 | J40: 0 | K40: 0 | L40: 0 | M40: 0 | N40: 0.45 | O40: 1.06 | P40: 1.19 | Q40: 0.35 | R40: 0.43 | S40: 0 | T40: 3.35 | U40: 2.58 | V40: 0 | W40: 0 | X40: 0 | Y40: 0 | Z40: 0 | AA40: 0 | AB40: 0 | AC40: 0 | AD40: 0 | AE40: 0.17 | AF40: 0 | AG40: 0 | AH40: 0 | AI40: 0.27 | AJ40: 0.28 | AK40: 0 | AL40: 0 | AM40: 0 | AN40: 0 | AO40: 0 | AP40: 0 | AQ40: 0 | AR40: 0 | AS40: 0 | AT40: 0 | AU40: 0 | AV40: 0 | AW40: 0 | AX40: 0 | AY40: 0.08 | AZ40: 0 | BA40: 0 | BB40: 0.23 | BC40: 0.67 | BD40: 0.73 | BE40: 0.18 | BF40: 0.21 | BG40: 0 | BH40: 1.68 | BI40: 1.29 | BJ40: 0 | BK40: 0
A41: Luchtpijp | C41: 1995 | D41: 0 | E41: 0 | F41: 0 | G41: 0 | H41: 0 | I41: 0 | J41: 0 | K41: 0 | L41: 0 | M41: 0 | N41: 0.44 | O41: 0.78 | P41: 0.59 | Q41: 1.04 | R41: 1.26 | S41: 1.32 | T41: 1.1 | U41: 2.54 | V41: 0 | W41: 0 | X41: 0 | Y41: 0 | Z41: 0 | AA41: 0 | AB41: 0 | AC41: 0 | AD41: 0 | AE41: 0 | AF41: 0.35 | AG41: 0 | AH41: 0 | AI41: 0.26 | AJ41: 0 | AK41: 0 | AL41: 0.32 | AM41: 0.42 | AN41: 0 | AO41: 0 | AP41: 0 | AQ41: 0 | AR41: 0 | AS41: 0 | AT41: 0 | AU41: 0 | AV41: 0 | AW41: 0 | AX41: 0 | AY41: 0 | AZ41: 0.18 | BA41: 0 | BB41: 0.22 | BC41: 0.52 | BD41: 0.3 | BE41: 0.52 | BF41: 0.79 | BG41: 0.87 | BH41: 0.55 | BI41: 1.27 | BJ41: 0 | BK41: 0
A42: Luchtpijp | C42: 1996 | D42: 0 | E42: 0 | F42: 0 | G42: 0 | H42: 0 | I42: 0 | J42: 0 | K42: 0 | L42: 0 | M42: 0.17 | N42: 0.41 | O42: 0.25 | P42: 0.29 | Q42: 1.02 | R42: 2.1 | S42: 0.63 | T42: 0 | U42: 0 | V42: 0 | W42: 0 | X42: 0 | Y42: 0 | Z42: 0 | AA42: 0 | AB42: 0 | AC42: 0 | AD42: 0 | AE42: 0 | AF42: 0.18 | AG42: 0 | AH42: 0 | AI42: 0 | AJ42: 0 | AK42: 0.3 | AL42: 0.32 | AM42: 0 | AN42: 0.54 | AO42: 0.94 | AP42: 0 | AQ42: 0 | AR42: 0 | AS42: 0 | AT42: 0 | AU42: 0 | AV42: 0 | AW42: 0 | AX42: 0 | AY42: 0 | AZ42: 0.09 | BA42: 0.08 | BB42: 0.21 | BC42: 0.13 | BD42: 0.15 | BE42: 0.66 | BF42: 1.21 | BG42: 0.32 | BH42: 0.27 | BI42: 0.47 | BJ42: 0 | BK42: 0
A43: Luchtpijp | C43: 1997 | D43: 0 | E43: 0 | F43: 0 | G43: 0 | H43: 0 | I43: 0 | J43: 0 | K43: 0 | L43: 0.17 | M43: 0.17 | N43: 0.38 | O43: 0.5 | P43: 0 | Q43: 1.68 | R43: 0.42 | S43: 0.61 | T43: 0 | U43: 2.47 | V43: 0 | W43: 0 | X43: 0 | Y43: 0 | Z43: 0 | AA43: 0 | AB43: 0 | AC43: 0 | AD43: 0 | AE43: 0 | AF43: 0 | AG43: 0.18 | AH43: 0.2 | AI43: 0.25 | AJ43: 0.28 | AK43: 0 | AL43: 0 | AM43: 0 | AN43: 0.54 | AO43: 1.86 | AP43: 0 | AQ43: 0 | AR43: 0 | AS43: 0 | AT43: 0 | AU43: 0 | AV43: 0 | AW43: 0 | AX43: 0 | AY43: 0 | AZ43: 0.08 | BA43: 0.17 | BB43: 0.29 | BC43: 0.38 | BD43: 0.14 | BE43: 0.84 | BF43: 0.21 | BG43: 0.3 | BH43: 0.27 | BI43: 2.16 | BJ43: 0 | BK43: 0
A44: Luchtpijp | C44: 1998 | D44: 0 | E44: 0 | F44: 0 | G44: 0 | H44: 0 | I44: 0 | J44: 0.15 | K44: 0 | L44: 0.17 | M44: 0.17 | N44: 0.36 | O44: 0.48 | P44: 0.87 | Q44: 1.33 | R44: 0.42 | S44: 0.58 | T44: 1.08 | U44: 0 | V44: 0 | W44: 0 | X44: 0 | Y44: 0 | Z44: 0 | AA44: 0 | AB44: 0 | AC44: 0 | AD44: 0 | AE44: 0 | AF44: 0 | AG44: 0 | AH44: 0 | AI44: 0 | AJ44: 0.28 | AK44: 0.29 | AL44: 0.32 | AM44: 0.38 | AN44: 0 | AO44: 1.82 | AP44: 0 | AQ44: 0 | AR44: 0 | AS44: 0 | AT44: 0 | AU44: 0 | AV44: 0 | AW44: 0 | AX44: 0.07 | AY44: 0 | AZ44: 0.08 | BA44: 0.09 | BB44: 0.18 | BC44: 0.24 | BD44: 0.57 | BE44: 0.81 | BF44: 0.37 | BG44: 0.48 | BH44: 0.54 | BI44: 0.91 | BJ44: 0 | BK44: 0
A45: Luchtpijp | C45: 1999 | D45: 0 | E45: 0 | F45: 0 | G45: 0 | H45: 0 | I45: 0 | J45: 0 | K45: 0 | L45: 0 | M45: 0 | N45: 0.35 | O45: 0.47 | P45: 1.69 | Q45: 0.99 | R45: 0 | S45: 0 | T45: 0 | U45: 0 | V45: 0 | W45: 42.75 | X45: 0 | Y45: 0 | Z45: 0 | AA45: 0 | AB45: 0 | AC45: 0 | AD45: 0 | AE45: 0 | AF45: 0 | AG45: 0 | AH45: 0.18 | AI45: 0 | AJ45: 0.28 | AK45: 0 | AL45: 0 | AM45: 1.1 | AN45: 0.55 | AO45: 0 | AP45: 0 | AQ45: 0 | AR45: 0 | AS45: 0 | AT45: 0 | AU45: 0 | AV45: 0 | AW45: 0 | AX45: 0 | AY45: 0 | AZ45: 0 | BA45: 0 | BB45: 0.26 | BC45: 0.23 | BD45: 0.98 | BE45: 0.49 | BF45: 0 | BG45: 0.55 | BH45: 0.27 | BI45: 0 | BJ45: 0 | BK45: 21.38
A46: Luchtpijp | C46: 2000 | D46: 0 | E46: 0 | F46: 0 | G46: 0 | H46: 0 | I46: 0 | J46: 0 | K46: 0 | L46: 0 | M46: 0.17 | N46: 0 | O46: 0.23 | P46: 0.55 | Q46: 0.33 | R46: 0.82 | S46: 1.11 | T46: 0 | U46: 0 | V46: 0 | W46: 0 | X46: 0 | Y46: 0 | Z46: 0 | AA46: 0 | AB46: 0 | AC46: 0 | AD46: 0 | AE46: 0 | AF46: 0 | AG46: 0 | AH46: 0 | AI46: 0 | AJ46: 0.54 | AK46: 0.3 | AL46: 0 | AM46: 0 | AN46: 0 | AO46: 0 | AP46: 0 | AQ46: 0 | AR46: 0 | AS46: 0 | AT46: 0 | AU46: 0 | AV46: 0 | AW46: 0 | AX46: 0 | AY46: 0 | AZ46: 0 | BA46: 0.09 | BB46: 0 | BC46: 0.11 | BD46: 0.55 | BE46: 0.31 | BF46: 0.41 | BG46: 0.55 | BH46: 0 | BI46: 0 | BJ46: 0 | BK46: 0
A47: Luchtpijp | C47: 2001 | D47: 0 | E47: 0 | F47: 0 | G47: 0 | H47: 0 | I47: 0 | J47: 0 | K47: 0 | L47: 0 | M47: 0.17 | N47: 0.17 | O47: 0 | P47: 0.27 | Q47: 0 | R47: 0.4 | S47: 0 | T47: 0 | U47: 0 | V47: 0 | W47: 0 | X47: 0 | Y47: 0 | Z47: 0 | AA47: 0 | AB47: 0 | AC47: 0 | AD47: 0 | AE47: 0 | AF47: 0 | AG47: 0 | AH47: 0.52 | AI47: 0 | AJ47: 0 | AK47: 0 | AL47: 0 | AM47: 0 | AN47: 0.52 | AO47: 0 | AP47: 0 | AQ47: 0 | AR47: 0 | AS47: 0 | AT47: 0 | AU47: 0 | AV47: 0 | AW47: 0 | AX47: 0 | AY47: 0 | AZ47: 0 | BA47: 0.09 | BB47: 0.35 | BC47: 0 | BD47: 0.13 | BE47: 0 | BF47: 0.2 | BG47: 0 | BH47: 0.26 | BI47: 0 | BJ47: 0 | BK47: 0
A48: Luchtpijp | C48: 2002 | D48: 0 | E48: 0 | F48: 0 | G48: 0 | H48: 0 | I48: 0 | J48: 0.15 | K48: 0 | L48: 0.16 | M48: 0.17 | N48: 0 | O48: 0 | P48: 0.26 | Q48: 0.32 | R48: 0.39 | S48: 1.09 | T48: 0 | U48: 2.22 | V48: 0 | W48: 0 | X48: 0 | Y48: 0 | Z48: 0 | AA48: 0 | AB48: 0 | AC48: 0 | AD48: 0 | AE48: 0.15 | AF48: 0 | AG48: 0.17 | AH48: 0.18 | AI48: 0 | AJ48: 0.26 | AK48: 0 | AL48: 0 | AM48: 0 | AN48: 0.5 | AO48: 0 | AP48: 0 | AQ48: 0 | AR48: 0 | AS48: 0 | AT48: 0 | AU48: 0 | AV48: 0 | AW48: 0 | AX48: 0.08 | AY48: 0.08 | AZ48: 0.08 | BA48: 0.17 | BB48: 0.09 | BC48: 0 | BD48: 0.26 | BE48: 0.16 | BF48: 0.2 | BG48: 0.55 | BH48: 0.25 | BI48: 1.11 | BJ48: 0 | BK48: 0
A49: Luchtpijp | C49: 2003 | D49: 0 | E49: 0 | F49: 0 | G49: 0 | H49: 0 | I49: 0 | J49: 0 | K49: 0 | L49: 0 | M49: 0 | N49: 0.18 | O49: 0 | P49: 0.25 | Q49: 0 | R49: 1.16 | S49: 0 | T49: 0.89 | U49: 0 | V49: 0 | W49: 0 | X49: 0 | Y49: 0.21 | Z49: 0 | AA49: 0 | AB49: 0 | AC49: 0 | AD49: 0 | AE49: 0 | AF49: 0 | AG49: 0.17 | AH49: 0 | AI49: 0.38 | AJ49: 0.51 | AK49: 0.59 | AL49: 0 | AM49: 0.37 | AN49: 0 | AO49: 0 | AP49: 0 | AQ49: 0 | AR49: 0 | AS49: 0.1 | AT49: 0 | AU49: 0 | AV49: 0 | AW49: 0 | AX49: 0 | AY49: 0 | AZ49: 0 | BA49: 0.09 | BB49: 0.09 | BC49: 0.19 | BD49: 0.38 | BE49: 0.29 | BF49: 0.58 | BG49: 0.18 | BH49: 0.45 | BI49: 0 | BJ49: 0 | BK49: 0
A50: Luchtpijp | C50: 2004 | D50: 0 | E50: 0 | F50: 0 | G50: 0 | H50: 0 | I50: 0 | J50: 0 | K50: 0 | L50: 0 | M50: 0 | N50: 0.18 | O50: 0.18 | P50: 0.25 | Q50: 0.62 | R50: 0.76 | S50: 0.53 | T50: 0.86 | U50: 0 | V50: 0 | W50: 0 | X50: 0 | Y50: 0 | Z50: 0 | AA50: 0 | AB50: 0 | AC50: 0 | AD50: 0 | AE50: 0 | AF50: 0 | AG50: 0 | AH50: 0 | AI50: 0.18 | AJ50: 0 | AK50: 1.16 | AL50: 0.32 | AM50: 0 | AN50: 0 | AO50: 0.88 | AP50: 0 | AQ50: 0 | AR50: 0 | AS50: 0 | AT50: 0 | AU50: 0 | AV50: 0 | AW50: 0 | AX50: 0 | AY50: 0 | AZ50: 0 | BA50: 0 | BB50: 0.09 | BC50: 0.18 | BD50: 0.12 | BE50: 0.89 | BF50: 0.54 | BG50: 0.27 | BH50: 0.43 | BI50: 0.44 | BJ50: 0 | BK50: 0
A51: Luchtpijp | C51: 2005 | D51: 0 | E51: 0 | F51: 0 | G51: 0 | H51: 0 | I51: 0 | J51: 0.17 | K51: 0 | L51: 0 | M51: 0 | N51: 0 | O51: 0 | P51: 0 | Q51: 0.6 | R51: 0 | S51: 0.52 | T51: 0.84 | U51: 0 | V51: 6.86 | W51: 0 | X51: 0 | Y51: 0 | Z51: 0 | AA51: 0 | AB51: 0 | AC51: 0 | AD51: 0 | AE51: 0.31 | AF51: 0 | AG51: 0 | AH51: 0 | AI51: 0 | AJ51: 0 | AK51: 0.57 | AL51: 0 | AM51: 0 | AN51: 0 | AO51: 0 | AP51: 0 | AQ51: 0 | AR51: 0 | AS51: 0 | AT51: 0 | AU51: 0 | AV51: 0 | AW51: 0 | AX51: 0.09 | AY51: 0.15 | AZ51: 0 | BA51: 0 | BB51: 0 | BC51: 0 | BD51: 0 | BE51: 0.58 | BF51: 0 | BG51: 0.26 | BH51: 0.42 | BI51: 0 | BJ51: 3.43 | BK51: 0
A52: Luchtpijp | C52: 2006 | D52: 0 | E52: 0 | F52: 0 | G52: 0 | H52: 0 | I52: 0 | J52: 0 | K52: 0 | L52: 0 | M52: 0 | N52: 0 | O52: 0 | P52: 0.23 | Q52: 0.29 | R52: 1.12 | S52: 0.5 | T52: 0.82 | U52: 1.91 | V52: 0 | W52: 0 | X52: 0 | Y52: 0 | Z52: 0 | AA52: 0 | AB52: 0 | AC52: 0 | AD52: 0 | AE52: 0 | AF52: 0.15 | AG52: 0 | AH52: 0 | AI52: 0.54 | AJ52: 0 | AK52: 0.28 | AL52: 0.64 | AM52: 0 | AN52: 0.93 | AO52: 0.81 | AP52: 0 | AQ52: 0 | AR52: 0 | AS52: 0 | AT52: 0 | AU52: 0 | AV52: 0 | AW52: 0 | AX52: 0 | AY52: 0 | AZ52: 0.08 | BA52: 0 | BB52: 0 | BC52: 0.27 | BD52: 0.11 | BE52: 0.29 | BF52: 0.88 | BG52: 0.25 | BH52: 0.87 | BI52: 1.36 | BJ52: 0 | BK52: 0
A53: Luchtpijp | C53: 2007 | D53: 0 | E53: 0 | F53: 0 | G53: 0 | H53: 0 | I53: 0 | J53: 0 | K53: 0 | L53: 0 | M53: 0 | N53: 0.35 | O53: 0.18 | P53: 0.42 | Q53: 0 | R53: 0 | S53: 0.98 | T53: 0.8 | U53: 1.79 | V53: 0 | W53: 0 | X53: 0 | Y53: 0 | Z53: 0 | AA53: 0 | AB53: 0 | AC53: 0 | AD53: 0 | AE53: 0 | AF53: 0 | AG53: 0 | AH53: 0.18 | AI53: 0.18 | AJ53: 0.21 | AK53: 0.27 | AL53: 0 | AM53: 0 | AN53: 0.46 | AO53: 0 | AP53: 0 | AQ53: 0 | AR53: 0 | AS53: 0 | AT53: 0 | AU53: 0 | AV53: 0 | AW53: 0 | AX53: 0 | AY53: 0 | AZ53: 0 | BA53: 0 | BB53: 0.26 | BC53: 0.18 | BD53: 0.31 | BE53: 0.14 | BF53: 0 | BG53: 0.49 | BH53: 0.63 | BI53: 0.89 | BJ53: 0 | BK53: 0
A54: Luchtpijp | C54: 2008 | D54: 0 | E54: 0 | F54: 0 | G54: 0 | H54: 0 | I54: 0 | J54: 0 | K54: 0 | L54: 0 | M54: 0.47 | N54: 0 | O54: 0.37 | P54: 0 | Q54: 0 | R54: 0.36 | S54: 0.96 | T54: 0.78 | U54: 0 | V54: 0 | W54: 0 | X54: 0 | Y54: 0 | Z54: 0 | AA54: 0 | AB54: 0 | AC54: 0 | AD54: 0 | AE54: 0 | AF54: 0 | AG54: 0.16 | AH54: 0.17 | AI54: 0.19 | AJ54: 0.39 | AK54: 0.27 | AL54: 0 | AM54: 0 | AN54: 0 | AO54: 0 | AP54: 0 | AQ54: 0 | AR54: 0 | AS54: 0 | AT54: 0 | AU54: 0 | AV54: 0 | AW54: 0 | AX54: 0 | AY54: 0 | AZ54: 0 | BA54: 0.32 | BB54: 0.09 | BC54: 0.28 | BD54: 0.2 | BE54: 0.13 | BF54: 0.18 | BG54: 0.48 | BH54: 0.39 | BI54: 0 | BJ54: 0 | BK54: 0
A55: Luchtpijp | C55: 2009 | D55: 0 | E55: 0 | F55: 0.2 | G55: 0 | H55: 0 | I55: 0 | J55: 0 | K55: 0 | L55: 0 | M55: 0 | N55: 0.34 | O55: 0 | P55: 0.57 | Q55: 0.53 | R55: 0.7 | S55: 0.47 | T55: 0 | U55: 0 | V55: 0 | W55: 0 | X55: 0 | Y55: 0 | Z55: 0 | AA55: 0 | AB55: 0 | AC55: 0 | AD55: 0 | AE55: 0 | AF55: 0 | AG55: 0.16 | AH55: 0 | AI55: 0.19 | AJ55: 0 | AK55: 0.52 | AL55: 0 | AM55: 0 | AN55: 0 | AO55: 0 | AP55: 0 | AQ55: 0 | AR55: 0 | AS55: 0 | AT55: 0.1 | AU55: 0 | AV55: 0 | AW55: 0 | AX55: 0 | AY55: 0 | AZ55: 0 | BA55: 0.08 | BB55: 0.17 | BC55: 0.09 | BD55: 0.28 | BE55: 0.53 | BF55: 0.35 | BG55: 0.23 | BH55: 0 | BI55: 0 | BJ55: 0 | BK55: 0
A56: Luchtpijp | C56: 2010 | D56: 0 | E56: 0 | F56: 0 | G56: 0 | H56: 0 | I56: 0 | J56: 0 | K56: 0 | L56: 0 | M56: 0 | N56: 0.17 | O56: 0.18 | P56: 0.37 | Q56: 0.26 | R56: 0 | S56: 0.46 | T56: 0.73 | U56: 0 | V56: 0 | W56: 0 | X56: 0 | Y56: 0 | Z56: 0 | AA56: 0 | AB56: 0 | AC56: 0 | AD56: 0 | AE56: 0 | AF56: 0 | AG56: 0.16 | AH56: 0 | AI56: 0.18 | AJ56: 0.18 | AK56: 0 | AL56: 0 | AM56: 0.36 | AN56: 0 | AO56: 0 | AP56: 0 | AQ56: 0 | AR56: 0 | AS56: 0 | AT56: 0 | AU56: 0 | AV56: 0 | AW56: 0 | AX56: 0 | AY56: 0 | AZ56: 0 | BA56: 0.08 | BB56: 0.08 | BC56: 0.18 | BD56: 0.28 | BE56: 0.13 | BF56: 0 | BG56: 0.41 | BH56: 0.37 | BI56: 0 | BJ56: 0 | BK56: 0
A57: Luchtpijp | C57: 2011 | D57: 0 | E57: 0 | F57: 0 | G57: 0 | H57: 0 | I57: 0 | J57: 0 | K57: 0 | L57: 0 | M57: 0.15 | N57: 0.17 | O57: 0 | P57: 0.92 | Q57: 0 | R57: 0.33 | S57: 0.9 | T57: 0 | U57: 0 | V57: 0 | W57: 0 | X57: 0 | Y57: 0 | Z57: 0 | AA57: 0 | AB57: 0 | AC57: 0 | AD57: 0 | AE57: 0 | AF57: 0.16 | AG57: 0 | AH57: 0.17 | AI57: 0 | AJ57: 0.18 | AK57: 0.71 | AL57: 0 | AM57: 0 | AN57: 0 | AO57: 0 | AP57: 1.68 | AQ57: 0 | AR57: 0 | AS57: 0 | AT57: 0 | AU57: 0 | AV57: 0 | AW57: 0 | AX57: 0 | AY57: 0 | AZ57: 0.08 | BA57: 0.08 | BB57: 0.17 | BC57: 0 | BD57: 0.55 | BE57: 0.36 | BF57: 0.16 | BG57: 0.45 | BH57: 0 | BI57: 0 | BJ57: 0.84 | BK57: 0
A58: Luchtpijp | C58: 2012 | D58: 0 | E58: 0 | F58: 0 | G58: 0 | H58: 0 | I58: 0 | J58: 0 | K58: 0 | L58: 0 | M58: 0 | N58: 0 | O58: 0.36 | P58: 0 | Q58: 0.44 | R58: 0.32 | S58: 0.44 | T58: 0 | U58: 0 | V58: 0 | W58: 0 | X58: 0 | Y58: 0 | Z58: 0 | AA58: 0 | AB58: 0 | AC58: 0 | AD58: 0 | AE58: 0 | AF58: 0.16 | AG58: 0.16 | AH58: 0.16 | AI58: 0.18 | AJ58: 0.57 | AK58: 0 | AL58: 0 | AM58: 0 | AN58: 0 | AO58: 0 | AP58: 0 | AQ58: 0 | AR58: 0 | AS58: 0 | AT58: 0 | AU58: 0 | AV58: 0 | AW58: 0 | AX58: 0 | AY58: 0 | AZ58: 0.08 | BA58: 0.08 | BB58: 0.08 | BC58: 0.27 | BD58: 0.28 | BE58: 0.22 | BF58: 0.16 | BG58: 0.22 | BH58: 0 | BI58: 0 | BJ58: 0 | BK58: 0
A59: Luchtpijp | C59: 2013 | D59: 0 | E59: 0 | F59: 0 | G59: 0 | H59: 0 | I59: 0 | J59: 0 | K59: 0 | L59: 0 | M59: 0 | N59: 0 | O59: 0.36 | P59: 0 | Q59: 0 | R59: 0 | S59: 0.43 | T59: 0 | U59: 0 | V59: 0 | W59: 0 | X59: 0 | Y59: 0 | Z59: 0 | AA59: 0 | AB59: 0 | AC59: 0 | AD59: 0 | AE59: 0 | AF59: 0 | AG59: 0.16 | AH59: 0.16 | AI59: 0 | AJ59: 0 | AK59: 0.21 | AL59: 0 | AM59: 0.35 | AN59: 0 | AO59: 0 | AP59: 0 | AQ59: 0 | AR59: 0 | AS59: 0 | AT59: 0 | AU59: 0 | AV59: 0 | AW59: 0 | AX59: 0 | AY59: 0 | AZ59: 0 | BA59: 0.08 | BB59: 0.08 | BC59: 0.18 | BD59: 0 | BE59: 0.1 | BF59: 0 | BG59: 0.39 | BH59: 0 | BI59: 0 | BJ59: 0 | BK59: 0
A60: Luchtpijp | C60: 2014 | D60: 0 | E60: 0 | F60: 0 | G60: 0 | H60: 0 | I60: 0 | J60: 0 | K60: 0 | L60: 0 | M60: 0 | N60: 0 | O60: 0.18 | P60: 0.19 | Q60: 0.4 | R60: 0 | S60: 0.41 | T60: 0 | U60: 1.31 | V60: 0 | W60: 0 | X60: 0 | Y60: 0 | Z60: 0 | AA60: 0 | AB60: 0 | AC60: 0.19 | AD60: 0 | AE60: 0 | AF60: 0 | AG60: 0 | AH60: 0 | AI60: 0.18 | AJ60: 0.19 | AK60: 0.4 | AL60: 0 | AM60: 0 | AN60: 0.43 | AO60: 0 | AP60: 0 | AQ60: 0 | AR60: 0 | AS60: 0 | AT60: 0 | AU60: 0 | AV60: 0 | AW60: 0.1 | AX60: 0 | AY60: 0 | AZ60: 0 | BA60: 0 | BB60: 0 | BC60: 0.18 | BD60: 0.19 | BE60: 0.4 | BF60: 0 | BG60: 0.21 | BH60: 0.22 | BI60: 0.66 | BJ60: 0 | BK60: 0
A61: Luchtpijp | C61: 2015 | D61: 0 | E61: 0 | F61: 0 | G61: 0 | H61: 0 | I61: 0 | J61: 0 | K61: 0 | L61: 0 | M61: 0 | N61: 0 | O61: 0.17 | P61: 0.19 | Q61: 0.59 | R61: 0.86 | S61: 0 | T61: 0 | U61: 0 | V61: 0 | W61: 0 | X61: 0 | Y61: 0 | Z61: 0 | AA61: 0 | AB61: 0 | AC61: 0 | AD61: 0 | AE61: 0.2 | AF61: 0 | AG61: 0.16 | AH61: 0 | AI61: 0 | AJ61: 0.57 | AK61: 0.19 | AL61: 0.27 | AM61: 0.33 | AN61: 0.43 | AO61: 0.66 | AP61: 0 | AQ61: 0 | AR61: 0 | AS61: 0 | AT61: 0 | AU61: 0 | AV61: 0 | AW61: 0 | AX61: 0 | AY61: 0.1 | AZ61: 0 | BA61: 0.08 | BB61: 0 | BC61: 0.09 | BD61: 0.38 | BE61: 0.39 | BF61: 0.56 | BG61: 0.17 | BH61: 0.22 | BI61: 0.33 | BJ61: 0 | BK61: 0
A62: Luchtpijp | C62: 2016 | D62: 0 | E62: 0 | F62: 0 | G62: 0 | H62: 0 | I62: 0 | J62: 0 | K62: 0 | L62: 0 | M62: 0.16 | N62: 0 | O62: 0.17 | P62: 0 | Q62: 0 | R62: 0 | S62: 0.38 | T62: 0 | U62: 0 | V62: 0 | W62: 0 | X62: 0 | Y62: 0 | Z62: 0 | AA62: 0 | AB62: 0 | AC62: 0 | AD62: 0 | AE62: 0 | AF62: 0 | AG62: 0 | AH62: 0 | AI62: 0.17 | AJ62: 0.19 | AK62: 0.19 | AL62: 0 | AM62: 0.33 | AN62: 0.43 | AO62: 0 | AP62: 1.41 | AQ62: 0 | AR62: 0 | AS62: 0 | AT62: 0 | AU62: 0 | AV62: 0 | AW62: 0 | AX62: 0 | AY62: 0 | AZ62: 0 | BA62: 0.08 | BB62: 0 | BC62: 0.17 | BD62: 0.09 | BE62: 0.1 | BF62: 0 | BG62: 0.36 | BH62: 0.21 | BI62: 0 | BJ62: 0.71 | BK62: 0
A63: Long | C63: 1989 | D63: 0 | E63: 0 | F63: 0 | G63: 0 | H63: 0 | I63: 0.46 | J63: 0.49 | K63: 2.9 | L63: 15.95 | M63: 45.38 | N63: 100.43 | O63: 206.41 | P63: 329.72 | Q63: 504.15 | R63: 698.62 | S63: 755.51 | T63: 708.29 | U63: 497.09 | V63: 197.33 | W63: 40.23 | X63: 0 | Y63: 0 | Z63: 0 | AA63: 0.18 | AB63: 0.16 | AC63: 0.48 | AD63: 2.04 | AE63: 5.89 | AF63: 9.74 | AG63: 19.78 | AH63: 29.66 | AI63: 53.55 | AJ63: 57.11 | AK63: 58.81 | AL63: 57.18 | AM63: 55.93 | AN63: 36.72 | AO63: 36.38 | AP63: 22.9 | AQ63: 0 | AR63: 0 | AS63: 0 | AT63: 0 | AU63: 0.09 | AV63: 0.08 | AW63: 0.47 | AX63: 1.26 | AY63: 4.4 | AZ63: 12.85 | BA63: 32.58 | BB63: 65.04 | BC63: 129.98 | BD63: 193.41 | BE63: 281.48 | BF63: 377.9 | BG63: 405.72 | BH63: 372.51 | BI63: 266.74 | BJ63: 110.12 | BK63: 20.12
A64: Long | C64: 1990 | D64: 0 | E64: 0 | F64: 0.43 | G64: 0 | H64: 0 | I64: 0.75 | J64: 2.09 | K64: 6.3 | L64: 17.48 | M64: 36.04 | N64: 84.98 | O64: 182.87 | P64: 342.9 | Q64: 501 | R64: 721.86 | S64: 850.27 | T64: 677.8 | U64: 454.94 | V64: 224.07 | W64: 0 | X64: 0 | Y64: 0 | Z64: 0 | AA64: 0 | AB64: 0 | AC64: 0.79 | AD64: 2.84 | AE64: 3.02 | AF64: 10.48 | AG64: 15.86 | AH64: 31.91 | AI64: 43.63 | AJ64: 70.35 | AK64: 62.92 | AL64: 63.53 | AM64: 52.48 | AN64: 51.35 | AO64: 35.08 | AP64: 18.91 | AQ64: 0 | AR64: 0 | AS64: 0 | AT64: 0.22 | AU64: 0 | AV64: 0 | AW64: 0.77 | AX64: 2.46 | AY64: 4.66 | AZ64: 13.98 | BA64: 25.95 | BB64: 58.45 | BC64: 113.25 | BD64: 206.62 | BE64: 281.96 | BF64: 392.69 | BG64: 451.38 | BH64: 364.58 | BI64: 245.01 | BJ64: 121.49 | BK64: 0
A65: Long | C65: 1991 | D65: 0 | E65: 0 | F65: 0.22 | G65: 0 | H65: 0.15 | I65: 0.45 | J65: 0.79 | K65: 5.23 | L65: 14.72 | M65: 40.89 | N65: 83.7 | O65: 199.05 | P65: 352.26 | Q65: 507.61 | R65: 722.95 | S65: 789.16 | T65: 708.73 | U65: 463.18 | V65: 329.69 | W65: 83.44 | X65: 0 | Y65: 0 | Z65: 0 | AA65: 0 | AB65: 0.48 | AC65: 0.31 | AD65: 1.81 | AE65: 5.96 | AF65: 8.92 | AG65: 20.49 | AH65: 33.11 | AI65: 49.76 | AJ65: 80.68 | AK65: 68.37 | AL65: 68.31 | AM65: 52.52 | AN65: 41.94 | AO65: 35.09 | AP65: 24.11 | AQ65: 40.38 | AR65: 0 | AS65: 0 | AT65: 0.11 | AU65: 0 | AV65: 0.32 | AW65: 0.38 | AX65: 1.3 | AY65: 5.59 | AZ65: 11.82 | BA65: 30.69 | BB65: 58.4 | BC65: 124.41 | BD65: 216.47 | BE65: 287.99 | BF65: 395.63 | BG65: 420.84 | BH65: 375.33 | BI65: 249.13 | BJ65: 176.9 | BK65: 61.91
A66: Long | C66: 1992 | D66: 0 | E66: 0 | F66: 0 | G66: 0 | H66: 0 | I66: 0.15 | J66: 1.55 | K66: 3.84 | L66: 14.94 | M66: 41.88 | N66: 79.79 | O66: 193.13 | P66: 337.36 | Q66: 501.13 | R66: 674.57 | S66: 784.71 | T66: 725.41 | U66: 513.36 | V66: 264.12 | W66: 84.23 | X66: 0 | Y66: 0 | Z66: 0 | AA66: 0 | AB66: 0.16 | AC66: 0 | AD66: 2.26 | AE66: 6.23 | AF66: 10.01 | AG66: 17.42 | AH66: 31.55 | AI66: 52.51 | AJ66: 72.05 | AK66: 80.62 | AL66: 69.71 | AM66: 64.43 | AN66: 49.34 | AO66: 36.15 | AP66: 20.13 | AQ66: 25.67 | AR66: 0 | AS66: 0 | AT66: 0 | AU66: 0 | AV66: 0.08 | AW66: 0.07 | AX66: 1.9 | AY66: 5.03 | AZ66: 12.47 | BA66: 29.65 | BB66: 55.67 | BC66: 122.82 | BD66: 204.7 | BE66: 290.88 | BF66: 372.14 | BG66: 424.57 | BH66: 387.38 | BI66: 274.76 | BJ66: 142.12 | BK66: 54.95
A67: Long | C67: 1993 | D67: 0 | E67: 0 | F67: 0.22 | G67: 0 | H67: 0 | I67: 0.15 | J67: 1.37 | K67: 5.44 | L67: 15.84 | M67: 36.03 | N67: 80.63 | O67: 180.69 | P67: 341.5 | Q67: 471.8 | R67: 632.98 | S67: 757.98 | T67: 658.66 | U67: 477.56 | V67: 235.97 | W67: 127.63 | X67: 0 | Y67: 0 | Z67: 0 | AA67: 0 | AB67: 0 | AC67: 1.1 | AD67: 1.59 | AE67: 5.29 | AF67: 11.01 | AG67: 23.41 | AH67: 34.67 | AI67: 53.51 | AJ67: 87.56 | AK67: 86.75 | AL67: 73.73 | AM67: 69.05 | AN67: 53 | AO67: 42.18 | AP67: 27.76 | AQ67: 0 | AR67: 0 | AS67: 0 | AT67: 0.11 | AU67: 0 | AV67: 0 | AW67: 0.63 | AX67: 1.48 | AY67: 5.37 | AZ67: 13.43 | BA67: 29.72 | BB67: 57.65 | BC67: 117.1 | BD67: 214.53 | BE67: 279.27 | BF67: 353.35 | BG67: 413.52 | BH67: 355.83 | BI67: 259.87 | BJ67: 131.87 | BK67: 63.82
A68: Long | C68: 1994 | D68: 0 | E68: 0.21 | F68: 0 | G68: 0 | H68: 0 | I68: 0.45 | J68: 0.75 | K68: 3.57 | L68: 13.7 | M68: 33.45 | N68: 78.66 | O68: 188.43 | P68: 310.17 | Q68: 470.71 | R68: 634.7 | S68: 700.15 | T68: 704.01 | U68: 537.13 | V68: 304.06 | W68: 175.94 | X68: 0 | Y68: 0 | Z68: 0 | AA68: 0 | AB68: 0.35 | AC68: 0.31 | AD68: 1.25 | AE68: 7.73 | AF68: 11.92 | AG68: 24.35 | AH68: 33.62 | AI68: 56.69 | AJ68: 81.04 | AK68: 97.29 | AL68: 72.39 | AM68: 72.28 | AN68: 49.92 | AO68: 46.94 | AP68: 13.44 | AQ68: 24.17 | AR68: 0 | AS68: 0.1 | AT68: 0 | AU68: 0 | AV68: 0.17 | AW68: 0.38 | AX68: 1 | AY68: 5.65 | AZ68: 12.81 | BA68: 28.9 | BB68: 56.14 | BC68: 122.56 | BD68: 195.61 | BE68: 284 | BF68: 353.55 | BG68: 386.21 | BH68: 376.96 | BI68: 292.03 | BJ68: 158.75 | BK68: 100.05
A69: Long | C69: 1995 | D69: 0 | E69: 0.21 | F69: 0 | G69: 0.21 | H69: 0.35 | I69: 0.15 | J69: 1.63 | K69: 4.8 | L69: 13.69 | M69: 37.67 | N69: 81.21 | O69: 152.92 | P69: 304.46 | Q69: 460.3 | R69: 603.92 | S69: 759.12 | T69: 666.68 | U69: 459.5 | V69: 221.63 | W69: 228 | X69: 0 | Y69: 0 | Z69: 0 | AA69: 0.22 | AB69: 0.36 | AC69: 0.47 | AD69: 1.4 | AE69: 6.62 | AF69: 15.92 | AG69: 21.57 | AH69: 37.58 | AI69: 54.82 | AJ69: 81.89 | AK69: 99.55 | AL69: 83.71 | AM69: 79.04 | AN69: 64.18 | AO69: 36.29 | AP69: 20.68 | AQ69: 11.71 | AR69: 0 | AS69: 0.1 | AT69: 0 | AU69: 0.22 | AV69: 0.36 | AW69: 0.31 | AX69: 1.51 | AY69: 5.71 | AZ69: 14.8 | BA69: 29.62 | BB69: 59.4 | BC69: 103.87 | BD69: 193.18 | BE69: 279.93 | BF69: 343.82 | BG69: 419.08 | BH69: 365.43 | BI69: 247.89 | BJ69: 121.15 | BK69: 119.85
A70: Long | C70: 1996 | D70: 0 | E70: 0 | F70: 0.22 | G70: 0.21 | H70: 0.37 | I70: 0 | J70: 0.74 | K70: 5.36 | L70: 14.78 | M70: 36.78 | N70: 77.91 | O70: 139.04 | P70: 290.82 | Q70: 449.93 | R70: 613.26 | S70: 742.72 | T70: 618.53 | U70: 497.71 | V70: 286.47 | W70: 182.57 | X70: 0 | Y70: 0 | Z70: 0 | AA70: 0.44 | AB70: 0.19 | AC70: 0.47 | AD70: 1.55 | AE70: 6.03 | AF70: 11.55 | AG70: 26.9 | AH70: 39.35 | AI70: 58.02 | AJ70: 80.18 | AK70: 104.15 | AL70: 88.8 | AM70: 82.25 | AN70: 59.36 | AO70: 38.63 | AP70: 30.04 | AQ70: 11.22 | AR70: 0 | AS70: 0 | AT70: 0.11 | AU70: 0.33 | AV70: 0.28 | AW70: 0.24 | AX70: 1.15 | AY70: 5.7 | AZ70: 13.17 | BA70: 31.84 | BB70: 58.63 | BC70: 98.53 | BD70: 185.5 | BE70: 277.04 | BF70: 351.03 | BG70: 412.49 | BH70: 338.94 | BI70: 268.17 | BJ70: 158.25 | BK70: 96.89
A71: Long | C71: 1997 | D71: 0 | E71: 0 | F71: 0 | G71: 0 | H71: 0.39 | I71: 0.31 | J71: 1.19 | K71: 3.42 | L71: 14.65 | M71: 37.13 | N71: 70.74 | O71: 142.88 | P71: 282.15 | Q71: 464.23 | R71: 600.83 | S71: 642.11 | T71: 617.32 | U71: 434.35 | V71: 233.15 | W71: 134.2 | X71: 0 | Y71: 0 | Z71: 0 | AA71: 0.22 | AB71: 0 | AC71: 0.48 | AD71: 1.24 | AE71: 7.71 | AF71: 15.92 | AG71: 27.04 | AH71: 43.07 | AI71: 63.15 | AJ71: 82.78 | AK71: 112.39 | AL71: 95.2 | AM71: 84.08 | AN71: 62.89 | AO71: 37.11 | AP71: 21.87 | AQ71: 0 | AR71: 0 | AS71: 0 | AT71: 0 | AU71: 0.11 | AV71: 0.2 | AW71: 0.39 | AX71: 1.21 | AY71: 5.56 | AZ71: 15.29 | BA71: 32.08 | BB71: 56.9 | BC71: 103.01 | BD71: 182.46 | BE71: 288.31 | BF71: 348.02 | BG71: 363.09 | BH71: 340.11 | BI71: 235.73 | BJ71: 127.51 | BK71: 67.1
A72: Long | C72: 1998 | D72: 0 | E72: 0 | F72: 0 | G72: 0 | H72: 0 | I72: 0.63 | J72: 0.45 | K72: 3.21 | L72: 14.33 | M72: 29.22 | N72: 73.65 | O72: 143.22 | P72: 271.32 | Q72: 424.89 | R72: 554.68 | S72: 669.02 | T72: 581.66 | U72: 455.79 | V72: 237.5 | W72: 87.49 | X72: 0 | Y72: 0 | Z72: 0 | AA72: 0.22 | AB72: 0 | AC72: 0.49 | AD72: 0.78 | AE72: 7.44 | AF72: 17.09 | AG72: 33.44 | AH72: 40.94 | AI72: 64.12 | AJ72: 83.33 | AK72: 119.17 | AL72: 107.39 | AM72: 91.55 | AN72: 56.68 | AO72: 35.44 | AP72: 11.77 | AQ72: 20.73 | AR72: 0 | AS72: 0 | AT72: 0 | AU72: 0.11 | AV72: 0 | AW72: 0.56 | AX72: 0.61 | AY72: 5.32 | AZ72: 15.71 | BA72: 31.33 | BB72: 57.29 | BC72: 103.67 | BD72: 177.32 | BE72: 272.03 | BF72: 331.03 | BG72: 380.28 | BH72: 319.17 | BI72: 245.62 | BJ72: 124.64 | BK72: 54.11
A73: Long | C73: 1999 | D73: 0 | E73: 0 | F73: 0 | G73: 0 | H73: 0 | I73: 0.66 | J73: 2.23 | K73: 3.46 | L73: 12.8 | M73: 26.94 | N73: 70.08 | O73: 136.77 | P73: 247.03 | Q73: 408.47 | R73: 549.73 | S73: 654.66 | T73: 582.83 | U73: 430.43 | V73: 228.25 | W73: 0 | X73: 0 | Y73: 0 | Z73: 0 | AA73: 0 | AB73: 0 | AC73: 0.34 | AD73: 1.25 | AE73: 6.86 | AF73: 15.98 | AG73: 27.77 | AH73: 45.6 | AI73: 65.77 | AJ73: 83.92 | AK73: 116.44 | AL73: 113.72 | AM73: 90.48 | AN73: 61.51 | AO73: 32.09 | AP73: 13.75 | AQ73: 20.17 | AR73: 0 | AS73: 0 | AT73: 0 | AU73: 0 | AV73: 0 | AW73: 0.5 | AX73: 1.74 | AY73: 5.16 | AZ73: 14.39 | BA73: 27.35 | BB73: 57.84 | BC73: 101.27 | BD73: 165.47 | BE73: 262.45 | BF73: 331.72 | BG73: 372.57 | BH73: 322.17 | BI73: 231.26 | BJ73: 121 | BK73: 10.09
A74: Long | C74: 2000 | D74: 0 | E74: 0 | F74: 0 | G74: 0.21 | H74: 0.21 | I74: 0 | J74: 0.89 | K74: 4.9 | L74: 14.19 | M74: 27.22 | N74: 64.06 | O74: 128.26 | P74: 230.07 | Q74: 396.38 | R74: 543.89 | S74: 615.97 | T74: 566.83 | U74: 452.21 | V74: 201.95 | W74: 170.29 | X74: 0 | Y74: 0 | Z74: 0 | AA74: 0.22 | AB74: 0.21 | AC74: 0.35 | AD74: 1.71 | AE74: 4.78 | AF74: 14.72 | AG74: 35.07 | AH74: 49.66 | AI74: 64.79 | AJ74: 89.28 | AK74: 117.32 | AL74: 126.79 | AM74: 98.66 | AN74: 66.85 | AO74: 40.55 | AP74: 15.7 | AQ74: 9.76 | AR74: 0 | AS74: 0 | AT74: 0 | AU74: 0.22 | AV74: 0.21 | AW74: 0.18 | AX74: 1.3 | AY74: 4.84 | AZ74: 14.45 | BA74: 31.14 | BB74: 56.86 | BC74: 96.52 | BD74: 159.67 | BE74: 256.85 | BF74: 335.34 | BG74: 357.32 | BH74: 316.84 | BI74: 246.38 | BJ74: 108.82 | BK74: 90.02
A75: Long | C75: 2001 | D75: 0.19 | E75: 0 | F75: 0 | G75: 0.21 | H75: 0.2 | I75: 0.36 | J75: 0.45 | K75: 4.57 | L75: 10.46 | M75: 31.11 | N75: 65.65 | O75: 130.93 | P75: 216.81 | Q75: 381.25 | R75: 520.61 | S75: 594.41 | T75: 542.81 | U75: 347.37 | V75: 237.43 | W75: 127.39 | X75: 0 | Y75: 0 | Z75: 0 | AA75: 0 | AB75: 0 | AC75: 0.18 | AD75: 2.32 | AE75: 4.76 | AF75: 17.24 | AG75: 33.43 | AH75: 46.63 | AI75: 79.61 | AJ75: 91.66 | AK75: 119.06 | AL75: 130.21 | AM75: 100.79 | AN75: 65.31 | AO75: 39.4 | AP75: 22.11 | AQ75: 0 | AR75: 0.1 | AS75: 0 | AT75: 0 | AU75: 0.1 | AV75: 0.1 | AW75: 0.27 | AX75: 1.39 | AY75: 4.67 | AZ75: 13.85 | BA75: 32.27 | BB75: 56.14 | BC75: 105.27 | BD75: 154.23 | BE75: 250.15 | BF75: 325.41 | BG75: 347.6 | BH75: 304.06 | BI75: 193.38 | BJ75: 129.77 | BK75: 63.69
A76: Long | C76: 2002 | D76: 0 | E76: 0 | F76: 0 | G76: 0.21 | H76: 0.2 | I76: 0.19 | J76: 0.6 | K76: 3.25 | L76: 10.76 | M76: 28.42 | N76: 65.15 | O76: 119.75 | P76: 225.21 | Q76: 376.28 | R76: 518.74 | S76: 636.46 | T76: 540.95 | U76: 347.89 | V76: 253.55 | W76: 42.46 | X76: 0 | Y76: 0 | Z76: 0.21 | AA76: 0 | AB76: 0.21 | AC76: 0.19 | AD76: 1.09 | AE76: 5.38 | AF76: 16 | AG76: 36.5 | AH76: 51.69 | AI76: 73.07 | AJ76: 90.65 | AK76: 130.61 | AL76: 143.07 | AM76: 117.3 | AN76: 69.22 | AO76: 44.47 | AP76: 26.2 | AQ76: 9.12 | AR76: 0 | AS76: 0 | AT76: 0.1 | AU76: 0.1 | AV76: 0.21 | AW76: 0.19 | AX76: 0.85 | AY76: 4.32 | AZ76: 13.38 | BA76: 32.46 | BB76: 58.42 | BC76: 96.41 | BD76: 157.93 | BE76: 253.44 | BF76: 330.91 | BG76: 376.88 | BH76: 305.09 | BI76: 196.18 | BJ76: 139.88 | BK76: 25.79
A77: Long | C77: 2003 | D77: 0 | E77: 0 | F77: 0.19 | G77: 0 | H77: 0 | I77: 0.58 | J77: 1.71 | K77: 4.61 | L77: 10.91 | M77: 30.33 | N77: 66.18 | O77: 115.36 | P77: 197.06 | Q77: 351.38 | R77: 518.56 | S77: 593.34 | T77: 577.01 | U77: 429.1 | V77: 215.22 | W77: 169.6 | X77: 0 | Y77: 0 | Z77: 0 | AA77: 0 | AB77: 0.42 | AC77: 0.99 | AD77: 1.75 | AE77: 3.86 | AF77: 14.67 | AG77: 39.84 | AH77: 61.41 | AI77: 80.71 | AJ77: 96.45 | AK77: 127.62 | AL77: 155.02 | AM77: 127.91 | AN77: 97.89 | AO77: 49.12 | AP77: 25.68 | AQ77: 26.72 | AR77: 0 | AS77: 0 | AT77: 0.1 | AU77: 0 | AV77: 0.21 | AW77: 0.79 | AX77: 1.73 | AY77: 4.23 | AZ77: 12.79 | BA77: 35.09 | BB77: 63.79 | BC77: 98.03 | BD77: 146.75 | BE77: 239.5 | BF77: 336.79 | BG77: 360.63 | BH77: 337.45 | BI77: 239.11 | BJ77: 120.45 | BK77: 98.16
A78: Long | C78: 2004 | D78: 0 | E78: 0 | F78: 0 | G78: 0.4 | H78: 0.2 | I78: 0 | J78: 1.3 | K78: 3.59 | L78: 11.99 | M78: 29.27 | N78: 68.21 | O78: 123.87 | P78: 212.86 | Q78: 341.66 | R78: 513.74 | S78: 580.48 | T78: 597 | U78: 407.33 | V78: 284.48 | W78: 125.16 | X78: 0.2 | Y78: 0 | Z78: 0 | AA78: 0 | AB78: 0 | AC78: 0.8 | AD78: 1.81 | AE78: 4.02 | AF78: 17.3 | AG78: 41.1 | AH78: 60.12 | AI78: 87.82 | AJ78: 110.91 | AK78: 130.15 | AL78: 149.99 | AM78: 141.93 | AN78: 94.63 | AO78: 59.79 | AP78: 29.13 | AQ78: 0 | AR78: 0.1 | AS78: 0 | AT78: 0 | AU78: 0.2 | AV78: 0.1 | AW78: 0.4 | AX78: 1.56 | AY78: 3.8 | AZ78: 14.64 | BA78: 35.19 | BB78: 64.16 | BC78: 105.84 | BD78: 161.88 | BE78: 235.9 | BF78: 331.87 | BG78: 361.2 | BH78: 345.81 | BI78: 233.56 | BJ78: 156.81 | BK78: 62.58
A79: Long | C79: 2005 | D79: 0 | E79: 0 | F79: 0 | G79: 0.2 | H79: 0.2 | I79: 0.4 | J79: 0.52 | K79: 3.31 | L79: 9.18 | M79: 25.58 | N79: 64.44 | O79: 109.32 | P79: 219.16 | Q79: 324.79 | R79: 494.78 | S79: 571.62 | T79: 543.81 | U79: 386.6 | V79: 281.42 | W79: 121.9 | X79: 0.2 | Y79: 0 | Z79: 0 | AA79: 0 | AB79: 0.21 | AC79: 1.01 | AD79: 1.56 | AE79: 3.71 | AF79: 16.54 | AG79: 37.66 | AH79: 66.16 | AI79: 86.2 | AJ79: 113.73 | AK79: 146.75 | AL79: 168.65 | AM79: 156.75 | AN79: 102.64 | AO79: 60.43 | AP79: 32.47 | AQ79: 8.24 | AR79: 0.1 | AS79: 0 | AT79: 0 | AU79: 0.1 | AV79: 0.21 | AW79: 0.71 | AX79: 1.04 | AY79: 3.51 | AZ79: 12.86 | BA79: 31.62 | BB79: 65.3 | BC79: 97.76 | BD79: 166.44 | BE79: 235.77 | BF79: 331.72 | BG79: 364.19 | BH79: 323.23 | BI79: 223.52 | BJ79: 156.95 | BK79: 65.07
A80: Long | C80: 2006 | D80: 0 | E80: 0 | F80: 0.2 | G80: 0 | H80: 0.2 | I80: 0.6 | J80: 1.82 | K80: 3.34 | L80: 10.98 | M80: 26.69 | N80: 61.73 | O80: 120.12 | P80: 204.98 | Q80: 318.1 | R80: 497.51 | S80: 608.79 | T80: 583.49 | U80: 456.61 | V80: 235.38 | W80: 118.18 | X80: 0 | Y80: 0 | Z80: 0 | AA80: 0 | AB80: 0.63 | AC80: 0.61 | AD80: 1.83 | AE80: 3.88 | AF80: 15.45 | AG80: 37.79 | AH80: 71.75 | AI80: 93.55 | AJ80: 124.39 | AK80: 146.92 | AL80: 186.24 | AM80: 164.87 | AN80: 123.55 | AO80: 76.75 | AP80: 43.88 | AQ80: 0 | AR80: 0 | AS80: 0 | AT80: 0.1 | AU80: 0 | AV80: 0.42 | AW80: 0.61 | AX80: 1.82 | AY80: 3.61 | AZ80: 13.21 | BA80: 32.24 | BB80: 66.74 | BC80: 106.83 | BD80: 164.69 | BE80: 232.51 | BF80: 341.88 | BG80: 386.83 | BH80: 353.52 | BI80: 266.68 | BJ80: 139.63 | BK80: 59.09
A81: Long | C81: 2007 | D81: 0 | E81: 0 | F81: 0 | G81: 0 | H81: 0 | I81: 1.21 | J81: 1.72 | K81: 3.86 | L81: 8.76 | M81: 24.41 | N81: 61.2 | O81: 117.81 | P81: 195.31 | Q81: 333.08 | R81: 487.39 | S81: 606.23 | T81: 572.44 | U81: 453.75 | V81: 254.84 | W81: 37.64 | X81: 0 | Y81: 0 | Z81: 0 | AA81: 0.41 | AB81: 0 | AC81: 0.4 | AD81: 1.72 | AE81: 3.45 | AF81: 16.14 | AG81: 38.21 | AH81: 75.02 | AI81: 93.14 | AJ81: 133.24 | AK81: 146.1 | AL81: 178.16 | AM81: 191.03 | AN81: 118.88 | AO81: 71.82 | AP81: 39.09 | AQ81: 23.07 | AR81: 0 | AS81: 0 | AT81: 0 | AU81: 0.2 | AV81: 0 | AW81: 0.81 | AX81: 1.72 | AY81: 3.66 | AZ81: 12.45 | BA81: 31.31 | BB81: 68.11 | BC81: 105.48 | BD81: 164.27 | BE81: 239.59 | BF81: 332.78 | BG81: 398.63 | BH81: 345.66 | BI81: 262.78 | BJ81: 146.97 | BK81: 30.35
A82: Long | C82: 2008 | D82: 0 | E82: 0 | F82: 0 | G82: 0.39 | H82: 0 | I82: 0.6 | J82: 1.18 | K82: 5.07 | L82: 6.99 | M82: 22.17 | N82: 59.89 | O82: 113.55 | P82: 194.02 | Q82: 316.74 | R82: 475.05 | S82: 603.02 | T82: 603.35 | U82: 429.57 | V82: 267.29 | W82: 249.51 | X82: 0 | Y82: 0 | Z82: 0 | AA82: 0.2 | AB82: 0.41 | AC82: 1.01 | AD82: 0.98 | AE82: 4.48 | AF82: 14.03 | AG82: 39.76 | AH82: 74.99 | AI82: 100.06 | AJ82: 136.84 | AK82: 162.36 | AL82: 196.31 | AM82: 182.42 | AN82: 138.61 | AO82: 87.8 | AP82: 52.01 | AQ82: 0 | AR82: 0 | AS82: 0 | AT82: 0 | AU82: 0.3 | AV82: 0.2 | AW82: 0.81 | AX82: 1.08 | AY82: 4.78 | AZ82: 10.51 | BA82: 30.96 | BB82: 67.44 | BC82: 106.8 | BD82: 165.43 | BE82: 239.55 | BF82: 335.68 | BG82: 392.72 | BH82: 370.98 | BI82: 258.69 | BJ82: 159.65 | BK82: 124.75
A83: Long | C83: 2009 | D83: 0.21 | E83: 0 | F83: 0.2 | G83: 0 | H83: 0.2 | I83: 1.2 | J83: 0.99 | K83: 2.97 | L83: 9.76 | M83: 22.15 | N83: 60.89 | O83: 113.37 | P83: 189.59 | Q83: 322.67 | R83: 465.93 | S83: 604.04 | T83: 596.91 | U83: 473.14 | V83: 356.7 | W83: 396.96 | X83: 0 | Y83: 0 | Z83: 0 | AA83: 0.2 | AB83: 0.81 | AC83: 0.61 | AD83: 1.2 | AE83: 5.47 | AF83: 15.93 | AG83: 31.68 | AH83: 71.23 | AI83: 105.26 | AJ83: 129.72 | AK83: 165.44 | AL83: 192.62 | AM83: 199.99 | AN83: 148.24 | AO83: 83.5 | AP83: 43.68 | AQ83: 27.81 | AR83: 0.11 | AS83: 0 | AT83: 0.1 | AU83: 0.1 | AV83: 0.5 | AW83: 0.9 | AX83: 1.1 | AY83: 4.22 | AZ83: 12.84 | BA83: 26.92 | BB83: 66.06 | BC83: 109.31 | BD83: 159.66 | BE83: 244.06 | BF83: 329.28 | BG83: 402.01 | BH83: 372.57 | BI83: 278.32 | BJ83: 200.19 | BK83: 212.39
A84: Long | C84: 2010 | D84: 0 | E84: 0 | F84: 0.39 | G84: 0.19 | H84: 0.19 | I84: 0 | J84: 1.2 | K84: 4.86 | L84: 8.4 | M84: 25.43 | N84: 54.53 | O84: 113.08 | P84: 192.78 | Q84: 311.98 | R84: 433.7 | S84: 635.1 | T84: 593.01 | U84: 413.99 | V84: 332.72 | W84: 219.64 | X84: 0 | Y84: 0 | Z84: 0 | AA84: 0.2 | AB84: 0.39 | AC84: 0.2 | AD84: 0.8 | AE84: 6.26 | AF84: 11.69 | AG84: 31.84 | AH84: 63.3 | AI84: 109.08 | AJ84: 149.54 | AK84: 180.64 | AL84: 206.75 | AM84: 205.86 | AN84: 163.44 | AO84: 101.73 | AP84: 52.43 | AQ84: 33.26 | AR84: 0 | AS84: 0 | AT84: 0.2 | AU84: 0.2 | AV84: 0.29 | AW84: 0.1 | AX84: 1 | AY84: 5.56 | AZ84: 10.04 | BA84: 28.64 | BB84: 58.92 | BC84: 111.08 | BD84: 171.16 | BE84: 246.31 | BF84: 320.23 | BG84: 420.48 | BH84: 378.23 | BI84: 257.86 | BJ84: 192.58 | BK84: 126.45
A85: Long | C85: 2011 | D85: 0 | E85: 0 | F85: 0 | G85: 0.39 | H85: 0.19 | I85: 0.2 | J85: 1.39 | K85: 3.47 | L85: 11.21 | M85: 22.44 | N85: 56.45 | O85: 108.48 | P85: 199.12 | Q85: 303.99 | R85: 424.71 | S85: 580.68 | T85: 644.89 | U85: 457.23 | V85: 276.91 | W85: 60.79 | X85: 0 | Y85: 0 | Z85: 0.41 | AA85: 0 | AB85: 0.78 | AC85: 1.2 | AD85: 1.39 | AE85: 3.28 | AF85: 11.54 | AG85: 36.72 | AH85: 68.94 | AI85: 113.51 | AJ85: 142.2 | AK85: 179.81 | AL85: 197.74 | AM85: 227.3 | AN85: 164.71 | AO85: 119.4 | AP85: 60.63 | AQ85: 19.26 | AR85: 0 | AS85: 0 | AT85: 0.2 | AU85: 0.19 | AV85: 0.48 | AW85: 0.7 | AX85: 1.39 | AY85: 3.37 | AZ85: 11.38 | BA85: 29.58 | BB85: 62.69 | BC85: 111 | BD85: 170.66 | BE85: 241.9 | BF85: 311.23 | BG85: 403.99 | BH85: 404.8 | BI85: 288.31 | BJ85: 168.77 | BK85: 40.03
A86: Long | C86: 2012 | D86: 0 | E86: 0 | F86: 0 | G86: 0.59 | H86: 0 | I86: 0.2 | J86: 1.58 | K86: 3.24 | L86: 9.34 | M86: 20.65 | N86: 46.97 | O86: 107.56 | P86: 183.03 | Q86: 274.79 | R86: 395.99 | S86: 575.66 | T86: 531.08 | U86: 520.2 | V86: 221.94 | W86: 232.52 | X86: 0.22 | Y86: 0 | Z86: 0 | AA86: 0 | AB86: 0.38 | AC86: 0.4 | AD86: 1.59 | AE86: 3.04 | AF86: 12.25 | AG86: 32.6 | AH86: 68.16 | AI86: 116.45 | AJ86: 160.33 | AK86: 190.11 | AL86: 212.22 | AM86: 215.6 | AN86: 179.07 | AO86: 98.92 | AP86: 50.99 | AQ86: 24.93 | AR86: 0.11 | AS86: 0 | AT86: 0 | AU86: 0.29 | AV86: 0.19 | AW86: 0.3 | AX86: 1.59 | AY86: 3.14 | AZ86: 10.79 | BA86: 26.63 | BB86: 57.56 | BC86: 112 | BD86: 171.68 | BE86: 232.45 | BF86: 304.11 | BG86: 395.63 | BH86: 355.08 | BI86: 309.56 | BJ86: 136.47 | BK86: 128.73
A87: Long | C87: 2013 | D87: 0 | E87: 0 | F87: 0.19 | G87: 0 | H87: 0.56 | I87: 0.96 | J87: 1.58 | K87: 3.34 | L87: 9.58 | M87: 24.15 | N87: 52.04 | O87: 113.51 | P87: 177.66 | Q87: 270.29 | R87: 400.59 | S87: 512.47 | T87: 574.05 | U87: 483.34 | V87: 240.76 | W87: 253.31 | X87: 0 | Y87: 0 | Z87: 0 | AA87: 0 | AB87: 0.19 | AC87: 0.78 | AD87: 1.79 | AE87: 3.71 | AF87: 11.04 | AG87: 30.22 | AH87: 59.4 | AI87: 115.65 | AJ87: 164.5 | AK87: 196.44 | AL87: 211.21 | AM87: 215.45 | AN87: 205.49 | AO87: 115.4 | AP87: 54.66 | AQ87: 24.59 | AR87: 0 | AS87: 0 | AT87: 0.1 | AU87: 0 | AV87: 0.38 | AW87: 0.87 | AX87: 1.69 | AY87: 3.52 | AZ87: 10.31 | BA87: 27.19 | BB87: 55.72 | BC87: 114.58 | BD87: 171.08 | BE87: 233.36 | BF87: 305.9 | BG87: 363.96 | BH87: 389.77 | BI87: 299.37 | BJ87: 147.71 | BK87: 138.95
A88: Long | C88: 2014 | D88: 0 | E88: 0 | F88: 0 | G88: 0.2 | H88: 0.19 | I88: 0.38 | J88: 1.78 | K88: 3.78 | L88: 10.47 | M88: 19.76 | N88: 43.87 | O88: 96.19 | P88: 181.6 | Q88: 265.96 | R88: 391.09 | S88: 493.95 | T88: 554.59 | U88: 410.6 | V88: 224.66 | W88: 159.87 | X88: 0.23 | Y88: 0 | Z88: 0 | AA88: 0.21 | AB88: 0 | AC88: 0.19 | AD88: 1.59 | AE88: 3.96 | AF88: 10.61 | AG88: 29.15 | AH88: 64.32 | AI88: 115.5 | AJ88: 163.79 | AK88: 206.29 | AL88: 225.16 | AM88: 204.7 | AN88: 169.68 | AO88: 98.82 | AP88: 56.52 | AQ88: 30.12 | AR88: 0.11 | AS88: 0 | AT88: 0 | AU88: 0.2 | AV88: 0.09 | AW88: 0.29 | AX88: 1.68 | AY88: 3.87 | AZ88: 10.54 | BA88: 24.46 | BB88: 54.1 | BC88: 105.84 | BD88: 172.7 | BE88: 236.12 | BF88: 308.13 | BG88: 349.32 | BH88: 362.13 | BI88: 254.71 | BJ88: 140.59 | BK88: 95
A89: Long | C89: 2015 | D89: 0 | E89: 0 | F89: 0 | G89: 0.19 | H89: 0.37 | I89: 0.19 | J89: 1.57 | K89: 2.99 | L89: 11.01 | M89: 21.33 | N89: 47.58 | O89: 95.75 | P89: 176.83 | Q89: 273.27 | R89: 388.33 | S89: 478.64 | T89: 555.37 | U89: 397.02 | V89: 219 | W89: 71.75 | X89: 0 | Y89: 0 | Z89: 0.2 | AA89: 0.2 | AB89: 0.38 | AC89: 0.19 | AD89: 0.59 | AE89: 4.37 | AF89: 7.46 | AG89: 25.49 | AH89: 63.84 | AI89: 112.18 | AJ89: 176.51 | AK89: 216.62 | AL89: 236.94 | AM89: 229.56 | AN89: 211.01 | AO89: 107.86 | AP89: 56.74 | AQ89: 22.89 | AR89: 0 | AS89: 0 | AT89: 0.1 | AU89: 0.2 | AV89: 0.37 | AW89: 0.19 | AX89: 1.08 | AY89: 3.68 | AZ89: 9.24 | BA89: 23.41 | BB89: 55.71 | BC89: 103.96 | BD89: 176.67 | BE89: 244.94 | BF89: 312.64 | BG89: 354.1 | BH89: 383.19 | BI89: 252.44 | BJ89: 137.87 | BK89: 47.32
A90: Long | C90: 2016 | D90: 0.22 | E90: 0 | F90: 0.2 | G90: 0 | H90: 0.18 | I90: 0.18 | J90: 1.36 | K90: 3.55 | L90: 10.81 | M90: 22.8 | N90: 46.09 | O90: 93.92 | P90: 173.73 | Q90: 257.48 | R90: 380.7 | S90: 472.92 | T90: 508.01 | U90: 444.76 | V90: 203.81 | W90: 85.98 | X90: 0 | Y90: 0 | Z90: 0.21 | AA90: 0 | AB90: 0.38 | AC90: 0.94 | AD90: 1.37 | AE90: 5.13 | AF90: 11.25 | AG90: 25.32 | AH90: 60 | AI90: 114.03 | AJ90: 172.16 | AK90: 213.02 | AL90: 244.8 | AM90: 223.32 | AN90: 195.73 | AO90: 115.21 | AP90: 57.96 | AQ90: 16.17 | AR90: 0.11 | AS90: 0 | AT90: 0.2 | AU90: 0 | AV90: 0.28 | AW90: 0.56 | AX90: 1.37 | AY90: 4.34 | AZ90: 11.03 | BA90: 24.06 | BB90: 53.04 | BC90: 103.98 | BD90: 172.94 | BE90: 235.25 | BF90: 312.75 | BG90: 348.12 | BH90: 351.87 | BI90: 279.98 | BJ90: 130.88 | BK90: 51.08
A91: Mesothelioom | C91: 1989 | D91: 0 | E91: 0 | F91: 0 | G91: 0 | H91: 0 | I91: 0 | J91: 0.16 | K91: 0 | L91: 1.34 | M91: 2.2 | N91: 7.41 | O91: 9.18 | P91: 12.28 | Q91: 16.03 | R91: 19.15 | S91: 15.99 | T91: 13.46 | U91: 19.33 | V91: 35.88 | W91: 40.23 | X91: 0 | Y91: 0 | Z91: 0 | AA91: 0 | AB91: 0 | AC91: 0 | AD91: 0 | AE91: 0.18 | AF91: 0.18 | AG91: 1.4 | AH91: 0.26 | AI91: 1.63 | AJ91: 1.14 | AK91: 1.47 | AL91: 1.48 | AM91: 2.13 | AN91: 4.21 | AO91: 2.27 | AP91: 3.27 | AQ91: 0 | AR91: 0 | AS91: 0 | AT91: 0 | AU91: 0 | AV91: 0 | AW91: 0 | AX91: 0.08 | AY91: 0.09 | AZ91: 0.76 | BA91: 1.8 | BB91: 3.84 | BC91: 5.41 | BD91: 6.71 | BE91: 8.75 | BF91: 10.31 | BG91: 9.06 | BH91: 8.84 | BI91: 10.8 | BJ91: 19.57 | BK91: 20.12
A92: Mesothelioom | C92: 1990 | D92: 0 | E92: 0 | F92: 0 | G92: 0 | H92: 0.15 | I92: 0 | J92: 0 | K92: 0.51 | L92: 0.82 | M92: 3 | N92: 5.75 | O92: 8.88 | P92: 12.45 | Q92: 18.69 | R92: 18.76 | S92: 13.7 | T92: 16.91 | U92: 16.34 | V92: 8.96 | W92: 0 | X92: 0 | Y92: 0 | Z92: 0 | AA92: 0 | AB92: 0 | AC92: 0 | AD92: 0 | AE92: 0.18 | AF92: 0.17 | AG92: 0.45 | AH92: 0.26 | AI92: 1.09 | AJ92: 1.99 | AK92: 2.04 | AL92: 2.18 | AM92: 2.96 | AN92: 0.59 | AO92: 1.1 | AP92: 0 | AQ92: 0 | AR92: 0 | AS92: 0 | AT92: 0 | AU92: 0 | AV92: 0.08 | AW92: 0 | AX92: 0 | AY92: 0.34 | AZ92: 0.49 | BA92: 1.73 | BB92: 3 | BC92: 4.99 | BD92: 7.22 | BE92: 10.36 | BF92: 10.47 | BG92: 8.33 | BH92: 8.75 | BI92: 8.72 | BJ92: 4.48 | BK92: 0
A93: Mesothelioom | C93: 1991 | D93: 0 | E93: 0 | F93: 0 | G93: 0 | H93: 0 | I93: 0 | J93: 0.16 | K93: 0.34 | L93: 0.65 | M93: 1.82 | N93: 4.89 | O93: 9.12 | P93: 10.42 | Q93: 15.9 | R93: 20.86 | S93: 25.06 | T93: 22.71 | U93: 8.08 | V93: 8.91 | W93: 0 | X93: 0 | Y93: 0 | Z93: 0 | AA93: 0 | AB93: 0 | AC93: 0.16 | AD93: 0 | AE93: 0 | AF93: 0 | AG93: 0.85 | AH93: 0.51 | AI93: 1.09 | AJ93: 0.85 | AK93: 3.23 | AL93: 1.75 | AM93: 1.26 | AN93: 0.58 | AO93: 0 | AP93: 0 | AQ93: 0 | AR93: 0 | AS93: 0 | AT93: 0 | AU93: 0 | AV93: 0 | AW93: 0.08 | AX93: 0.08 | AY93: 0.17 | AZ93: 0.33 | BA93: 1.34 | BB93: 2.7 | BC93: 5.11 | BD93: 5.63 | BE93: 9.56 | BF93: 11.31 | BG93: 13.16 | BH93: 11.65 | BI93: 4.04 | BJ93: 4.46 | BK93: 0
A94: Mesothelioom | C94: 1992 | D94: 0 | E94: 0 | F94: 0 | G94: 0 | H94: 0 | I94: 0 | J94: 0.31 | K94: 0.17 | L94: 1.34 | M94: 3.35 | N94: 5.75 | O94: 14.01 | P94: 11.49 | Q94: 26.12 | R94: 23.34 | S94: 36.31 | T94: 21.09 | U94: 13.3 | V94: 35.22 | W94: 0 | X94: 0 | Y94: 0 | Z94: 0 | AA94: 0 | AB94: 0 | AC94: 0 | AD94: 0 | AE94: 0.35 | AF94: 0.18 | AG94: 0.2 | AH94: 0.75 | AI94: 1.64 | AJ94: 1.4 | AK94: 2.36 | AL94: 2.72 | AM94: 2.09 | AN94: 2.29 | AO94: 2.07 | AP94: 2.88 | AQ94: 0 | AR94: 0 | AS94: 0 | AT94: 0 | AU94: 0 | AV94: 0 | AW94: 0 | AX94: 0.15 | AY94: 0.26 | AZ94: 0.76 | BA94: 1.77 | BB94: 3.25 | BC94: 7.83 | BD94: 6.44 | BE94: 14.24 | BF94: 13.03 | BG94: 19.2 | BH94: 11.69 | BI94: 7.68 | BJ94: 19.05 | BK94: 0
A95: Mesothelioom | C95: 1993 | D95: 0 | E95: 0 | F95: 0 | G95: 0 | H95: 0 | I95: 0 | J95: 0.15 | K95: 0 | L95: 0.17 | M95: 1.58 | N95: 4.89 | O95: 7.33 | P95: 16.15 | Q95: 17.63 | R95: 21.6 | S95: 24.32 | T95: 27.44 | U95: 13.12 | V95: 8.74 | W95: 42.54 | X95: 0 | Y95: 0 | Z95: 0 | AA95: 0 | AB95: 0 | AC95: 0 | AD95: 0 | AE95: 0.34 | AF95: 0.36 | AG95: 0 | AH95: 0 | AI95: 0.27 | AJ95: 1.68 | AK95: 1.78 | AL95: 2.96 | AM95: 1.26 | AN95: 2.82 | AO95: 5.02 | AP95: 0 | AQ95: 0 | AR95: 0 | AS95: 0 | AT95: 0 | AU95: 0 | AV95: 0 | AW95: 0 | AX95: 0.08 | AY95: 0.17 | AZ95: 0.26 | BA95: 0.79 | BB95: 2.45 | BC95: 3.8 | BD95: 8.91 | BE95: 9.71 | BF95: 12.28 | BG95: 12.79 | BH95: 15.13 | BI95: 9.07 | BJ95: 4.37 | BK95: 21.27
A96: Mesothelioom | C96: 1994 | D96: 0 | E96: 0 | F96: 0 | G96: 0 | H96: 0 | I96: 0 | J96: 0 | K96: 0 | L96: 0 | M96: 1.19 | N96: 4.06 | O96: 9.83 | P96: 13.67 | Q96: 17.55 | R96: 26.84 | S96: 27.16 | T96: 25.7 | U96: 36.15 | V96: 8.69 | W96: 0 | X96: 0 | Y96: 0 | Z96: 0 | AA96: 0 | AB96: 0 | AC96: 0 | AD96: 0.16 | AE96: 0.17 | AF96: 0.18 | AG96: 0.18 | AH96: 0.71 | AI96: 1.34 | AJ96: 0.84 | AK96: 1.19 | AL96: 3.51 | AM96: 3.83 | AN96: 4.99 | AO96: 3.91 | AP96: 2.69 | AQ96: 0 | AR96: 0 | AS96: 0 | AT96: 0 | AU96: 0 | AV96: 0 | AW96: 0 | AX96: 0.08 | AY96: 0.08 | AZ96: 0.09 | BA96: 0.68 | BB96: 2.38 | BC96: 5.59 | BD96: 7.25 | BE96: 9.37 | BF96: 15.17 | BG96: 15.5 | BH96: 15.35 | BI96: 20.03 | BJ96: 5.69 | BK96: 0
A97: Mesothelioom | C97: 1995 | D97: 0 | E97: 0 | F97: 0 | G97: 0 | H97: 0.18 | I97: 0 | J97: 0.44 | K97: 0.48 | L97: 0.51 | M97: 2.64 | N97: 3.95 | O97: 9.09 | P97: 15.09 | Q97: 19.4 | R97: 24.83 | S97: 21.18 | T97: 21.97 | U97: 45.7 | V97: 8.52 | W97: 0 | X97: 0 | Y97: 0 | Z97: 0 | AA97: 0 | AB97: 0 | AC97: 0 | AD97: 0 | AE97: 0.17 | AF97: 0.35 | AG97: 0 | AH97: 0.23 | AI97: 0.52 | AJ97: 1.97 | AK97: 2.38 | AL97: 3.16 | AM97: 3.76 | AN97: 1.65 | AO97: 2.86 | AP97: 0 | AQ97: 11.71 | AR97: 0 | AS97: 0 | AT97: 0 | AU97: 0 | AV97: 0.09 | AW97: 0 | AX97: 0.22 | AY97: 0.32 | AZ97: 0.43 | BA97: 1.32 | BB97: 2.09 | BC97: 4.81 | BD97: 8.53 | BE97: 10.89 | BF97: 13.99 | BG97: 12.47 | BH97: 11.81 | BI97: 24.28 | BJ97: 4.26 | BK97: 5.85
A98: Mesothelioom | C98: 1996 | D98: 0 | E98: 0 | F98: 0 | G98: 0.21 | H98: 0 | I98: 0 | J98: 0 | K98: 0.32 | L98: 0.68 | M98: 2.32 | N98: 4.56 | O98: 13.22 | P98: 17.97 | Q98: 23.88 | R98: 18.94 | S98: 27.86 | T98: 27.18 | U98: 27.65 | V98: 8.43 | W98: 45.64 | X98: 0 | Y98: 0 | Z98: 0 | AA98: 0 | AB98: 0 | AC98: 0 | AD98: 0 | AE98: 0 | AF98: 0.35 | AG98: 0.17 | AH98: 0.43 | AI98: 0.26 | AJ98: 1.98 | AK98: 2.37 | AL98: 3.18 | AM98: 2.02 | AN98: 2.18 | AO98: 1.88 | AP98: 2.5 | AQ98: 11.22 | AR98: 0 | AS98: 0 | AT98: 0 | AU98: 0.11 | AV98: 0 | AW98: 0 | AX98: 0 | AY98: 0.16 | AZ98: 0.51 | BA98: 1.25 | BB98: 2.5 | BC98: 6.74 | BD98: 9.98 | BE98: 13.13 | BF98: 11.06 | BG98: 14.94 | BH98: 14.68 | BI98: 14.77 | BJ98: 5.46 | BK98: 28.43
A99: Mesothelioom | C99: 1997 | D99: 0 | E99: 0 | F99: 0 | G99: 0 | H99: 0 | I99: 0 | J99: 0 | K99: 0 | L99: 0.67 | M99: 2.55 | N99: 3.62 | O99: 8.71 | P99: 15.81 | Q99: 22.19 | R99: 19.73 | S99: 28.63 | T99: 22.62 | U99: 22.21 | V99: 16.65 | W99: 0 | X99: 0 | Y99: 0 | Z99: 0 | AA99: 0 | AB99: 0 | AC99: 0 | AD99: 0 | AE99: 0 | AF99: 0.52 | AG99: 0.18 | AH99: 0.79 | AI99: 0.76 | AJ99: 1.7 | AK99: 2.06 | AL99: 2.24 | AM99: 1.56 | AN99: 3.8 | AO99: 4.64 | AP99: 0 | AQ99: 0 | AR99: 0 | AS99: 0 | AT99: 0 | AU99: 0 | AV99: 0 | AW99: 0 | AX99: 0 | AY99: 0 | AZ99: 0.6 | BA99: 1.37 | BB99: 2.21 | BC99: 4.74 | BD99: 8.75 | BE99: 12.13 | BF99: 10.99 | BG99: 15.1 | BH99: 13.21 | BI99: 13.43 | BJ99: 8.33 | BK99: 0
A100: Mesothelioom | C100: 1998 | D100: 0 | E100: 0 | F100: 0 | G100: 0 | H100: 0 | I100: 0 | J100: 0 | K100: 0.15 | L100: 0.33 | M100: 2.77 | N100: 3.78 | O100: 10.16 | P100: 12.99 | Q100: 19.27 | R100: 23.01 | S100: 30.94 | T100: 24.77 | U100: 11.99 | V100: 8.19 | W100: 0 | X100: 0 | Y100: 0 | Z100: 0 | AA100: 0 | AB100: 0 | AC100: 0 | AD100: 0 | AE100: 0 | AF100: 0 | AG100: 0.36 | AH100: 0.37 | AI100: 0.5 | AJ100: 0.56 | AK100: 0.88 | AL100: 3.22 | AM100: 3.03 | AN100: 1.64 | AO100: 0.91 | AP100: 0 | AQ100: 0 | AR100: 0 | AS100: 0 | AT100: 0 | AU100: 0 | AV100: 0 | AW100: 0 | AX100: 0 | AY100: 0.08 | AZ100: 0.17 | BA100: 1.56 | BB100: 2.08 | BC100: 5.33 | BD100: 6.77 | BE100: 10.08 | BF100: 13.12 | BG100: 16.98 | BH100: 13.2 | BI100: 6.45 | BJ100: 4.09 | BK100: 0
A101: Mesothelioom | C101: 1999 | D101: 0 | E101: 0 | F101: 0 | G101: 0 | H101: 0 | I101: 0 | J101: 0.3 | K101: 0.15 | L101: 0.82 | M101: 2.43 | N101: 3.48 | O101: 8.18 | P101: 12.42 | Q101: 27.67 | R101: 26.14 | S101: 44.95 | T101: 22.62 | U101: 16.29 | V101: 0 | W101: 0 | X101: 0 | Y101: 0 | Z101: 0 | AA101: 0 | AB101: 0 | AC101: 0 | AD101: 0 | AE101: 0.16 | AF101: 0.34 | AG101: 0.9 | AH101: 0.54 | AI101: 0.96 | AJ101: 2.21 | AK101: 1.77 | AL101: 3.56 | AM101: 3.3 | AN101: 2.75 | AO101: 2.67 | AP101: 0 | AQ101: 0 | AR101: 0 | AS101: 0 | AT101: 0 | AU101: 0 | AV101: 0 | AW101: 0 | AX101: 0.15 | AY101: 0.15 | AZ101: 0.58 | BA101: 1.66 | BB101: 2.01 | BC101: 4.57 | BD101: 7.32 | BE101: 14.72 | BF101: 14.85 | BG101: 24.13 | BH101: 12.68 | BI101: 9.48 | BJ101: 0 | BK101: 0
A102: Mesothelioom | C102: 2000 | D102: 0 | E102: 0 | F102: 0 | G102: 0 | H102: 0 | I102: 0.17 | J102: 0 | K102: 0.15 | L102: 0.32 | M102: 2.43 | N102: 3.38 | O102: 9.78 | P102: 16.51 | Q102: 22.24 | R102: 26.5 | S102: 35.42 | T102: 16.67 | U102: 22.72 | V102: 8.08 | W102: 0 | X102: 0 | Y102: 0 | Z102: 0 | AA102: 0 | AB102: 0 | AC102: 0.18 | AD102: 0 | AE102: 0 | AF102: 0.33 | AG102: 0.18 | AH102: 0.35 | AI102: 0.7 | AJ102: 1.89 | AK102: 3.25 | AL102: 3.23 | AM102: 5.8 | AN102: 1.08 | AO102: 1.76 | AP102: 0 | AQ102: 0 | AR102: 0 | AS102: 0 | AT102: 0 | AU102: 0 | AV102: 0 | AW102: 0.17 | AX102: 0 | AY102: 0.07 | AZ102: 0.33 | BA102: 1.3 | BB102: 1.87 | BC102: 5.24 | BD102: 9.2 | BE102: 12.74 | BF102: 14.87 | BG102: 20.61 | BH102: 8.87 | BI102: 12.24 | BJ102: 4.04 | BK102: 0
A103: Mesothelioom | C103: 2001 | D103: 0 | E103: 0 | F103: 0 | G103: 0 | H103: 0 | I103: 0 | J103: 0 | K103: 0.15 | L103: 0.32 | M103: 0.69 | N103: 4.06 | O103: 7.29 | P103: 16.12 | Q103: 21.41 | R103: 26.39 | S103: 28.62 | T103: 28.57 | U103: 26.89 | V103: 15.83 | W103: 0 | X103: 0 | Y103: 0 | Z103: 0 | AA103: 0 | AB103: 0 | AC103: 0 | AD103: 0 | AE103: 0 | AF103: 0.33 | AG103: 0.35 | AH103: 0.52 | AI103: 0.66 | AJ103: 2.13 | AK103: 2.96 | AL103: 4.18 | AM103: 5.84 | AN103: 3.63 | AO103: 2.63 | AP103: 0 | AQ103: 0 | AR103: 0 | AS103: 0 | AT103: 0 | AU103: 0 | AV103: 0 | AW103: 0 | AX103: 0 | AY103: 0.07 | AZ103: 0.32 | BA103: 0.52 | BB103: 2.29 | BC103: 3.97 | BD103: 9.12 | BE103: 12.19 | BF103: 15.29 | BG103: 17.23 | BH103: 16.1 | BI103: 14.76 | BJ103: 7.91 | BK103: 0
A104: Mesothelioom | C104: 2002 | D104: 0 | E104: 0 | F104: 0 | G104: 0 | H104: 0 | I104: 0 | J104: 0 | K104: 0.3 | L104: 0.16 | M104: 1.02 | N104: 3.82 | O104: 4.73 | P104: 11.81 | Q104: 23.14 | R104: 21.99 | S104: 29.48 | T104: 19.72 | U104: 31.02 | V104: 23.05 | W104: 0 | X104: 0 | Y104: 0 | Z104: 0 | AA104: 0 | AB104: 0 | AC104: 0 | AD104: 0 | AE104: 0 | AF104: 0.32 | AG104: 0.52 | AH104: 0.54 | AI104: 1.82 | AJ104: 1.57 | AK104: 2.67 | AL104: 4.47 | AM104: 1.1 | AN104: 3.51 | AO104: 2.62 | AP104: 0 | AQ104: 0 | AR104: 0 | AS104: 0 | AT104: 0 | AU104: 0 | AV104: 0 | AW104: 0 | AX104: 0 | AY104: 0.15 | AZ104: 0.24 | BA104: 0.77 | BB104: 2.18 | BC104: 3.27 | BD104: 6.69 | BE104: 12.9 | BF104: 13.23 | BG104: 15.29 | BH104: 11.62 | BI104: 16.82 | BJ104: 11.53 | BK104: 0
A105: Mesothelioom | C105: 2003 | D105: 0 | E105: 0 | F105: 0 | G105: 0 | H105: 0 | I105: 0.19 | J105: 0.16 | K105: 0 | L105: 0 | M105: 0.51 | N105: 2.12 | O105: 8.75 | P105: 13.26 | Q105: 23.07 | R105: 26.68 | S105: 31.91 | T105: 34.89 | U105: 17.69 | V105: 29.69 | W105: 0 | X105: 0 | Y105: 0 | Z105: 0 | AA105: 0 | AB105: 0 | AC105: 0 | AD105: 0 | AE105: 0.15 | AF105: 0.79 | AG105: 0.69 | AH105: 0.54 | AI105: 0.95 | AJ105: 0.77 | AK105: 3.82 | AL105: 0.95 | AM105: 4.81 | AN105: 1.45 | AO105: 1.75 | AP105: 2.14 | AQ105: 0 | AR105: 0 | AS105: 0 | AT105: 0 | AU105: 0 | AV105: 0 | AW105: 0.1 | AX105: 0.08 | AY105: 0.08 | AZ105: 0.39 | BA105: 0.6 | BB105: 1.33 | BC105: 4.85 | BD105: 7.01 | BE105: 13.45 | BF105: 13.82 | BG105: 18.36 | BH105: 18.17 | BI105: 9.72 | BJ105: 15.91 | BK105: 0
A106: Mesothelioom | C106: 2004 | D106: 0 | E106: 0 | F106: 0 | G106: 0 | H106: 0 | I106: 0 | J106: 0 | K106: 0.15 | L106: 0.46 | M106: 1.33 | N106: 3.55 | O106: 7.19 | P106: 13.8 | Q106: 24.03 | R106: 30.18 | S106: 40.44 | T106: 30.79 | U106: 13.14 | V106: 14.22 | W106: 0 | X106: 0 | Y106: 0 | Z106: 0 | AA106: 0 | AB106: 0 | AC106: 0 | AD106: 0 | AE106: 0.31 | AF106: 0.31 | AG106: 0.34 | AH106: 0.54 | AI106: 1.66 | AJ106: 2.48 | AK106: 1.45 | AL106: 0.64 | AM106: 3.34 | AN106: 3.75 | AO106: 3.52 | AP106: 0 | AQ106: 0 | AR106: 0 | AS106: 0 | AT106: 0 | AU106: 0 | AV106: 0 | AW106: 0 | AX106: 0 | AY106: 0.23 | AZ106: 0.38 | BA106: 0.83 | BB106: 2.05 | BC106: 4.42 | BD106: 8.14 | BE106: 12.74 | BF106: 15.41 | BG106: 21.89 | BH106: 17.27 | BI106: 8.33 | BJ106: 7.11 | BK106: 0
A107: Mesothelioom | C107: 2005 | D107: 0 | E107: 0 | F107: 0 | G107: 0 | H107: 0 | I107: 0 | J107: 0 | K107: 0 | L107: 0.3 | M107: 0.66 | N107: 2.13 | O107: 7.52 | P107: 12.23 | Q107: 26.37 | R107: 43.78 | S107: 41.5 | T107: 34.25 | U107: 33.08 | V107: 13.73 | W107: 40.63 | X107: 0 | Y107: 0 | Z107: 0 | AA107: 0 | AB107: 0 | AC107: 0 | AD107: 0 | AE107: 0 | AF107: 0 | AG107: 0.17 | AH107: 0.18 | AI107: 1.79 | AJ107: 1.69 | AK107: 3.68 | AL107: 2.23 | AM107: 5.16 | AN107: 3.24 | AO107: 2.55 | AP107: 0 | AQ107: 0 | AR107: 0 | AS107: 0 | AT107: 0 | AU107: 0 | AV107: 0 | AW107: 0 | AX107: 0 | AY107: 0 | AZ107: 0.15 | BA107: 0.41 | BB107: 1.16 | BC107: 4.65 | BD107: 6.96 | BE107: 15.02 | BF107: 23.01 | BG107: 23.33 | BH107: 18.74 | BI107: 17.82 | BJ107: 6.86 | BK107: 20.32
A108: Mesothelioom | C108: 2006 | D108: 0 | E108: 0 | F108: 0 | G108: 0 | H108: 0 | I108: 0 | J108: 0 | K108: 0 | L108: 0.15 | M108: 1.29 | N108: 1.06 | O108: 6.66 | P108: 14.24 | Q108: 26.87 | R108: 32.77 | S108: 42.91 | T108: 32.87 | U108: 26.75 | V108: 13.45 | W108: 0 | X108: 0 | Y108: 0 | Z108: 0 | AA108: 0 | AB108: 0 | AC108: 0 | AD108: 0 | AE108: 0.16 | AF108: 0.62 | AG108: 0.16 | AH108: 0.89 | AI108: 1.61 | AJ108: 2.28 | AK108: 1.39 | AL108: 2.55 | AM108: 4.75 | AN108: 4.63 | AO108: 4.85 | AP108: 3.99 | AQ108: 0 | AR108: 0 | AS108: 0 | AT108: 0 | AU108: 0 | AV108: 0 | AW108: 0 | AX108: 0 | AY108: 0.08 | AZ108: 0.38 | BA108: 0.73 | BB108: 0.98 | BC108: 4.14 | BD108: 8.26 | BE108: 14.13 | BF108: 17.66 | BG108: 23.83 | BH108: 18.75 | BI108: 15.8 | BJ108: 8.72 | BK108: 0
A109: Mesothelioom | C109: 2007 | D109: 0 | E109: 0 | F109: 0 | G109: 0 | H109: 0 | I109: 0 | J109: 0 | K109: 0 | L109: 0.3 | M109: 0.64 | N109: 2.97 | O109: 5.58 | P109: 10.79 | Q109: 22.51 | R109: 36.67 | S109: 36.85 | T109: 21.71 | U109: 37.51 | V109: 13.07 | W109: 0 | X109: 0 | Y109: 0 | Z109: 0 | AA109: 0 | AB109: 0 | AC109: 0 | AD109: 0 | AE109: 0 | AF109: 0 | AG109: 0.16 | AH109: 0.88 | AI109: 0.73 | AJ109: 1.88 | AK109: 2.74 | AL109: 3.5 | AM109: 4.7 | AN109: 3.24 | AO109: 2.32 | AP109: 1.95 | AQ109: 7.69 | AR109: 0 | AS109: 0 | AT109: 0 | AU109: 0 | AV109: 0 | AW109: 0 | AX109: 0 | AY109: 0 | AZ109: 0.15 | BA109: 0.4 | BB109: 1.93 | BC109: 3.16 | BD109: 6.34 | BE109: 12.62 | BF109: 20.09 | BG109: 20.77 | BH109: 12.47 | BI109: 19.92 | BJ109: 7.51 | BK109: 3.84
A110: Mesothelioom | C110: 2008 | D110: 0 | E110: 0 | F110: 0 | G110: 0 | H110: 0 | I110: 0 | J110: 0 | K110: 0 | L110: 0.15 | M110: 1.1 | N110: 2.94 | O110: 6.77 | P110: 13.12 | Q110: 25.68 | R110: 35.49 | S110: 34.99 | T110: 26.68 | U110: 25.07 | V110: 25.46 | W110: 0 | X110: 0 | Y110: 0 | Z110: 0 | AA110: 0 | AB110: 0 | AC110: 0 | AD110: 0.2 | AE110: 0 | AF110: 0 | AG110: 0.16 | AH110: 0.87 | AI110: 1.49 | AJ110: 1.77 | AK110: 1.87 | AL110: 4.1 | AM110: 4.31 | AN110: 5.08 | AO110: 2.95 | AP110: 0 | AQ110: 0 | AR110: 0 | AS110: 0 | AT110: 0 | AU110: 0 | AV110: 0 | AW110: 0 | AX110: 0.1 | AY110: 0 | AZ110: 0.08 | BA110: 0.63 | BB110: 1.91 | BC110: 4.13 | BD110: 7.45 | BE110: 13.78 | BF110: 19.8 | BG110: 19.65 | BH110: 15.88 | BI110: 14.01 | BJ110: 12.73 | BK110: 0
A111: Mesothelioom | C111: 2009 | D111: 0 | E111: 0 | F111: 0 | G111: 0 | H111: 0 | I111: 0 | J111: 0 | K111: 0.17 | L111: 0.46 | M111: 0.62 | N111: 2.22 | O111: 5.88 | P111: 11.71 | Q111: 18.64 | R111: 37.21 | S111: 36.61 | T111: 38.07 | U111: 25.23 | V111: 12.3 | W111: 0 | X111: 0 | Y111: 0 | Z111: 0 | AA111: 0 | AB111: 0 | AC111: 0 | AD111: 0 | AE111: 0 | AF111: 0.16 | AG111: 0.16 | AH111: 0.52 | AI111: 0.74 | AJ111: 1.52 | AK111: 1.55 | AL111: 3.4 | AM111: 4.29 | AN111: 1.84 | AO111: 3.54 | AP111: 5.7 | AQ111: 0 | AR111: 0 | AS111: 0 | AT111: 0 | AU111: 0 | AV111: 0 | AW111: 0 | AX111: 0 | AY111: 0.08 | AZ111: 0.31 | BA111: 0.39 | BB111: 1.37 | BC111: 3.31 | BD111: 6.61 | BE111: 10.09 | BF111: 20.3 | BG111: 20.45 | BH111: 19.95 | BI111: 14.39 | BJ111: 9 | BK111: 0
A112: Mesothelioom | C112: 2010 | D112: 0 | E112: 0 | F112: 0 | G112: 0 | H112: 0 | I112: 0 | J112: 0 | K112: 0 | L112: 0.31 | M112: 0.77 | N112: 1.68 | O112: 4.95 | P112: 9.91 | Q112: 20.16 | R112: 35.33 | S112: 52 | T112: 45.45 | U112: 39.43 | V112: 33.84 | W112: 0 | X112: 0 | Y112: 0 | Z112: 0 | AA112: 0.2 | AB112: 0 | AC112: 0 | AD112: 0 | AE112: 0.17 | AF112: 0 | AG112: 0.16 | AH112: 0.34 | AI112: 0.74 | AJ112: 2.03 | AK112: 3.28 | AL112: 3.32 | AM112: 2.85 | AN112: 3.19 | AO112: 2.77 | AP112: 1.81 | AQ112: 0 | AR112: 0 | AS112: 0 | AT112: 0 | AU112: 0.1 | AV112: 0 | AW112: 0 | AX112: 0 | AY112: 0.09 | AZ112: 0.15 | BA112: 0.46 | BB112: 1.01 | BC112: 2.84 | BD112: 5.97 | BE112: 11.72 | BF112: 19.33 | BG112: 27.43 | BH112: 24.32 | BI112: 21.1 | BJ112: 17.82 | BK112: 0
A113: Mesothelioom | C113: 2011 | D113: 0 | E113: 0 | F113: 0 | G113: 0 | H113: 0 | I113: 0 | J113: 0 | K113: 0.18 | L113: 0.15 | M113: 0.31 | N113: 2.31 | O113: 5.63 | P113: 10.28 | Q113: 20.4 | R113: 33.3 | S113: 33.36 | T113: 52.86 | U113: 42.5 | V113: 45.31 | W113: 0 | X113: 0 | Y113: 0 | Z113: 0 | AA113: 0 | AB113: 0 | AC113: 0 | AD113: 0 | AE113: 0 | AF113: 0 | AG113: 0.31 | AH113: 0.5 | AI113: 1.28 | AJ113: 1.29 | AK113: 1.66 | AL113: 4.45 | AM113: 3.56 | AN113: 5.39 | AO113: 4.12 | AP113: 0 | AQ113: 6.42 | AR113: 0 | AS113: 0 | AT113: 0 | AU113: 0 | AV113: 0 | AW113: 0 | AX113: 0 | AY113: 0.09 | AZ113: 0.08 | BA113: 0.31 | BB113: 1.41 | BC113: 3.46 | BD113: 5.78 | BE113: 11.03 | BF113: 18.87 | BG113: 18.46 | BH113: 29.12 | BI113: 23.31 | BJ113: 22.66 | BK113: 3.21
A114: Mesothelioom | C114: 2012 | D114: 0 | E114: 0 | F114: 0 | G114: 0 | H114: 0 | I114: 0 | J114: 0.2 | K114: 0.19 | L114: 0.16 | M114: 0 | N114: 2.76 | O114: 5.94 | P114: 11.66 | Q114: 19.56 | R114: 26.34 | S114: 49.37 | T114: 37.4 | U114: 26.86 | V114: 13.87 | W114: 0 | X114: 0 | Y114: 0 | Z114: 0 | AA114: 0 | AB114: 0 | AC114: 0.4 | AD114: 0.2 | AE114: 0.19 | AF114: 0.16 | AG114: 0 | AH114: 0.49 | AI114: 1.08 | AJ114: 1.32 | AK114: 1.09 | AL114: 4.37 | AM114: 4.96 | AN114: 6.19 | AO114: 4.78 | AP114: 1.59 | AQ114: 0 | AR114: 0 | AS114: 0 | AT114: 0 | AU114: 0 | AV114: 0 | AW114: 0.2 | AX114: 0.2 | AY114: 0.19 | AZ114: 0.16 | BA114: 0 | BB114: 1.63 | BC114: 3.51 | BD114: 6.49 | BE114: 10.33 | BF114: 15.35 | BG114: 27.16 | BH114: 21.8 | BI114: 15.82 | BJ114: 7.73 | BK114: 0
A115: Mesothelioom | C115: 2013 | D115: 0 | E115: 0 | F115: 0 | G115: 0 | H115: 0 | I115: 0 | J115: 0 | K115: 0 | L115: 0 | M115: 0.46 | N115: 1.28 | O115: 4.09 | P115: 12.01 | Q115: 15.07 | R115: 29.75 | S115: 45.34 | T115: 50.75 | U115: 40.96 | V115: 17.2 | W115: 0 | X115: 0 | Y115: 0 | Z115: 0 | AA115: 0.21 | AB115: 0 | AC115: 0 | AD115: 0 | AE115: 0 | AF115: 0 | AG115: 0 | AH115: 0.81 | AI115: 0.89 | AJ115: 1.53 | AK115: 2.06 | AL115: 3.41 | AM115: 4.2 | AN115: 4.37 | AO115: 2.72 | AP115: 4.56 | AQ115: 0 | AR115: 0 | AS115: 0 | AT115: 0 | AU115: 0.1 | AV115: 0 | AW115: 0 | AX115: 0 | AY115: 0 | AZ115: 0 | BA115: 0.23 | BB115: 1.04 | BC115: 2.49 | BD115: 6.77 | BE115: 8.57 | BF115: 16.58 | BG115: 24.77 | BH115: 27.56 | BI115: 21.84 | BJ115: 10.88 | BK115: 0
A116: Mesothelioom | C116: 2014 | D116: 0 | E116: 0 | F116: 0 | G116: 0 | H116: 0 | I116: 0 | J116: 0.2 | K116: 0.2 | L116: 0.33 | M116: 1.24 | N116: 1.42 | O116: 1.75 | P116: 8.8 | Q116: 16.94 | R116: 27.13 | S116: 50.26 | T116: 49.25 | U116: 24.92 | V116: 12.04 | W116: 26.65 | X116: 0 | Y116: 0 | Z116: 0 | AA116: 0 | AB116: 0 | AC116: 0 | AD116: 0.2 | AE116: 0.2 | AF116: 0.17 | AG116: 0.31 | AH116: 0.48 | AI116: 1.05 | AJ116: 0.77 | AK116: 2.58 | AL116: 2.2 | AM116: 8.22 | AN116: 3.04 | AO116: 1.34 | AP116: 2.9 | AQ116: 6.02 | AR116: 0 | AS116: 0 | AT116: 0 | AU116: 0 | AV116: 0 | AW116: 0 | AX116: 0.2 | AY116: 0.2 | AZ116: 0.25 | BA116: 0.77 | BB116: 0.95 | BC116: 1.4 | BD116: 4.78 | BE116: 9.76 | BF116: 14.67 | BG116: 29.24 | BH116: 26.15 | BI116: 13.13 | BJ116: 7.47 | BK116: 16.33
A117: Mesothelioom | C117: 2015 | D117: 0 | E117: 0 | F117: 0 | G117: 0 | H117: 0 | I117: 0.19 | J117: 0 | K117: 0 | L117: 0.52 | M117: 0.31 | N117: 0.62 | O117: 2.76 | P117: 6.68 | Q117: 18.58 | R117: 27.72 | S117: 42.83 | T117: 46.59 | U117: 38.83 | V117: 19.21 | W117: 0 | X117: 0 | Y117: 0 | Z117: 0 | AA117: 0.2 | AB117: 0 | AC117: 0 | AD117: 0 | AE117: 0.2 | AF117: 0 | AG117: 0.16 | AH117: 1.26 | AI117: 0.86 | AJ117: 1.14 | AK117: 2.7 | AL117: 3.76 | AM117: 3.68 | AN117: 5.18 | AO117: 1.99 | AP117: 4.26 | AQ117: 5.72 | AR117: 0 | AS117: 0 | AT117: 0 | AU117: 0.1 | AV117: 0 | AW117: 0.09 | AX117: 0 | AY117: 0.1 | AZ117: 0.26 | BA117: 0.23 | BB117: 0.94 | BC117: 1.81 | BD117: 3.91 | BE117: 10.64 | BF117: 15.74 | BG117: 23.25 | BH117: 25.88 | BI117: 20.41 | BJ117: 11.73 | BK117: 2.86
A118: Mesothelioom | C118: 2016 | D118: 0 | E118: 0 | F118: 0 | G118: 0 | H118: 0 | I118: 0.18 | J118: 0 | K118: 0.2 | L118: 0.37 | M118: 0.16 | N118: 1.4 | O118: 2.2 | P118: 10.02 | Q118: 18.18 | R118: 29.2 | S118: 41.04 | T118: 47.12 | U118: 43.16 | V118: 7.41 | W118: 64.49 | X118: 0 | Y118: 0 | Z118: 0 | AA118: 0 | AB118: 0 | AC118: 0 | AD118: 0 | AE118: 0 | AF118: 0 | AG118: 0.16 | AH118: 0.79 | AI118: 0.85 | AJ118: 0.94 | AK118: 2.5 | AL118: 3.29 | AM118: 5.57 | AN118: 9.01 | AO118: 3.91 | AP118: 4.24 | AQ118: 0 | AR118: 0 | AS118: 0 | AT118: 0 | AU118: 0 | AV118: 0 | AW118: 0.09 | AX118: 0 | AY118: 0.1 | AZ118: 0.18 | BA118: 0.16 | BB118: 1.09 | BC118: 1.52 | BD118: 5.48 | BE118: 10.34 | BF118: 16.25 | BG118: 23.3 | BH118: 28.06 | BI118: 23.53 | BJ118: 5.83 | BK118: 32.24
A119: Lymfoblastaire leukemie/lymfoom | C119: 1989 | D119: 3.62 | E119: 4.42 | F119: 1.72 | G119: 1.72 | H119: 1.24 | I119: 0.46 | J119: 0.65 | K119: 0.68 | L119: 1.01 | M119: 0.22 | N119: 0.26 | O119: 0.83 | P119: 0.31 | Q119: 1.07 | R119: 1.01 | S119: 1.39 | T119: 1.22 | U119: 0 | V119: 8.97 | W119: 0 | X119: 5.33 | Y119: 2.08 | Z119: 2.49 | AA119: 0.9 | AB119: 0.81 | AC119: 0.32 | AD119: 0.34 | AE119: 0.18 | AF119: 0 | AG119: 0.47 | AH119: 0.26 | AI119: 0.54 | AJ119: 0.28 | AK119: 0.88 | AL119: 0.37 | AM119: 2.13 | AN119: 0.6 | AO119: 1.14 | AP119: 6.54 | AQ119: 0 | AR119: 4.47 | AS119: 3.25 | AT119: 2.11 | AU119: 1.31 | AV119: 1.02 | AW119: 0.39 | AX119: 0.5 | AY119: 0.43 | AZ119: 0.5 | BA119: 0.34 | BB119: 0.26 | BC119: 0.69 | BD119: 0.3 | BE119: 0.98 | BF119: 0.69 | BG119: 1.76 | BH119: 0.91 | BI119: 0.57 | BJ119: 7.76 | BK119: 0
A120: Lymfoblastaire leukemie/lymfoom | C120: 1990 | D120: 5.02 | E120: 3.97 | F120: 2.6 | G120: 1.09 | H120: 1.08 | I120: 0.45 | J120: 0.48 | K120: 0.68 | L120: 0.33 | M120: 0.21 | N120: 0.5 | O120: 0.83 | P120: 0.93 | Q120: 1.06 | R120: 2.47 | S120: 2.74 | T120: 2.42 | U120: 2.72 | V120: 8.96 | W120: 0 | X120: 5.89 | Y120: 2.3 | Z120: 1.36 | AA120: 0.57 | AB120: 0.32 | AC120: 0.47 | AD120: 0.17 | AE120: 0.35 | AF120: 0.52 | AG120: 0.68 | AH120: 0.26 | AI120: 0.55 | AJ120: 0.57 | AK120: 0.87 | AL120: 0.36 | AM120: 1.27 | AN120: 1.18 | AO120: 1.1 | AP120: 0 | AQ120: 0 | AR120: 5.45 | AS120: 3.14 | AT120: 1.98 | AU120: 0.83 | AV120: 0.7 | AW120: 0.46 | AX120: 0.32 | AY120: 0.52 | AZ120: 0.42 | BA120: 0.45 | BB120: 0.38 | BC120: 0.69 | BD120: 0.75 | BE120: 0.97 | BF120: 1.42 | BG120: 2.01 | BH120: 1.8 | BI120: 1.91 | BJ120: 4.48 | BK120: 0
A121: Lymfoblastaire leukemie/lymfoom | C121: 1991 | D121: 6.35 | E121: 3.51 | F121: 0.86 | G121: 2.49 | H121: 1.55 | I121: 1.04 | J121: 0.94 | K121: 1.01 | L121: 0.49 | M121: 0.2 | N121: 0.98 | O121: 0.83 | P121: 0.92 | Q121: 0.71 | R121: 1.42 | S121: 2.03 | T121: 7.17 | U121: 2.69 | V121: 0 | W121: 41.72 | X121: 4.71 | Y121: 1.83 | Z121: 2.04 | AA121: 0.4 | AB121: 1.13 | AC121: 0.16 | AD121: 0.49 | AE121: 0.35 | AF121: 0.34 | AG121: 0.43 | AH121: 1.01 | AI121: 0 | AJ121: 1.13 | AK121: 0.59 | AL121: 0.7 | AM121: 0.42 | AN121: 1.75 | AO121: 1.06 | AP121: 0 | AQ121: 0 | AR121: 5.53 | AS121: 2.67 | AT121: 1.45 | AU121: 1.45 | AV121: 1.34 | AW121: 0.6 | AX121: 0.72 | AY121: 0.68 | AZ121: 0.42 | BA121: 0.31 | BB121: 0.99 | BC121: 0.41 | BD121: 1.02 | BE121: 0.65 | BF121: 1.06 | BG121: 1.23 | BH121: 4.46 | BI121: 1.88 | BJ121: 0 | BK121: 20.86
A122: Lymfoblastaire leukemie/lymfoom | C122: 1992 | D122: 5.46 | E122: 3.9 | F122: 2.59 | G122: 4.01 | H122: 0.78 | I122: 0.15 | J122: 0.93 | K122: 1.17 | L122: 0.34 | M122: 1.12 | N122: 0.24 | O122: 1.65 | P122: 1.51 | Q122: 0.71 | R122: 0.92 | S122: 0 | T122: 1.17 | U122: 2.66 | V122: 0 | W122: 0 | X122: 5.08 | Y122: 4.29 | Z122: 1.13 | AA122: 0.63 | AB122: 0.32 | AC122: 0.31 | AD122: 0.48 | AE122: 0.17 | AF122: 0.18 | AG122: 0.39 | AH122: 0.99 | AI122: 1.09 | AJ122: 1.4 | AK122: 0.59 | AL122: 1.7 | AM122: 1.26 | AN122: 2.87 | AO122: 2.07 | AP122: 0 | AQ122: 0 | AR122: 5.27 | AS122: 4.09 | AT122: 1.86 | AU122: 2.32 | AV122: 0.55 | AW122: 0.23 | AX122: 0.71 | AY122: 0.67 | AZ122: 0.26 | BA122: 0.75 | BB122: 0.62 | BC122: 1.37 | BD122: 1.46 | BE122: 0.65 | BF122: 1.31 | BG122: 0.63 | BH122: 2.02 | BI122: 2.36 | BJ122: 0 | BK122: 0
A123: Lymfoblastaire leukemie/lymfoom | C123: 1993 | D123: 4.2 | E123: 3.82 | F123: 1.51 | G123: 2.28 | H123: 1.28 | I123: 0.75 | J123: 0.61 | K123: 0.16 | L123: 0.51 | M123: 0.7 | N123: 1.4 | O123: 0.81 | P123: 1.5 | Q123: 0 | R123: 0.44 | S123: 2.03 | T123: 0 | U123: 0 | V123: 8.74 | W123: 0 | X123: 4.19 | Y123: 2.88 | Z123: 1.81 | AA123: 1.51 | AB123: 0.83 | AC123: 0.63 | AD123: 0.16 | AE123: 0.34 | AF123: 0.18 | AG123: 0.92 | AH123: 0 | AI123: 0.54 | AJ123: 0.56 | AK123: 1.78 | AL123: 0.99 | AM123: 0.84 | AN123: 0 | AO123: 1 | AP123: 0 | AQ123: 0 | AR123: 4.2 | AS123: 3.35 | AT123: 1.66 | AU123: 1.9 | AV123: 1.05 | AW123: 0.69 | AX123: 0.38 | AY123: 0.25 | AZ123: 0.34 | BA123: 0.81 | BB123: 0.7 | BC123: 0.68 | BD123: 1.03 | BE123: 0.89 | BF123: 0.71 | BG123: 1.43 | BH123: 0 | BI123: 0.5 | BJ123: 4.37 | BK123: 0
A124: Lymfoblastaire leukemie/lymfoom | C124: 1994 | D124: 5.75 | E124: 4.17 | F124: 2.16 | G124: 1.26 | H124: 1 | I124: 0.75 | J124: 0.6 | K124: 0.49 | L124: 1.03 | M124: 1.19 | N124: 1.13 | O124: 0.27 | P124: 0.89 | Q124: 0.7 | R124: 1.28 | S124: 2.04 | T124: 2.23 | U124: 0 | V124: 0 | W124: 0 | X124: 6.65 | Y124: 1.96 | Z124: 1.58 | AA124: 0.22 | AB124: 1.21 | AC124: 0.16 | AD124: 0.31 | AE124: 0.5 | AF124: 0.18 | AG124: 0.71 | AH124: 0.71 | AI124: 0.53 | AJ124: 0.28 | AK124: 1.19 | AL124: 0.32 | AM124: 0.85 | AN124: 0 | AO124: 1.96 | AP124: 0 | AQ124: 0 | AR124: 6.2 | AS124: 3.07 | AT124: 1.87 | AU124: 0.74 | AV124: 1.11 | AW124: 0.45 | AX124: 0.46 | AY124: 0.5 | AZ124: 0.6 | BA124: 0.95 | BB124: 0.92 | BC124: 0.4 | BD124: 0.59 | BE124: 0.95 | BF124: 0.8 | BG124: 1.44 | BH124: 1.12 | BI124: 0.98 | BJ124: 0 | BK124: 0
A125: Lymfoblastaire leukemie/lymfoom | C125: 1995 | D125: 7.34 | E125: 3.69 | F125: 3.25 | G125: 1.27 | H125: 1.06 | I125: 0.6 | J125: 1.19 | K125: 0.64 | L125: 0.86 | M125: 0.66 | N125: 0.66 | O125: 1.04 | P125: 0.59 | Q125: 1.73 | R125: 1.68 | S125: 0.66 | T125: 0 | U125: 0 | V125: 0 | W125: 0 | X125: 4.37 | Y125: 2.57 | Z125: 1.36 | AA125: 1.11 | AB125: 0.36 | AC125: 0.32 | AD125: 0.62 | AE125: 0.66 | AF125: 0.71 | AG125: 0.35 | AH125: 0.23 | AI125: 0.52 | AJ125: 0.84 | AK125: 1.49 | AL125: 0.95 | AM125: 1.25 | AN125: 1.1 | AO125: 0.95 | AP125: 0 | AQ125: 0 | AR125: 5.85 | AS125: 3.13 | AT125: 2.3 | AU125: 1.19 | AV125: 0.71 | AW125: 0.46 | AX125: 0.9 | AY125: 0.65 | AZ125: 0.78 | BA125: 0.5 | BB125: 0.44 | BC125: 0.78 | BD125: 0.72 | BE125: 1.61 | BF125: 1.32 | BG125: 0.96 | BH125: 0.55 | BI125: 0.48 | BJ125: 0 | BK125: 0
A126: Lymfoblastaire leukemie/lymfoom | C126: 1996 | D126: 7 | E126: 2.82 | F126: 2.59 | G126: 3.59 | H126: 1.69 | I126: 0.91 | J126: 0.3 | K126: 0.47 | L126: 0.17 | M126: 0.66 | N126: 0.21 | O126: 0.51 | P126: 0.59 | Q126: 0 | R126: 0.42 | S126: 1.27 | T126: 3.26 | U126: 5.03 | V126: 0 | W126: 0 | X126: 6.71 | Y126: 2.95 | Z126: 1.35 | AA126: 0.89 | AB126: 0.96 | AC126: 0.47 | AD126: 0.31 | AE126: 0.33 | AF126: 0.7 | AG126: 0.69 | AH126: 0.86 | AI126: 0.77 | AJ126: 0.28 | AK126: 0.59 | AL126: 0.32 | AM126: 0.81 | AN126: 1.09 | AO126: 0 | AP126: 0 | AQ126: 0 | AR126: 6.86 | AS126: 2.89 | AT126: 1.97 | AU126: 2.24 | AV126: 1.32 | AW126: 0.69 | AX126: 0.3 | AY126: 0.4 | AZ126: 0.44 | BA126: 0.68 | BB126: 0.54 | BC126: 0.64 | BD126: 0.44 | BE126: 0.3 | BF126: 0.37 | BG126: 1.04 | BH126: 2.18 | BI126: 2.51 | BJ126: 0 | BK126: 0
A127: Lymfoblastaire leukemie/lymfoom | C127: 1997 | D127: 8.85 | E127: 3.59 | F127: 1.92 | G127: 1.9 | H127: 1.18 | I127: 0.46 | J127: 0.59 | K127: 0.62 | L127: 0.67 | M127: 0.51 | N127: 0 | O127: 0.75 | P127: 1.17 | Q127: 0.67 | R127: 0.42 | S127: 0.61 | T127: 3.23 | U127: 4.94 | V127: 0 | W127: 44.73 | X127: 4.22 | Y127: 2.71 | Z127: 1.56 | AA127: 1.1 | AB127: 1.41 | AC127: 0.8 | AD127: 0.62 | AE127: 0.32 | AF127: 0.69 | AG127: 0.18 | AH127: 0.4 | AI127: 0.25 | AJ127: 0 | AK127: 1.47 | AL127: 0.64 | AM127: 0.78 | AN127: 1.08 | AO127: 0.93 | AP127: 0 | AQ127: 0 | AR127: 6.54 | AS127: 3.15 | AT127: 1.74 | AU127: 1.5 | AV127: 1.29 | AW127: 0.63 | AX127: 0.61 | AY127: 0.47 | AZ127: 0.68 | BA127: 0.34 | BB127: 0.2 | BC127: 0.5 | BD127: 0.59 | BE127: 1.07 | BF127: 0.53 | BG127: 0.7 | BH127: 2.16 | BI127: 2.93 | BJ127: 0 | BK127: 22.37
A128: Lymfoblastaire leukemie/lymfoom | C128: 1998 | D128: 6.63 | E128: 4.34 | F128: 3.13 | G128: 1.69 | H128: 1.01 | I128: 1.1 | J128: 0 | K128: 1.07 | L128: 0.17 | M128: 1.38 | N128: 0.9 | O128: 0.24 | P128: 0.87 | Q128: 0.33 | R128: 0 | S128: 0 | T128: 0 | U128: 0 | V128: 0 | W128: 0 | X128: 5.05 | Y128: 2.07 | Z128: 1.75 | AA128: 1.11 | AB128: 0.83 | AC128: 0.32 | AD128: 0.47 | AE128: 0.79 | AF128: 0.17 | AG128: 0 | AH128: 0.37 | AI128: 0.5 | AJ128: 0.84 | AK128: 0.88 | AL128: 0.97 | AM128: 0.76 | AN128: 1.09 | AO128: 0.91 | AP128: 0 | AQ128: 0 | AR128: 5.84 | AS128: 3.21 | AT128: 2.44 | AU128: 1.4 | AV128: 0.92 | AW128: 0.71 | AX128: 0.23 | AY128: 0.93 | AZ128: 0.17 | BA128: 0.69 | BB128: 0.64 | BC128: 0.37 | BD128: 0.85 | BE128: 0.61 | BF128: 0.48 | BG128: 0.38 | BH128: 0.55 | BI128: 0.45 | BJ128: 0 | BK128: 0
A129: Lymfoblastaire leukemie/lymfoom | C129: 1999 | D129: 8.37 | E129: 6.27 | F129: 2.67 | G129: 2.11 | H129: 0.41 | I129: 1.15 | J129: 0.74 | K129: 0.9 | L129: 0.66 | M129: 0.17 | N129: 0.35 | O129: 0.94 | P129: 0.85 | Q129: 0.33 | R129: 2.07 | S129: 1.12 | T129: 2.15 | U129: 0 | V129: 0 | W129: 0 | X129: 3.97 | Y129: 2.26 | Z129: 0.86 | AA129: 0.66 | AB129: 0.84 | AC129: 0.34 | AD129: 0.93 | AE129: 0 | AF129: 0.5 | AG129: 0.18 | AH129: 0.54 | AI129: 0.48 | AJ129: 0.55 | AK129: 0.88 | AL129: 0.97 | AM129: 2.93 | AN129: 0.55 | AO129: 1.78 | AP129: 0 | AQ129: 0 | AR129: 6.17 | AS129: 4.26 | AT129: 1.76 | AU129: 1.39 | AV129: 0.63 | AW129: 0.74 | AX129: 0.84 | AY129: 0.45 | AZ129: 0.58 | BA129: 0.18 | BB129: 0.44 | BC129: 0.71 | BD129: 0.7 | BE129: 0.61 | BF129: 1.52 | BG129: 2.03 | BH129: 1.35 | BI129: 0.89 | BJ129: 0 | BK129: 0
A130: Lymfoblastaire leukemie/lymfoom | C130: 2000 | D130: 5.91 | E130: 5.48 | F130: 3.83 | G130: 1.68 | H130: 2.47 | I130: 0.35 | J130: 0.74 | K130: 0.3 | L130: 0.32 | M130: 0.69 | N130: 0.17 | O130: 1.59 | P130: 0.28 | Q130: 0.33 | R130: 0 | S130: 1.11 | T130: 0 | U130: 2.27 | V130: 0 | W130: 0 | X130: 6.81 | Y130: 2.46 | Z130: 2.11 | AA130: 1.1 | AB130: 0.63 | AC130: 0.53 | AD130: 0.47 | AE130: 0.62 | AF130: 0.33 | AG130: 0.53 | AH130: 0.35 | AI130: 0.7 | AJ130: 1.08 | AK130: 0.89 | AL130: 1.29 | AM130: 0.36 | AN130: 1.08 | AO130: 0 | AP130: 0 | AQ130: 0 | AR130: 6.36 | AS130: 3.97 | AT130: 2.97 | AU130: 1.39 | AV130: 1.55 | AW130: 0.44 | AX130: 0.61 | AY130: 0.46 | AZ130: 0.33 | BA130: 0.61 | BB130: 0.26 | BC130: 1.15 | BD130: 0.68 | BE130: 0.61 | BF130: 0.65 | BG130: 0.73 | BH130: 0.54 | BI130: 1.14 | BJ130: 0 | BK130: 0
A131: Lymfoblastaire leukemie/lymfoom | C131: 2001 | D131: 6.98 | E131: 4.73 | F131: 2.97 | G131: 1.88 | H131: 2.46 | I131: 1.09 | J131: 0.3 | K131: 1.03 | L131: 0.95 | M131: 0.34 | N131: 1.18 | O131: 1.07 | P131: 0.81 | Q131: 0.32 | R131: 1.6 | S131: 0.55 | T131: 0 | U131: 0 | V131: 0 | W131: 0 | X131: 6.7 | Y131: 2.68 | Z131: 0.62 | AA131: 0.44 | AB131: 1.05 | AC131: 0.55 | AD131: 0.31 | AE131: 0 | AF131: 0.16 | AG131: 0.35 | AH131: 0.17 | AI131: 0.44 | AJ131: 0.8 | AK131: 0.89 | AL131: 0.96 | AM131: 0.37 | AN131: 1.04 | AO131: 0.88 | AP131: 0 | AQ131: 0 | AR131: 6.84 | AS131: 3.7 | AT131: 1.8 | AU131: 1.16 | AV131: 1.75 | AW131: 0.82 | AX131: 0.3 | AY131: 0.52 | AZ131: 0.56 | BA131: 0.35 | BB131: 0.68 | BC131: 0.76 | BD131: 0.8 | BE131: 0.61 | BF131: 1.28 | BG131: 0.46 | BH131: 0.52 | BI131: 0.44 | BJ131: 0 | BK131: 0
A132: Lymfoblastaire leukemie/lymfoom | C132: 2002 | D132: 7.29 | E132: 5.54 | F132: 3.33 | G132: 1.23 | H132: 1.22 | I132: 0.94 | J132: 0.6 | K132: 0.3 | L132: 0.31 | M132: 0.68 | N132: 0.52 | O132: 0.98 | P132: 0.52 | Q132: 1.29 | R132: 1.57 | S132: 0.55 | T132: 2.82 | U132: 2.22 | V132: 0 | W132: 0 | X132: 3.62 | Y132: 1.87 | Z132: 1.64 | AA132: 0.65 | AB132: 0.62 | AC132: 0.38 | AD132: 0.31 | AE132: 0 | AF132: 0.48 | AG132: 0.17 | AH132: 1.07 | AI132: 0.61 | AJ132: 0.52 | AK132: 1.48 | AL132: 0.64 | AM132: 0.37 | AN132: 1.5 | AO132: 2.62 | AP132: 2.18 | AQ132: 0 | AR132: 5.46 | AS132: 3.71 | AT132: 2.48 | AU132: 0.94 | AV132: 0.92 | AW132: 0.66 | AX132: 0.46 | AY132: 0.15 | AZ132: 0.4 | BA132: 0.43 | BB132: 0.8 | BC132: 0.8 | BD132: 0.52 | BE132: 1.38 | BF132: 1.1 | BG132: 0.46 | BH132: 2.16 | BI132: 2.42 | BJ132: 1.09 | BK132: 0
A133: Lymfoblastaire leukemie/lymfoom | C133: 2003 | D133: 7.84 | E133: 3.57 | F133: 2.92 | G133: 2.43 | H133: 2.04 | I133: 0.39 | J133: 1.09 | K133: 0.45 | L133: 0.92 | M133: 0.17 | N133: 1.06 | O133: 0.56 | P133: 1.02 | Q133: 0.32 | R133: 1.55 | S133: 0 | T133: 4.47 | U133: 2.21 | V133: 0 | W133: 0 | X133: 7.42 | Y133: 3.53 | Z133: 3.05 | AA133: 1.27 | AB133: 0.42 | AC133: 1.18 | AD133: 0.79 | AE133: 0.62 | AF133: 0.47 | AG133: 0.52 | AH133: 0.72 | AI133: 0.38 | AJ133: 0.51 | AK133: 0.88 | AL133: 1.91 | AM133: 1.11 | AN133: 0.97 | AO133: 0 | AP133: 0 | AQ133: 0 | AR133: 7.63 | AS133: 3.55 | AT133: 2.99 | AU133: 1.85 | AV133: 1.23 | AW133: 0.79 | AX133: 0.94 | AY133: 0.53 | AZ133: 0.7 | BA133: 0.34 | BB133: 0.89 | BC133: 0.47 | BD133: 0.77 | BE133: 0.6 | BF133: 1.73 | BG133: 0.55 | BH133: 2.72 | BI133: 1.11 | BJ133: 0 | BK133: 0
A134: Lymfoblastaire leukemie/lymfoom | C134: 2004 | D134: 5.77 | E134: 3.56 | F134: 3.1 | G134: 1.2 | H134: 1.02 | I134: 0.4 | J134: 0.49 | K134: 0.9 | L134: 0.91 | M134: 0.33 | N134: 0.36 | O134: 0.54 | P134: 0.74 | Q134: 0.31 | R134: 1.53 | S134: 2.13 | T134: 0.86 | U134: 2.19 | V134: 0 | W134: 0 | X134: 5.44 | Y134: 1.66 | Z134: 1.42 | AA134: 1.26 | AB134: 0.21 | AC134: 0.2 | AD134: 0.16 | AE134: 0.46 | AF134: 0.47 | AG134: 0.68 | AH134: 0.36 | AI134: 0.55 | AJ134: 0.25 | AK134: 0.58 | AL134: 0.32 | AM134: 0.74 | AN134: 0.94 | AO134: 0 | AP134: 2.08 | AQ134: 0 | AR134: 5.61 | AS134: 2.61 | AT134: 2.26 | AU134: 1.23 | AV134: 0.61 | AW134: 0.3 | AX134: 0.33 | AY134: 0.68 | AZ134: 0.69 | BA134: 0.5 | BB134: 0.36 | BC134: 0.55 | BD134: 0.49 | BE134: 0.44 | BF134: 0.92 | BG134: 1.43 | BH134: 0.9 | BI134: 1.09 | BJ134: 1.04 | BK134: 0
A135: Lymfoblastaire leukemie/lymfoom | C135: 2005 | D135: 7.43 | E135: 4.13 | F135: 2.73 | G135: 2.19 | H135: 1.23 | I135: 0.6 | J135: 0.17 | K135: 0.6 | L135: 0.45 | M135: 0.66 | N135: 0.53 | O135: 0.35 | P135: 0.72 | Q135: 1.2 | R135: 0 | S135: 3.11 | T135: 1.67 | U135: 0 | V135: 0 | W135: 0 | X135: 6.35 | Y135: 3.92 | Z135: 0.82 | AA135: 1.25 | AB135: 0.42 | AC135: 0.61 | AD135: 0.17 | AE135: 0.77 | AF135: 0.31 | AG135: 0.33 | AH135: 0.54 | AI135: 0.89 | AJ135: 0.48 | AK135: 1.13 | AL135: 0.32 | AM135: 1.48 | AN135: 0.92 | AO135: 0.85 | AP135: 2.03 | AQ135: 0 | AR135: 6.89 | AS135: 4.02 | AT135: 1.77 | AU135: 1.72 | AV135: 0.82 | AW135: 0.6 | AX135: 0.17 | AY135: 0.69 | AZ135: 0.38 | BA135: 0.49 | BB135: 0.54 | BC135: 0.62 | BD135: 0.6 | BE135: 1.17 | BF135: 0.16 | BG135: 2.29 | BH135: 1.3 | BI135: 0.43 | BJ135: 1.01 | BK135: 0
A136: Lymfoblastaire leukemie/lymfoom | C136: 2006 | D136: 6.2 | E136: 4.29 | F136: 2.76 | G136: 1.97 | H136: 1.23 | I136: 0.81 | J136: 0.36 | K136: 0.76 | L136: 0 | M136: 0.97 | N136: 0.35 | O136: 0.53 | P136: 0.23 | Q136: 0.58 | R136: 0.37 | S136: 1.01 | T136: 4.11 | U136: 3.82 | V136: 6.73 | W136: 0 | X136: 5.66 | Y136: 3.06 | Z136: 2.27 | AA136: 1.44 | AB136: 1.05 | AC136: 0.61 | AD136: 0.37 | AE136: 0.62 | AF136: 0.15 | AG136: 0.82 | AH136: 0.18 | AI136: 0.72 | AJ136: 1.59 | AK136: 0.83 | AL136: 0.96 | AM136: 0.73 | AN136: 3.24 | AO136: 1.62 | AP136: 1.99 | AQ136: 0 | AR136: 5.93 | AS136: 3.68 | AT136: 2.51 | AU136: 1.7 | AV136: 1.14 | AW136: 0.71 | AX136: 0.36 | AY136: 0.69 | AZ136: 0.08 | BA136: 0.9 | BB136: 0.27 | BC136: 0.62 | BD136: 0.91 | BE136: 0.71 | BF136: 0.66 | BG136: 0.87 | BH136: 3.67 | BI136: 2.72 | BJ136: 4.36 | BK136: 0
A137: Lymfoblastaire leukemie/lymfoom | C137: 2007 | D137: 5.11 | E137: 5.04 | F137: 1.99 | G137: 2.15 | H137: 1.63 | I137: 0.4 | J137: 0.76 | K137: 0.46 | L137: 0.3 | M137: 0.64 | N137: 0.35 | O137: 0.72 | P137: 0.62 | Q137: 1.71 | R137: 0.73 | S137: 1.97 | T137: 0.8 | U137: 0 | V137: 0 | W137: 0 | X137: 6 | Y137: 3.25 | Z137: 2.29 | AA137: 0.82 | AB137: 1.25 | AC137: 0.61 | AD137: 0.38 | AE137: 0.63 | AF137: 0.47 | AG137: 0.32 | AH137: 0.88 | AI137: 0.37 | AJ137: 2.09 | AK137: 0.82 | AL137: 0.95 | AM137: 1.45 | AN137: 1.39 | AO137: 0.77 | AP137: 0 | AQ137: 0 | AR137: 5.55 | AS137: 4.14 | AT137: 2.14 | AU137: 1.48 | AV137: 1.44 | AW137: 0.51 | AX137: 0.57 | AY137: 0.55 | AZ137: 0.38 | BA137: 0.48 | BB137: 0.62 | BC137: 0.54 | BD137: 1.36 | BE137: 1.27 | BF137: 0.84 | BG137: 1.71 | BH137: 1.1 | BI137: 0.39 | BJ137: 0 | BK137: 0
A138: Lymfoblastaire leukemie/lymfoom | C138: 2008 | D138: 5 | E138: 5.22 | F138: 2.39 | G138: 2.91 | H138: 0.8 | I138: 0 | J138: 0.39 | K138: 1.11 | L138: 0.46 | M138: 1.42 | N138: 0.17 | O138: 0.73 | P138: 0.59 | Q138: 1.38 | R138: 0.36 | S138: 1.92 | T138: 3.92 | U138: 0 | V138: 0 | W138: 0 | X138: 6.76 | Y138: 4.25 | Z138: 1.67 | AA138: 0.81 | AB138: 0.61 | AC138: 0.81 | AD138: 0 | AE138: 0.8 | AF138: 0.62 | AG138: 0.48 | AH138: 0.35 | AI138: 0.37 | AJ138: 0.59 | AK138: 1.34 | AL138: 1.26 | AM138: 0.36 | AN138: 0 | AO138: 1.48 | AP138: 1.93 | AQ138: 0 | AR138: 5.88 | AS138: 4.74 | AT138: 2.03 | AU138: 1.86 | AV138: 0.71 | AW138: 0.41 | AX138: 0.2 | AY138: 0.95 | AZ138: 0.54 | BA138: 0.95 | BB138: 0.26 | BC138: 0.55 | BD138: 0.59 | BE138: 1.36 | BF138: 0.81 | BG138: 1.14 | BH138: 1.96 | BI138: 0.74 | BJ138: 0.96 | BK138: 0
A139: Lymfoblastaire leukemie/lymfoom | C139: 2009 | D139: 6.53 | E139: 3.5 | F139: 2.19 | G139: 1.74 | H139: 0.79 | I139: 1 | J139: 0.8 | K139: 1.32 | L139: 0.61 | M139: 0.77 | N139: 0.34 | O139: 0.92 | P139: 0.94 | Q139: 1.06 | R139: 1.74 | S139: 1.41 | T139: 1.52 | U139: 0 | V139: 0 | W139: 0 | X139: 4.19 | Y139: 2.24 | Z139: 1.04 | AA139: 1.41 | AB139: 0.6 | AC139: 1.01 | AD139: 0.4 | AE139: 0 | AF139: 0.31 | AG139: 0 | AH139: 0.69 | AI139: 0.37 | AJ139: 1.33 | AK139: 0.52 | AL139: 0.93 | AM139: 1.07 | AN139: 0 | AO139: 2.12 | AP139: 0 | AQ139: 0 | AR139: 5.36 | AS139: 2.87 | AT139: 1.61 | AU139: 1.58 | AV139: 0.7 | AW139: 1 | AX139: 0.6 | AY139: 0.66 | AZ139: 0.46 | BA139: 0.39 | BB139: 0.51 | BC139: 0.65 | BD139: 1.14 | BE139: 0.79 | BF139: 1.33 | BG139: 1.24 | BH139: 0.76 | BI139: 1.06 | BJ139: 0 | BK139: 0
A140: Lymfoblastaire leukemie/lymfoom | C140: 2010 | D140: 5.92 | E140: 2.56 | F140: 3.15 | G140: 2.51 | H140: 1.74 | I140: 1.39 | J140: 1 | K140: 0.52 | L140: 0.31 | M140: 0.92 | N140: 0.5 | O140: 0.55 | P140: 0.92 | Q140: 0.78 | R140: 2.69 | S140: 0 | T140: 2.93 | U140: 0 | V140: 5.64 | W140: 0 | X140: 8.2 | Y140: 2.88 | Z140: 1.24 | AA140: 0.81 | AB140: 0.99 | AC140: 0 | AD140: 0.2 | AE140: 0 | AF140: 0.31 | AG140: 0.31 | AH140: 0.17 | AI140: 0.37 | AJ140: 1.11 | AK140: 0.25 | AL140: 1.51 | AM140: 1.07 | AN140: 2.28 | AO140: 0.69 | AP140: 0 | AQ140: 0 | AR140: 7.06 | AS140: 2.72 | AT140: 2.2 | AU140: 1.66 | AV140: 1.36 | AW140: 0.7 | AX140: 0.6 | AY140: 0.26 | AZ140: 0.31 | BA140: 0.62 | BB140: 0.34 | BC140: 0.46 | BD140: 1.01 | BE140: 0.51 | BF140: 2.1 | BG140: 0.54 | BH140: 2.6 | BI140: 0.35 | BJ140: 2.82 | BK140: 0
A141: Lymfoblastaire leukemie/lymfoom | C141: 2011 | D141: 5.73 | E141: 3 | F141: 2.53 | G141: 3.31 | H141: 0.76 | I141: 0.99 | J141: 0.2 | K141: 0.55 | L141: 0.61 | M141: 1.07 | N141: 0.33 | O141: 0.73 | P141: 0.37 | Q141: 1.46 | R141: 0.65 | S141: 0.45 | T141: 2.11 | U141: 0 | V141: 0 | W141: 0 | X141: 6.67 | Y141: 3.35 | Z141: 2.45 | AA141: 2.04 | AB141: 0.97 | AC141: 0.2 | AD141: 0.4 | AE141: 0.18 | AF141: 0.47 | AG141: 0.16 | AH141: 0.83 | AI141: 0.73 | AJ141: 0.74 | AK141: 1.19 | AL141: 1.48 | AM141: 0.36 | AN141: 1.35 | AO141: 0 | AP141: 0 | AQ141: 0 | AR141: 6.2 | AS141: 3.18 | AT141: 2.49 | AU141: 2.68 | AV141: 0.86 | AW141: 0.59 | AX141: 0.3 | AY141: 0.36 | AZ141: 0.54 | BA141: 0.61 | BB141: 0.58 | BC141: 0.73 | BD141: 0.55 | BE141: 1.32 | BF141: 1.07 | BG141: 0.4 | BH141: 1.73 | BI141: 0 | BJ141: 0 | BK141: 0
A142: Lymfoblastaire leukemie/lymfoom | C142: 2012 | D142: 4.91 | E142: 3.26 | F142: 3.48 | G142: 2.36 | H142: 1.88 | I142: 0.78 | J142: 0.99 | K142: 0.57 | L142: 0.16 | M142: 0.46 | N142: 0.49 | O142: 0.54 | P142: 0.56 | Q142: 1.56 | R142: 0.63 | S142: 0 | T142: 0.68 | U142: 0 | V142: 4.62 | W142: 0 | X142: 5.37 | Y142: 3.41 | Z142: 2.02 | AA142: 0.82 | AB142: 0.38 | AC142: 0 | AD142: 0.4 | AE142: 0.95 | AF142: 0.31 | AG142: 0.78 | AH142: 0.33 | AI142: 1.08 | AJ142: 1.13 | AK142: 0.87 | AL142: 1.16 | AM142: 0.35 | AN142: 0.88 | AO142: 0 | AP142: 0 | AQ142: 0 | AR142: 5.14 | AS142: 3.34 | AT142: 2.75 | AU142: 1.59 | AV142: 1.13 | AW142: 0.39 | AX142: 0.69 | AY142: 0.76 | AZ142: 0.23 | BA142: 0.62 | BB142: 0.41 | BC142: 0.81 | BD142: 0.85 | BE142: 1.21 | BF142: 0.9 | BG142: 0.18 | BH142: 0.78 | BI142: 0 | BJ142: 2.31 | BK142: 0
A143: Lymfoblastaire leukemie/lymfoom | C143: 2013 | D143: 7.55 | E143: 4.56 | F143: 3.08 | G143: 2.16 | H143: 1.12 | I143: 0.58 | J143: 0.99 | K143: 0.2 | L143: 0.96 | M143: 0.46 | N143: 0.16 | O143: 1.25 | P143: 1.52 | Q143: 0.63 | R143: 0.61 | S143: 1.71 | T143: 0.66 | U143: 0 | V143: 4.3 | W143: 0 | X143: 4.53 | Y143: 2.17 | Z143: 1.81 | AA143: 1.65 | AB143: 0.19 | AC143: 0.2 | AD143: 0.4 | AE143: 0.59 | AF143: 0.48 | AG143: 0.78 | AH143: 0.32 | AI143: 0.71 | AJ143: 0.38 | AK143: 0.21 | AL143: 0.85 | AM143: 0.7 | AN143: 0.44 | AO143: 0.68 | AP143: 0 | AQ143: 0 | AR143: 6.04 | AS143: 3.37 | AT143: 2.45 | AU143: 1.9 | AV143: 0.66 | AW143: 0.39 | AX143: 0.69 | AY143: 0.39 | AZ143: 0.72 | BA143: 0.62 | BB143: 0.24 | BC143: 0.98 | BD143: 0.95 | BE143: 0.42 | BF143: 0.73 | BG143: 1.21 | BH143: 0.55 | BI143: 0.34 | BJ143: 2.15 | BK143: 0
A144: Lymfoblastaire leukemie/lymfoom | C144: 2014 | D144: 5.9 | E144: 3.56 | F144: 2.7 | G144: 4.11 | H144: 0.56 | I144: 0.95 | J144: 1.38 | K144: 0.8 | L144: 1 | M144: 1.08 | N144: 0.63 | O144: 0.53 | P144: 0.57 | Q144: 0.4 | R144: 0.88 | S144: 2.06 | T144: 1.28 | U144: 0 | V144: 0 | W144: 0 | X144: 6.88 | Y144: 2.64 | Z144: 1.41 | AA144: 0.62 | AB144: 1.14 | AC144: 0.39 | AD144: 0.79 | AE144: 0.99 | AF144: 0.66 | AG144: 0.16 | AH144: 0.32 | AI144: 0.88 | AJ144: 0.19 | AK144: 0.99 | AL144: 1.38 | AM144: 1.03 | AN144: 0.43 | AO144: 0 | AP144: 0 | AQ144: 0 | AR144: 6.39 | AS144: 3.1 | AT144: 2.06 | AU144: 2.36 | AV144: 0.85 | AW144: 0.67 | AX144: 1.09 | AY144: 0.89 | AZ144: 0.83 | BA144: 0.62 | BB144: 0.47 | BC144: 0.7 | BD144: 0.38 | BE144: 0.7 | BF144: 1.13 | BG144: 1.54 | BH144: 0.86 | BI144: 0 | BJ144: 0 | BK144: 0
A145: Lymfoblastaire leukemie/lymfoom | C145: 2015 | D145: 8.41 | E145: 4.83 | F145: 2.93 | G145: 2.71 | H145: 0.18 | I145: 0.75 | J145: 0.78 | K145: 0.8 | L145: 1.05 | M145: 0.62 | N145: 1.09 | O145: 0.34 | P145: 0.38 | Q145: 0.59 | R145: 2 | S145: 0.4 | T145: 0.62 | U145: 0 | V145: 0 | W145: 0 | X145: 6.04 | Y145: 2.86 | Z145: 1.84 | AA145: 1.01 | AB145: 0.76 | AC145: 0.57 | AD145: 0.4 | AE145: 0.6 | AF145: 0.69 | AG145: 0 | AH145: 0.47 | AI145: 0.52 | AJ145: 0.57 | AK145: 0.19 | AL145: 0.27 | AM145: 1.34 | AN145: 1.29 | AO145: 0.66 | AP145: 0 | AQ145: 0 | AR145: 7.22 | AS145: 3.85 | AT145: 2.39 | AU145: 1.86 | AV145: 0.47 | AW145: 0.66 | AX145: 0.59 | AY145: 0.7 | AZ145: 0.87 | BA145: 0.31 | BB145: 0.78 | BC145: 0.43 | BD145: 0.48 | BE145: 0.39 | BF145: 1.13 | BG145: 0.87 | BH145: 0.96 | BI145: 0.33 | BJ145: 0 | BK145: 0
A146: Lymfoblastaire leukemie/lymfoom | C146: 2016 | D146: 6.47 | E146: 4.62 | F146: 0.99 | G146: 3.61 | H146: 0.92 | I146: 0.55 | J146: 0.58 | K146: 0.39 | L146: 0.55 | M146: 0.78 | N146: 0.78 | O146: 0.85 | P146: 1.32 | Q146: 1.56 | R146: 1.34 | S146: 0.77 | T146: 0.6 | U146: 1.2 | V146: 0 | W146: 0 | X146: 4.93 | Y146: 3.09 | Z146: 1.87 | AA146: 1 | AB146: 0.76 | AC146: 0.19 | AD146: 0 | AE146: 0.2 | AF146: 0.18 | AG146: 0.31 | AH146: 0.79 | AI146: 0.85 | AJ146: 0.75 | AK146: 0.58 | AL146: 1.77 | AM146: 0.33 | AN146: 1.29 | AO146: 1.3 | AP146: 0 | AQ146: 0 | AR146: 5.7 | AS146: 3.85 | AT146: 1.43 | AU146: 2.31 | AV146: 0.84 | AW146: 0.37 | AX146: 0.29 | AY146: 0.3 | AZ146: 0.37 | BA146: 0.54 | BB146: 0.78 | BC146: 0.85 | BD146: 1.04 | BE146: 1.07 | BF146: 1.55 | BG146: 0.55 | BH146: 0.95 | BI146: 1.25 | BJ146: 0 | BK146: 0
A147: Acute myeloïde leukemie | C147: 1989 | D147: 1.92 | E147: 0.66 | F147: 0.86 | G147: 0.52 | H147: 0.16 | I147: 0.61 | J147: 0.65 | K147: 1.37 | L147: 1.85 | M147: 2.2 | N147: 4.34 | O147: 5.29 | P147: 10.08 | Q147: 14.25 | R147: 9.58 | S147: 15.99 | T147: 17.13 | U147: 19.33 | V147: 17.94 | W147: 40.23 | X147: 1.55 | Y147: 0.23 | Z147: 0.68 | AA147: 0.18 | AB147: 0.32 | AC147: 1.27 | AD147: 1.19 | AE147: 1.61 | AF147: 2.48 | AG147: 2.33 | AH147: 3.67 | AI147: 3.26 | AJ147: 4.55 | AK147: 5 | AL147: 10.33 | AM147: 11.1 | AN147: 7.22 | AO147: 13.64 | AP147: 9.82 | AQ147: 0 | AR147: 1.74 | AS147: 0.45 | AT147: 0.77 | AU147: 0.35 | AV147: 0.24 | AW147: 0.94 | AX147: 0.92 | AY147: 1.49 | AZ147: 2.16 | BA147: 2.26 | BB147: 4.01 | BC147: 4.27 | BD147: 7.31 | BE147: 9.63 | BF147: 9.95 | BG147: 13.54 | BH147: 12.18 | BI147: 16.49 | BJ147: 13.88 | BK147: 20.12
A148: Acute myeloïde leukemie | C148: 1990 | D148: 1.25 | E148: 0.44 | F148: 0.87 | G148: 0.73 | H148: 0.93 | I148: 0.45 | J148: 1.61 | K148: 2.21 | L148: 1.47 | M148: 1.72 | N148: 3.25 | O148: 6.11 | P148: 4.67 | Q148: 9.17 | R148: 16.79 | S148: 21.92 | T148: 24.16 | U148: 16.34 | V148: 26.89 | W148: 0 | X148: 0.65 | Y148: 0.46 | Z148: 1.59 | AA148: 0.95 | AB148: 0.65 | AC148: 1.42 | AD148: 0.67 | AE148: 1.42 | AF148: 1.55 | AG148: 2.27 | AH148: 1.8 | AI148: 4.09 | AJ148: 5.67 | AK148: 7.87 | AL148: 6.17 | AM148: 8.46 | AN148: 8.85 | AO148: 10.96 | AP148: 3.15 | AQ148: 0 | AR148: 0.95 | AS148: 0.45 | AT148: 1.23 | AU148: 0.84 | AV148: 0.79 | AW148: 0.94 | AX148: 1.14 | AY148: 1.82 | AZ148: 1.51 | BA148: 1.99 | BB148: 2.53 | BC148: 5.1 | BD148: 5.17 | BE148: 8.52 | BF148: 11.48 | BG148: 15.19 | BH148: 16.51 | BI148: 13.65 | BJ148: 15.02 | BK148: 0
A149: Acute myeloïde leukemie | C149: 1991 | D149: 1.23 | E149: 0.22 | F149: 0.43 | G149: 0.57 | H149: 0.93 | I149: 0.75 | J149: 0.63 | K149: 0.84 | L149: 0.98 | M149: 3.04 | N149: 4.65 | O149: 4.15 | P149: 5.82 | Q149: 10.95 | R149: 11.38 | S149: 17.61 | T149: 17.93 | U149: 35.01 | V149: 8.91 | W149: 41.72 | X149: 1.29 | Y149: 0.23 | Z149: 0.45 | AA149: 0.4 | AB149: 1.13 | AC149: 0.79 | AD149: 0.49 | AE149: 1.75 | AF149: 0.86 | AG149: 1.92 | AH149: 2.27 | AI149: 3.55 | AJ149: 4.8 | AK149: 6.46 | AL149: 7.01 | AM149: 14.28 | AN149: 12.23 | AO149: 13.82 | AP149: 3.01 | AQ149: 0 | AR149: 1.26 | AS149: 0.22 | AT149: 0.44 | AU149: 0.49 | AV149: 1.03 | AW149: 0.77 | AX149: 0.56 | AY149: 1.3 | AZ149: 0.92 | BA149: 2.48 | BB149: 3.46 | BC149: 3.85 | BD149: 5.31 | BE149: 8.7 | BF149: 9.19 | BG149: 15.95 | BH149: 15.08 | BI149: 24.42 | BJ149: 5.96 | BK149: 20.86
A150: Acute myeloïde leukemie | C150: 1992 | D150: 0.81 | E150: 1.3 | F150: 0.22 | G150: 0.8 | H150: 0.78 | I150: 0.74 | J150: 0.93 | K150: 2.34 | L150: 1.68 | M150: 2.98 | N150: 4.79 | O150: 6.04 | P150: 8.77 | Q150: 13.06 | R150: 12.36 | S150: 15.47 | T150: 25.78 | U150: 26.6 | V150: 35.22 | W150: 42.11 | X150: 1.27 | Y150: 0.68 | Z150: 0.68 | AA150: 0.63 | AB150: 0.49 | AC150: 1.41 | AD150: 1.13 | AE150: 1.56 | AF150: 1.05 | AG150: 1.76 | AH150: 1.99 | AI150: 5.74 | AJ150: 3.08 | AK150: 5.91 | AL150: 12.92 | AM150: 10.88 | AN150: 10.33 | AO150: 7.23 | AP150: 5.75 | AQ150: 12.84 | AR150: 1.04 | AS150: 0.99 | AT150: 0.45 | AU150: 0.72 | AV150: 0.63 | AW150: 1.08 | AX150: 1.03 | AY150: 1.95 | AZ150: 1.37 | BA150: 2.37 | BB150: 3.39 | BC150: 5.89 | BD150: 5.93 | BE150: 9.48 | BF150: 12.64 | BG150: 13.17 | BH150: 18.05 | BI150: 16.91 | BJ150: 20.48 | BK150: 27.48
A151: Acute myeloïde leukemie | C151: 1993 | D151: 1.6 | E151: 0 | F151: 1.08 | G151: 1.04 | H151: 0.8 | I151: 1.34 | J151: 1.52 | K151: 1.15 | L151: 1.53 | M151: 1.93 | N151: 3.5 | O151: 4.34 | P151: 8.67 | Q151: 13.05 | R151: 15.87 | S151: 20.94 | T151: 17.15 | U151: 31.49 | V151: 17.48 | W151: 0 | X151: 0.21 | Y151: 0.22 | Z151: 0.45 | AA151: 0.43 | AB151: 0.66 | AC151: 0.31 | AD151: 1.27 | AE151: 1.02 | AF151: 1.95 | AG151: 1.47 | AH151: 2.91 | AI151: 1.9 | AJ151: 3.64 | AK151: 6.83 | AL151: 10.53 | AM151: 8.84 | AN151: 15.79 | AO151: 14.06 | AP151: 2.78 | AQ151: 12.42 | AR151: 0.91 | AS151: 0.11 | AT151: 0.77 | AU151: 0.73 | AV151: 0.73 | AW151: 0.83 | AX151: 1.4 | AY151: 1.09 | AZ151: 1.74 | BA151: 1.7 | BB151: 3.2 | BC151: 3.12 | BD151: 6.15 | BE151: 9.94 | BF151: 13.2 | BG151: 14.89 | BH151: 16.47 | BI151: 22.77 | BJ151: 10.13 | BK151: 6.21
A152: Acute myeloïde leukemie | C152: 1994 | D152: 1.59 | E152: 0.63 | F152: 0.22 | G152: 1.05 | H152: 1.17 | I152: 0.75 | J152: 0.45 | K152: 0.49 | L152: 2.06 | M152: 2.89 | N152: 4.51 | O152: 3.72 | P152: 8.62 | Q152: 9.83 | R152: 14.91 | S152: 22.41 | T152: 15.64 | U152: 18.08 | V152: 17.37 | W152: 0 | X152: 1.04 | Y152: 0 | Z152: 0.68 | AA152: 0.88 | AB152: 0.86 | AC152: 0.47 | AD152: 1.72 | AE152: 1.85 | AF152: 1.78 | AG152: 1.07 | AH152: 2.82 | AI152: 4.55 | AJ152: 4.21 | AK152: 7.76 | AL152: 5.42 | AM152: 16.58 | AN152: 12.2 | AO152: 6.84 | AP152: 13.44 | AQ152: 12.08 | AR152: 1.31 | AS152: 0.31 | AT152: 0.45 | AU152: 0.97 | AV152: 1.02 | AW152: 0.61 | AX152: 1.09 | AY152: 1.17 | AZ152: 1.92 | BA152: 1.98 | BB152: 3.66 | BC152: 4.13 | BD152: 6.41 | BE152: 8.79 | BF152: 10.17 | BG152: 19.5 | BH152: 13.92 | BI152: 12.46 | BJ152: 15.41 | BK152: 6.04
A153: Acute myeloïde leukemie | C153: 1995 | D153: 0.6 | E153: 0.82 | F153: 1.08 | G153: 1.27 | H153: 0.35 | I153: 1.05 | J153: 0.89 | K153: 1.28 | L153: 1.88 | M153: 3.14 | N153: 3.07 | O153: 5.71 | P153: 11.54 | Q153: 11.78 | R153: 12.63 | S153: 22.5 | T153: 17.57 | U153: 33 | V153: 17.05 | W153: 0 | X153: 1.25 | Y153: 0 | Z153: 0.45 | AA153: 0.67 | AB153: 0.36 | AC153: 1.1 | AD153: 1.4 | AE153: 0.83 | AF153: 1.24 | AG153: 1.21 | AH153: 4.13 | AI153: 4.46 | AJ153: 5.35 | AK153: 5.96 | AL153: 10.42 | AM153: 10.87 | AN153: 9.32 | AO153: 15.28 | AP153: 5.17 | AQ153: 0 | AR153: 0.92 | AS153: 0.41 | AT153: 0.77 | AU153: 0.97 | AV153: 0.36 | AW153: 1.08 | AX153: 1.14 | AY153: 1.05 | AZ153: 1.56 | BA153: 2.17 | BB153: 3.6 | BC153: 5.09 | BD153: 8.44 | BE153: 8.87 | BF153: 11.53 | BG153: 16.69 | BH153: 13.45 | BI153: 24.14 | BJ153: 11.11 | BK153: 0
A154: Acute myeloïde leukemie | C154: 1996 | D154: 2.2 | E154: 0.2 | F154: 0.43 | G154: 1.48 | H154: 1.12 | I154: 1.51 | J154: 0.59 | K154: 1.42 | L154: 1.87 | M154: 1.33 | N154: 2.9 | O154: 5.59 | P154: 9.13 | Q154: 13.99 | R154: 17.68 | S154: 23.43 | T154: 22.83 | U154: 15.08 | V154: 25.28 | W154: 0 | X154: 1.05 | Y154: 0 | Z154: 0.68 | AA154: 0.66 | AB154: 1.35 | AC154: 0.47 | AD154: 1.71 | AE154: 1.96 | AF154: 2.45 | AG154: 2.76 | AH154: 1.3 | AI154: 4.13 | AJ154: 4.52 | AK154: 7.71 | AL154: 7.96 | AM154: 14.92 | AN154: 14.7 | AO154: 6.6 | AP154: 0 | AQ154: 11.22 | AR154: 1.62 | AS154: 0.1 | AT154: 0.55 | AU154: 1.07 | AV154: 1.24 | AW154: 0.99 | AX154: 1.15 | AY154: 1.69 | AZ154: 2.16 | BA154: 2.04 | BB154: 2.1 | BC154: 4.86 | BD154: 6.83 | BE154: 10.85 | BF154: 12.82 | BG154: 19.17 | BH154: 18.77 | BI154: 10.84 | BJ154: 12.64 | BK154: 5.61
A155: Acute myeloïde leukemie | C155: 1997 | D155: 1.21 | E155: 0.6 | F155: 0.85 | G155: 0.63 | H155: 0.98 | I155: 1.38 | J155: 1.33 | K155: 1.71 | L155: 1.35 | M155: 3.07 | N155: 4.19 | O155: 5.72 | P155: 8.78 | Q155: 9.75 | R155: 13.86 | S155: 20.1 | T155: 26.93 | U155: 17.28 | V155: 16.65 | W155: 0 | X155: 0.84 | Y155: 0.63 | Z155: 0.44 | AA155: 0.44 | AB155: 0.6 | AC155: 1.11 | AD155: 1.71 | AE155: 2.41 | AF155: 2.08 | AG155: 3.53 | AH155: 2.58 | AI155: 4.31 | AJ155: 4.24 | AK155: 5.31 | AL155: 6.41 | AM155: 14.86 | AN155: 12.47 | AO155: 12.06 | AP155: 12.15 | AQ155: 0 | AR155: 1.03 | AS155: 0.61 | AT155: 0.65 | AU155: 0.54 | AV155: 0.79 | AW155: 1.25 | AX155: 1.52 | AY155: 2.06 | AZ155: 1.71 | BA155: 3.3 | BB155: 3.39 | BC155: 5.02 | BD155: 6.51 | BE155: 7.53 | BF155: 10.13 | BG155: 17.48 | BH155: 19.7 | BI155: 14.67 | BJ155: 14.4 | BK155: 0
A156: Acute myeloïde leukemie | C156: 1998 | D156: 0.8 | E156: 0 | F156: 0 | G156: 0.85 | H156: 1.42 | I156: 0.79 | J156: 0.59 | K156: 0.61 | L156: 1.83 | M156: 2.25 | N156: 3.24 | O156: 1.94 | P156: 9.53 | Q156: 11.29 | R156: 14.22 | S156: 25.69 | T156: 21.54 | U156: 9.6 | V156: 8.19 | W156: 0 | X156: 1.68 | Y156: 1.03 | Z156: 1.31 | AA156: 0.44 | AB156: 0.62 | AC156: 0.97 | AD156: 1.87 | AE156: 2.37 | AF156: 2.56 | AG156: 1.97 | AH156: 3.74 | AI156: 5.69 | AJ156: 5.61 | AK156: 8.24 | AL156: 7.74 | AM156: 15.13 | AN156: 15.81 | AO156: 10 | AP156: 16.48 | AQ156: 10.36 | AR156: 1.24 | AS156: 0.52 | AT156: 0.66 | AU156: 0.64 | AV156: 1.02 | AW156: 0.88 | AX156: 1.23 | AY156: 1.49 | AZ156: 2.2 | BA156: 2.11 | BB156: 3.49 | BC156: 3.81 | BD156: 7.57 | BE156: 9.77 | BF156: 10.98 | BG156: 20.41 | BH156: 18.67 | BI156: 9.8 | BJ156: 12.34 | BK156: 5.18
A157: Acute myeloïde leukemie | C157: 1999 | D157: 0.8 | E157: 0.98 | F157: 0.62 | G157: 0.42 | H157: 0.82 | I157: 0.98 | J157: 1.49 | K157: 1.2 | L157: 1.31 | M157: 2.95 | N157: 3.13 | O157: 4.68 | P157: 9.03 | Q157: 12.52 | R157: 19.08 | S157: 17.42 | T157: 23.7 | U157: 23.27 | V157: 24.45 | W157: 0 | X157: 0.63 | Y157: 0 | Z157: 0.64 | AA157: 0.88 | AB157: 0.63 | AC157: 1.34 | AD157: 1.87 | AE157: 0.47 | AF157: 2.02 | AG157: 1.79 | AH157: 2.7 | AI157: 4.08 | AJ157: 7.18 | AK157: 5.01 | AL157: 10.04 | AM157: 13.19 | AN157: 10.43 | AO157: 13.37 | AP157: 9.16 | AQ157: 0 | AR157: 0.71 | AS157: 0.49 | AT157: 0.63 | AU157: 0.65 | AV157: 0.73 | AW157: 1.16 | AX157: 1.68 | AY157: 0.84 | AZ157: 1.67 | BA157: 2.37 | BB157: 2.92 | BC157: 4.38 | BD157: 8.11 | BE157: 8.76 | BF157: 14.56 | BG157: 15.3 | BH157: 17.07 | BI157: 18.32 | BJ157: 16.81 | BK157: 0
A158: Acute myeloïde leukemie | C158: 2000 | D158: 1.57 | E158: 0 | F158: 0.81 | G158: 0.63 | H158: 0.21 | I158: 0.86 | J158: 0.45 | K158: 1.34 | L158: 0.97 | M158: 2.08 | N158: 2.7 | O158: 4.32 | P158: 7.71 | Q158: 12.43 | R158: 14.68 | S158: 24.9 | T158: 20.84 | U158: 15.91 | V158: 0 | W158: 0 | X158: 0.62 | Y158: 0.61 | Z158: 0.21 | AA158: 0.22 | AB158: 0.63 | AC158: 0.53 | AD158: 0.93 | AE158: 0.93 | AF158: 2.15 | AG158: 2.67 | AH158: 3.85 | AI158: 4.68 | AJ158: 4.6 | AK158: 7.39 | AL158: 9.7 | AM158: 9.79 | AN158: 13.48 | AO158: 13.22 | AP158: 8.97 | AQ158: 0 | AR158: 1.1 | AS158: 0.31 | AT158: 0.51 | AU158: 0.43 | AV158: 0.42 | AW158: 0.7 | AX158: 0.69 | AY158: 1.13 | AZ158: 1.56 | BA158: 2.38 | BB158: 3.28 | BC158: 4.5 | BD158: 6.15 | BE158: 9.91 | BF158: 12.19 | BG158: 17.35 | BH158: 17.16 | BI158: 14.56 | BJ158: 4.49 | BK158: 0
A159: Acute myeloïde leukemie | C159: 2001 | D159: 1.55 | E159: 0.2 | F159: 0.99 | G159: 0.83 | H159: 0.2 | I159: 1.09 | J159: 1.49 | K159: 1.18 | L159: 1.27 | M159: 2.41 | N159: 4.06 | O159: 5.36 | P159: 6.99 | Q159: 15.9 | R159: 15.99 | S159: 31.92 | T159: 32.51 | U159: 29.13 | V159: 15.83 | W159: 42.46 | X159: 1.02 | Y159: 0.21 | Z159: 0.41 | AA159: 0.22 | AB159: 1.26 | AC159: 0.74 | AD159: 1.24 | AE159: 1.69 | AF159: 2.11 | AG159: 2.11 | AH159: 3.49 | AI159: 3.53 | AJ159: 3.99 | AK159: 4.15 | AL159: 9.97 | AM159: 9.86 | AN159: 12.96 | AO159: 10.51 | AP159: 8.84 | AQ159: 9.4 | AR159: 1.28 | AS159: 0.2 | AT159: 0.7 | AU159: 0.53 | AV159: 0.73 | AW159: 0.91 | AX159: 1.37 | AY159: 1.44 | AZ159: 1.69 | BA159: 2.26 | BB159: 3.78 | BC159: 4.44 | BD159: 5.49 | BE159: 10.02 | BF159: 12.98 | BG159: 20.89 | BH159: 22.73 | BI159: 19.82 | BJ159: 12.34 | BK159: 25.93
A160: Acute myeloïde leukemie | C160: 2002 | D160: 1.54 | E160: 0.59 | F160: 1.57 | G160: 1.03 | H160: 0.41 | I160: 1.32 | J160: 1.21 | K160: 1.33 | L160: 1.56 | M160: 3.74 | N160: 4.17 | O160: 5.32 | P160: 7.09 | Q160: 13.17 | R160: 21.6 | S160: 22.93 | T160: 18.78 | U160: 24.37 | V160: 23.05 | W160: 42.46 | X160: 1.21 | Y160: 0.41 | Z160: 0.82 | AA160: 0.86 | AB160: 1.04 | AC160: 0.77 | AD160: 1.09 | AE160: 1.38 | AF160: 1.6 | AG160: 3.48 | AH160: 1.97 | AI160: 5.47 | AJ160: 6.27 | AK160: 6.52 | AL160: 12.45 | AM160: 12.87 | AN160: 16.55 | AO160: 11.34 | AP160: 6.55 | AQ160: 0 | AR160: 1.37 | AS160: 0.5 | AT160: 1.19 | AU160: 0.94 | AV160: 0.72 | AW160: 1.04 | AX160: 1.15 | AY160: 1.36 | AZ160: 1.58 | BA160: 3.61 | BB160: 3.07 | BC160: 5.39 | BD160: 6.68 | BE160: 9.85 | BF160: 17.03 | BG160: 17.9 | BH160: 17.67 | BI160: 17.85 | BJ160: 14.8 | BK160: 21.23
A161: Acute myeloïde leukemie | C161: 2003 | D161: 1.15 | E161: 0.6 | F161: 1.36 | G161: 1.41 | H161: 1.02 | I161: 1.75 | J161: 0.78 | K161: 1.19 | L161: 1.54 | M161: 2.53 | N161: 3.35 | O161: 6.33 | P161: 9.18 | Q161: 12.96 | R161: 16.63 | S161: 16.23 | T161: 27.73 | U161: 22.12 | V161: 29.69 | W161: 0 | X161: 1 | Y161: 0 | Z161: 0.61 | AA161: 0 | AB161: 0.62 | AC161: 1.38 | AD161: 1.11 | AE161: 1.54 | AF161: 1.58 | AG161: 1.72 | AH161: 2.54 | AI161: 5.15 | AJ161: 7.65 | AK161: 9.12 | AL161: 10.19 | AM161: 16.27 | AN161: 16.48 | AO161: 14.04 | AP161: 4.28 | AQ161: 8.91 | AR161: 1.07 | AS161: 0.3 | AT161: 0.99 | AU161: 0.71 | AV161: 0.82 | AW161: 1.57 | AX161: 0.94 | AY161: 1.37 | AZ161: 1.56 | BA161: 2.12 | BB161: 2.94 | BC161: 5.74 | BD161: 8.42 | BE161: 11.04 | BF161: 13.41 | BG161: 16.25 | BH161: 22.1 | BI161: 18.08 | BJ161: 16.98 | BK161: 4.45
A162: Acute myeloïde leukemie | C162: 2004 | D162: 1.15 | E162: 0.4 | F162: 0.58 | G162: 0.6 | H162: 0.82 | I162: 0.8 | J162: 0.65 | K162: 1.2 | L162: 1.52 | M162: 2.99 | N162: 4.26 | O162: 5.03 | P162: 7.14 | Q162: 13.56 | R162: 17.57 | S162: 14.37 | T162: 31.65 | U162: 32.85 | V162: 35.56 | W162: 0 | X162: 1.41 | Y162: 0.83 | Z162: 0.61 | AA162: 0 | AB162: 1.04 | AC162: 0.6 | AD162: 1.15 | AE162: 1.86 | AF162: 2.81 | AG162: 3.72 | AH162: 2.54 | AI162: 4.97 | AJ162: 5.2 | AK162: 9.83 | AL162: 11.78 | AM162: 12.23 | AN162: 18.27 | AO162: 13.19 | AP162: 16.64 | AQ162: 0 | AR162: 1.28 | AS162: 0.61 | AT162: 0.59 | AU162: 0.3 | AV162: 0.93 | AW162: 0.7 | AX162: 0.9 | AY162: 1.53 | AZ162: 2.16 | BA162: 3.36 | BB162: 3.4 | BC162: 5 | BD162: 6.17 | BE162: 11.69 | BF162: 14.68 | BG162: 13.3 | BH162: 24.96 | BI162: 23.02 | BJ162: 26.1 | BK162: 0
A163: Acute myeloïde leukemie | C163: 2005 | D163: 1.76 | E163: 0.59 | F163: 0.97 | G163: 0.99 | H163: 0.2 | I163: 1.21 | J163: 1.2 | K163: 1.35 | L163: 1.2 | M163: 1.31 | N163: 2.66 | O163: 5.6 | P163: 7.91 | Q163: 8.99 | R163: 17.74 | S163: 24.9 | T163: 26.73 | U163: 14.47 | V163: 13.73 | W163: 81.27 | X163: 1.64 | Y163: 0.21 | Z163: 0.41 | AA163: 2.28 | AB163: 0.42 | AC163: 1.62 | AD163: 0.35 | AE163: 1.24 | AF163: 3.4 | AG163: 2.33 | AH163: 1.63 | AI163: 3.93 | AJ163: 6.52 | AK163: 5.95 | AL163: 9.25 | AM163: 12.17 | AN163: 12.48 | AO163: 14.47 | AP163: 10.15 | AQ163: 8.24 | AR163: 1.7 | AS163: 0.4 | AT163: 0.69 | AU163: 1.64 | AV163: 0.31 | AW163: 1.41 | AX163: 0.78 | AY163: 1.3 | AZ163: 2.3 | BA163: 1.82 | BB163: 2.14 | BC163: 4.77 | BD163: 7.22 | BE163: 7.47 | BF163: 13.49 | BG163: 18.53 | BH163: 19.61 | BI163: 14.47 | BJ163: 11.94 | BK163: 44.75
A164: Acute myeloïde leukemie | C164: 2006 | D164: 1.2 | E164: 0.39 | F164: 0.99 | G164: 0.59 | H164: 0.61 | I164: 1.21 | J164: 0.91 | K164: 1.06 | L164: 1.65 | M164: 2.59 | N164: 2.29 | O164: 5.44 | P164: 7.91 | Q164: 13.44 | R164: 14.52 | S164: 21.71 | T164: 14.79 | U164: 26.75 | V164: 20.18 | W164: 39.39 | X164: 1.47 | Y164: 0.41 | Z164: 0.41 | AA164: 1.23 | AB164: 0.42 | AC164: 0.81 | AD164: 1.83 | AE164: 2.17 | AF164: 2.16 | AG164: 2.46 | AH164: 4.47 | AI164: 4.47 | AJ164: 3.87 | AK164: 7.79 | AL164: 8.61 | AM164: 13.89 | AN164: 17.12 | AO164: 9.7 | AP164: 15.96 | AQ164: 0 | AR164: 1.33 | AS164: 0.4 | AT164: 0.7 | AU164: 0.91 | AV164: 0.52 | AW164: 1.01 | AX164: 1.37 | AY164: 1.62 | AZ164: 1.91 | BA164: 2.53 | BB164: 3.38 | BC164: 4.95 | BD164: 5.89 | BE164: 10.61 | BF164: 11.57 | BG164: 17.8 | BH164: 15.96 | BI164: 18.22 | BJ164: 18.07 | BK164: 19.7
A165: Acute myeloïde leukemie | C165: 2007 | D165: 1.43 | E165: 0.19 | F165: 0.99 | G165: 0.59 | H165: 1.02 | I165: 0.61 | J165: 0.76 | K165: 0.62 | L165: 1.06 | M165: 2.71 | N165: 2.8 | O165: 5.94 | P165: 5.6 | Q165: 12.54 | R165: 15.77 | S165: 22.6 | T165: 28.14 | U165: 17.86 | V165: 19.6 | W165: 0 | X165: 1.07 | Y165: 0.41 | Z165: 0.42 | AA165: 1.23 | AB165: 1.67 | AC165: 0.81 | AD165: 0.96 | AE165: 2.04 | AF165: 1.86 | AG165: 2.75 | AH165: 2.3 | AI165: 4.58 | AJ165: 3.35 | AK165: 6.57 | AL165: 7 | AM165: 13.39 | AN165: 14.34 | AO165: 14.67 | AP165: 7.82 | AQ165: 7.69 | AR165: 1.25 | AS165: 0.3 | AT165: 0.71 | AU165: 0.91 | AV165: 1.34 | AW165: 0.71 | AX165: 0.86 | AY165: 1.33 | AZ165: 1.46 | BA165: 2.73 | BB165: 2.55 | BC165: 5.26 | BD165: 4.48 | BE165: 9.55 | BF165: 11.38 | BG165: 17.99 | BH165: 21.24 | BI165: 16.27 | BJ165: 13.71 | BK165: 3.84
A166: Acute myeloïde leukemie | C166: 2008 | D166: 1.67 | E166: 0.97 | F166: 0.4 | G166: 0.39 | H166: 0.2 | I166: 1.61 | J166: 1.57 | K166: 0.79 | L166: 1.06 | M166: 2.83 | N166: 3.98 | O166: 4.75 | P166: 7.44 | Q166: 10.22 | R166: 18.64 | S166: 27.32 | T166: 29.03 | U166: 16.71 | V166: 6.36 | W166: 0 | X166: 0.87 | Y166: 0.2 | Z166: 0.84 | AA166: 0.41 | AB166: 0.61 | AC166: 1.42 | AD166: 1.38 | AE166: 1.76 | AF166: 1.87 | AG166: 2.24 | AH166: 3.15 | AI166: 4.27 | AJ166: 6.11 | AK166: 7.48 | AL166: 9.14 | AM166: 13.29 | AN166: 14.78 | AO166: 20.66 | AP166: 9.63 | AQ166: 0 | AR166: 1.27 | AS166: 0.58 | AT166: 0.62 | AU166: 0.4 | AV166: 0.41 | AW166: 1.51 | AX166: 1.48 | AY166: 1.28 | AZ166: 1.47 | BA166: 2.53 | BB166: 3.56 | BC166: 4.51 | BD166: 6.78 | BE166: 8.85 | BF166: 13.89 | BG166: 20.3 | BH166: 21.91 | BI166: 18.69 | BJ166: 8 | BK166: 0
A167: Acute myeloïde leukemie | C167: 2009 | D167: 1.05 | E167: 0.58 | F167: 0.6 | G167: 0.58 | H167: 0.39 | I167: 0.8 | J167: 1.39 | K167: 0.99 | L167: 2.44 | M167: 2.01 | N167: 2.73 | O167: 6.61 | P167: 8.88 | Q167: 11.71 | R167: 14.95 | S167: 21.59 | T167: 31.22 | U167: 20.5 | V167: 43.05 | W167: 33.08 | X167: 0.88 | Y167: 0.41 | Z167: 0.42 | AA167: 0.4 | AB167: 0.2 | AC167: 1.62 | AD167: 1.99 | AE167: 1 | AF167: 2.19 | AG167: 2.36 | AH167: 2.92 | AI167: 4.09 | AJ167: 5.71 | AK167: 8.54 | AL167: 9.28 | AM167: 16.81 | AN167: 13.35 | AO167: 21.23 | AP167: 9.5 | AQ167: 0 | AR167: 0.97 | AS167: 0.49 | AT167: 0.51 | AU167: 0.49 | AV167: 0.3 | AW167: 1.21 | AX167: 1.69 | AY167: 0.99 | AZ167: 2.31 | BA167: 2.19 | BB167: 2.83 | BC167: 5.35 | BD167: 7.29 | BE167: 10.13 | BF167: 12.11 | BG167: 19.2 | BH167: 22.28 | BI167: 20.87 | BJ167: 26.27 | BK167: 16.54
A168: Acute myeloïde leukemie | C168: 2010 | D168: 1.27 | E168: 0.59 | F168: 0.59 | G168: 0.39 | H168: 1.16 | I168: 1.59 | J168: 1 | K168: 2.26 | L168: 1.22 | M168: 2.3 | N168: 3.36 | O168: 6.41 | P168: 8.25 | Q168: 11.37 | R168: 15.48 | S168: 18.87 | T168: 31.52 | U168: 18.2 | V168: 22.56 | W168: 0 | X168: 0.44 | Y168: 0.21 | Z168: 0 | AA168: 1.01 | AB168: 1.18 | AC168: 0.6 | AD168: 1.2 | AE168: 2.09 | AF168: 1.71 | AG168: 2.65 | AH168: 3.39 | AI168: 4.81 | AJ168: 4.43 | AK168: 9.33 | AL168: 14.81 | AM168: 14.98 | AN168: 18.21 | AO168: 13.15 | AP168: 7.23 | AQ168: 0 | AR168: 0.86 | AS168: 0.4 | AT168: 0.3 | AU168: 0.7 | AV168: 1.17 | AW168: 1.1 | AX168: 1.1 | AY168: 2.17 | AZ168: 1.47 | BA168: 2.48 | BB168: 3.37 | BC168: 5.61 | BD168: 6.34 | BE168: 10.35 | BF168: 15.14 | BG168: 16.93 | BH168: 24.87 | BI168: 15.67 | BJ168: 14.89 | BK168: 0
A169: Acute myeloïde leukemie | C169: 2011 | D169: 1.06 | E169: 0.4 | F169: 0.58 | G169: 0.78 | H169: 1.14 | I169: 0.99 | J169: 0.99 | K169: 1.46 | L169: 1.54 | M169: 2.44 | N169: 3.14 | O169: 4.54 | P169: 10.28 | Q169: 12.63 | R169: 20.24 | S169: 28.85 | T169: 28.9 | U169: 29.31 | V169: 15.1 | W169: 0 | X169: 1.33 | Y169: 0.21 | Z169: 0.41 | AA169: 0.61 | AB169: 0.78 | AC169: 1 | AD169: 0.99 | AE169: 2 | AF169: 1.56 | AG169: 3.27 | AH169: 2.5 | AI169: 3.11 | AJ169: 4.61 | AK169: 9.75 | AL169: 10.97 | AM169: 13.52 | AN169: 19.75 | AO169: 18.53 | AP169: 10.1 | AQ169: 0 | AR169: 1.2 | AS169: 0.3 | AT169: 0.5 | AU169: 0.7 | AV169: 0.96 | AW169: 0.99 | AX169: 0.99 | AY169: 1.73 | AZ169: 1.55 | BA169: 2.85 | BB169: 2.82 | BC169: 3.83 | BD169: 7.44 | BE169: 11.19 | BF169: 15.6 | BG169: 21.19 | BH169: 24.32 | BI169: 23.92 | BJ169: 12.6 | BK169: 0
A170: Acute myeloïde leukemie | C170: 2012 | D170: 1.92 | E170: 0.81 | F170: 0.77 | G170: 0.79 | H170: 0.75 | I170: 1.56 | J170: 0.99 | K170: 1.53 | L170: 1.71 | M170: 3.67 | N170: 3.58 | O170: 4.86 | P170: 5.27 | Q170: 13.78 | R170: 19.67 | S170: 23.36 | T170: 29.24 | U170: 21.2 | V170: 9.25 | W170: 0 | X170: 1.34 | Y170: 1.07 | Z170: 1.41 | AA170: 0.41 | AB170: 0.77 | AC170: 0.99 | AD170: 0.6 | AE170: 0.76 | AF170: 1.26 | AG170: 2.34 | AH170: 3.93 | AI170: 4.15 | AJ170: 5.67 | AK170: 7.2 | AL170: 8.44 | AM170: 10.97 | AN170: 18.13 | AO170: 16.37 | AP170: 14.34 | AQ170: 0 | AR170: 1.63 | AS170: 0.94 | AT170: 1.09 | AU170: 0.6 | AV170: 0.76 | AW170: 1.28 | AX170: 0.79 | AY170: 1.14 | AZ170: 1.48 | BA170: 3.01 | BB170: 3.75 | BC170: 4.5 | BD170: 5.47 | BE170: 10.49 | BF170: 14.06 | BG170: 17.17 | BH170: 23.68 | BI170: 18.79 | BJ170: 11.79 | BK170: 0
A171: Acute myeloïde leukemie | C171: 2013 | D171: 1.51 | E171: 0.21 | F171: 0.58 | G171: 0.59 | H171: 0.37 | I171: 0.96 | J171: 1.19 | K171: 1.77 | L171: 0.64 | M171: 1.38 | N171: 3.52 | O171: 4.98 | P171: 9.34 | Q171: 10.89 | R171: 15.34 | S171: 21.82 | T171: 17.79 | U171: 24.58 | V171: 25.8 | W171: 0 | X171: 1.36 | Y171: 0.22 | Z171: 0.81 | AA171: 1.03 | AB171: 0.76 | AC171: 1.57 | AD171: 0.4 | AE171: 1.76 | AF171: 0.64 | AG171: 2.35 | AH171: 3.55 | AI171: 5.17 | AJ171: 4.97 | AK171: 7.41 | AL171: 11.36 | AM171: 13.64 | AN171: 14.86 | AO171: 14.93 | AP171: 6.07 | AQ171: 6.15 | AR171: 1.43 | AS171: 0.21 | AT171: 0.69 | AU171: 0.81 | AV171: 0.57 | AW171: 1.26 | AX171: 0.79 | AY171: 1.76 | AZ171: 0.64 | BA171: 1.87 | BB171: 3.54 | BC171: 5.07 | BD171: 7.15 | BE171: 9.15 | BF171: 13.35 | BG171: 17.73 | BH171: 16.33 | BI171: 19.76 | BJ171: 15.93 | BK171: 3.07
A172: Acute myeloïde leukemie | C172: 2014 | D172: 1.31 | E172: 0.21 | F172: 0.39 | G172: 1.17 | H172: 1.11 | I172: 0.57 | J172: 0.2 | K172: 1 | L172: 1.83 | M172: 1.08 | N172: 3.63 | O172: 5.26 | P172: 8.04 | Q172: 14.32 | R172: 18.88 | S172: 20.6 | T172: 26.23 | U172: 17.05 | V172: 48.14 | W172: 0 | X172: 1.38 | Y172: 0.44 | Z172: 1.01 | AA172: 0.41 | AB172: 0.38 | AC172: 1.35 | AD172: 0.99 | AE172: 2.18 | AF172: 1.49 | AG172: 2.35 | AH172: 3.82 | AI172: 3.68 | AJ172: 6.7 | AK172: 9.32 | AL172: 13.76 | AM172: 11.98 | AN172: 12.58 | AO172: 9.41 | AP172: 15.94 | AQ172: 0 | AR172: 1.34 | AS172: 0.32 | AT172: 0.7 | AU172: 0.79 | AV172: 0.75 | AW172: 0.96 | AX172: 0.6 | AY172: 1.59 | AZ172: 1.66 | BA172: 1.72 | BB172: 3.73 | BC172: 4.47 | BD172: 7.37 | BE172: 11.82 | BF172: 16.32 | BG172: 16.29 | BH172: 19.41 | BI172: 13.23 | BJ172: 32.04 | BK172: 0
A173: Acute myeloïde leukemie | C173: 2015 | D173: 1.99 | E173: 0.21 | F173: 0.59 | G173: 0.77 | H173: 0.37 | I173: 1.12 | J173: 0.59 | K173: 1.99 | L173: 1.92 | M173: 2.47 | N173: 3.74 | O173: 5.34 | P173: 6.49 | Q173: 11.54 | R173: 13.43 | S173: 23.79 | T173: 31.68 | U173: 23.8 | V173: 19.21 | W173: 23.92 | X173: 2.09 | Y173: 0 | Z173: 0.61 | AA173: 0.2 | AB173: 0.95 | AC173: 1.33 | AD173: 0.59 | AE173: 2.58 | AF173: 1.56 | AG173: 1.72 | AH173: 3.78 | AI173: 4.14 | AJ173: 5.9 | AK173: 6.74 | AL173: 9.93 | AM173: 10.69 | AN173: 12.51 | AO173: 10.59 | AP173: 9.93 | AQ173: 5.72 | AR173: 2.04 | AS173: 0.11 | AT173: 0.6 | AU173: 0.49 | AV173: 0.66 | AW173: 1.23 | AX173: 0.59 | AY173: 2.29 | AZ173: 1.74 | BA173: 2.1 | BB173: 3.76 | BC173: 4.74 | BD173: 6.19 | BE173: 9.14 | BF173: 11.68 | BG173: 17.24 | BH173: 22.1 | BI173: 17.19 | BJ173: 14.57 | BK173: 14.82
A174: Acute myeloïde leukemie | C174: 2016 | D174: 0.89 | E174: 1.47 | F174: 0.99 | G174: 0.76 | H174: 0.74 | I174: 1.46 | J174: 0.58 | K174: 1.38 | L174: 1.1 | M174: 2.33 | N174: 2.64 | O174: 4.91 | P174: 7.18 | Q174: 13.1 | R174: 15.81 | S174: 29.53 | T174: 24.77 | U174: 27.57 | V174: 7.41 | W174: 21.5 | X174: 0.23 | Y174: 0.66 | Z174: 0.83 | AA174: 1 | AB174: 0.57 | AC174: 0.56 | AD174: 0.39 | AE174: 0.79 | AF174: 1.45 | AG174: 2.34 | AH174: 3.46 | AI174: 4.57 | AJ174: 6.01 | AK174: 7.31 | AL174: 11.13 | AM174: 11.13 | AN174: 12.45 | AO174: 11.07 | AP174: 12.72 | AQ174: 0 | AR174: 0.56 | AS174: 1.07 | AT174: 0.91 | AU174: 0.88 | AV174: 0.66 | AW174: 1.01 | AX174: 0.49 | AY174: 1.09 | AZ174: 1.28 | BA174: 2.34 | BB174: 3.05 | BC174: 4.74 | BD174: 6.6 | BE174: 10.21 | BF174: 13.47 | BG174: 20.33 | BH174: 18.61 | BI174: 19.32 | BJ174: 10.07 | BK174: 10.75
A176: Long & Luchtpijp | C176: 1989 | D176: 0 | E176: 0 | F176: 0 | G176: 0 | H176: 0 | I176: 0.46 | J176: 0.49 | K176: 3.07 | L176: 16.12 | M176: 45.82 | N176: 100.94 | O176: 207.24 | P176: 330.35 | Q176: 504.86 | R176: 699.63 | S176: 755.51 | T176: 708.29 | U176: 497.09 | V176: 197.33 | W176: 40.23 | X176: 0 | Y176: 0 | Z176: 0 | AA176: 0.18 | AB176: 0.16 | AC176: 0.48 | AD176: 2.04 | AE176: 5.89 | AF176: 9.74 | AG176: 19.78 | AH176: 30.18 | AI176: 53.82 | AJ176: 57.11 | AK176: 59.1 | AL176: 57.18 | AM176: 55.93 | AN176: 36.72 | AO176: 37.52 | AP176: 22.9 | AQ176: 0 | AR176: 0 | AS176: 0 | AT176: 0 | AU176: 0.09 | AV176: 0.08 | AW176: 0.47 | AX176: 1.26 | AY176: 4.49 | AZ176: 12.93 | BA176: 32.8 | BB176: 65.56 | BC176: 130.53 | BD176: 193.72 | BE176: 281.98 | BF176: 378.4 | BG176: 405.72 | BH176: 372.51 | BI176: 267.31 | BJ176: 110.12 | BK176: 20.12
A177: Long & Luchtpijp | C177: 1990 | D177: 0 | E177: 0 | F177: 0.43 | G177: 0 | H177: 0 | I177: 0.75 | J177: 2.09 | K177: 6.3 | L177: 17.64 | M177: 36.04 | N177: 84.98 | O177: 183.43 | P177: 342.9 | Q177: 501.71 | R177: 723.34 | S177: 850.27 | T177: 679.01 | U177: 454.94 | V177: 224.07 | W177: 0 | X177: 0 | Y177: 0 | Z177: 0 | AA177: 0 | AB177: 0 | AC177: 0.79 | AD177: 2.84 | AE177: 3.02 | AF177: 10.48 | AG177: 16.09 | AH177: 32.17 | AI177: 43.63 | AJ177: 70.63 | AK177: 62.92 | AL177: 63.89 | AM177: 52.9 | AN177: 51.35 | AO177: 35.08 | AP177: 18.91 | AQ177: 0 | AR177: 0 | AS177: 0 | AT177: 0.22 | AU177: 0 | AV177: 0 | AW177: 0.77 | AX177: 2.46 | AY177: 4.66 | AZ177: 14.06 | BA177: 26.06 | BB177: 58.58 | BC177: 113.53 | BD177: 206.76 | BE177: 282.31 | BF177: 393.61 | BG177: 451.59 | BH177: 365.18 | BI177: 245.01 | BJ177: 121.49 | BK177: 0
A178: Long & Luchtpijp | C178: 1991 | D178: 0 | E178: 0 | F178: 0.22 | G178: 0 | H178: 0.15 | I178: 0.45 | J178: 0.79 | K178: 5.23 | L178: 15.05 | M178: 40.89 | N178: 83.94 | O178: 199.33 | P178: 352.87 | Q178: 508.67 | R178: 723.9 | S178: 789.84 | T178: 709.93 | U178: 463.18 | V178: 329.69 | W178: 83.44 | X178: 0 | Y178: 0 | Z178: 0 | AA178: 0 | AB178: 0.48 | AC178: 0.31 | AD178: 1.81 | AE178: 5.96 | AF178: 8.92 | AG178: 20.7 | AH178: 33.11 | AI178: 49.76 | AJ178: 80.68 | AK178: 68.37 | AL178: 68.31 | AM178: 52.52 | AN178: 43.1 | AO178: 35.09 | AP178: 24.11 | AQ178: 40.38 | AR178: 0 | AS178: 0 | AT178: 0.11 | AU178: 0 | AV178: 0.32 | AW178: 0.38 | AX178: 1.3 | AY178: 5.59 | AZ178: 11.98 | BA178: 30.8 | BB178: 58.52 | BC178: 124.55 | BD178: 216.78 | BE178: 288.52 | BF178: 396.1 | BG178: 421.18 | BH178: 376.51 | BI178: 249.13 | BJ178: 176.9 | BK178: 61.91
A179: Long & Luchtpijp | C179: 1992 | D179: 0 | E179: 0 | F179: 0 | G179: 0 | H179: 0 | I179: 0.15 | J179: 1.55 | K179: 3.84 | L179: 14.94 | M179: 41.88 | N179: 80.03 | O179: 193.4 | P179: 337.96 | Q179: 501.84 | R179: 675.49 | S179: 786.05 | T179: 725.41 | U179: 513.36 | V179: 264.12 | W179: 84.23 | X179: 0 | Y179: 0 | Z179: 0 | AA179: 0 | AB179: 0.16 | AC179: 0 | AD179: 2.26 | AE179: 6.23 | AF179: 10.01 | AG179: 17.81 | AH179: 31.55 | AI179: 52.51 | AJ179: 72.05 | AK179: 80.62 | AL179: 69.71 | AM179: 64.43 | AN179: 49.91 | AO179: 36.15 | AP179: 20.13 | AQ179: 25.67 | AR179: 0 | AS179: 0 | AT179: 0 | AU179: 0 | AV179: 0.08 | AW179: 0.07 | AX179: 1.9 | AY179: 5.03 | AZ179: 12.47 | BA179: 29.85 | BB179: 55.79 | BC179: 122.96 | BD179: 205 | BE179: 291.23 | BF179: 372.6 | BG179: 425.24 | BH179: 387.67 | BI179: 274.76 | BJ179: 142.12 | BK179: 54.95
A180: Long & Luchtpijp | C180: 1993 | D180: 0 | E180: 0 | F180: 0.22 | G180: 0 | H180: 0 | I180: 0.15 | J180: 1.37 | K180: 5.44 | L180: 15.84 | M180: 36.21 | N180: 80.63 | O180: 181.23 | P180: 341.8 | Q180: 472.15 | R180: 633.86 | S180: 761.36 | T180: 659.8 | U180: 480.18 | V180: 235.97 | W180: 127.63 | X180: 0 | Y180: 0 | Z180: 0 | AA180: 0 | AB180: 0 | AC180: 1.1 | AD180: 1.59 | AE180: 5.29 | AF180: 11.01 | AG180: 23.41 | AH180: 34.67 | AI180: 53.78 | AJ180: 88.12 | AK180: 87.64 | AL180: 74.06 | AM180: 69.47 | AN180: 53 | AO180: 42.18 | AP180: 27.76 | AQ180: 0 | AR180: 0 | AS180: 0 | AT180: 0.11 | AU180: 0 | AV180: 0 | AW180: 0.63 | AX180: 1.48 | AY180: 5.37 | AZ180: 13.43 | BA180: 29.81 | BB180: 57.65 | BC180: 117.51 | BD180: 214.96 | BE180: 279.89 | BF180: 353.96 | BG180: 415.42 | BH180: 356.4 | BI180: 261.18 | BJ180: 131.87 | BK180: 63.82
A181: Long & Luchtpijp | C181: 1994 | D181: 0 | E181: 0.21 | F181: 0 | G181: 0 | H181: 0 | I181: 0.45 | J181: 0.75 | K181: 3.57 | L181: 13.7 | M181: 33.45 | N181: 79.11 | O181: 189.49 | P181: 311.36 | Q181: 471.06 | R181: 635.13 | S181: 700.15 | T181: 707.36 | U181: 539.71 | V181: 304.06 | W181: 175.94 | X181: 0 | Y181: 0 | Z181: 0 | AA181: 0 | AB181: 0.35 | AC181: 0.31 | AD181: 1.25 | AE181: 7.9 | AF181: 11.92 | AG181: 24.35 | AH181: 33.62 | AI181: 56.96 | AJ181: 81.32 | AK181: 97.29 | AL181: 72.39 | AM181: 72.28 | AN181: 49.92 | AO181: 46.94 | AP181: 13.44 | AQ181: 24.17 | AR181: 0 | AS181: 0.1 | AT181: 0 | AU181: 0 | AV181: 0.17 | AW181: 0.38 | AX181: 1 | AY181: 5.73 | AZ181: 12.81 | BA181: 28.9 | BB181: 56.37 | BC181: 123.23 | BD181: 196.34 | BE181: 284.18 | BF181: 353.76 | BG181: 386.21 | BH181: 378.64 | BI181: 293.32 | BJ181: 158.75 | BK181: 100.05
A182: Long & Luchtpijp | C182: 1995 | D182: 0 | E182: 0.21 | F182: 0 | G182: 0.21 | H182: 0.35 | I182: 0.15 | J182: 1.63 | K182: 4.8 | L182: 13.69 | M182: 37.67 | N182: 81.65 | O182: 153.7 | P182: 305.05 | Q182: 461.34 | R182: 605.18 | S182: 760.44 | T182: 667.78 | U182: 462.04 | V182: 221.63 | W182: 228 | X182: 0 | Y182: 0 | Z182: 0 | AA182: 0.22 | AB182: 0.36 | AC182: 0.47 | AD182: 1.4 | AE182: 6.62 | AF182: 16.27 | AG182: 21.57 | AH182: 37.58 | AI182: 55.08 | AJ182: 81.89 | AK182: 99.55 | AL182: 84.03 | AM182: 79.46 | AN182: 64.18 | AO182: 36.29 | AP182: 20.68 | AQ182: 11.71 | AR182: 0 | AS182: 0.1 | AT182: 0 | AU182: 0.22 | AV182: 0.36 | AW182: 0.31 | AX182: 1.51 | AY182: 5.71 | AZ182: 14.98 | BA182: 29.62 | BB182: 59.62 | BC182: 104.39 | BD182: 193.48 | BE182: 280.45 | BF182: 344.61 | BG182: 419.95 | BH182: 365.98 | BI182: 249.16 | BJ182: 121.15 | BK182: 119.85
A183: Long & Luchtpijp | C183: 1996 | D183: 0 | E183: 0 | F183: 0.22 | G183: 0.21 | H183: 0.37 | I183: 0 | J183: 0.74 | K183: 5.36 | L183: 14.78 | M183: 36.95 | N183: 78.32 | O183: 139.29 | P183: 291.11 | Q183: 450.95 | R183: 615.36 | S183: 743.35 | T183: 618.53 | U183: 497.71 | V183: 286.47 | W183: 182.57 | X183: 0 | Y183: 0 | Z183: 0 | AA183: 0.44 | AB183: 0.19 | AC183: 0.47 | AD183: 1.55 | AE183: 6.03 | AF183: 11.73 | AG183: 26.9 | AH183: 39.35 | AI183: 58.02 | AJ183: 80.18 | AK183: 104.45 | AL183: 89.12 | AM183: 82.25 | AN183: 59.9 | AO183: 39.57 | AP183: 30.04 | AQ183: 11.22 | AR183: 0 | AS183: 0 | AT183: 0.11 | AU183: 0.33 | AV183: 0.28 | AW183: 0.24 | AX183: 1.15 | AY183: 5.7 | AZ183: 13.26 | BA183: 31.92 | BB183: 58.84 | BC183: 98.66 | BD183: 185.65 | BE183: 277.7 | BF183: 352.24 | BG183: 412.81 | BH183: 339.21 | BI183: 268.64 | BJ183: 158.25 | BK183: 96.89
A184: Long & Luchtpijp | C184: 1997 | D184: 0 | E184: 0 | F184: 0 | G184: 0 | H184: 0.39 | I184: 0.31 | J184: 1.19 | K184: 3.42 | L184: 14.82 | M184: 37.3 | N184: 71.12 | O184: 143.38 | P184: 282.15 | Q184: 465.91 | R184: 601.25 | S184: 642.72 | T184: 617.32 | U184: 436.82 | V184: 233.15 | W184: 134.2 | X184: 0 | Y184: 0 | Z184: 0 | AA184: 0.22 | AB184: 0 | AC184: 0.48 | AD184: 1.24 | AE184: 7.71 | AF184: 15.92 | AG184: 27.22 | AH184: 43.27 | AI184: 63.4 | AJ184: 83.06 | AK184: 112.39 | AL184: 95.2 | AM184: 84.08 | AN184: 63.43 | AO184: 38.97 | AP184: 21.87 | AQ184: 0 | AR184: 0 | AS184: 0 | AT184: 0 | AU184: 0.11 | AV184: 0.2 | AW184: 0.39 | AX184: 1.21 | AY184: 5.56 | AZ184: 15.37 | BA184: 32.25 | BB184: 57.19 | BC184: 103.39 | BD184: 182.6 | BE184: 289.15 | BF184: 348.23 | BG184: 363.39 | BH184: 340.38 | BI184: 237.89 | BJ184: 127.51 | BK184: 67.1
A185: Long & Luchtpijp | C185: 1998 | D185: 0 | E185: 0 | F185: 0 | G185: 0 | H185: 0 | I185: 0.63 | J185: 0.6 | K185: 3.21 | L185: 14.5 | M185: 29.39 | N185: 74.01 | O185: 143.7 | P185: 272.19 | Q185: 426.22 | R185: 555.1 | S185: 669.6 | T185: 582.74 | U185: 455.79 | V185: 237.5 | W185: 87.49 | X185: 0 | Y185: 0 | Z185: 0 | AA185: 0.22 | AB185: 0 | AC185: 0.49 | AD185: 0.78 | AE185: 7.44 | AF185: 17.09 | AG185: 33.44 | AH185: 40.94 | AI185: 64.12 | AJ185: 83.61 | AK185: 119.46 | AL185: 107.71 | AM185: 91.93 | AN185: 56.68 | AO185: 37.26 | AP185: 11.77 | AQ185: 20.73 | AR185: 0 | AS185: 0 | AT185: 0 | AU185: 0.11 | AV185: 0 | AW185: 0.56 | AX185: 0.68 | AY185: 5.32 | AZ185: 15.79 | BA185: 31.42 | BB185: 57.47 | BC185: 103.91 | BD185: 177.89 | BE185: 272.84 | BF185: 331.4 | BG185: 380.76 | BH185: 319.71 | BI185: 246.53 | BJ185: 124.64 | BK185: 54.11
A186: Long & Luchtpijp | C186: 1999 | D186: 0 | E186: 0 | F186: 0 | G186: 0 | H186: 0 | I186: 0.66 | J186: 2.23 | K186: 3.46 | L186: 12.8 | M186: 26.94 | N186: 70.43 | O186: 137.24 | P186: 248.72 | Q186: 409.46 | R186: 549.73 | S186: 654.66 | T186: 582.83 | U186: 430.43 | V186: 228.25 | W186: 42.75 | X186: 0 | Y186: 0 | Z186: 0 | AA186: 0 | AB186: 0 | AC186: 0.34 | AD186: 1.25 | AE186: 6.86 | AF186: 15.98 | AG186: 27.77 | AH186: 45.78 | AI186: 65.77 | AJ186: 84.2 | AK186: 116.44 | AL186: 113.72 | AM186: 91.58 | AN186: 62.06 | AO186: 32.09 | AP186: 13.75 | AQ186: 20.17 | AR186: 0 | AS186: 0 | AT186: 0 | AU186: 0 | AV186: 0 | AW186: 0.5 | AX186: 1.74 | AY186: 5.16 | AZ186: 14.39 | BA186: 27.35 | BB186: 58.1 | BC186: 101.5 | BD186: 166.45 | BE186: 262.94 | BF186: 331.72 | BG186: 373.12 | BH186: 322.44 | BI186: 231.26 | BJ186: 121 | BK186: 31.47
A187: Long & Luchtpijp | C187: 2000 | D187: 0 | E187: 0 | F187: 0 | G187: 0.21 | H187: 0.21 | I187: 0 | J187: 0.89 | K187: 4.9 | L187: 14.19 | M187: 27.39 | N187: 64.06 | O187: 128.49 | P187: 230.62 | Q187: 396.71 | R187: 544.71 | S187: 617.08 | T187: 566.83 | U187: 452.21 | V187: 201.95 | W187: 170.29 | X187: 0 | Y187: 0 | Z187: 0 | AA187: 0.22 | AB187: 0.21 | AC187: 0.35 | AD187: 1.71 | AE187: 4.78 | AF187: 14.72 | AG187: 35.07 | AH187: 49.66 | AI187: 64.79 | AJ187: 89.82 | AK187: 117.62 | AL187: 126.79 | AM187: 98.66 | AN187: 66.85 | AO187: 40.55 | AP187: 15.7 | AQ187: 9.76 | AR187: 0 | AS187: 0 | AT187: 0 | AU187: 0.22 | AV187: 0.21 | AW187: 0.18 | AX187: 1.3 | AY187: 4.84 | AZ187: 14.45 | BA187: 31.23 | BB187: 56.86 | BC187: 96.63 | BD187: 160.22 | BE187: 257.16 | BF187: 335.75 | BG187: 357.87 | BH187: 316.84 | BI187: 246.38 | BJ187: 108.82 | BK187: 90.02
A188: Long & Luchtpijp | C188: 2001 | D188: 0.19 | E188: 0 | F188: 0 | G188: 0.21 | H188: 0.2 | I188: 0.36 | J188: 0.45 | K188: 4.57 | L188: 10.46 | M188: 31.28 | N188: 65.82 | O188: 130.93 | P188: 217.08 | Q188: 381.25 | R188: 521.01 | S188: 594.41 | T188: 542.81 | U188: 347.37 | V188: 237.43 | W188: 127.39 | X188: 0 | Y188: 0 | Z188: 0 | AA188: 0 | AB188: 0 | AC188: 0.18 | AD188: 2.32 | AE188: 4.76 | AF188: 17.24 | AG188: 33.43 | AH188: 47.15 | AI188: 79.61 | AJ188: 91.66 | AK188: 119.06 | AL188: 130.21 | AM188: 100.79 | AN188: 65.83 | AO188: 39.4 | AP188: 22.11 | AQ188: 0 | AR188: 0.1 | AS188: 0 | AT188: 0 | AU188: 0.1 | AV188: 0.1 | AW188: 0.27 | AX188: 1.39 | AY188: 4.67 | AZ188: 13.85 | BA188: 32.36 | BB188: 56.49 | BC188: 105.27 | BD188: 154.36 | BE188: 250.15 | BF188: 325.61 | BG188: 347.6 | BH188: 304.32 | BI188: 193.38 | BJ188: 129.77 | BK188: 63.69
A189: Long & Luchtpijp | C189: 2002 | D189: 0 | E189: 0 | F189: 0 | G189: 0.21 | H189: 0.2 | I189: 0.19 | J189: 0.75 | K189: 3.25 | L189: 10.92 | M189: 28.59 | N189: 65.15 | O189: 119.75 | P189: 225.47 | Q189: 376.6 | R189: 519.13 | S189: 637.55 | T189: 540.95 | U189: 350.11 | V189: 253.55 | W189: 42.46 | X189: 0 | Y189: 0 | Z189: 0.21 | AA189: 0 | AB189: 0.21 | AC189: 0.19 | AD189: 1.09 | AE189: 5.53 | AF189: 16 | AG189: 36.67 | AH189: 51.87 | AI189: 73.07 | AJ189: 90.91 | AK189: 130.61 | AL189: 143.07 | AM189: 117.3 | AN189: 69.72 | AO189: 44.47 | AP189: 26.2 | AQ189: 9.12 | AR189: 0 | AS189: 0 | AT189: 0.1 | AU189: 0.1 | AV189: 0.21 | AW189: 0.19 | AX189: 0.93 | AY189: 4.4 | AZ189: 13.46 | BA189: 32.63 | BB189: 58.51 | BC189: 96.41 | BD189: 158.19 | BE189: 253.6 | BF189: 331.11 | BG189: 377.43 | BH189: 305.34 | BI189: 197.29 | BJ189: 139.88 | BK189: 25.79
A190: Long & Luchtpijp | C190: 2003 | D190: 0 | E190: 0 | F190: 0.19 | G190: 0 | H190: 0 | I190: 0.58 | J190: 1.71 | K190: 4.61 | L190: 10.91 | M190: 30.33 | N190: 66.36 | O190: 115.36 | P190: 197.31 | Q190: 351.38 | R190: 519.72 | S190: 593.34 | T190: 577.9 | U190: 429.1 | V190: 215.22 | W190: 169.6 | X190: 0 | Y190: 0.21 | Z190: 0 | AA190: 0 | AB190: 0.42 | AC190: 0.99 | AD190: 1.75 | AE190: 3.86 | AF190: 14.67 | AG190: 40.01 | AH190: 61.41 | AI190: 81.09 | AJ190: 96.96 | AK190: 128.21 | AL190: 155.02 | AM190: 128.28 | AN190: 97.89 | AO190: 49.12 | AP190: 25.68 | AQ190: 26.72 | AR190: 0 | AS190: 0.1 | AT190: 0.1 | AU190: 0 | AV190: 0.21 | AW190: 0.79 | AX190: 1.73 | AY190: 4.23 | AZ190: 12.79 | BA190: 35.18 | BB190: 63.88 | BC190: 98.22 | BD190: 147.13 | BE190: 239.79 | BF190: 337.37 | BG190: 360.81 | BH190: 337.9 | BI190: 239.11 | BJ190: 120.45 | BK190: 98.16
A191: Long & Luchtpijp | C191: 2004 | D191: 0 | E191: 0 | F191: 0 | G191: 0.4 | H191: 0.2 | I191: 0 | J191: 1.3 | K191: 3.59 | L191: 11.99 | M191: 29.27 | N191: 68.39 | O191: 124.05 | P191: 213.11 | Q191: 342.28 | R191: 514.5 | S191: 581.01 | T191: 597.86 | U191: 407.33 | V191: 284.48 | W191: 125.16 | X191: 0.2 | Y191: 0 | Z191: 0 | AA191: 0 | AB191: 0 | AC191: 0.8 | AD191: 1.81 | AE191: 4.02 | AF191: 17.3 | AG191: 41.1 | AH191: 60.12 | AI191: 88 | AJ191: 110.91 | AK191: 131.31 | AL191: 150.31 | AM191: 141.93 | AN191: 94.63 | AO191: 60.67 | AP191: 29.13 | AQ191: 0 | AR191: 0.1 | AS191: 0 | AT191: 0 | AU191: 0.2 | AV191: 0.1 | AW191: 0.4 | AX191: 1.56 | AY191: 3.8 | AZ191: 14.64 | BA191: 35.19 | BB191: 64.25 | BC191: 106.02 | BD191: 162 | BE191: 236.79 | BF191: 332.41 | BG191: 361.47 | BH191: 346.24 | BI191: 234 | BJ191: 156.81 | BK191: 62.58
A192: Long & Luchtpijp | C192: 2005 | D192: 0 | E192: 0 | F192: 0 | G192: 0.2 | H192: 0.2 | I192: 0.4 | J192: 0.69 | K192: 3.31 | L192: 9.18 | M192: 25.58 | N192: 64.44 | O192: 109.32 | P192: 219.16 | Q192: 325.39 | R192: 494.78 | S192: 572.14 | T192: 544.65 | U192: 386.6 | V192: 288.28 | W192: 121.9 | X192: 0.2 | Y192: 0 | Z192: 0 | AA192: 0 | AB192: 0.21 | AC192: 1.01 | AD192: 1.56 | AE192: 4.02 | AF192: 16.54 | AG192: 37.66 | AH192: 66.16 | AI192: 86.2 | AJ192: 113.73 | AK192: 147.32 | AL192: 168.65 | AM192: 156.75 | AN192: 102.64 | AO192: 60.43 | AP192: 32.47 | AQ192: 8.24 | AR192: 0.1 | AS192: 0 | AT192: 0 | AU192: 0.1 | AV192: 0.21 | AW192: 0.71 | AX192: 1.13 | AY192: 3.66 | AZ192: 12.86 | BA192: 31.62 | BB192: 65.3 | BC192: 97.76 | BD192: 166.44 | BE192: 236.35 | BF192: 331.72 | BG192: 364.45 | BH192: 323.65 | BI192: 223.52 | BJ192: 160.38 | BK192: 65.07
A193: Long & Luchtpijp | C193: 2006 | D193: 0 | E193: 0 | F193: 0.2 | G193: 0 | H193: 0.2 | I193: 0.6 | J193: 1.82 | K193: 3.34 | L193: 10.98 | M193: 26.69 | N193: 61.73 | O193: 120.12 | P193: 205.21 | Q193: 318.39 | R193: 498.63 | S193: 609.29 | T193: 584.31 | U193: 458.52 | V193: 235.38 | W193: 118.18 | X193: 0 | Y193: 0 | Z193: 0 | AA193: 0 | AB193: 0.63 | AC193: 0.61 | AD193: 1.83 | AE193: 3.88 | AF193: 15.6 | AG193: 37.79 | AH193: 71.75 | AI193: 94.09 | AJ193: 124.39 | AK193: 147.2 | AL193: 186.88 | AM193: 164.87 | AN193: 124.48 | AO193: 77.56 | AP193: 43.88 | AQ193: 0 | AR193: 0 | AS193: 0 | AT193: 0.1 | AU193: 0 | AV193: 0.42 | AW193: 0.61 | AX193: 1.82 | AY193: 3.61 | AZ193: 13.29 | BA193: 32.24 | BB193: 66.74 | BC193: 107.1 | BD193: 164.8 | BE193: 232.8 | BF193: 342.76 | BG193: 387.08 | BH193: 354.39 | BI193: 268.04 | BJ193: 139.63 | BK193: 59.09
A194: Long & Luchtpijp | C194: 2007 | D194: 0 | E194: 0 | F194: 0 | G194: 0 | H194: 0 | I194: 1.21 | J194: 1.72 | K194: 3.86 | L194: 8.76 | M194: 24.41 | N194: 61.55 | O194: 117.99 | P194: 195.73 | Q194: 333.08 | R194: 487.39 | S194: 607.21 | T194: 573.24 | U194: 455.54 | V194: 254.84 | W194: 37.64 | X194: 0 | Y194: 0 | Z194: 0 | AA194: 0.41 | AB194: 0 | AC194: 0.4 | AD194: 1.72 | AE194: 3.45 | AF194: 16.14 | AG194: 38.21 | AH194: 75.2 | AI194: 93.32 | AJ194: 133.45 | AK194: 146.37 | AL194: 178.16 | AM194: 191.03 | AN194: 119.34 | AO194: 71.82 | AP194: 39.09 | AQ194: 23.07 | AR194: 0 | AS194: 0 | AT194: 0 | AU194: 0.2 | AV194: 0 | AW194: 0.81 | AX194: 1.72 | AY194: 3.66 | AZ194: 12.45 | BA194: 31.31 | BB194: 68.37 | BC194: 105.66 | BD194: 164.58 | BE194: 239.73 | BF194: 332.78 | BG194: 399.12 | BH194: 346.29 | BI194: 263.67 | BJ194: 146.97 | BK194: 30.35
A195: Long & Luchtpijp | C195: 2008 | D195: 0 | E195: 0 | F195: 0 | G195: 0.39 | H195: 0 | I195: 0.6 | J195: 1.18 | K195: 5.07 | L195: 6.99 | M195: 22.64 | N195: 59.89 | O195: 113.92 | P195: 194.02 | Q195: 316.74 | R195: 475.41 | S195: 603.98 | T195: 604.13 | U195: 429.57 | V195: 267.29 | W195: 249.51 | X195: 0 | Y195: 0 | Z195: 0 | AA195: 0.2 | AB195: 0.41 | AC195: 1.01 | AD195: 0.98 | AE195: 4.48 | AF195: 14.03 | AG195: 39.92 | AH195: 75.16 | AI195: 100.25 | AJ195: 137.23 | AK195: 162.63 | AL195: 196.31 | AM195: 182.42 | AN195: 138.61 | AO195: 87.8 | AP195: 52.01 | AQ195: 0 | AR195: 0 | AS195: 0 | AT195: 0 | AU195: 0.3 | AV195: 0.2 | AW195: 0.81 | AX195: 1.08 | AY195: 4.78 | AZ195: 10.51 | BA195: 31.28 | BB195: 67.53 | BC195: 107.08 | BD195: 165.63 | BE195: 239.68 | BF195: 335.86 | BG195: 393.2 | BH195: 371.37 | BI195: 258.69 | BJ195: 159.65 | BK195: 124.75
A196: Long & Luchtpijp | C196: 2009 | D196: 0.21 | E196: 0 | F196: 0.4 | G196: 0 | H196: 0.2 | I196: 1.2 | J196: 0.99 | K196: 2.97 | L196: 9.76 | M196: 22.15 | N196: 61.23 | O196: 113.37 | P196: 190.16 | Q196: 323.2 | R196: 466.63 | S196: 604.51 | T196: 596.91 | U196: 473.14 | V196: 356.7 | W196: 396.96 | X196: 0 | Y196: 0 | Z196: 0 | AA196: 0.2 | AB196: 0.81 | AC196: 0.61 | AD196: 1.2 | AE196: 5.47 | AF196: 15.93 | AG196: 31.84 | AH196: 71.23 | AI196: 105.45 | AJ196: 129.72 | AK196: 165.96 | AL196: 192.62 | AM196: 199.99 | AN196: 148.24 | AO196: 83.5 | AP196: 43.68 | AQ196: 27.81 | AR196: 0.11 | AS196: 0 | AT196: 0.2 | AU196: 0.1 | AV196: 0.5 | AW196: 0.9 | AX196: 1.1 | AY196: 4.22 | AZ196: 12.84 | BA196: 27 | BB196: 66.23 | BC196: 109.4 | BD196: 159.94 | BE196: 244.59 | BF196: 329.63 | BG196: 402.24 | BH196: 372.57 | BI196: 278.32 | BJ196: 200.19 | BK196: 212.39
A197: Long & Luchtpijp | C197: 2010 | D197: 0 | E197: 0 | F197: 0.39 | G197: 0.19 | H197: 0.19 | I197: 0 | J197: 1.2 | K197: 4.86 | L197: 8.4 | M197: 25.43 | N197: 54.7 | O197: 113.26 | P197: 193.15 | Q197: 312.24 | R197: 433.7 | S197: 635.56 | T197: 593.74 | U197: 413.99 | V197: 332.72 | W197: 219.64 | X197: 0 | Y197: 0 | Z197: 0 | AA197: 0.2 | AB197: 0.39 | AC197: 0.2 | AD197: 0.8 | AE197: 6.26 | AF197: 11.69 | AG197: 32 | AH197: 63.3 | AI197: 109.26 | AJ197: 149.72 | AK197: 180.64 | AL197: 206.75 | AM197: 206.22 | AN197: 163.44 | AO197: 101.73 | AP197: 52.43 | AQ197: 33.26 | AR197: 0 | AS197: 0 | AT197: 0.2 | AU197: 0.2 | AV197: 0.29 | AW197: 0.1 | AX197: 1 | AY197: 5.56 | AZ197: 10.04 | BA197: 28.72 | BB197: 59 | BC197: 111.26 | BD197: 171.44 | BE197: 246.44 | BF197: 320.23 | BG197: 420.89 | BH197: 378.6 | BI197: 257.86 | BJ197: 192.58 | BK197: 126.45
A198: Long & Luchtpijp | C198: 2011 | D198: 0 | E198: 0 | F198: 0 | G198: 0.39 | H198: 0.19 | I198: 0.2 | J198: 1.39 | K198: 3.47 | L198: 11.21 | M198: 22.59 | N198: 56.62 | O198: 108.48 | P198: 200.04 | Q198: 303.99 | R198: 425.04 | S198: 581.58 | T198: 644.89 | U198: 457.23 | V198: 276.91 | W198: 60.79 | X198: 0 | Y198: 0 | Z198: 0.41 | AA198: 0 | AB198: 0.78 | AC198: 1.2 | AD198: 1.39 | AE198: 3.28 | AF198: 11.7 | AG198: 36.72 | AH198: 69.11 | AI198: 113.51 | AJ198: 142.38 | AK198: 180.52 | AL198: 197.74 | AM198: 227.3 | AN198: 164.71 | AO198: 119.4 | AP198: 62.31 | AQ198: 19.26 | AR198: 0 | AS198: 0 | AT198: 0.2 | AU198: 0.19 | AV198: 0.48 | AW198: 0.7 | AX198: 1.39 | AY198: 3.37 | AZ198: 11.46 | BA198: 29.66 | BB198: 62.86 | BC198: 111 | BD198: 171.21 | BE198: 242.26 | BF198: 311.39 | BG198: 404.44 | BH198: 404.8 | BI198: 288.31 | BJ198: 169.61 | BK198: 40.03
A199: Long & Luchtpijp | C199: 2012 | D199: 0 | E199: 0 | F199: 0 | G199: 0.59 | H199: 0 | I199: 0.2 | J199: 1.58 | K199: 3.24 | L199: 9.34 | M199: 20.65 | N199: 46.97 | O199: 107.92 | P199: 183.03 | Q199: 275.23 | R199: 396.31 | S199: 576.1 | T199: 531.08 | U199: 520.2 | V199: 221.94 | W199: 232.52 | X199: 0.22 | Y199: 0 | Z199: 0 | AA199: 0 | AB199: 0.38 | AC199: 0.4 | AD199: 1.59 | AE199: 3.04 | AF199: 12.41 | AG199: 32.76 | AH199: 68.32 | AI199: 116.63 | AJ199: 160.9 | AK199: 190.11 | AL199: 212.22 | AM199: 215.6 | AN199: 179.07 | AO199: 98.92 | AP199: 50.99 | AQ199: 24.93 | AR199: 0.11 | AS199: 0 | AT199: 0 | AU199: 0.29 | AV199: 0.19 | AW199: 0.3 | AX199: 1.59 | AY199: 3.14 | AZ199: 10.87 | BA199: 26.71 | BB199: 57.64 | BC199: 112.27 | BD199: 171.96 | BE199: 232.67 | BF199: 304.27 | BG199: 395.85 | BH199: 355.08 | BI199: 309.56 | BJ199: 136.47 | BK199: 128.73
A200: Long & Luchtpijp | C200: 2013 | D200: 0 | E200: 0 | F200: 0.19 | G200: 0 | H200: 0.56 | I200: 0.96 | J200: 1.58 | K200: 3.34 | L200: 9.58 | M200: 24.15 | N200: 52.04 | O200: 113.87 | P200: 177.66 | Q200: 270.29 | R200: 400.59 | S200: 512.9 | T200: 574.05 | U200: 483.34 | V200: 240.76 | W200: 253.31 | X200: 0 | Y200: 0 | Z200: 0 | AA200: 0 | AB200: 0.19 | AC200: 0.78 | AD200: 1.79 | AE200: 3.71 | AF200: 11.04 | AG200: 30.38 | AH200: 59.56 | AI200: 115.65 | AJ200: 164.5 | AK200: 196.65 | AL200: 211.21 | AM200: 215.8 | AN200: 205.49 | AO200: 115.4 | AP200: 54.66 | AQ200: 24.59 | AR200: 0 | AS200: 0 | AT200: 0.1 | AU200: 0 | AV200: 0.38 | AW200: 0.87 | AX200: 1.69 | AY200: 3.52 | AZ200: 10.31 | BA200: 27.27 | BB200: 55.8 | BC200: 114.76 | BD200: 171.08 | BE200: 233.46 | BF200: 305.9 | BG200: 364.35 | BH200: 389.77 | BI200: 299.37 | BJ200: 147.71 | BK200: 138.95
A201: Long & Luchtpijp | C201: 2014 | D201: 0 | E201: 0 | F201: 0 | G201: 0.2 | H201: 0.19 | I201: 0.38 | J201: 1.78 | K201: 3.78 | L201: 10.47 | M201: 19.76 | N201: 43.87 | O201: 96.37 | P201: 181.79 | Q201: 266.36 | R201: 391.09 | S201: 494.36 | T201: 554.59 | U201: 411.91 | V201: 224.66 | W201: 159.87 | X201: 0.23 | Y201: 0 | Z201: 0 | AA201: 0.21 | AB201: 0 | AC201: 0.38 | AD201: 1.59 | AE201: 3.96 | AF201: 10.61 | AG201: 29.15 | AH201: 64.32 | AI201: 115.68 | AJ201: 163.98 | AK201: 206.69 | AL201: 225.16 | AM201: 204.7 | AN201: 170.11 | AO201: 98.82 | AP201: 56.52 | AQ201: 30.12 | AR201: 0.11 | AS201: 0 | AT201: 0 | AU201: 0.2 | AV201: 0.09 | AW201: 0.39 | AX201: 1.68 | AY201: 3.87 | AZ201: 10.54 | BA201: 24.46 | BB201: 54.1 | BC201: 106.02 | BD201: 172.89 | BE201: 236.52 | BF201: 308.13 | BG201: 349.53 | BH201: 362.35 | BI201: 255.37 | BJ201: 140.59 | BK201: 95
